Workbook

Sheet Input
A1: Decision Making Tool for Island Communities
A2: Coastal Renewable Generation and Storage Devices
A4: Input Cells
A6: Data
A8: Island | B8: Islay
A9: Population | B9: 3220
A10: Average Daily Demand | B10: 12.6 | C10: kWh
A11: Non-Renewable Generation Capacity | B11: 0
A12: Demand
A13: Average Summer | C13: kW
A14: Average Winter | C14: kW
A15: Generation
A16: Average Summer | C16: kW
A17: Average Winter | C17: kW
A19: Main Grid Connection | B19: Yes
A20: Generation Excess? | B20: =IF(OR(B17>B14,B16>B13),"Yes", "No") -> No
A21: =IF(B20="No","","Max Excess") ->  | B21: =IF(A21="Max Excess",MAX((B16-B13),(B17-B14)),"") ->  | C21: =IF(B21<>"","kW","") -> 
A23: Required Storage
A24: Rated Capacity | C24: kW
A25: Capacity | C25: kWh
A27: Current Renewable Generation
A29: Device | B29: Resource Type | C29: Rated Power
A30: Enercon E-33 Turbine | B30: Wind | C30: 330 | D30: kW
B31: [Select] | D31: kW
B32: [Select] | D32: kW
B33: [Select] | D33: kW
B34: [Select] | D34: kW
B35: [Select] | D35: kW
B36: [Select] | D36: kW
B37: [Select] | D37: kW
B38: [Select] | D38: kW
A40: Potential Generation and Storage
A42: Resource Type: | B42: Tidal Stream | E42: Resource Type: | F42: Tidal Barrage | I42: Resource Type: | J42: Wave
A43: No. of Sites | B43: 3 | E43: No. of Sites | F43: 2 | I43: No. of Sites | J43: 2
A45: Site Name | B45: Portnahaven | E45: Site Name | F45: Port Ellen | I45: Site Name | J45: Portnahaven - Far
A46: Peak Flow (Springs) | B46: 3 | C46: =IF(A46<>"","m/s","") -> m/s | E46: Max Tidal Range | F46: 1.08 | G46: =IF(E46<>"","m","") -> m | I46: Position Relevant to Island | J46: SW
A47: Peak Flow (Neaps) | B47: 2.5 | C47: =IF(A47<>"","m/s","") -> m/s | E47: Mean Tidal Range | F47: 0.66 | G47: =IF(E47<>"","m","") -> m | I47: Relevant Ocean Wave Area | J47: North Sea (AREA 10)
A48: Lunar Cycle Period | B48: 28.74 | C48: =IF(A48<>"","days","") -> days | E48: Lunar Cycle Period | F48: 28.74 | G48: =IF(E48<>"","days","") -> days | I48: Average Wave Height | J48: 2.1
A49: Tidal Period | B49: 12.4 | C49: =IF(A49<>"","hours","") -> hours | E49: Proposed Lagoon Surface Area | F49: 26546.5 | G49: =IF(E49<>"","m^2","") -> m^2 | I49: Proximity to Grid Connection | J49: 5 km +
A50: Proximity to Grid Connection | B50: 2-3 km | E50: Proximity to Grid Connection | F50: < 1 km | I50: Average Water Depth | J50: > 20m
A51: Average Water Depth | B51: > 20m | E51: Average Water Depth | F51: < 5 m | I51: Seabed Topography | J51: Moderate (Sandy, Moderate Gradient)
A52: Seabed Topography | B52: Moderate (Rocky, Gentle Gradient) | E52: Seabed Topography | F52: Moderate (Rocky, Gentle Gradient) | I52: Accessibility | J52: Partially Accessible (Temporary Works, Obstacles)
A53: Accessibility | B53: Fully Accessible (Exisiting Infrastructure for Transport) | E53: Accessibility | F53: Partially Accessible (Temporary Works, No Obstacles)
A55: Site Name | B55: Inerval | E55: Site Name | F55: Bowmore | I55: Site Name | J55: Portnahaven - Near
A56: Peak Flow (Springs) | B56: 2.5 | C56: =IF(A56<>"","m/s","") -> m/s | E56: Max Tidal Range | F56: 0.8 | G56: =IF(E56<>"","m","") -> m | I56: Position Relevant to Island | J56: SW
A57: Peak Flow (Neaps) | B57: 2 | C57: =IF(A57<>"","m/s","") -> m/s | E57: Mean Tidal Range | F57: 0.4 | G57: =IF(E57<>"","m","") -> m | I57: Relevant Ocean Wave Area | J57: North Sea (AREA 10)
A58: Lunar Cycle Period | B58: 28.74 | C58: =IF(A58<>"","days","") -> days | E58: Lunar Cycle Period | F58: 28.74 | G58: =IF(E58<>"","days","") -> days | I58: Average Wave Height | J58: 1.8
A59: Tidal Period | B59: 12.4 | C59: =IF(A59<>"","hours","") -> hours | E59: Proposed Lagoon Surface Area | F59: 49500 | G59: =IF(E59<>"","m^2","") -> m^2 | I59: Proximity to Grid Connection | J59: 2-3 km
A60: Proximity to Grid Connection | B60: 2-3 km | E60: Proximity to Grid Connection | F60: < 1 km | I60: Average Water Depth | J60: > 20m
A61: Average Water Depth | B61: > 20m | E61: Average Water Depth | F61: < 5 m | I61: Seabed Topography | J61: Moderate (Rocky, Gentle Gradient)
A62: Seabed Topography | B62: Moderate (Sandy, Moderate Gradient) | E62: Seabed Topography | F62: Benign (Sandy, Flat/Gentle Gradient) | I62: Accessibility | J62: Partially Accessible (Temporary Works, Obstacles)
A63: Accessibility | B63: Partially Accessible (Complex Temporary Works, Obstacles) | E63: Accessibility | F63: Partially Accessible (Temporary Works, No Obstacles)
A65: Site Name | B65: Sound of Islay | E65: Site Name | F65: =IF(E65<>"", "[Enter Name]","") -> [Enter Name] | I65: Site Name | J65: Mull of Oa
A66: Peak Flow (Springs) | B66: 4 | C66: =IF(A66<>"","m/s","") -> m/s | E66: Max Tidal Range | F66: =IF(E66<>"", "[Enter Value]","") -> [Enter Value] | G66: =IF(E66<>"","m","") -> m | I66: Position Relevant to Island | J66: SW
A67: Peak Flow (Neaps) | B67: 3.5 | C67: =IF(A67<>"","m/s","") -> m/s | E67: Mean Tidal Range | F67: =IF(E67<>"", "[Enter Value]","") -> [Enter Value] | G67: =IF(E67<>"","m","") -> m | I67: Relevant Ocean Wave Area | J67: North Sea (AREA 10)
A68: Lunar Cycle Period | B68: 28.74 | C68: =IF(A68<>"","days","") -> days | E68: Lunar Cycle Period | F68: [Enter Value] | G68: =IF(E68<>"","days","") -> days | I68: Average Wave Height | J68: 1.8
A69: Tidal Period | B69: 12.4 | C69: =IF(A69<>"","hours","") -> hours | E69: Proposed Lagoon Surface Area | F69: [Enter Value] | G69: =IF(E69<>"","m^2","") -> m^2 | I69: Proximity to Grid Connection | J69: 5 km +
A70: Proximity to Grid Connection | B70: 1-2 km | E70: Proximity to Grid Connection | F70: =IF(E70<>"", "[Select Value]","") -> [Select Value] | I70: Average Water Depth | J70: > 20m
A71: Average Water Depth | B71: > 20m | E71: Average Water Depth | F71: =IF(E71<>"", "[Select Value]","") -> [Select Value] | I71: Seabed Topography | J71: Moderate (Sandy, Moderate Gradient)
A72: Seabed Topography | B72: Moderate (Rocky, Gentle Gradient) | E72: Seabed Topography | F72: =IF(E72<>"", "[Select Value]","") -> [Select Value] | I72: Accessibility | J72: Partially Accessible (Temporary Works, Obstacles)
A73: Accessibility | B73: Partially Accessible (Complex Temporary Works, Obstacles) | E73: Accessibility | F73: =IF(E73<>"", "[Select Value]","") -> [Select Value]
A75: Site Name | B75: =IF(A75<>"", "[Enter Name]","") -> [Enter Name] | E75: Site Name | F75: =IF(E75<>"", "[Enter Name]","") -> [Enter Name] | I75: Site Name | J75: =IF(I75<>"", "[Enter Name]","") -> [Enter Name]
A76: Peak Flow (Springs) | B76: =IF(A76<>"", "[Enter Value]","") -> [Enter Value] | C76: =IF(A76<>"","m/s","") -> m/s | E76: Max Tidal Range | F76: =IF(E76<>"", "[Enter Value]","") -> [Enter Value] | G76: =IF(E76<>"","m","") -> m | I76: Position Relevant to Island | J76: =IF(I76<>"", "[Select Value]","") -> [Select Value]
A77: Peak Flow (Neaps) | B77: =IF(A77<>"", "[Enter Value]","") -> [Enter Value] | C77: =IF(A77<>"","m/s","") -> m/s | E77: Mean Tidal Range | F77: =IF(E77<>"", "[Enter Value]","") -> [Enter Value] | G77: =IF(E77<>"","m","") -> m | I77: Relevant Ocean Wave Area | J77: [Select Area]
A78: Lunar Cycle Period | B78: [Enter Value] | C78: =IF(A78<>"","days","") -> days | E78: Lunar Cycle Period | F78: [Enter Value] | G78: =IF(E78<>"","days","") -> days | I78: Average Wave Height | J78: [Enter Value]
A79: Tidal Period | B79: [Enter Value] | C79: =IF(A79<>"","hours","") -> hours | E79: Proposed Lagoon Surface Area | F79: [Enter Value] | G79: =IF(E79<>"","m^2","") -> m^2 | I79: Proximity to Grid Connection | J79: =IF(I79<>"", "[Select Value]","") -> [Select Value]
A80: Proximity to Grid Connection | B80: =IF(A80<>"", "[Select Value]","") -> [Select Value] | E80: Proximity to Grid Connection | F80: =IF(E80<>"", "[Select Value]","") -> [Select Value] | I80: Average Water Depth | J80: =IF(I80<>"", "[Select Value]","") -> [Select Value]
A81: Average Water Depth | B81: =IF(A81<>"", "[Select Value]","") -> [Select Value] | E81: Average Water Depth | F81: =IF(E81<>"", "[Select Value]","") -> [Select Value] | I81: Seabed Topography | J81: =IF(I81<>"", "[Select Value]","") -> [Select Value]
A82: Seabed Topography | B82: =IF(A82<>"", "[Select Value]","") -> [Select Value] | E82: Seabed Topography | F82: =IF(E82<>"", "[Select Value]","") -> [Select Value] | I82: Accessibility | J82: =IF(I82<>"", "[Select Value]","") -> [Select Value]
A83: Accessibility | B83: =IF(A83<>"", "[Select Value]","") -> [Select Value] | E83: Accessibility | F83: =IF(E83<>"", "[Select Value]","") -> [Select Value]
A85: Site Name | B85: =IF(A85<>"", "[Enter Name]","") -> [Enter Name] | E85: Site Name | F85: =IF(E85<>"", "[Enter Name]","") -> [Enter Name] | I85: Site Name | J85: =IF(I85<>"", "[Enter Name]","") -> [Enter Name]
A86: Peak Flow (Springs) | B86: =IF(A86<>"", "[Enter Value]","") -> [Enter Value] | C86: =IF(A86<>"","m/s","") -> m/s | E86: Max Tidal Range | F86: =IF(E86<>"", "[Enter Value]","") -> [Enter Value] | G86: =IF(E86<>"","m","") -> m | I86: Position Relevant to Island | J86: =IF(I86<>"", "[Select Value]","") -> [Select Value]
A87: Peak Flow (Neaps) | B87: =IF(A87<>"", "[Enter Value]","") -> [Enter Value] | C87: =IF(A87<>"","m/s","") -> m/s | E87: Mean Tidal Range | F87: =IF(E87<>"", "[Enter Value]","") -> [Enter Value] | G87: =IF(E87<>"","m","") -> m | I87: Relevant Ocean Wave Area | J87: [Select Area]
A88: Lunar Cycle Period | B88: [Enter Value] | C88: =IF(A88<>"","days","") -> days | E88: Lunar Cycle Period | F88: [Enter Value] | G88: =IF(E88<>"","days","") -> days | I88: Average Wave Height | J88: [Enter Value]
A89: Tidal Period | B89: [Enter Value] | C89: =IF(A89<>"","hours","") -> hours | E89: Proposed Lagoon Surface Area | F89: [Enter Value] | G89: =IF(E89<>"","m^2","") -> m^2 | I89: Proximity to Grid Connection | J89: =IF(I89<>"", "[Select Value]","") -> [Select Value]
A90: Proximity to Grid Connection | B90: =IF(A90<>"", "[Select Value]","") -> [Select Value] | E90: Proximity to Grid Connection | F90: =IF(E90<>"", "[Select Value]","") -> [Select Value] | I90: Average Water Depth | J90: =IF(I90<>"", "[Select Value]","") -> [Select Value]
A91: Average Water Depth | B91: =IF(A91<>"", "[Select Value]","") -> [Select Value] | E91: Average Water Depth | F91: =IF(E91<>"", "[Select Value]","") -> [Select Value] | I91: Seabed Topography | J91: =IF(I91<>"", "[Select Value]","") -> [Select Value]
A92: Seabed Topography | B92: =IF(A92<>"", "[Select Value]","") -> [Select Value] | E92: Seabed Topography | F92: =IF(E92<>"", "[Select Value]","") -> [Select Value] | I92: Accessibility | J92: =IF(I92<>"", "[Select Value]","") -> [Select Value]
A93: Accessibility | B93: =IF(A93<>"", "[Select Value]","") -> [Select Value] | E93: Accessibility | F93: =IF(E93<>"", "[Select Value]","") -> [Select Value]
B469: [Enter Value]

Sheet Resource and Financial Summary
A1: Summary of Assessed Resources
A3: Tidal Stream | F3: Tidal Barrage | K3: Wave | P3: Storage
A5: Site Name | B5: Energy per lunar cycle (kWh/m^2) | C5: Energy per year (kWh/m^2) | D5: Average Power (kW/m^2) | F5: Site Name | G5: Available Energy per lunar cycle (MWh) | H5: Annual Available Energy(MWh) | I5: Required Rated Power (kW) | K5: Site Name | L5: Position | M5: Average Power (kW/m) | N5: Annual Energy (kWh/m) | P5: Name | Q5: Rated Capacity (kW) | R5: Required Capacity (kWh) | S5: Cost (£/kW) | T5: Self Discharge Rate
A6: =IF(Input!B45="[Enter Name]","",Input!B45) -> Portnahaven | B6: =IF(A6<>"",'Tidal Stream 1'!$H$2780,"") -> 3164.196405 | C6: =IF(A6<>"",'Tidal Stream 1'!$H$2781,"") -> 40185.51454 | D6: =IF(A6<>"",'Tidal Stream 1'!$G$2782,"") -> 4.585791891 | F6: =IF(Input!F45="[Enter Name]","",Input!F45) -> Port Ellen | G6: =IF(F6<>"",'Tidal Barrage 1'!$B$26,"") -> 0.2784796931 | H6: =IF(F6<>"",'Tidal Barrage 1'!$B$27,"") -> 3.536711481 | I6: =IF(F6<>"",'Tidal Barrage 1'!$B$23,"") -> 0.4037341874 | K6: =IF(Input!J45="[Enter Name]","",Input!J45) -> Portnahaven - Far | L6: =IF(Input!J46="[Select Value]","",Input!J46) -> SW | M6: =IF(K6<>"",'Wave 1'!$B$12,"") -> 7.687264793 | N6: =IF(K6<>"",M6*365*24,"") -> 67340.43959 | P6: =VLOOKUP(LARGE('Decision Matrices'!$B$69:$B$80,1),'Decision Matrices'!$B$69:$C$80,2,FALSE) -> Pumped Hydro | Q6: =Input!B24 -> 0 | R6: =Input!B25 -> 0 | S6: =0.78*(VLOOKUP(P6,'Storage Device Database'!$B$4:$K$15,10,FALSE)) -> 40000 | T6: =VLOOKUP(P6,'Storage Device Database'!$B$4:$M$15,12,FALSE) -> 0
A7: =IF(Input!B55="[Enter Name]","",Input!B55) -> Inerval | B7: =IF(A7<>"",'Tidal Stream 2'!$H$2780,"") -> 1743.328278 | C7: =IF(A7<>"",'Tidal Stream 2'!$H$2781,"") -> 22140.39045 | D7: =IF(A7<>"",'Tidal Stream 2'!$G$2782,"") -> 2.526562722 | F7: =IF(Input!F55="[Enter Name]","",Input!F55) -> Bowmore | G7: =IF(F7<>"",'Tidal Barrage 2'!$B$26,"") -> 0.1907320041 | H7: =IF(F7<>"",'Tidal Barrage 2'!$B$27,"") -> 2.422309725 | I7: =IF(F7<>"",'Tidal Barrage 2'!$B$23,"") -> 0.276519375 | K7: =IF(Input!J55="[Enter Name]","",Input!J55) -> Portnahaven - Near | L7: =IF(Input!J56="[Select Value]","",Input!J56) -> SW | M7: =IF(K7<>"",'Wave 2'!$B$12,"") -> 5.663677684 | N7: =IF(K7<>"",M7*365*24,"") -> 49613.81651 | P7: =VLOOKUP(LARGE('Decision Matrices'!$B$69:$B$80,2),'Decision Matrices'!$B$69:$C$80,2,FALSE) -> Compressed Air | S7: =0.78*(VLOOKUP(P7,'Storage Device Database'!$B$4:$K$15,10,FALSE)) -> 506.649 | T7: =VLOOKUP(P7,'Storage Device Database'!$B$4:$M$15,12,FALSE) -> 0
A8: =IF(Input!B65="[Enter Name]","",Input!B65) -> Sound of Islay | B8: =IF(A8<>"",'Tidal Stream 3'!$H$2780,"") -> 7979.191585 | C8: =IF(A8<>"",'Tidal Stream 3'!$H$2781,"") -> 101336.2884 | D8: =IF(A8<>"",'Tidal Stream 3'!$G$2782,"") -> 11.56404577 | F8: =IF(Input!F65="[Enter Name]","",Input!F65) ->  | G8: =IF(F8<>"",'Tidal Barrage 3'!$B$26,"") ->  | H8: =IF(F8<>"",'Tidal Barrage 3'!$B$27,"") ->  | I8: =IF(F8<>"",'Tidal Barrage 3'!$B$23,"") ->  | K8: =IF(Input!J65="[Enter Name]","",Input!J65) -> Mull of Oa | L8: =IF(Input!J66="[Select Value]","",Input!J66) -> SW | M8: =IF(K8<>"",'Wave 3'!$B$12,"") -> 5.663677684 | N8: =IF(K8<>"",M8*365*24,"") -> 49613.81651 | P8: =VLOOKUP(LARGE('Decision Matrices'!$B$69:$B$80,3),'Decision Matrices'!$B$69:$C$80,2,FALSE) -> Zinc Air | S8: =0.78*(VLOOKUP(P8,'Storage Device Database'!$B$4:$K$15,10,FALSE)) -> 1195.74 | T8: =VLOOKUP(P8,'Storage Device Database'!$B$4:$M$15,12,FALSE) -> 0.007
A9: =IF(Input!B75="[Enter Name]","",Input!B75) ->  | B9: =IF(A9<>"",'Tidal Stream 4'!$H$2780,"") ->  | C9: =IF(A9<>"",'Tidal Stream 4'!$H$2781,"") ->  | D9: =IF(A9<>"",'Tidal Stream 4'!$G$2782,"") ->  | F9: =IF(Input!F75="[Enter Name]","",Input!F66) ->  | G9: =IF(F9<>"",'Tidal Barrage 3'!$B$26,"") ->  | H9: =IF(F9<>"",'Tidal Barrage 3'!$B$27,"") ->  | I9: =IF(F9<>"",'Tidal Barrage 4'!$B$23,"") ->  | K9: =IF(Input!J75="[Enter Name]","",Input!J75) ->  | L9: =IF(Input!J76="[Select Value]","",Input!J76) ->  | M9: =IF(K9<>"",'Wave 4'!$B$12,"") ->  | N9: =IF(K9<>"",M9*365*24,"") -> 
A10: =IF(Input!B85="[Enter Name]","",Input!B85) ->  | B10: =IF(A10<>"",'Tidal Stream 5'!$H$2780,"") ->  | C10: =IF(A10<>"",'Tidal Stream 5'!$H$2781,"") ->  | D10: =IF(A10<>"",'Tidal Stream 5'!$G$2782,"") ->  | F10: =IF(Input!F85="[Enter Name]","",Input!F67) ->  | G10: =IF(F10<>"",'Tidal Barrage 3'!$B$26,"") ->  | H10: =IF(F10<>"",'Tidal Barrage 3'!$B$27,"") ->  | I10: =IF(F10<>"",'Tidal Barrage 5'!$B$23,"") ->  | K10: =IF(Input!J85="[Enter Name]","",Input!J85) ->  | L10: =IF(Input!J86="[Select Value]","",Input!J86) ->  | M10: =IF(K10<>"",'Wave 5'!$B$12,"") ->  | N10: =IF(K10<>"",M10*365*24,"") -> 
A12: Proposed Location and Devices | K12: Proposed Location and Devices
A14: Site Name | B14: Energy per year (kWh/m^2) | C14: Average Power (kW/m^2) | K14: Site Name | L14: Position | M14: Average Power (kW/m) | N14: Annual Energy (kWh/m)
A15: =VLOOKUP((MAX('Decision Matrices'!B5:B9)),'Decision Matrices'!B5:C9,2,FALSE) -> Portnahaven | B15: =VLOOKUP(A15,A6:D10,3,FALSE) -> 40185.51454 | C15: =VLOOKUP(A15,A6:D10,4,FALSE) -> 4.585791891 | F15: Site Name | G15: =VLOOKUP((MAX('Decision Matrices'!B10:B14)),'Decision Matrices'!B10:C14,2,FALSE) -> Bowmore | H15: =VLOOKUP(LARGE(('Decision Matrices'!B10:B14),2),'Decision Matrices'!B10:C14,2,FALSE) -> Port Ellen | I15: =VLOOKUP(LARGE(('Decision Matrices'!B10:B14),3),'Decision Matrices'!B10:C14,2,FALSE) -> [Enter Name] | K15: =K6 -> Portnahaven - Far | L15: =VLOOKUP(K15,K6:L10,2,FALSE) -> SW | M15: =VLOOKUP(K15,K6:N10,2,FALSE) -> SW | N15: =VLOOKUP(K15,K6:N10,3,FALSE) -> 7.687264793
B17: Name | C17: Rated Power (kW) | D17: Capture Area | F17: Available Energy (MWh) | G17: =VLOOKUP(G15,$F$6:$H$10,3,FALSE) -> 2.422309725 | H17: =VLOOKUP(H15,$F$6:$H$10,3,FALSE) -> 3.536711481 | L17: Name | M17: Rated Power (kW) | N17: Availability
A18: Potential Devices | B18: =VLOOKUP((MAX('Decision Matrices'!B25:B63)),'Decision Matrices'!B25:C63,2,FALSE) -> Atlantis AR-1500 | C18: =VLOOKUP(B18,'Tidal Device Database'!$B$4:$D$42,3,FALSE) -> 1500 | D18: =VLOOKUP(B18,'Tidal Device Database'!$B$4:$H$43,6,FALSE) -> 254.4690049 | F18: Rated Power (kW) | G18: =VLOOKUP(G15,$F$6:$I$10,4,FALSE) -> 0.276519375 | H18: =VLOOKUP(H15,$F$6:$I$10,4,FALSE) -> 0.4037341874 | K18: Potential Devices | L18: =VLOOKUP(LARGE('Decision Matrices'!$B$86:$B$89,1),'Decision Matrices'!$B$86:$C$89,2,FALSE) -> Yam Pro Energy | M18: =VLOOKUP(L18,'Wave Device Database'!$B$3:$G$8,6,FALSE) -> 100 | N18: =VLOOKUP(L18,'Wave Device Database'!$B$3:$D$8,3,FALSE) -> 0.186
B19: =VLOOKUP((LARGE('Decision Matrices'!B25:B63,2)),'Decision Matrices'!B25:C63,2,FALSE) -> ANDRITZ HYDRO Hammerfest HS300 | C19: =VLOOKUP(B19,'Tidal Device Database'!$B$4:$D$42,3,FALSE) -> 300 | D19: =VLOOKUP(B19,'Tidal Device Database'!$B$4:$H$43,6,FALSE) -> 73.89811319 | L19: =VLOOKUP(LARGE('Decision Matrices'!$B$86:$B$89,2),'Decision Matrices'!$B$86:$C$89,2,FALSE) -> Rotary Wave | M19: =VLOOKUP(L19,'Wave Device Database'!$B$3:$G$8,6,FALSE) -> 200 | N19: =VLOOKUP(L19,'Wave Device Database'!$B$3:$D$8,3,FALSE) -> 0.09566666667
B20: =VLOOKUP((LARGE('Decision Matrices'!B25:B63,3)),'Decision Matrices'!B25:C63,2,FALSE) -> ANDRITZ HYDRO Hammerfest HS1000 | C20: =VLOOKUP(B20,'Tidal Device Database'!$B$4:$D$42,3,FALSE) -> 1000 | D20: =VLOOKUP(B20,'Tidal Device Database'!$B$4:$H$43,6,FALSE) -> 346.3605901 | L20: =VLOOKUP(LARGE('Decision Matrices'!$B$86:$B$89,3),'Decision Matrices'!$B$86:$C$89,2,FALSE) -> Wave El Buoy | M20: =VLOOKUP(L20,'Wave Device Database'!$B$3:$G$8,6,FALSE) -> 150 | N20: =VLOOKUP(L20,'Wave Device Database'!$B$3:$D$8,3,FALSE) -> 0.2603333333
T22: .
A24: Financial Comparison | K24: Financial Comparison | P24: Financial Comparison
A26: Tidal Power Option | F26: Tidal Barrage Option | K26: Wave Options | P26: Storage Options
A28: Device | B28: =B18 -> Atlantis AR-1500 | C28: =B19 -> ANDRITZ HYDRO Hammerfest HS300 | D28: =B20 -> ANDRITZ HYDRO Hammerfest HS1000 | K28: Device | L28: =L18 -> Yam Pro Energy | M28: =L19 -> Rotary Wave | N28: =L20 -> Wave El Buoy | P28: Device | Q28: =P6 -> Pumped Hydro | R28: =P7 -> Compressed Air | S28: =P8 -> Zinc Air
A30: Capital Expenditure | F30: Capital Expenditure | K30: Capital Expenditure | P30: Capital Expenditure
A31: Average Cost per kW Installed | B31: =4400*0.85 -> 3740 | F31: Average Cost per kW Installed | G31: 20000 | K31: Average Cost per kW Installed | L31: =0.85*5790 -> 4921.5 | P31: Average Cost per kW Installed | Q31: =S6 -> 40000 | R31: =S7 -> 506.649 | S31: =S8 -> 1195.74
A32: Major Equipment Cost | B32: =0.46*B36 -> 2580600 | C32: =0.46*C36 -> 516120 | D32: 1720400 | F32: Capital Cost | G32: =(G31*G18)+500000 -> 505530.3875 | H32: =(G31*H18)+500000 -> 508074.6837 | I32: =(G31*I18)+500000 ->  | K32: Major Equipment Cost | L32: =0.46*L36 -> 226389 | M32: =0.46*M36 -> 452778 | N32: 339583.5 | P32: Total Capital Cost | Q32: =$Q$6*Q31 -> 0 | R32: =$Q$6*R31 -> 0 | S32: 0
A33: Civil and Structural Cost | B33: =0.31*B36 -> 1739100 | C33: =0.31*C36 -> 347820 | D33: 1159400 | F33: Total | G33: =G32 -> 505530.3875 | H33: =SUM(H32:H32) -> 508074.6837 | I33: =SUM(I32:I32) ->  | K33: Civil and Structural Cost | L33: =0.31*L36 -> 152566.5 | M33: =0.31*M36 -> 305133 | N33: 228849.75 | P33: Operating Expenditure
A34: Electrical and Installation | B34: =0.07*B36 -> 392700 | C34: =0.07*C36 -> 78540 | D34: 261800 | K34: Electrical and Installation | L34: =0.07*L36 -> 34450.5 | M34: =0.07*M36 -> 68901 | N34: 51675.75 | P34: Maintenance Cost (@5% Capital) | Q34: =0.05*Q32 -> 0 | R34: =0.05*R32 -> 0 | S34: 0
A35: Indirect Project Costs | B35: =0.16*B36 -> 897600 | C35: =0.16*C36 -> 179520 | D35: 598400 | F35: Maintenance Cost (@1% Capital) | G35: =0.01*G33 -> 5055.303875 | H35: =0.01*H33 -> 5080.746837 | I35: =0.01*I33 ->  | K35: Indirect Project Costs | L35: =0.16*L36 -> 78744 | M35: =0.16*M36 -> 157488 | N35: =0.16*N36 -> 118116 | P35: Lifespan | Q35: =VLOOKUP(Q28,'Storage Device Database'!$B$4:$H$15,7,FALSE) -> 49.2 | R35: =VLOOKUP(R28,'Storage Device Database'!$B$4:$H$15,7,FALSE) -> 30 | S35: =VLOOKUP(S28,'Storage Device Database'!$B$4:$H$15,7,FALSE) -> 8.08
A36: Total | B36: =C18*B31 -> 5610000 | C36: =C19*B31 -> 1122000 | D36: =C20*B31 -> 3740000 | F36: Lifespan | G36: 25 | H36: 25 | I36: 25 | K36: Total | L36: =M18*L31 -> 492150 | M36: =M19*L31 -> 984300 | N36: =M20*L31 -> 738225 | P36: Efficiency | Q36: =(VLOOKUP(Q28,'Storage Device Database'!$B$4:$G$15,6,FALSE))/100 -> 0.7659 | R36: =(VLOOKUP(R28,'Storage Device Database'!$B$4:$G$15,6,FALSE))/100 -> 0.683 | S36: =(VLOOKUP(S28,'Storage Device Database'!$B$4:$G$15,6,FALSE))/100 -> 0.4425
A37: Operating Expenditure | F37: Annual Energy Production (kWh) | G37: =G17*1000 -> 2422.309725 | H37: =H17*1000 -> 3536.711481 | I37: =I17*1000 ->  | K37: Operating Expenditure | P37: Annual Capacity (kWh) | Q37: =R6 -> 0 | R37: =R6 -> 0 | S37: =R6 -> 0
A38: Maintenance Cost (@7% Capital) | B38: =0.07*B32 -> 180642 | C38: =0.07*C32 -> 36128.4 | D38: =0.07*D32 -> 120428 | K38: Maintenance Cost (@5% Capital) | L38: =0.05*L32 -> 11319.45 | M38: =0.05*M32 -> 22638.9 | N38: =0.05*N32 -> 16979.175
A39: Lifespan | B39: =VLOOKUP(B18,'Tidal Device Database'!$B$4:$H$43,7,FALSE) -> 25 | C39: =VLOOKUP(B19,'Tidal Device Database'!$B$4:$H$43,7,FALSE) -> 25 | D39: =VLOOKUP(B20,'Tidal Device Database'!$B$4:$H$43,7,FALSE) -> 25 | F39: Levelised Cost of Energy (£/kWh) | G39: =IF(ISERROR(G37),0,(G33+(G35*G36))/(G37*G36)) -> 10.43488333 | H39: =IF(ISERROR(H37),0,(H33+(H35*H36))/(H37*H36)) -> 7.182868696 | I39: =IF(ISERROR(I37),0,(I33+(I35*I36))/(I37*I36)) -> 0 | K39: Lifespan | L39: =VLOOKUP(L28,'Wave Device Database'!$B$3:$F$7,5,FALSE) -> 25 | M39: =VLOOKUP(M28,'Wave Device Database'!$B$3:$F$7,5,FALSE) -> 20 | N39: =VLOOKUP(N28,'Wave Device Database'!$B$3:$F$7,5,FALSE) -> 25 | P39: Levelised Cost of Energy (£/kWh) | Q39: =IF(Q37=0,0,(Q32+(Q35*Q34))/(Q35*Q37)) -> 0 | R39: =IF(Q37=0,0,(R32+(R35*R34))/(R35*R37)) -> 0 | S39: =IF(Q37=0,0,(S32+(S35*S34))/(S35*S37)) -> 0
A40: Annual Energy Production (kWh) | B40: =0.3*$B$15*D18 -> 3067790.369 | C40: =0.3*$B$15*D19 -> 890890.1106 | D40: =0.3*$B$15*D20 -> 4175603.558 | K40: Annual Energy Production (kWh) | L40: =(M18*365*24)*N18 -> 162936 | M40: =(M19*365*24)*N19 -> 167608 | N40: =(M20*365*24)*N20 -> 342078
A42: Levelised Cost of Energy (£/kWh) | B42: =IF(ISERROR(B40),0,(B36+(B39*B38))/(B39*B40)) -> 0.1320305338 | C42: =IF(ISERROR(C40),0,(C36+(C39*C38))/(C39*C40)) -> 0.09092973312 | D42: 0.06466801655 | K42: Levelised Cost of Energy (£/kWh) | L42: =IF(L40=0,0,(L36+(L39*L38))/(L39*L40)) -> 0.1902922006 | M42: =IF(L40=0,0,(M36+(M39*M38))/(M39*M40)) -> 0.4287020906 | N42: =IF(L40=0,0,(N36+(N39*N38))/(N39*N40)) -> 0.1359578079
A46: Summary
A48: Levelised Cost of Energy | B48: Method/Location | C48: Type
A49: =B42 -> 0.1320305338 | B49: =B28 -> Atlantis AR-1500 | C49: Tidal Strean
A50: =C42 -> 0.09092973312 | B50: =C28 -> ANDRITZ HYDRO Hammerfest HS300
A51: =D42 -> 0.06466801655 | B51: =D28 -> ANDRITZ HYDRO Hammerfest HS1000
A52: =G39 -> 10.43488333 | B52: =G15 -> Bowmore | C52: Tidal Range
A53: =H39 -> 7.182868696 | B53: =H15 -> Port Ellen
A54: =I39 -> 0 | B54: =I15 -> [Enter Name]
A55: =L42 -> 0.1902922006 | B55: =L28 -> Yam Pro Energy | C55: Wave
A56: =M42 -> 0.4287020906 | B56: =M28 -> Rotary Wave
A57: =N42 -> 0.1359578079 | B57: =N28 -> Wave El Buoy
A58: =Q39 -> 0 | B58: =Q28 -> Pumped Hydro | C58: Storage
A59: =R39 -> 0 | B59: =R28 -> Compressed Air
A60: =S39 -> 0 | B60: =S28 -> Zinc Air
A62: Recommeded Options
A64: Generation Method | B64: Levelised Cost of Energy (£/kWh)
A65: =VLOOKUP((IF(MIN(A49:A57)=0,SMALL(A49:A57,2),MIN(A49:A57))),A49:B60,2,FALSE) -> ANDRITZ HYDRO Hammerfest HS1000 | B65: =VLOOKUP((IF(MIN(A49:A57)=0,SMALL(A49:A57,2),MIN(A49:A57))),A49:B60,1,FALSE) -> 0.06466801655
A67: Storage Method | B67: Levelised Cost of Energy
A68: =VLOOKUP(MIN(A58:A60),A58:B60,2,FALSE) -> Pumped Hydro | B68: =VLOOKUP(MIN(A58:A60),A58:B60,1,FALSE) -> 0

Sheet Decision Matrices
A3: No. | B3: =M3 -> Score | D3: Criteria | E3: ='Location Database'!D2 -> Assessed Resource | F3: ='Location Database'!E2 -> Proximity to Load (Shore) | G3: ='Location Database'!F2 -> Wave Height | H3: ='Location Database'!G2 -> Average Water Depth | I3: ='Location Database'!H2 -> Peak Flow Rate | J3: ='Location Database'!I2 -> Tidal Range | K3: ='Location Database'!J2 -> Seabed Topography | L3: ='Location Database'!K2 -> Accessibility | M3: Score
C4: Location | D4: Type | E4: 4 | F4: 3 | G4: 4 | H4: 3 | I4: 4 | J4: 4 | K4: 2 | L4: 3
A5: ='Location Database'!A4 -> 1 | B5: =M5 -> 61 | C5: ='Location Database'!B4 -> Portnahaven | D5: ='Location Database'!C4 -> Tidal Stream | E5: =IF('Location Database'!D4="",0,(VLOOKUP('Location Database'!D4,'Location Database'!$F$30:$G$34,2,FALSE))) -> 3 | F5: =IF((AND('Location Database'!E4<>"",'Location Database'!E4<>"[Select Value]")),(VLOOKUP('Location Database'!E4,'Location Database'!$D$36:$E$40,2,FALSE)),0) -> 3 | G5: =IF((AND('Location Database'!F4<>"",'Location Database'!F4<>"[Select Value]")),(VLOOKUP('Location Database'!F4,'Location Database'!$D$42:$E$47,2,FALSE)),0) -> 0 | H5: =IF((AND('Location Database'!G4<>"",'Location Database'!G4<>"[Select Value]")),(VLOOKUP('Location Database'!G4,'Location Database'!$D$49:$E$53,2,FALSE)),0) -> 1 | I5: =IF((AND('Location Database'!H4<>"",'Location Database'!H4<>"[Select Value]")),(VLOOKUP('Location Database'!H4,'Location Database'!$D$55:$E$60,2,FALSE)),0) -> 4 | J5: =IF((AND('Location Database'!I4<>"",'Location Database'!I4<>"[Select Value]")),(VLOOKUP('Location Database'!I4,'Location Database'!$D$62:$E$67,2,FALSE)),0) -> 0 | K5: =IF((AND('Location Database'!J4<>"",'Location Database'!J4<>"[Select Value]")),(VLOOKUP('Location Database'!J4,'Location Database'!$A$30:$B$34,2,FALSE)),0) -> 3 | L5: =IF((AND('Location Database'!K4<>"",'Location Database'!K4<>"[Select Value]")),(VLOOKUP('Location Database'!K4,'Location Database'!$A$36:$B$40,2,FALSE)),0) -> 5 | M5: =SUMPRODUCT(E5:L5,$E$4:$L$4) -> 61
A6: ='Location Database'!A5 -> 2 | B6: =M6 -> 54 | C6: ='Location Database'!B5 -> Inerval | E6: =IF('Location Database'!D5="",0,(VLOOKUP('Location Database'!D5,'Location Database'!$F$30:$G$34,2,FALSE))) -> 3 | F6: =IF((AND('Location Database'!E5<>"",'Location Database'!E5<>"[Select Value]")),(VLOOKUP('Location Database'!E5,'Location Database'!$D$36:$E$40,2,FALSE)),0) -> 3 | G6: =IF((AND('Location Database'!F5<>"",'Location Database'!F5<>"[Select Value]")),(VLOOKUP('Location Database'!F5,'Location Database'!$D$42:$E$47,2,FALSE)),0) -> 0 | H6: =IF((AND('Location Database'!G5<>"",'Location Database'!G5<>"[Select Value]")),(VLOOKUP('Location Database'!G5,'Location Database'!$D$49:$E$53,2,FALSE)),0) -> 1 | I6: =IF((AND('Location Database'!H5<>"",'Location Database'!H5<>"[Select Value]")),(VLOOKUP('Location Database'!H5,'Location Database'!$D$55:$E$60,2,FALSE)),0) -> 4 | J6: =IF((AND('Location Database'!I5<>"",'Location Database'!I5<>"[Select Value]")),(VLOOKUP('Location Database'!I5,'Location Database'!$D$62:$E$67,2,FALSE)),0) -> 0 | K6: =IF((AND('Location Database'!J5<>"",'Location Database'!J5<>"[Select Value]")),(VLOOKUP('Location Database'!J5,'Location Database'!$A$30:$B$34,2,FALSE)),0) -> 4 | L6: =IF((AND('Location Database'!K5<>"",'Location Database'!K5<>"[Select Value]")),(VLOOKUP('Location Database'!K5,'Location Database'!$A$36:$B$40,2,FALSE)),0) -> 2 | M6: =SUMPRODUCT(E6:L6,$E$4:$L$4) -> 54
A7: ='Location Database'!A6 -> 3 | B7: 55 | C7: ='Location Database'!B6 -> Sound of Islay | E7: =IF('Location Database'!D6="",0,(VLOOKUP('Location Database'!D6,'Location Database'!$F$30:$G$34,2,FALSE))) -> 3 | F7: =IF((AND('Location Database'!E6<>"",'Location Database'!E6<>"[Select Value]")),(VLOOKUP('Location Database'!E6,'Location Database'!$D$36:$E$40,2,FALSE)),0) -> 4 | G7: =IF((AND('Location Database'!F6<>"",'Location Database'!F6<>"[Select Value]")),(VLOOKUP('Location Database'!F6,'Location Database'!$D$42:$E$47,2,FALSE)),0) -> 0 | H7: =IF((AND('Location Database'!G6<>"",'Location Database'!G6<>"[Select Value]")),(VLOOKUP('Location Database'!G6,'Location Database'!$D$49:$E$53,2,FALSE)),0) -> 1 | I7: =IF((AND('Location Database'!H6<>"",'Location Database'!H6<>"[Select Value]")),(VLOOKUP('Location Database'!H6,'Location Database'!$D$55:$E$60,2,FALSE)),0) -> 4 | J7: =IF((AND('Location Database'!I6<>"",'Location Database'!I6<>"[Select Value]")),(VLOOKUP('Location Database'!I6,'Location Database'!$D$62:$E$67,2,FALSE)),0) -> 0 | K7: =IF((AND('Location Database'!J6<>"",'Location Database'!J6<>"[Select Value]")),(VLOOKUP('Location Database'!J6,'Location Database'!$A$30:$B$34,2,FALSE)),0) -> 3 | L7: =IF((AND('Location Database'!K6<>"",'Location Database'!K6<>"[Select Value]")),(VLOOKUP('Location Database'!K6,'Location Database'!$A$36:$B$40,2,FALSE)),0) -> 2 | M7: 55
A8: ='Location Database'!A7 -> 4 | B8: 0 | C8: ='Location Database'!B7 -> [Enter Name] | E8: =IF('Location Database'!D7="",0,(VLOOKUP('Location Database'!D7,'Location Database'!$F$30:$G$34,2,FALSE))) -> 0 | F8: =IF((AND('Location Database'!E7<>"",'Location Database'!E7<>"[Select Value]")),(VLOOKUP('Location Database'!E7,'Location Database'!$D$36:$E$40,2,FALSE)),0) -> 0 | G8: =IF((AND('Location Database'!F7<>"",'Location Database'!F7<>"[Select Value]")),(VLOOKUP('Location Database'!F7,'Location Database'!$D$42:$E$47,2,FALSE)),0) -> 0 | H8: =IF((AND('Location Database'!G7<>"",'Location Database'!G7<>"[Select Value]")),(VLOOKUP('Location Database'!G7,'Location Database'!$D$49:$E$53,2,FALSE)),0) -> 0 | I8: =IF((AND('Location Database'!H7<>"",'Location Database'!H7<>"[Select Value]")),(VLOOKUP('Location Database'!H7,'Location Database'!$D$55:$E$60,2,FALSE)),0) -> 0 | J8: =IF((AND('Location Database'!I7<>"",'Location Database'!I7<>"[Select Value]")),(VLOOKUP('Location Database'!I7,'Location Database'!$D$62:$E$67,2,FALSE)),0) -> 0 | K8: =IF((AND('Location Database'!J7<>"",'Location Database'!J7<>"[Select Value]")),(VLOOKUP('Location Database'!J7,'Location Database'!$A$30:$B$34,2,FALSE)),0) -> 0 | L8: =IF((AND('Location Database'!K7<>"",'Location Database'!K7<>"[Select Value]")),(VLOOKUP('Location Database'!K7,'Location Database'!$A$36:$B$40,2,FALSE)),0) -> 0 | M8: 0
A9: ='Location Database'!A8 -> 5 | B9: 0 | C9: ='Location Database'!B8 -> [Enter Name] | E9: =IF('Location Database'!D8="",0,(VLOOKUP('Location Database'!D8,'Location Database'!$F$30:$G$34,2,FALSE))) -> 0 | F9: =IF((AND('Location Database'!E8<>"",'Location Database'!E8<>"[Select Value]")),(VLOOKUP('Location Database'!E8,'Location Database'!$D$36:$E$40,2,FALSE)),0) -> 0 | G9: =IF((AND('Location Database'!F8<>"",'Location Database'!F8<>"[Select Value]")),(VLOOKUP('Location Database'!F8,'Location Database'!$D$42:$E$47,2,FALSE)),0) -> 0 | H9: =IF((AND('Location Database'!G8<>"",'Location Database'!G8<>"[Select Value]")),(VLOOKUP('Location Database'!G8,'Location Database'!$D$49:$E$53,2,FALSE)),0) -> 0 | I9: =IF((AND('Location Database'!H8<>"",'Location Database'!H8<>"[Select Value]")),(VLOOKUP('Location Database'!H8,'Location Database'!$D$55:$E$60,2,FALSE)),0) -> 0 | J9: =IF((AND('Location Database'!I8<>"",'Location Database'!I8<>"[Select Value]")),(VLOOKUP('Location Database'!I8,'Location Database'!$D$62:$E$67,2,FALSE)),0) -> 0 | K9: =IF((AND('Location Database'!J8<>"",'Location Database'!J8<>"[Select Value]")),(VLOOKUP('Location Database'!J8,'Location Database'!$A$30:$B$34,2,FALSE)),0) -> 0 | L9: =IF((AND('Location Database'!K8<>"",'Location Database'!K8<>"[Select Value]")),(VLOOKUP('Location Database'!K8,'Location Database'!$A$36:$B$40,2,FALSE)),0) -> 0 | M9: 0
A10: ='Location Database'!A9 -> 6 | B10: 47 | C10: ='Location Database'!B9 -> Port Ellen | D10: ='Location Database'!C9 -> Tidal Barrage | E10: =IF('Location Database'!D9="",0,(VLOOKUP('Location Database'!D9,'Location Database'!$H$30:$I$34,2,FALSE))) -> 1 | F10: =IF((AND('Location Database'!E9<>"",'Location Database'!E9<>"[Select Value]")),(VLOOKUP('Location Database'!E9,'Location Database'!$D$36:$E$40,2,FALSE)),0) -> 5 | G10: =IF((AND('Location Database'!F9<>"",'Location Database'!F9<>"[Select Value]")),(VLOOKUP('Location Database'!F9,'Location Database'!$D$42:$E$47,2,FALSE)),0) -> 0 | H10: =IF((AND('Location Database'!G9<>"",'Location Database'!G9<>"[Select Value]")),(VLOOKUP('Location Database'!G9,'Location Database'!$D$49:$E$53,2,FALSE)),0) -> 2 | I10: =IF((AND('Location Database'!H9<>"",'Location Database'!H9<>"[Select Value]")),(VLOOKUP('Location Database'!H9,'Location Database'!$D$55:$E$60,2,FALSE)),0) -> 0 | J10: =IF((AND('Location Database'!I9<>"",'Location Database'!I9<>"[Select Value]")),(VLOOKUP('Location Database'!I9,'Location Database'!$D$62:$E$67,2,FALSE)),0) -> 1 | K10: =IF((AND('Location Database'!J9<>"",'Location Database'!J9<>"[Select Value]")),(VLOOKUP('Location Database'!J9,'Location Database'!$A$30:$B$34,2,FALSE)),0) -> 3 | L10: =IF((AND('Location Database'!K9<>"",'Location Database'!K9<>"[Select Value]")),(VLOOKUP('Location Database'!K9,'Location Database'!$A$36:$B$40,2,FALSE)),0) -> 4 | M10: 47
A11: ='Location Database'!A10 -> 7 | B11: 51 | C11: ='Location Database'!B10 -> Bowmore | E11: =IF('Location Database'!D10="",0,(VLOOKUP('Location Database'!D10,'Location Database'!$H$30:$I$34,2,FALSE))) -> 1 | F11: =IF((AND('Location Database'!E10<>"",'Location Database'!E10<>"[Select Value]")),(VLOOKUP('Location Database'!E10,'Location Database'!$D$36:$E$40,2,FALSE)),0) -> 5 | G11: =IF((AND('Location Database'!F10<>"",'Location Database'!F10<>"[Select Value]")),(VLOOKUP('Location Database'!F10,'Location Database'!$D$42:$E$47,2,FALSE)),0) -> 0 | H11: =IF((AND('Location Database'!G10<>"",'Location Database'!G10<>"[Select Value]")),(VLOOKUP('Location Database'!G10,'Location Database'!$D$49:$E$53,2,FALSE)),0) -> 2 | I11: =IF((AND('Location Database'!H10<>"",'Location Database'!H10<>"[Select Value]")),(VLOOKUP('Location Database'!H10,'Location Database'!$D$55:$E$60,2,FALSE)),0) -> 0 | J11: =IF((AND('Location Database'!I10<>"",'Location Database'!I10<>"[Select Value]")),(VLOOKUP('Location Database'!I10,'Location Database'!$D$62:$E$67,2,FALSE)),0) -> 1 | K11: =IF((AND('Location Database'!J10<>"",'Location Database'!J10<>"[Select Value]")),(VLOOKUP('Location Database'!J10,'Location Database'!$A$30:$B$34,2,FALSE)),0) -> 5 | L11: =IF((AND('Location Database'!K10<>"",'Location Database'!K10<>"[Select Value]")),(VLOOKUP('Location Database'!K10,'Location Database'!$A$36:$B$40,2,FALSE)),0) -> 4 | M11: 51
A12: ='Location Database'!A11 -> 8 | B12: 0 | C12: ='Location Database'!B11 -> [Enter Name] | E12: =IF('Location Database'!D11="",0,(VLOOKUP('Location Database'!D11,'Location Database'!$H$30:$I$34,2,FALSE))) -> 0 | F12: =IF((AND('Location Database'!E11<>"",'Location Database'!E11<>"[Select Value]")),(VLOOKUP('Location Database'!E11,'Location Database'!$D$36:$E$40,2,FALSE)),0) -> 0 | G12: =IF((AND('Location Database'!F11<>"",'Location Database'!F11<>"[Select Value]")),(VLOOKUP('Location Database'!F11,'Location Database'!$D$42:$E$47,2,FALSE)),0) -> 0 | H12: =IF((AND('Location Database'!G11<>"",'Location Database'!G11<>"[Select Value]")),(VLOOKUP('Location Database'!G11,'Location Database'!$D$49:$E$53,2,FALSE)),0) -> 0 | I12: =IF((AND('Location Database'!H11<>"",'Location Database'!H11<>"[Select Value]")),(VLOOKUP('Location Database'!H11,'Location Database'!$D$55:$E$60,2,FALSE)),0) -> 0 | J12: =IF((AND('Location Database'!I11<>"",'Location Database'!I11<>"[Select Value]")),(VLOOKUP('Location Database'!I11,'Location Database'!$D$62:$E$67,2,FALSE)),0) -> 0 | K12: =IF((AND('Location Database'!J11<>"",'Location Database'!J11<>"[Select Value]")),(VLOOKUP('Location Database'!J11,'Location Database'!$A$30:$B$34,2,FALSE)),0) -> 0 | L12: =IF((AND('Location Database'!K11<>"",'Location Database'!K11<>"[Select Value]")),(VLOOKUP('Location Database'!K11,'Location Database'!$A$36:$B$40,2,FALSE)),0) -> 0 | M12: 0
A13: ='Location Database'!A12 -> 9 | B13: 0 | C13: ='Location Database'!B12 -> [Enter Name] | E13: =IF('Location Database'!D12="",0,(VLOOKUP('Location Database'!D12,'Location Database'!$H$30:$I$34,2,FALSE))) -> 0 | F13: =IF((AND('Location Database'!E12<>"",'Location Database'!E12<>"[Select Value]")),(VLOOKUP('Location Database'!E12,'Location Database'!$D$36:$E$40,2,FALSE)),0) -> 0 | G13: =IF((AND('Location Database'!F12<>"",'Location Database'!F12<>"[Select Value]")),(VLOOKUP('Location Database'!F12,'Location Database'!$D$42:$E$47,2,FALSE)),0) -> 0 | H13: =IF((AND('Location Database'!G12<>"",'Location Database'!G12<>"[Select Value]")),(VLOOKUP('Location Database'!G12,'Location Database'!$D$49:$E$53,2,FALSE)),0) -> 0 | I13: =IF((AND('Location Database'!H12<>"",'Location Database'!H12<>"[Select Value]")),(VLOOKUP('Location Database'!H12,'Location Database'!$D$55:$E$60,2,FALSE)),0) -> 0 | J13: =IF((AND('Location Database'!I12<>"",'Location Database'!I12<>"[Select Value]")),(VLOOKUP('Location Database'!I12,'Location Database'!$D$62:$E$67,2,FALSE)),0) -> 0 | K13: =IF((AND('Location Database'!J12<>"",'Location Database'!J12<>"[Select Value]")),(VLOOKUP('Location Database'!J12,'Location Database'!$A$30:$B$34,2,FALSE)),0) -> 0 | L13: =IF((AND('Location Database'!K12<>"",'Location Database'!K12<>"[Select Value]")),(VLOOKUP('Location Database'!K12,'Location Database'!$A$36:$B$40,2,FALSE)),0) -> 0 | M13: 0
A14: ='Location Database'!A13 -> 10 | B14: 0 | C14: ='Location Database'!B13 -> [Enter Name] | E14: =IF('Location Database'!D13="",0,(VLOOKUP('Location Database'!D13,'Location Database'!$H$30:$I$34,2,FALSE))) -> 0 | F14: =IF((AND('Location Database'!E13<>"",'Location Database'!E13<>"[Select Value]")),(VLOOKUP('Location Database'!E13,'Location Database'!$D$36:$E$40,2,FALSE)),0) -> 0 | G14: =IF((AND('Location Database'!F13<>"",'Location Database'!F13<>"[Select Value]")),(VLOOKUP('Location Database'!F13,'Location Database'!$D$42:$E$47,2,FALSE)),0) -> 0 | H14: =IF((AND('Location Database'!G13<>"",'Location Database'!G13<>"[Select Value]")),(VLOOKUP('Location Database'!G13,'Location Database'!$D$49:$E$53,2,FALSE)),0) -> 0 | I14: =IF((AND('Location Database'!H13<>"",'Location Database'!H13<>"[Select Value]")),(VLOOKUP('Location Database'!H13,'Location Database'!$D$55:$E$60,2,FALSE)),0) -> 0 | J14: =IF((AND('Location Database'!I13<>"",'Location Database'!I13<>"[Select Value]")),(VLOOKUP('Location Database'!I13,'Location Database'!$D$62:$E$67,2,FALSE)),0) -> 0 | K14: =IF((AND('Location Database'!J13<>"",'Location Database'!J13<>"[Select Value]")),(VLOOKUP('Location Database'!J13,'Location Database'!$A$30:$B$34,2,FALSE)),0) -> 0 | L14: =IF((AND('Location Database'!K13<>"",'Location Database'!K13<>"[Select Value]")),(VLOOKUP('Location Database'!K13,'Location Database'!$A$36:$B$40,2,FALSE)),0) -> 0 | M14: 0
A15: ='Location Database'!A14 -> 11 | B15: 43 | C15: =Input!J45 -> Portnahaven - Far | D15: ='Location Database'!C14 -> Wave | E15: =IF('Location Database'!D14="",0,(VLOOKUP('Location Database'!D14,'Location Database'!$D$30:$E$34,2,FALSE))) -> 2 | F15: =IF((AND('Location Database'!E14<>"",'Location Database'!E14<>"[Select Value]")),(VLOOKUP('Location Database'!E14,'Location Database'!$D$36:$E$40,2,FALSE)),0) -> 1 | G15: =IF((AND('Location Database'!F14<>"",'Location Database'!F14<>"[Select Value]")),(VLOOKUP('Location Database'!F14,'Location Database'!$D$42:$E$47,2,FALSE)),0) -> 3 | H15: =IF((AND('Location Database'!G14<>"",'Location Database'!G14<>"[Select Value]")),(VLOOKUP('Location Database'!G14,'Location Database'!$D$49:$E$53,2,FALSE)),0) -> 1 | I15: =IF((AND('Location Database'!H14<>"",'Location Database'!H14<>"[Select Value]")),(VLOOKUP('Location Database'!H14,'Location Database'!$D$55:$E$60,2,FALSE)),0) -> 0 | J15: =IF((AND('Location Database'!I14<>"",'Location Database'!I14<>"[Select Value]")),(VLOOKUP('Location Database'!I14,'Location Database'!$D$62:$E$67,2,FALSE)),0) -> 0 | K15: =IF((AND('Location Database'!J14<>"",'Location Database'!J14<>"[Select Value]")),(VLOOKUP('Location Database'!J14,'Location Database'!$A$30:$B$34,2,FALSE)),0) -> 4 | L15: =IF((AND('Location Database'!K14<>"",'Location Database'!K14<>"[Select Value]")),(VLOOKUP('Location Database'!K14,'Location Database'!$A$36:$B$40,2,FALSE)),0) -> 3 | M15: 43
A16: ='Location Database'!A15 -> 12 | B16: 43 | C16: =Input!J55 -> Portnahaven - Near | E16: =IF('Location Database'!D15="",0,(VLOOKUP('Location Database'!D15,'Location Database'!$D$30:$E$34,2,FALSE))) -> 2 | F16: =IF((AND('Location Database'!E15<>"",'Location Database'!E15<>"[Select Value]")),(VLOOKUP('Location Database'!E15,'Location Database'!$D$36:$E$40,2,FALSE)),0) -> 3 | G16: =IF((AND('Location Database'!F15<>"",'Location Database'!F15<>"[Select Value]")),(VLOOKUP('Location Database'!F15,'Location Database'!$D$42:$E$47,2,FALSE)),0) -> 2 | H16: =IF((AND('Location Database'!G15<>"",'Location Database'!G15<>"[Select Value]")),(VLOOKUP('Location Database'!G15,'Location Database'!$D$49:$E$53,2,FALSE)),0) -> 1 | I16: =IF((AND('Location Database'!H15<>"",'Location Database'!H15<>"[Select Value]")),(VLOOKUP('Location Database'!H15,'Location Database'!$D$55:$E$60,2,FALSE)),0) -> 0 | J16: =IF((AND('Location Database'!I15<>"",'Location Database'!I15<>"[Select Value]")),(VLOOKUP('Location Database'!I15,'Location Database'!$D$62:$E$67,2,FALSE)),0) -> 0 | K16: =IF((AND('Location Database'!J15<>"",'Location Database'!J15<>"[Select Value]")),(VLOOKUP('Location Database'!J15,'Location Database'!$A$30:$B$34,2,FALSE)),0) -> 3 | L16: =IF((AND('Location Database'!K15<>"",'Location Database'!K15<>"[Select Value]")),(VLOOKUP('Location Database'!K15,'Location Database'!$A$36:$B$40,2,FALSE)),0) -> 3 | M16: =SUMPRODUCT(E16:L16,$E$4:$L$4) -> 43
A17: ='Location Database'!A16 -> 13 | B17: 39 | C17: =Input!J65 -> Mull of Oa | E17: =IF('Location Database'!D16="",0,(VLOOKUP('Location Database'!D16,'Location Database'!$D$30:$E$34,2,FALSE))) -> 2 | F17: =IF((AND('Location Database'!E16<>"",'Location Database'!E16<>"[Select Value]")),(VLOOKUP('Location Database'!E16,'Location Database'!$D$36:$E$40,2,FALSE)),0) -> 1 | G17: =IF((AND('Location Database'!F16<>"",'Location Database'!F16<>"[Select Value]")),(VLOOKUP('Location Database'!F16,'Location Database'!$D$42:$E$47,2,FALSE)),0) -> 2 | H17: =IF((AND('Location Database'!G16<>"",'Location Database'!G16<>"[Select Value]")),(VLOOKUP('Location Database'!G16,'Location Database'!$D$49:$E$53,2,FALSE)),0) -> 1 | I17: =IF((AND('Location Database'!H16<>"",'Location Database'!H16<>"[Select Value]")),(VLOOKUP('Location Database'!H16,'Location Database'!$D$55:$E$60,2,FALSE)),0) -> 0 | J17: =IF((AND('Location Database'!I16<>"",'Location Database'!I16<>"[Select Value]")),(VLOOKUP('Location Database'!I16,'Location Database'!$D$62:$E$67,2,FALSE)),0) -> 0 | K17: =IF((AND('Location Database'!J16<>"",'Location Database'!J16<>"[Select Value]")),(VLOOKUP('Location Database'!J16,'Location Database'!$A$30:$B$34,2,FALSE)),0) -> 4 | L17: =IF((AND('Location Database'!K16<>"",'Location Database'!K16<>"[Select Value]")),(VLOOKUP('Location Database'!K16,'Location Database'!$A$36:$B$40,2,FALSE)),0) -> 3 | M17: 39
A18: ='Location Database'!A17 -> 14 | B18: 0 | C18: =Input!J75 -> [Enter Name] | E18: =IF('Location Database'!D17="",0,(VLOOKUP('Location Database'!D17,'Location Database'!$D$30:$E$34,2,FALSE))) -> 0 | F18: =IF((AND('Location Database'!E17<>"",'Location Database'!E17<>"[Select Value]")),(VLOOKUP('Location Database'!E17,'Location Database'!$D$36:$E$40,2,FALSE)),0) -> 0 | G18: =IF((AND('Location Database'!F17<>"",'Location Database'!F17<>"[Select Value]")),(VLOOKUP('Location Database'!F17,'Location Database'!$D$42:$E$47,2,FALSE)),0) -> 0 | H18: =IF((AND('Location Database'!G17<>"",'Location Database'!G17<>"[Select Value]")),(VLOOKUP('Location Database'!G17,'Location Database'!$D$49:$E$53,2,FALSE)),0) -> 0 | I18: =IF((AND('Location Database'!H17<>"",'Location Database'!H17<>"[Select Value]")),(VLOOKUP('Location Database'!H17,'Location Database'!$D$55:$E$60,2,FALSE)),0) -> 0 | J18: =IF((AND('Location Database'!I17<>"",'Location Database'!I17<>"[Select Value]")),(VLOOKUP('Location Database'!I17,'Location Database'!$D$62:$E$67,2,FALSE)),0) -> 0 | K18: =IF((AND('Location Database'!J17<>"",'Location Database'!J17<>"[Select Value]")),(VLOOKUP('Location Database'!J17,'Location Database'!$A$30:$B$34,2,FALSE)),0) -> 0 | L18: =IF((AND('Location Database'!K17<>"",'Location Database'!K17<>"[Select Value]")),(VLOOKUP('Location Database'!K17,'Location Database'!$A$36:$B$40,2,FALSE)),0) -> 0 | M18: 0
A19: ='Location Database'!A18 -> 15 | B19: 0 | C19: =Input!J85 -> [Enter Name] | E19: =IF('Location Database'!D18="",0,(VLOOKUP('Location Database'!D18,'Location Database'!$D$30:$E$34,2,FALSE))) -> 0 | F19: =IF((AND('Location Database'!E18<>"",'Location Database'!E18<>"[Select Value]")),(VLOOKUP('Location Database'!E18,'Location Database'!$D$36:$E$40,2,FALSE)),0) -> 0 | G19: =IF((AND('Location Database'!F18<>"",'Location Database'!F18<>"[Select Value]")),(VLOOKUP('Location Database'!F18,'Location Database'!$D$42:$E$47,2,FALSE)),0) -> 0 | H19: =IF((AND('Location Database'!G18<>"",'Location Database'!G18<>"[Select Value]")),(VLOOKUP('Location Database'!G18,'Location Database'!$D$49:$E$53,2,FALSE)),0) -> 0 | I19: =IF((AND('Location Database'!H18<>"",'Location Database'!H18<>"[Select Value]")),(VLOOKUP('Location Database'!H18,'Location Database'!$D$55:$E$60,2,FALSE)),0) -> 0 | J19: =IF((AND('Location Database'!I18<>"",'Location Database'!I18<>"[Select Value]")),(VLOOKUP('Location Database'!I18,'Location Database'!$D$62:$E$67,2,FALSE)),0) -> 0 | K19: =IF((AND('Location Database'!J18<>"",'Location Database'!J18<>"[Select Value]")),(VLOOKUP('Location Database'!J18,'Location Database'!$A$30:$B$34,2,FALSE)),0) -> 0 | L19: =IF((AND('Location Database'!K18<>"",'Location Database'!K18<>"[Select Value]")),(VLOOKUP('Location Database'!K18,'Location Database'!$A$36:$B$40,2,FALSE)),0) -> 0 | M19: 0
A21: Tidal Device Decision Matrix
A23: No. | B23: =P23 -> Score | D23: Criteria | E23: ='Tidal Device Database'!I2 -> Rated capacity | F23: ='Tidal Device Database'!J2 -> Required Flow Velocity | G23: ='Tidal Device Database'!K2 -> Operating Water Depth | H23: ='Tidal Device Database'!L2 -> Installation Complexity | I23: ='Tidal Device Database'!M2 -> Lifespan | J23: ='Tidal Device Database'!N2 -> Primary Seabed Attachment | K23: ='Tidal Device Database'!O2 -> Planned Inspection/Maintenance Period | L23: ='Tidal Device Database'!P2 -> Maintenance Complexity | M23: ='Tidal Device Database'!Q2 -> Access Complexity | N23: ='Tidal Device Database'!R2 -> Shore Connection | O23: ='Tidal Device Database'!S2 -> Technology Readiness Level | P23: Score
C24: ='Tidal Device Database'!B2 -> Name | D24: ='Tidal Device Database'!C2 -> Type | E24: 3 | F24: 3 | G24: =IF(Input!B19="YES",2,5) -> 2 | H24: 1 | I24: 4 | J24: 4 | K24: 2 | L24: 3 | M24: 4 | N24: 2 | O24: 5
A25: ='Tidal Device Database'!A4 -> 1 | B25: =P25 -> 106 | C25: ='Tidal Device Database'!B4 -> ANDRITZ HYDRO Hammerfest HS1000 | D25: ='Tidal Device Database'!C4 -> Horizontal Axis | E25: =IF('Tidal Device Database'!I4="",0,(VLOOKUP('Tidal Device Database'!I4,'Tidal Device Database'!$A$131:$B$135,2,FALSE))) -> 4 | F25: =IF('Tidal Device Database'!J4="",0,(VLOOKUP('Tidal Device Database'!J4,'Tidal Device Database'!$A$137:$B$141,2,FALSE))) -> 4 | G25: =IF('Tidal Device Database'!K4="",0,(VLOOKUP('Tidal Device Database'!K4,'Tidal Device Database'!$A$143:$B$147,2,FALSE))) -> 1 | H25: =IF('Tidal Device Database'!L4="",0,(VLOOKUP('Tidal Device Database'!L4,'Tidal Device Database'!$A$69:$B$73,2,FALSE))) -> 2 | I25: =IF('Tidal Device Database'!M4="",0,(VLOOKUP('Tidal Device Database'!M4,'Tidal Device Database'!$A$75:$B$79,2,FALSE))) -> 4 | J25: =IF('Tidal Device Database'!N4="",0,(VLOOKUP('Tidal Device Database'!N4,'Tidal Device Database'!$A$81:$B$85,2,FALSE))) -> 3 | K25: =IF('Tidal Device Database'!O4="",0,(VLOOKUP('Tidal Device Database'!O4,'Tidal Device Database'!$A$87:$B$91,2,FALSE))) -> 5 | L25: =IF('Tidal Device Database'!P4="",0,(VLOOKUP('Tidal Device Database'!P4,'Tidal Device Database'!$A$93:$B$97,2,FALSE))) -> 2 | M25: =IF('Tidal Device Database'!Q4="",0,(VLOOKUP('Tidal Device Database'!Q4,'Tidal Device Database'!$A$99:$B$103,2,FALSE))) -> 3 | N25: =IF('Tidal Device Database'!R4="",0,(VLOOKUP('Tidal Device Database'!R4,'Tidal Device Database'!$A$115:$B$119,2,FALSE))) -> 1 | O25: =IF('Tidal Device Database'!S4="",0,(VLOOKUP('Tidal Device Database'!S4,'Tidal Device Database'!$A$105:$B$109,2,FALSE))) -> 4 | P25: =SUMPRODUCT(E25:O25,$E$24:$O$24) -> 106
A26: ='Tidal Device Database'!A5 -> 2 | B26: 108 | C26: ='Tidal Device Database'!B5 -> ANDRITZ HYDRO Hammerfest HS300 | D26: ='Tidal Device Database'!C5 -> Horizontal Axis | E26: =IF('Tidal Device Database'!I5="",0,(VLOOKUP('Tidal Device Database'!I5,'Tidal Device Database'!$A$131:$B$135,2,FALSE))) -> 3 | F26: =IF('Tidal Device Database'!J5="",0,(VLOOKUP('Tidal Device Database'!J5,'Tidal Device Database'!$A$137:$B$141,2,FALSE))) -> 4 | G26: =IF('Tidal Device Database'!K5="",0,(VLOOKUP('Tidal Device Database'!K5,'Tidal Device Database'!$A$143:$B$147,2,FALSE))) -> 1 | H26: =IF('Tidal Device Database'!L5="",0,(VLOOKUP('Tidal Device Database'!L5,'Tidal Device Database'!$A$69:$B$73,2,FALSE))) -> 2 | I26: =IF('Tidal Device Database'!M5="",0,(VLOOKUP('Tidal Device Database'!M5,'Tidal Device Database'!$A$75:$B$79,2,FALSE))) -> 4 | J26: =IF('Tidal Device Database'!N5="",0,(VLOOKUP('Tidal Device Database'!N5,'Tidal Device Database'!$A$81:$B$85,2,FALSE))) -> 3 | K26: =IF('Tidal Device Database'!O5="",0,(VLOOKUP('Tidal Device Database'!O5,'Tidal Device Database'!$A$87:$B$91,2,FALSE))) -> 5 | L26: =IF('Tidal Device Database'!P5="",0,(VLOOKUP('Tidal Device Database'!P5,'Tidal Device Database'!$A$93:$B$97,2,FALSE))) -> 2 | M26: =IF('Tidal Device Database'!Q5="",0,(VLOOKUP('Tidal Device Database'!Q5,'Tidal Device Database'!$A$99:$B$103,2,FALSE))) -> 3 | N26: =IF('Tidal Device Database'!R5="",0,(VLOOKUP('Tidal Device Database'!R5,'Tidal Device Database'!$A$115:$B$119,2,FALSE))) -> 1 | O26: =IF('Tidal Device Database'!S5="",0,(VLOOKUP('Tidal Device Database'!S5,'Tidal Device Database'!$A$105:$B$109,2,FALSE))) -> 5 | P26: 108
A27: ='Tidal Device Database'!A6 -> 3 | B27: 84 | C27: ='Tidal Device Database'!B6 -> EEL | D27: ='Tidal Device Database'!C6 -> Oscillating Hydrofoil | E27: =IF('Tidal Device Database'!I6="",0,(VLOOKUP('Tidal Device Database'!I6,'Tidal Device Database'!$A$131:$B$135,2,FALSE))) -> 0 | F27: =IF('Tidal Device Database'!J6="",0,(VLOOKUP('Tidal Device Database'!J6,'Tidal Device Database'!$A$137:$B$141,2,FALSE))) -> 5 | G27: =IF('Tidal Device Database'!K6="",0,(VLOOKUP('Tidal Device Database'!K6,'Tidal Device Database'!$A$143:$B$147,2,FALSE))) -> 0 | H27: =IF('Tidal Device Database'!L6="",0,(VLOOKUP('Tidal Device Database'!L6,'Tidal Device Database'!$A$69:$B$73,2,FALSE))) -> 0 | I27: =IF('Tidal Device Database'!M6="",0,(VLOOKUP('Tidal Device Database'!M6,'Tidal Device Database'!$A$75:$B$79,2,FALSE))) -> 4 | J27: =IF('Tidal Device Database'!N6="",0,(VLOOKUP('Tidal Device Database'!N6,'Tidal Device Database'!$A$81:$B$85,2,FALSE))) -> 3 | K27: =IF('Tidal Device Database'!O6="",0,(VLOOKUP('Tidal Device Database'!O6,'Tidal Device Database'!$A$87:$B$91,2,FALSE))) -> 5 | L27: =IF('Tidal Device Database'!P6="",0,(VLOOKUP('Tidal Device Database'!P6,'Tidal Device Database'!$A$93:$B$97,2,FALSE))) -> 1 | M27: =IF('Tidal Device Database'!Q6="",0,(VLOOKUP('Tidal Device Database'!Q6,'Tidal Device Database'!$A$99:$B$103,2,FALSE))) -> 2 | N27: =IF('Tidal Device Database'!R6="",0,(VLOOKUP('Tidal Device Database'!R6,'Tidal Device Database'!$A$115:$B$119,2,FALSE))) -> 0 | O27: =IF('Tidal Device Database'!S6="",0,(VLOOKUP('Tidal Device Database'!S6,'Tidal Device Database'!$A$105:$B$109,2,FALSE))) -> 4 | P27: 84
A28: ='Tidal Device Database'!A7 -> 4 | B28: 113 | C28: ='Tidal Device Database'!B7 -> Atlantis AR-1500 | D28: ='Tidal Device Database'!C7 -> Horizontal Axis | E28: =IF('Tidal Device Database'!I7="",0,(VLOOKUP('Tidal Device Database'!I7,'Tidal Device Database'!$A$131:$B$135,2,FALSE))) -> 5 | F28: =IF('Tidal Device Database'!J7="",0,(VLOOKUP('Tidal Device Database'!J7,'Tidal Device Database'!$A$137:$B$141,2,FALSE))) -> 3 | G28: =IF('Tidal Device Database'!K7="",0,(VLOOKUP('Tidal Device Database'!K7,'Tidal Device Database'!$A$143:$B$147,2,FALSE))) -> 1 | H28: =IF('Tidal Device Database'!L7="",0,(VLOOKUP('Tidal Device Database'!L7,'Tidal Device Database'!$A$69:$B$73,2,FALSE))) -> 2 | I28: =IF('Tidal Device Database'!M7="",0,(VLOOKUP('Tidal Device Database'!M7,'Tidal Device Database'!$A$75:$B$79,2,FALSE))) -> 4 | J28: =IF('Tidal Device Database'!N7="",0,(VLOOKUP('Tidal Device Database'!N7,'Tidal Device Database'!$A$81:$B$85,2,FALSE))) -> 4 | K28: =IF('Tidal Device Database'!O7="",0,(VLOOKUP('Tidal Device Database'!O7,'Tidal Device Database'!$A$87:$B$91,2,FALSE))) -> 5 | L28: =IF('Tidal Device Database'!P7="",0,(VLOOKUP('Tidal Device Database'!P7,'Tidal Device Database'!$A$93:$B$97,2,FALSE))) -> 3 | M28: =IF('Tidal Device Database'!Q7="",0,(VLOOKUP('Tidal Device Database'!Q7,'Tidal Device Database'!$A$99:$B$103,2,FALSE))) -> 3 | N28: =IF('Tidal Device Database'!R7="",0,(VLOOKUP('Tidal Device Database'!R7,'Tidal Device Database'!$A$115:$B$119,2,FALSE))) -> 1 | O28: =IF('Tidal Device Database'!S7="",0,(VLOOKUP('Tidal Device Database'!S7,'Tidal Device Database'!$A$105:$B$109,2,FALSE))) -> 4 | P28: 113
A29: ='Tidal Device Database'!A8 -> 5 | B29: 91 | C29: ='Tidal Device Database'!B8 -> Seagen S | D29: ='Tidal Device Database'!C8 -> Horizontal Axis | E29: =IF('Tidal Device Database'!I8="",0,(VLOOKUP('Tidal Device Database'!I8,'Tidal Device Database'!$A$131:$B$135,2,FALSE))) -> 5 | F29: =IF('Tidal Device Database'!J8="",0,(VLOOKUP('Tidal Device Database'!J8,'Tidal Device Database'!$A$137:$B$141,2,FALSE))) -> 3 | G29: =IF('Tidal Device Database'!K8="",0,(VLOOKUP('Tidal Device Database'!K8,'Tidal Device Database'!$A$143:$B$147,2,FALSE))) -> 2 | H29: =IF('Tidal Device Database'!L8="",0,(VLOOKUP('Tidal Device Database'!L8,'Tidal Device Database'!$A$69:$B$73,2,FALSE))) -> 1 | I29: =IF('Tidal Device Database'!M8="",0,(VLOOKUP('Tidal Device Database'!M8,'Tidal Device Database'!$A$75:$B$79,2,FALSE))) -> 4 | J29: =IF('Tidal Device Database'!N8="",0,(VLOOKUP('Tidal Device Database'!N8,'Tidal Device Database'!$A$81:$B$85,2,FALSE))) -> 2 | K29: =IF('Tidal Device Database'!O8="",0,(VLOOKUP('Tidal Device Database'!O8,'Tidal Device Database'!$A$87:$B$91,2,FALSE))) -> 0 | L29: =IF('Tidal Device Database'!P8="",0,(VLOOKUP('Tidal Device Database'!P8,'Tidal Device Database'!$A$93:$B$97,2,FALSE))) -> 0 | M29: =IF('Tidal Device Database'!Q8="",0,(VLOOKUP('Tidal Device Database'!Q8,'Tidal Device Database'!$A$99:$B$103,2,FALSE))) -> 3 | N29: =IF('Tidal Device Database'!R8="",0,(VLOOKUP('Tidal Device Database'!R8,'Tidal Device Database'!$A$115:$B$119,2,FALSE))) -> 3 | O29: =IF('Tidal Device Database'!S8="",0,(VLOOKUP('Tidal Device Database'!S8,'Tidal Device Database'!$A$105:$B$109,2,FALSE))) -> 4 | P29: 91
A30: ='Tidal Device Database'!A9 -> 7 | B30: 34 | C30: ='Tidal Device Database'!B9 -> BioStream | D30: ='Tidal Device Database'!C9 -> Oscillating Hydrofoil | E30: =IF('Tidal Device Database'!I9="",0,(VLOOKUP('Tidal Device Database'!I9,'Tidal Device Database'!$A$131:$B$135,2,FALSE))) -> 2 | F30: =IF('Tidal Device Database'!J9="",0,(VLOOKUP('Tidal Device Database'!J9,'Tidal Device Database'!$A$137:$B$141,2,FALSE))) -> 0 | G30: =IF('Tidal Device Database'!K9="",0,(VLOOKUP('Tidal Device Database'!K9,'Tidal Device Database'!$A$143:$B$147,2,FALSE))) -> 0 | H30: =IF('Tidal Device Database'!L9="",0,(VLOOKUP('Tidal Device Database'!L9,'Tidal Device Database'!$A$69:$B$73,2,FALSE))) -> 0 | I30: =IF('Tidal Device Database'!M9="",0,(VLOOKUP('Tidal Device Database'!M9,'Tidal Device Database'!$A$75:$B$79,2,FALSE))) -> 4 | J30: =IF('Tidal Device Database'!N9="",0,(VLOOKUP('Tidal Device Database'!N9,'Tidal Device Database'!$A$81:$B$85,2,FALSE))) -> 3 | K30: =IF('Tidal Device Database'!O9="",0,(VLOOKUP('Tidal Device Database'!O9,'Tidal Device Database'!$A$87:$B$91,2,FALSE))) -> 0 | L30: =IF('Tidal Device Database'!P9="",0,(VLOOKUP('Tidal Device Database'!P9,'Tidal Device Database'!$A$93:$B$97,2,FALSE))) -> 0 | M30: =IF('Tidal Device Database'!Q9="",0,(VLOOKUP('Tidal Device Database'!Q9,'Tidal Device Database'!$A$99:$B$103,2,FALSE))) -> 0 | N30: =IF('Tidal Device Database'!R9="",0,(VLOOKUP('Tidal Device Database'!R9,'Tidal Device Database'!$A$115:$B$119,2,FALSE))) -> 0 | O30: =IF('Tidal Device Database'!S9="",0,(VLOOKUP('Tidal Device Database'!S9,'Tidal Device Database'!$A$105:$B$109,2,FALSE))) -> 0 | P30: 34
A31: ='Tidal Device Database'!A10 -> 8 | B31: 54 | C31: ='Tidal Device Database'!B10 -> C2C Tidal turbine | D31: ='Tidal Device Database'!C10 -> Vertical Axis | E31: =IF('Tidal Device Database'!I10="",0,(VLOOKUP('Tidal Device Database'!I10,'Tidal Device Database'!$A$131:$B$135,2,FALSE))) -> 1 | F31: =IF('Tidal Device Database'!J10="",0,(VLOOKUP('Tidal Device Database'!J10,'Tidal Device Database'!$A$137:$B$141,2,FALSE))) -> 5 | G31: =IF('Tidal Device Database'!K10="",0,(VLOOKUP('Tidal Device Database'!K10,'Tidal Device Database'!$A$143:$B$147,2,FALSE))) -> 0 | H31: =IF('Tidal Device Database'!L10="",0,(VLOOKUP('Tidal Device Database'!L10,'Tidal Device Database'!$A$69:$B$73,2,FALSE))) -> 0 | I31: =IF('Tidal Device Database'!M10="",0,(VLOOKUP('Tidal Device Database'!M10,'Tidal Device Database'!$A$75:$B$79,2,FALSE))) -> 4 | J31: =IF('Tidal Device Database'!N10="",0,(VLOOKUP('Tidal Device Database'!N10,'Tidal Device Database'!$A$81:$B$85,2,FALSE))) -> 5 | K31: =IF('Tidal Device Database'!O10="",0,(VLOOKUP('Tidal Device Database'!O10,'Tidal Device Database'!$A$87:$B$91,2,FALSE))) -> 0 | L31: =IF('Tidal Device Database'!P10="",0,(VLOOKUP('Tidal Device Database'!P10,'Tidal Device Database'!$A$93:$B$97,2,FALSE))) -> 0 | M31: =IF('Tidal Device Database'!Q10="",0,(VLOOKUP('Tidal Device Database'!Q10,'Tidal Device Database'!$A$99:$B$103,2,FALSE))) -> 0 | N31: =IF('Tidal Device Database'!R10="",0,(VLOOKUP('Tidal Device Database'!R10,'Tidal Device Database'!$A$115:$B$119,2,FALSE))) -> 0 | O31: =IF('Tidal Device Database'!S10="",0,(VLOOKUP('Tidal Device Database'!S10,'Tidal Device Database'!$A$105:$B$109,2,FALSE))) -> 0 | P31: 54
A32: ='Tidal Device Database'!A11 -> 9 | B32: 95 | C32: ='Tidal Device Database'!B11 -> Oryon Watermill | D32: ='Tidal Device Database'!C11 -> Vertical Axis | E32: =IF('Tidal Device Database'!I11="",0,(VLOOKUP('Tidal Device Database'!I11,'Tidal Device Database'!$A$131:$B$135,2,FALSE))) -> 1 | F32: =IF('Tidal Device Database'!J11="",0,(VLOOKUP('Tidal Device Database'!J11,'Tidal Device Database'!$A$137:$B$141,2,FALSE))) -> 5 | G32: =IF('Tidal Device Database'!K11="",0,(VLOOKUP('Tidal Device Database'!K11,'Tidal Device Database'!$A$143:$B$147,2,FALSE))) -> 5 | H32: =IF('Tidal Device Database'!L11="",0,(VLOOKUP('Tidal Device Database'!L11,'Tidal Device Database'!$A$69:$B$73,2,FALSE))) -> 4 | I32: =IF('Tidal Device Database'!M11="",0,(VLOOKUP('Tidal Device Database'!M11,'Tidal Device Database'!$A$75:$B$79,2,FALSE))) -> 0 | J32: =IF('Tidal Device Database'!N11="",0,(VLOOKUP('Tidal Device Database'!N11,'Tidal Device Database'!$A$81:$B$85,2,FALSE))) -> 5 | K32: =IF('Tidal Device Database'!O11="",0,(VLOOKUP('Tidal Device Database'!O11,'Tidal Device Database'!$A$87:$B$91,2,FALSE))) -> 0 | L32: =IF('Tidal Device Database'!P11="",0,(VLOOKUP('Tidal Device Database'!P11,'Tidal Device Database'!$A$93:$B$97,2,FALSE))) -> 0 | M32: =IF('Tidal Device Database'!Q11="",0,(VLOOKUP('Tidal Device Database'!Q11,'Tidal Device Database'!$A$99:$B$103,2,FALSE))) -> 5 | N32: =IF('Tidal Device Database'!R11="",0,(VLOOKUP('Tidal Device Database'!R11,'Tidal Device Database'!$A$115:$B$119,2,FALSE))) -> 4 | O32: =IF('Tidal Device Database'!S11="",0,(VLOOKUP('Tidal Device Database'!S11,'Tidal Device Database'!$A$105:$B$109,2,FALSE))) -> 3 | P32: 95
A33: ='Tidal Device Database'!A12 -> 11 | B33: 35 | C33: ='Tidal Device Database'!B12 -> MAKO | D33: ='Tidal Device Database'!C12 -> Horizontal Axis | E33: =IF('Tidal Device Database'!I12="",0,(VLOOKUP('Tidal Device Database'!I12,'Tidal Device Database'!$A$131:$B$135,2,FALSE))) -> 0 | F33: =IF('Tidal Device Database'!J12="",0,(VLOOKUP('Tidal Device Database'!J12,'Tidal Device Database'!$A$137:$B$141,2,FALSE))) -> 5 | G33: =IF('Tidal Device Database'!K12="",0,(VLOOKUP('Tidal Device Database'!K12,'Tidal Device Database'!$A$143:$B$147,2,FALSE))) -> 0 | H33: =IF('Tidal Device Database'!L12="",0,(VLOOKUP('Tidal Device Database'!L12,'Tidal Device Database'!$A$69:$B$73,2,FALSE))) -> 0 | I33: =IF('Tidal Device Database'!M12="",0,(VLOOKUP('Tidal Device Database'!M12,'Tidal Device Database'!$A$75:$B$79,2,FALSE))) -> 0 | J33: =IF('Tidal Device Database'!N12="",0,(VLOOKUP('Tidal Device Database'!N12,'Tidal Device Database'!$A$81:$B$85,2,FALSE))) -> 5 | K33: =IF('Tidal Device Database'!O12="",0,(VLOOKUP('Tidal Device Database'!O12,'Tidal Device Database'!$A$87:$B$91,2,FALSE))) -> 0 | L33: =IF('Tidal Device Database'!P12="",0,(VLOOKUP('Tidal Device Database'!P12,'Tidal Device Database'!$A$93:$B$97,2,FALSE))) -> 0 | M33: =IF('Tidal Device Database'!Q12="",0,(VLOOKUP('Tidal Device Database'!Q12,'Tidal Device Database'!$A$99:$B$103,2,FALSE))) -> 0 | N33: =IF('Tidal Device Database'!R12="",0,(VLOOKUP('Tidal Device Database'!R12,'Tidal Device Database'!$A$115:$B$119,2,FALSE))) -> 0 | O33: =IF('Tidal Device Database'!S12="",0,(VLOOKUP('Tidal Device Database'!S12,'Tidal Device Database'!$A$105:$B$109,2,FALSE))) -> 0 | P33: 35
A34: ='Tidal Device Database'!A13 -> 12 | B34: 23 | C34: ='Tidal Device Database'!B13 -> Guinard MegaWattBlue | D34: ='Tidal Device Database'!C13 -> Horizontal Axis | E34: =IF('Tidal Device Database'!I13="",0,(VLOOKUP('Tidal Device Database'!I13,'Tidal Device Database'!$A$131:$B$135,2,FALSE))) -> 1 | F34: =IF('Tidal Device Database'!J13="",0,(VLOOKUP('Tidal Device Database'!J13,'Tidal Device Database'!$A$137:$B$141,2,FALSE))) -> 0 | G34: =IF('Tidal Device Database'!K13="",0,(VLOOKUP('Tidal Device Database'!K13,'Tidal Device Database'!$A$143:$B$147,2,FALSE))) -> 0 | H34: =IF('Tidal Device Database'!L13="",0,(VLOOKUP('Tidal Device Database'!L13,'Tidal Device Database'!$A$69:$B$73,2,FALSE))) -> 0 | I34: =IF('Tidal Device Database'!M13="",0,(VLOOKUP('Tidal Device Database'!M13,'Tidal Device Database'!$A$75:$B$79,2,FALSE))) -> 0 | J34: =IF('Tidal Device Database'!N13="",0,(VLOOKUP('Tidal Device Database'!N13,'Tidal Device Database'!$A$81:$B$85,2,FALSE))) -> 5 | K34: =IF('Tidal Device Database'!O13="",0,(VLOOKUP('Tidal Device Database'!O13,'Tidal Device Database'!$A$87:$B$91,2,FALSE))) -> 0 | L34: =IF('Tidal Device Database'!P13="",0,(VLOOKUP('Tidal Device Database'!P13,'Tidal Device Database'!$A$93:$B$97,2,FALSE))) -> 0 | M34: =IF('Tidal Device Database'!Q13="",0,(VLOOKUP('Tidal Device Database'!Q13,'Tidal Device Database'!$A$99:$B$103,2,FALSE))) -> 0 | N34: =IF('Tidal Device Database'!R13="",0,(VLOOKUP('Tidal Device Database'!R13,'Tidal Device Database'!$A$115:$B$119,2,FALSE))) -> 0 | O34: =IF('Tidal Device Database'!S13="",0,(VLOOKUP('Tidal Device Database'!S13,'Tidal Device Database'!$A$105:$B$109,2,FALSE))) -> 0 | P34: 23
A35: ='Tidal Device Database'!A14 -> 13 | B35: 38 | C35: ='Tidal Device Database'!B14 -> HydroGen | D35: ='Tidal Device Database'!C14 -> Vertical Axis | E35: =IF('Tidal Device Database'!I14="",0,(VLOOKUP('Tidal Device Database'!I14,'Tidal Device Database'!$A$131:$B$135,2,FALSE))) -> 1 | F35: =IF('Tidal Device Database'!J14="",0,(VLOOKUP('Tidal Device Database'!J14,'Tidal Device Database'!$A$137:$B$141,2,FALSE))) -> 5 | G35: =IF('Tidal Device Database'!K14="",0,(VLOOKUP('Tidal Device Database'!K14,'Tidal Device Database'!$A$143:$B$147,2,FALSE))) -> 0 | H35: =IF('Tidal Device Database'!L14="",0,(VLOOKUP('Tidal Device Database'!L14,'Tidal Device Database'!$A$69:$B$73,2,FALSE))) -> 0 | I35: =IF('Tidal Device Database'!M14="",0,(VLOOKUP('Tidal Device Database'!M14,'Tidal Device Database'!$A$75:$B$79,2,FALSE))) -> 0 | J35: =IF('Tidal Device Database'!N14="",0,(VLOOKUP('Tidal Device Database'!N14,'Tidal Device Database'!$A$81:$B$85,2,FALSE))) -> 5 | K35: =IF('Tidal Device Database'!O14="",0,(VLOOKUP('Tidal Device Database'!O14,'Tidal Device Database'!$A$87:$B$91,2,FALSE))) -> 0 | L35: =IF('Tidal Device Database'!P14="",0,(VLOOKUP('Tidal Device Database'!P14,'Tidal Device Database'!$A$93:$B$97,2,FALSE))) -> 0 | M35: =IF('Tidal Device Database'!Q14="",0,(VLOOKUP('Tidal Device Database'!Q14,'Tidal Device Database'!$A$99:$B$103,2,FALSE))) -> 0 | N35: =IF('Tidal Device Database'!R14="",0,(VLOOKUP('Tidal Device Database'!R14,'Tidal Device Database'!$A$115:$B$119,2,FALSE))) -> 0 | O35: =IF('Tidal Device Database'!S14="",0,(VLOOKUP('Tidal Device Database'!S14,'Tidal Device Database'!$A$105:$B$109,2,FALSE))) -> 0 | P35: 38
A36: ='Tidal Device Database'!A15 -> 14 | B36: 28 | C36: ='Tidal Device Database'!B15 -> HydroQuest | D36: ='Tidal Device Database'!C15 -> Vertical Axis | E36: =IF('Tidal Device Database'!I15="",0,(VLOOKUP('Tidal Device Database'!I15,'Tidal Device Database'!$A$131:$B$135,2,FALSE))) -> 0 | F36: =IF('Tidal Device Database'!J15="",0,(VLOOKUP('Tidal Device Database'!J15,'Tidal Device Database'!$A$137:$B$141,2,FALSE))) -> 0 | G36: =IF('Tidal Device Database'!K15="",0,(VLOOKUP('Tidal Device Database'!K15,'Tidal Device Database'!$A$143:$B$147,2,FALSE))) -> 0 | H36: =IF('Tidal Device Database'!L15="",0,(VLOOKUP('Tidal Device Database'!L15,'Tidal Device Database'!$A$69:$B$73,2,FALSE))) -> 0 | I36: =IF('Tidal Device Database'!M15="",0,(VLOOKUP('Tidal Device Database'!M15,'Tidal Device Database'!$A$75:$B$79,2,FALSE))) -> 4 | J36: =IF('Tidal Device Database'!N15="",0,(VLOOKUP('Tidal Device Database'!N15,'Tidal Device Database'!$A$81:$B$85,2,FALSE))) -> 3 | K36: =IF('Tidal Device Database'!O15="",0,(VLOOKUP('Tidal Device Database'!O15,'Tidal Device Database'!$A$87:$B$91,2,FALSE))) -> 0 | L36: =IF('Tidal Device Database'!P15="",0,(VLOOKUP('Tidal Device Database'!P15,'Tidal Device Database'!$A$93:$B$97,2,FALSE))) -> 0 | M36: =IF('Tidal Device Database'!Q15="",0,(VLOOKUP('Tidal Device Database'!Q15,'Tidal Device Database'!$A$99:$B$103,2,FALSE))) -> 0 | N36: =IF('Tidal Device Database'!R15="",0,(VLOOKUP('Tidal Device Database'!R15,'Tidal Device Database'!$A$115:$B$119,2,FALSE))) -> 0 | O36: =IF('Tidal Device Database'!S15="",0,(VLOOKUP('Tidal Device Database'!S15,'Tidal Device Database'!$A$105:$B$109,2,FALSE))) -> 0 | P36: 28
A37: ='Tidal Device Database'!A16 -> 15 | B37: 35 | C37: ='Tidal Device Database'!B16 -> Jupiter Hydro | D37: ='Tidal Device Database'!C16 -> Archimedes Screw | E37: =IF('Tidal Device Database'!I16="",0,(VLOOKUP('Tidal Device Database'!I16,'Tidal Device Database'!$A$131:$B$135,2,FALSE))) -> 0 | F37: =IF('Tidal Device Database'!J16="",0,(VLOOKUP('Tidal Device Database'!J16,'Tidal Device Database'!$A$137:$B$141,2,FALSE))) -> 5 | G37: =IF('Tidal Device Database'!K16="",0,(VLOOKUP('Tidal Device Database'!K16,'Tidal Device Database'!$A$143:$B$147,2,FALSE))) -> 0 | H37: =IF('Tidal Device Database'!L16="",0,(VLOOKUP('Tidal Device Database'!L16,'Tidal Device Database'!$A$69:$B$73,2,FALSE))) -> 0 | I37: =IF('Tidal Device Database'!M16="",0,(VLOOKUP('Tidal Device Database'!M16,'Tidal Device Database'!$A$75:$B$79,2,FALSE))) -> 0 | J37: =IF('Tidal Device Database'!N16="",0,(VLOOKUP('Tidal Device Database'!N16,'Tidal Device Database'!$A$81:$B$85,2,FALSE))) -> 5 | K37: =IF('Tidal Device Database'!O16="",0,(VLOOKUP('Tidal Device Database'!O16,'Tidal Device Database'!$A$87:$B$91,2,FALSE))) -> 0 | L37: =IF('Tidal Device Database'!P16="",0,(VLOOKUP('Tidal Device Database'!P16,'Tidal Device Database'!$A$93:$B$97,2,FALSE))) -> 0 | M37: =IF('Tidal Device Database'!Q16="",0,(VLOOKUP('Tidal Device Database'!Q16,'Tidal Device Database'!$A$99:$B$103,2,FALSE))) -> 0 | N37: =IF('Tidal Device Database'!R16="",0,(VLOOKUP('Tidal Device Database'!R16,'Tidal Device Database'!$A$115:$B$119,2,FALSE))) -> 0 | O37: =IF('Tidal Device Database'!S16="",0,(VLOOKUP('Tidal Device Database'!S16,'Tidal Device Database'!$A$105:$B$109,2,FALSE))) -> 0 | P37: 35
A38: ='Tidal Device Database'!A17 -> 16 | B38: 56 | C38: ='Tidal Device Database'!B17 -> Minesto | D38: ='Tidal Device Database'!C17 -> Tidal Kite | E38: =IF('Tidal Device Database'!I17="",0,(VLOOKUP('Tidal Device Database'!I17,'Tidal Device Database'!$A$131:$B$135,2,FALSE))) -> 3 | F38: =IF('Tidal Device Database'!J17="",0,(VLOOKUP('Tidal Device Database'!J17,'Tidal Device Database'!$A$137:$B$141,2,FALSE))) -> 4 | G38: =IF('Tidal Device Database'!K17="",0,(VLOOKUP('Tidal Device Database'!K17,'Tidal Device Database'!$A$143:$B$147,2,FALSE))) -> 1 | H38: =IF('Tidal Device Database'!L17="",0,(VLOOKUP('Tidal Device Database'!L17,'Tidal Device Database'!$A$69:$B$73,2,FALSE))) -> 3 | I38: =IF('Tidal Device Database'!M17="",0,(VLOOKUP('Tidal Device Database'!M17,'Tidal Device Database'!$A$75:$B$79,2,FALSE))) -> 0 | J38: =IF('Tidal Device Database'!N17="",0,(VLOOKUP('Tidal Device Database'!N17,'Tidal Device Database'!$A$81:$B$85,2,FALSE))) -> 5 | K38: =IF('Tidal Device Database'!O17="",0,(VLOOKUP('Tidal Device Database'!O17,'Tidal Device Database'!$A$87:$B$91,2,FALSE))) -> 0 | L38: =IF('Tidal Device Database'!P17="",0,(VLOOKUP('Tidal Device Database'!P17,'Tidal Device Database'!$A$93:$B$97,2,FALSE))) -> 0 | M38: =IF('Tidal Device Database'!Q17="",0,(VLOOKUP('Tidal Device Database'!Q17,'Tidal Device Database'!$A$99:$B$103,2,FALSE))) -> 2 | N38: =IF('Tidal Device Database'!R17="",0,(VLOOKUP('Tidal Device Database'!R17,'Tidal Device Database'!$A$115:$B$119,2,FALSE))) -> 1 | O38: =IF('Tidal Device Database'!S17="",0,(VLOOKUP('Tidal Device Database'!S17,'Tidal Device Database'!$A$105:$B$109,2,FALSE))) -> 0 | P38: 56
A39: ='Tidal Device Database'!A18 -> 17 | B39: 45 | C39: ='Tidal Device Database'!B18 -> CoRMat | D39: ='Tidal Device Database'!C18 -> Horizontal Contra-Rotating | E39: =IF('Tidal Device Database'!I18="",0,(VLOOKUP('Tidal Device Database'!I18,'Tidal Device Database'!$A$131:$B$135,2,FALSE))) -> 0 | F39: =IF('Tidal Device Database'!J18="",0,(VLOOKUP('Tidal Device Database'!J18,'Tidal Device Database'!$A$137:$B$141,2,FALSE))) -> 0 | G39: =IF('Tidal Device Database'!K18="",0,(VLOOKUP('Tidal Device Database'!K18,'Tidal Device Database'!$A$143:$B$147,2,FALSE))) -> 5 | H39: =IF('Tidal Device Database'!L18="",0,(VLOOKUP('Tidal Device Database'!L18,'Tidal Device Database'!$A$69:$B$73,2,FALSE))) -> 0 | I39: =IF('Tidal Device Database'!M18="",0,(VLOOKUP('Tidal Device Database'!M18,'Tidal Device Database'!$A$75:$B$79,2,FALSE))) -> 0 | J39: =IF('Tidal Device Database'!N18="",0,(VLOOKUP('Tidal Device Database'!N18,'Tidal Device Database'!$A$81:$B$85,2,FALSE))) -> 5 | K39: =IF('Tidal Device Database'!O18="",0,(VLOOKUP('Tidal Device Database'!O18,'Tidal Device Database'!$A$87:$B$91,2,FALSE))) -> 0 | L39: =IF('Tidal Device Database'!P18="",0,(VLOOKUP('Tidal Device Database'!P18,'Tidal Device Database'!$A$93:$B$97,2,FALSE))) -> 0 | M39: =IF('Tidal Device Database'!Q18="",0,(VLOOKUP('Tidal Device Database'!Q18,'Tidal Device Database'!$A$99:$B$103,2,FALSE))) -> 0 | N39: =IF('Tidal Device Database'!R18="",0,(VLOOKUP('Tidal Device Database'!R18,'Tidal Device Database'!$A$115:$B$119,2,FALSE))) -> 0 | O39: =IF('Tidal Device Database'!S18="",0,(VLOOKUP('Tidal Device Database'!S18,'Tidal Device Database'!$A$105:$B$109,2,FALSE))) -> 3 | P39: 45
A40: ='Tidal Device Database'!A19 -> 18 | B40: 56 | C40: ='Tidal Device Database'!B19 -> Nova M100 | D40: ='Tidal Device Database'!C19 -> Horizontal Axis | E40: =IF('Tidal Device Database'!I19="",0,(VLOOKUP('Tidal Device Database'!I19,'Tidal Device Database'!$A$131:$B$135,2,FALSE))) -> 1 | F40: =IF('Tidal Device Database'!J19="",0,(VLOOKUP('Tidal Device Database'!J19,'Tidal Device Database'!$A$137:$B$141,2,FALSE))) -> 0 | G40: =IF('Tidal Device Database'!K19="",0,(VLOOKUP('Tidal Device Database'!K19,'Tidal Device Database'!$A$143:$B$147,2,FALSE))) -> 0 | H40: =IF('Tidal Device Database'!L19="",0,(VLOOKUP('Tidal Device Database'!L19,'Tidal Device Database'!$A$69:$B$73,2,FALSE))) -> 4 | I40: =IF('Tidal Device Database'!M19="",0,(VLOOKUP('Tidal Device Database'!M19,'Tidal Device Database'!$A$75:$B$79,2,FALSE))) -> 0 | J40: =IF('Tidal Device Database'!N19="",0,(VLOOKUP('Tidal Device Database'!N19,'Tidal Device Database'!$A$81:$B$85,2,FALSE))) -> 3 | K40: =IF('Tidal Device Database'!O19="",0,(VLOOKUP('Tidal Device Database'!O19,'Tidal Device Database'!$A$87:$B$91,2,FALSE))) -> 0 | L40: =IF('Tidal Device Database'!P19="",0,(VLOOKUP('Tidal Device Database'!P19,'Tidal Device Database'!$A$93:$B$97,2,FALSE))) -> 0 | M40: =IF('Tidal Device Database'!Q19="",0,(VLOOKUP('Tidal Device Database'!Q19,'Tidal Device Database'!$A$99:$B$103,2,FALSE))) -> 3 | N40: =IF('Tidal Device Database'!R19="",0,(VLOOKUP('Tidal Device Database'!R19,'Tidal Device Database'!$A$115:$B$119,2,FALSE))) -> 0 | O40: =IF('Tidal Device Database'!S19="",0,(VLOOKUP('Tidal Device Database'!S19,'Tidal Device Database'!$A$105:$B$109,2,FALSE))) -> 5 | P40: 56
A41: ='Tidal Device Database'!A20 -> 19 | B41: 16 | C41: ='Tidal Device Database'!B20 -> TidGen | D41: ='Tidal Device Database'!C20 -> Darrieus | E41: =IF('Tidal Device Database'!I20="",0,(VLOOKUP('Tidal Device Database'!I20,'Tidal Device Database'!$A$131:$B$135,2,FALSE))) -> 0 | F41: =IF('Tidal Device Database'!J20="",0,(VLOOKUP('Tidal Device Database'!J20,'Tidal Device Database'!$A$137:$B$141,2,FALSE))) -> 0 | G41: =IF('Tidal Device Database'!K20="",0,(VLOOKUP('Tidal Device Database'!K20,'Tidal Device Database'!$A$143:$B$147,2,FALSE))) -> 0 | H41: =IF('Tidal Device Database'!L20="",0,(VLOOKUP('Tidal Device Database'!L20,'Tidal Device Database'!$A$69:$B$73,2,FALSE))) -> 0 | I41: =IF('Tidal Device Database'!M20="",0,(VLOOKUP('Tidal Device Database'!M20,'Tidal Device Database'!$A$75:$B$79,2,FALSE))) -> 0 | J41: =IF('Tidal Device Database'!N20="",0,(VLOOKUP('Tidal Device Database'!N20,'Tidal Device Database'!$A$81:$B$85,2,FALSE))) -> 4 | K41: =IF('Tidal Device Database'!O20="",0,(VLOOKUP('Tidal Device Database'!O20,'Tidal Device Database'!$A$87:$B$91,2,FALSE))) -> 0 | L41: =IF('Tidal Device Database'!P20="",0,(VLOOKUP('Tidal Device Database'!P20,'Tidal Device Database'!$A$93:$B$97,2,FALSE))) -> 0 | M41: =IF('Tidal Device Database'!Q20="",0,(VLOOKUP('Tidal Device Database'!Q20,'Tidal Device Database'!$A$99:$B$103,2,FALSE))) -> 0 | N41: =IF('Tidal Device Database'!R20="",0,(VLOOKUP('Tidal Device Database'!R20,'Tidal Device Database'!$A$115:$B$119,2,FALSE))) -> 0 | O41: =IF('Tidal Device Database'!S20="",0,(VLOOKUP('Tidal Device Database'!S20,'Tidal Device Database'!$A$105:$B$109,2,FALSE))) -> 0 | P41: 16
A42: ='Tidal Device Database'!A21 -> 20 | B42: 12 | C42: ='Tidal Device Database'!B21 -> Oceana | D42: ='Tidal Device Database'!C21 -> Horizontal Axis | E42: =IF('Tidal Device Database'!I21="",0,(VLOOKUP('Tidal Device Database'!I21,'Tidal Device Database'!$A$131:$B$135,2,FALSE))) -> 0 | F42: =IF('Tidal Device Database'!J21="",0,(VLOOKUP('Tidal Device Database'!J21,'Tidal Device Database'!$A$137:$B$141,2,FALSE))) -> 0 | G42: =IF('Tidal Device Database'!K21="",0,(VLOOKUP('Tidal Device Database'!K21,'Tidal Device Database'!$A$143:$B$147,2,FALSE))) -> 0 | H42: =IF('Tidal Device Database'!L21="",0,(VLOOKUP('Tidal Device Database'!L21,'Tidal Device Database'!$A$69:$B$73,2,FALSE))) -> 0 | I42: =IF('Tidal Device Database'!M21="",0,(VLOOKUP('Tidal Device Database'!M21,'Tidal Device Database'!$A$75:$B$79,2,FALSE))) -> 0 | J42: =IF('Tidal Device Database'!N21="",0,(VLOOKUP('Tidal Device Database'!N21,'Tidal Device Database'!$A$81:$B$85,2,FALSE))) -> 3 | K42: =IF('Tidal Device Database'!O21="",0,(VLOOKUP('Tidal Device Database'!O21,'Tidal Device Database'!$A$87:$B$91,2,FALSE))) -> 0 | L42: =IF('Tidal Device Database'!P21="",0,(VLOOKUP('Tidal Device Database'!P21,'Tidal Device Database'!$A$93:$B$97,2,FALSE))) -> 0 | M42: =IF('Tidal Device Database'!Q21="",0,(VLOOKUP('Tidal Device Database'!Q21,'Tidal Device Database'!$A$99:$B$103,2,FALSE))) -> 0 | N42: =IF('Tidal Device Database'!R21="",0,(VLOOKUP('Tidal Device Database'!R21,'Tidal Device Database'!$A$115:$B$119,2,FALSE))) -> 0 | O42: =IF('Tidal Device Database'!S21="",0,(VLOOKUP('Tidal Device Database'!S21,'Tidal Device Database'!$A$105:$B$109,2,FALSE))) -> 0 | P42: 12
A43: ='Tidal Device Database'!A22 -> 21 | B43: 38 | C43: ='Tidal Device Database'!B22 -> Stream Cube | D43: ='Tidal Device Database'!C22 -> Vertical Axis | E43: =IF('Tidal Device Database'!I22="",0,(VLOOKUP('Tidal Device Database'!I22,'Tidal Device Database'!$A$131:$B$135,2,FALSE))) -> 1 | F43: =IF('Tidal Device Database'!J22="",0,(VLOOKUP('Tidal Device Database'!J22,'Tidal Device Database'!$A$137:$B$141,2,FALSE))) -> 5 | G43: =IF('Tidal Device Database'!K22="",0,(VLOOKUP('Tidal Device Database'!K22,'Tidal Device Database'!$A$143:$B$147,2,FALSE))) -> 0 | H43: =IF('Tidal Device Database'!L22="",0,(VLOOKUP('Tidal Device Database'!L22,'Tidal Device Database'!$A$69:$B$73,2,FALSE))) -> 0 | I43: =IF('Tidal Device Database'!M22="",0,(VLOOKUP('Tidal Device Database'!M22,'Tidal Device Database'!$A$75:$B$79,2,FALSE))) -> 0 | J43: =IF('Tidal Device Database'!N22="",0,(VLOOKUP('Tidal Device Database'!N22,'Tidal Device Database'!$A$81:$B$85,2,FALSE))) -> 5 | K43: =IF('Tidal Device Database'!O22="",0,(VLOOKUP('Tidal Device Database'!O22,'Tidal Device Database'!$A$87:$B$91,2,FALSE))) -> 0 | L43: =IF('Tidal Device Database'!P22="",0,(VLOOKUP('Tidal Device Database'!P22,'Tidal Device Database'!$A$93:$B$97,2,FALSE))) -> 0 | M43: =IF('Tidal Device Database'!Q22="",0,(VLOOKUP('Tidal Device Database'!Q22,'Tidal Device Database'!$A$99:$B$103,2,FALSE))) -> 0 | N43: =IF('Tidal Device Database'!R22="",0,(VLOOKUP('Tidal Device Database'!R22,'Tidal Device Database'!$A$115:$B$119,2,FALSE))) -> 0 | O43: =IF('Tidal Device Database'!S22="",0,(VLOOKUP('Tidal Device Database'!S22,'Tidal Device Database'!$A$105:$B$109,2,FALSE))) -> 0 | P43: 38
A44: ='Tidal Device Database'!A23 -> 22 | B44: 90 | C44: ='Tidal Device Database'!B23 -> Capricorn 5 | D44: ='Tidal Device Database'!C23 -> Horizontal Contra-Rotating | E44: =IF('Tidal Device Database'!I23="",0,(VLOOKUP('Tidal Device Database'!I23,'Tidal Device Database'!$A$131:$B$135,2,FALSE))) -> 1 | F44: =IF('Tidal Device Database'!J23="",0,(VLOOKUP('Tidal Device Database'!J23,'Tidal Device Database'!$A$137:$B$141,2,FALSE))) -> 5 | G44: =IF('Tidal Device Database'!K23="",0,(VLOOKUP('Tidal Device Database'!K23,'Tidal Device Database'!$A$143:$B$147,2,FALSE))) -> 4 | H44: =IF('Tidal Device Database'!L23="",0,(VLOOKUP('Tidal Device Database'!L23,'Tidal Device Database'!$A$69:$B$73,2,FALSE))) -> 4 | I44: =IF('Tidal Device Database'!M23="",0,(VLOOKUP('Tidal Device Database'!M23,'Tidal Device Database'!$A$75:$B$79,2,FALSE))) -> 0 | J44: =IF('Tidal Device Database'!N23="",0,(VLOOKUP('Tidal Device Database'!N23,'Tidal Device Database'!$A$81:$B$85,2,FALSE))) -> 5 | K44: =IF('Tidal Device Database'!O23="",0,(VLOOKUP('Tidal Device Database'!O23,'Tidal Device Database'!$A$87:$B$91,2,FALSE))) -> 0 | L44: =IF('Tidal Device Database'!P23="",0,(VLOOKUP('Tidal Device Database'!P23,'Tidal Device Database'!$A$93:$B$97,2,FALSE))) -> 0 | M44: =IF('Tidal Device Database'!Q23="",0,(VLOOKUP('Tidal Device Database'!Q23,'Tidal Device Database'!$A$99:$B$103,2,FALSE))) -> 3 | N44: =IF('Tidal Device Database'!R23="",0,(VLOOKUP('Tidal Device Database'!R23,'Tidal Device Database'!$A$115:$B$119,2,FALSE))) -> 4 | O44: =IF('Tidal Device Database'!S23="",0,(VLOOKUP('Tidal Device Database'!S23,'Tidal Device Database'!$A$105:$B$109,2,FALSE))) -> 4 | P44: 90
A45: ='Tidal Device Database'!A24 -> 23 | B45: 74 | C45: ='Tidal Device Database'!B24 -> Capricorn 125 | D45: ='Tidal Device Database'!C24 -> Horizontal Contra-Rotating | E45: =IF('Tidal Device Database'!I24="",0,(VLOOKUP('Tidal Device Database'!I24,'Tidal Device Database'!$A$131:$B$135,2,FALSE))) -> 5 | F45: =IF('Tidal Device Database'!J24="",0,(VLOOKUP('Tidal Device Database'!J24,'Tidal Device Database'!$A$137:$B$141,2,FALSE))) -> 5 | G45: =IF('Tidal Device Database'!K24="",0,(VLOOKUP('Tidal Device Database'!K24,'Tidal Device Database'!$A$143:$B$147,2,FALSE))) -> 1 | H45: =IF('Tidal Device Database'!L24="",0,(VLOOKUP('Tidal Device Database'!L24,'Tidal Device Database'!$A$69:$B$73,2,FALSE))) -> 4 | I45: =IF('Tidal Device Database'!M24="",0,(VLOOKUP('Tidal Device Database'!M24,'Tidal Device Database'!$A$75:$B$79,2,FALSE))) -> 0 | J45: =IF('Tidal Device Database'!N24="",0,(VLOOKUP('Tidal Device Database'!N24,'Tidal Device Database'!$A$81:$B$85,2,FALSE))) -> 5 | K45: =IF('Tidal Device Database'!O24="",0,(VLOOKUP('Tidal Device Database'!O24,'Tidal Device Database'!$A$87:$B$91,2,FALSE))) -> 0 | L45: =IF('Tidal Device Database'!P24="",0,(VLOOKUP('Tidal Device Database'!P24,'Tidal Device Database'!$A$93:$B$97,2,FALSE))) -> 0 | M45: =IF('Tidal Device Database'!Q24="",0,(VLOOKUP('Tidal Device Database'!Q24,'Tidal Device Database'!$A$99:$B$103,2,FALSE))) -> 3 | N45: =IF('Tidal Device Database'!R24="",0,(VLOOKUP('Tidal Device Database'!R24,'Tidal Device Database'!$A$115:$B$119,2,FALSE))) -> 3 | O45: =IF('Tidal Device Database'!S24="",0,(VLOOKUP('Tidal Device Database'!S24,'Tidal Device Database'!$A$105:$B$109,2,FALSE))) -> 0 | P45: 74
A46: ='Tidal Device Database'!A25 -> 24 | B46: 34 | C46: ='Tidal Device Database'!B25 -> Sabella D10 | D46: ='Tidal Device Database'!C25 -> Horizontal Axis | E46: =IF('Tidal Device Database'!I25="",0,(VLOOKUP('Tidal Device Database'!I25,'Tidal Device Database'!$A$131:$B$135,2,FALSE))) -> 3 | F46: =IF('Tidal Device Database'!J25="",0,(VLOOKUP('Tidal Device Database'!J25,'Tidal Device Database'!$A$137:$B$141,2,FALSE))) -> 3 | G46: =IF('Tidal Device Database'!K25="",0,(VLOOKUP('Tidal Device Database'!K25,'Tidal Device Database'!$A$143:$B$147,2,FALSE))) -> 0 | H46: =IF('Tidal Device Database'!L25="",0,(VLOOKUP('Tidal Device Database'!L25,'Tidal Device Database'!$A$69:$B$73,2,FALSE))) -> 0 | I46: =IF('Tidal Device Database'!M25="",0,(VLOOKUP('Tidal Device Database'!M25,'Tidal Device Database'!$A$75:$B$79,2,FALSE))) -> 0 | J46: =IF('Tidal Device Database'!N25="",0,(VLOOKUP('Tidal Device Database'!N25,'Tidal Device Database'!$A$81:$B$85,2,FALSE))) -> 4 | K46: =IF('Tidal Device Database'!O25="",0,(VLOOKUP('Tidal Device Database'!O25,'Tidal Device Database'!$A$87:$B$91,2,FALSE))) -> 0 | L46: =IF('Tidal Device Database'!P25="",0,(VLOOKUP('Tidal Device Database'!P25,'Tidal Device Database'!$A$93:$B$97,2,FALSE))) -> 0 | M46: =IF('Tidal Device Database'!Q25="",0,(VLOOKUP('Tidal Device Database'!Q25,'Tidal Device Database'!$A$99:$B$103,2,FALSE))) -> 0 | N46: =IF('Tidal Device Database'!R25="",0,(VLOOKUP('Tidal Device Database'!R25,'Tidal Device Database'!$A$115:$B$119,2,FALSE))) -> 0 | O46: =IF('Tidal Device Database'!S25="",0,(VLOOKUP('Tidal Device Database'!S25,'Tidal Device Database'!$A$105:$B$109,2,FALSE))) -> 0 | P46: 34
A47: ='Tidal Device Database'!A26 -> 25 | B47: 34 | C47: ='Tidal Device Database'!B26 -> Sabella D12 | D47: ='Tidal Device Database'!C26 -> Horizontal Axis | E47: =IF('Tidal Device Database'!I26="",0,(VLOOKUP('Tidal Device Database'!I26,'Tidal Device Database'!$A$131:$B$135,2,FALSE))) -> 3 | F47: =IF('Tidal Device Database'!J26="",0,(VLOOKUP('Tidal Device Database'!J26,'Tidal Device Database'!$A$137:$B$141,2,FALSE))) -> 3 | G47: =IF('Tidal Device Database'!K26="",0,(VLOOKUP('Tidal Device Database'!K26,'Tidal Device Database'!$A$143:$B$147,2,FALSE))) -> 0 | H47: =IF('Tidal Device Database'!L26="",0,(VLOOKUP('Tidal Device Database'!L26,'Tidal Device Database'!$A$69:$B$73,2,FALSE))) -> 0 | I47: =IF('Tidal Device Database'!M26="",0,(VLOOKUP('Tidal Device Database'!M26,'Tidal Device Database'!$A$75:$B$79,2,FALSE))) -> 0 | J47: =IF('Tidal Device Database'!N26="",0,(VLOOKUP('Tidal Device Database'!N26,'Tidal Device Database'!$A$81:$B$85,2,FALSE))) -> 4 | K47: =IF('Tidal Device Database'!O26="",0,(VLOOKUP('Tidal Device Database'!O26,'Tidal Device Database'!$A$87:$B$91,2,FALSE))) -> 0 | L47: =IF('Tidal Device Database'!P26="",0,(VLOOKUP('Tidal Device Database'!P26,'Tidal Device Database'!$A$93:$B$97,2,FALSE))) -> 0 | M47: =IF('Tidal Device Database'!Q26="",0,(VLOOKUP('Tidal Device Database'!Q26,'Tidal Device Database'!$A$99:$B$103,2,FALSE))) -> 0 | N47: =IF('Tidal Device Database'!R26="",0,(VLOOKUP('Tidal Device Database'!R26,'Tidal Device Database'!$A$115:$B$119,2,FALSE))) -> 0 | O47: =IF('Tidal Device Database'!S26="",0,(VLOOKUP('Tidal Device Database'!S26,'Tidal Device Database'!$A$105:$B$109,2,FALSE))) -> 0 | P47: 34
A48: ='Tidal Device Database'!A27 -> 26 | B48: 37 | C48: ='Tidal Device Database'!B27 -> Sabella D15 | D48: ='Tidal Device Database'!C27 -> Horizontal Axis | E48: =IF('Tidal Device Database'!I27="",0,(VLOOKUP('Tidal Device Database'!I27,'Tidal Device Database'!$A$131:$B$135,2,FALSE))) -> 4 | F48: =IF('Tidal Device Database'!J27="",0,(VLOOKUP('Tidal Device Database'!J27,'Tidal Device Database'!$A$137:$B$141,2,FALSE))) -> 3 | G48: =IF('Tidal Device Database'!K27="",0,(VLOOKUP('Tidal Device Database'!K27,'Tidal Device Database'!$A$143:$B$147,2,FALSE))) -> 0 | H48: =IF('Tidal Device Database'!L27="",0,(VLOOKUP('Tidal Device Database'!L27,'Tidal Device Database'!$A$69:$B$73,2,FALSE))) -> 0 | I48: =IF('Tidal Device Database'!M27="",0,(VLOOKUP('Tidal Device Database'!M27,'Tidal Device Database'!$A$75:$B$79,2,FALSE))) -> 0 | J48: =IF('Tidal Device Database'!N27="",0,(VLOOKUP('Tidal Device Database'!N27,'Tidal Device Database'!$A$81:$B$85,2,FALSE))) -> 4 | K48: =IF('Tidal Device Database'!O27="",0,(VLOOKUP('Tidal Device Database'!O27,'Tidal Device Database'!$A$87:$B$91,2,FALSE))) -> 0 | L48: =IF('Tidal Device Database'!P27="",0,(VLOOKUP('Tidal Device Database'!P27,'Tidal Device Database'!$A$93:$B$97,2,FALSE))) -> 0 | M48: =IF('Tidal Device Database'!Q27="",0,(VLOOKUP('Tidal Device Database'!Q27,'Tidal Device Database'!$A$99:$B$103,2,FALSE))) -> 0 | N48: =IF('Tidal Device Database'!R27="",0,(VLOOKUP('Tidal Device Database'!R27,'Tidal Device Database'!$A$115:$B$119,2,FALSE))) -> 0 | O48: =IF('Tidal Device Database'!S27="",0,(VLOOKUP('Tidal Device Database'!S27,'Tidal Device Database'!$A$105:$B$109,2,FALSE))) -> 0 | P48: 37
A49: ='Tidal Device Database'!A28 -> 27 | B49: 104 | C49: ='Tidal Device Database'!B28 -> Shottel Instream Turbine I | D49: ='Tidal Device Database'!C28 -> Horizontal Axis | E49: =IF('Tidal Device Database'!I28="",0,(VLOOKUP('Tidal Device Database'!I28,'Tidal Device Database'!$A$131:$B$135,2,FALSE))) -> 1 | F49: =IF('Tidal Device Database'!J28="",0,(VLOOKUP('Tidal Device Database'!J28,'Tidal Device Database'!$A$137:$B$141,2,FALSE))) -> 5 | G49: =IF('Tidal Device Database'!K28="",0,(VLOOKUP('Tidal Device Database'!K28,'Tidal Device Database'!$A$143:$B$147,2,FALSE))) -> 0 | H49: =IF('Tidal Device Database'!L28="",0,(VLOOKUP('Tidal Device Database'!L28,'Tidal Device Database'!$A$69:$B$73,2,FALSE))) -> 0 | I49: =IF('Tidal Device Database'!M28="",0,(VLOOKUP('Tidal Device Database'!M28,'Tidal Device Database'!$A$75:$B$79,2,FALSE))) -> 4 | J49: =IF('Tidal Device Database'!N28="",0,(VLOOKUP('Tidal Device Database'!N28,'Tidal Device Database'!$A$81:$B$85,2,FALSE))) -> 5 | K49: =IF('Tidal Device Database'!O28="",0,(VLOOKUP('Tidal Device Database'!O28,'Tidal Device Database'!$A$87:$B$91,2,FALSE))) -> 0 | L49: =IF('Tidal Device Database'!P28="",0,(VLOOKUP('Tidal Device Database'!P28,'Tidal Device Database'!$A$93:$B$97,2,FALSE))) -> 0 | M49: =IF('Tidal Device Database'!Q28="",0,(VLOOKUP('Tidal Device Database'!Q28,'Tidal Device Database'!$A$99:$B$103,2,FALSE))) -> 5 | N49: =IF('Tidal Device Database'!R28="",0,(VLOOKUP('Tidal Device Database'!R28,'Tidal Device Database'!$A$115:$B$119,2,FALSE))) -> 5 | O49: =IF('Tidal Device Database'!S28="",0,(VLOOKUP('Tidal Device Database'!S28,'Tidal Device Database'!$A$105:$B$109,2,FALSE))) -> 4 | P49: 104
A50: ='Tidal Device Database'!A29 -> 28 | B50: 94 | C50: ='Tidal Device Database'!B29 -> Shottel Instream Turbine II | D50: ='Tidal Device Database'!C29 -> Horizontal Axis | E50: =IF('Tidal Device Database'!I29="",0,(VLOOKUP('Tidal Device Database'!I29,'Tidal Device Database'!$A$131:$B$135,2,FALSE))) -> 1 | F50: =IF('Tidal Device Database'!J29="",0,(VLOOKUP('Tidal Device Database'!J29,'Tidal Device Database'!$A$137:$B$141,2,FALSE))) -> 5 | G50: =IF('Tidal Device Database'!K29="",0,(VLOOKUP('Tidal Device Database'!K29,'Tidal Device Database'!$A$143:$B$147,2,FALSE))) -> 0 | H50: =IF('Tidal Device Database'!L29="",0,(VLOOKUP('Tidal Device Database'!L29,'Tidal Device Database'!$A$69:$B$73,2,FALSE))) -> 0 | I50: =IF('Tidal Device Database'!M29="",0,(VLOOKUP('Tidal Device Database'!M29,'Tidal Device Database'!$A$75:$B$79,2,FALSE))) -> 4 | J50: =IF('Tidal Device Database'!N29="",0,(VLOOKUP('Tidal Device Database'!N29,'Tidal Device Database'!$A$81:$B$85,2,FALSE))) -> 5 | K50: =IF('Tidal Device Database'!O29="",0,(VLOOKUP('Tidal Device Database'!O29,'Tidal Device Database'!$A$87:$B$91,2,FALSE))) -> 0 | L50: =IF('Tidal Device Database'!P29="",0,(VLOOKUP('Tidal Device Database'!P29,'Tidal Device Database'!$A$93:$B$97,2,FALSE))) -> 0 | M50: =IF('Tidal Device Database'!Q29="",0,(VLOOKUP('Tidal Device Database'!Q29,'Tidal Device Database'!$A$99:$B$103,2,FALSE))) -> 3 | N50: =IF('Tidal Device Database'!R29="",0,(VLOOKUP('Tidal Device Database'!R29,'Tidal Device Database'!$A$115:$B$119,2,FALSE))) -> 4 | O50: =IF('Tidal Device Database'!S29="",0,(VLOOKUP('Tidal Device Database'!S29,'Tidal Device Database'!$A$105:$B$109,2,FALSE))) -> 4 | P50: 94
A51: ='Tidal Device Database'!A30 -> 29 | B51: 92 | C51: ='Tidal Device Database'!B30 -> Shottel Instream Turbine III | D51: ='Tidal Device Database'!C30 -> Horizontal Axis | E51: =IF('Tidal Device Database'!I30="",0,(VLOOKUP('Tidal Device Database'!I30,'Tidal Device Database'!$A$131:$B$135,2,FALSE))) -> 1 | F51: =IF('Tidal Device Database'!J30="",0,(VLOOKUP('Tidal Device Database'!J30,'Tidal Device Database'!$A$137:$B$141,2,FALSE))) -> 5 | G51: =IF('Tidal Device Database'!K30="",0,(VLOOKUP('Tidal Device Database'!K30,'Tidal Device Database'!$A$143:$B$147,2,FALSE))) -> 0 | H51: =IF('Tidal Device Database'!L30="",0,(VLOOKUP('Tidal Device Database'!L30,'Tidal Device Database'!$A$69:$B$73,2,FALSE))) -> 0 | I51: =IF('Tidal Device Database'!M30="",0,(VLOOKUP('Tidal Device Database'!M30,'Tidal Device Database'!$A$75:$B$79,2,FALSE))) -> 4 | J51: =IF('Tidal Device Database'!N30="",0,(VLOOKUP('Tidal Device Database'!N30,'Tidal Device Database'!$A$81:$B$85,2,FALSE))) -> 5 | K51: =IF('Tidal Device Database'!O30="",0,(VLOOKUP('Tidal Device Database'!O30,'Tidal Device Database'!$A$87:$B$91,2,FALSE))) -> 0 | L51: =IF('Tidal Device Database'!P30="",0,(VLOOKUP('Tidal Device Database'!P30,'Tidal Device Database'!$A$93:$B$97,2,FALSE))) -> 0 | M51: =IF('Tidal Device Database'!Q30="",0,(VLOOKUP('Tidal Device Database'!Q30,'Tidal Device Database'!$A$99:$B$103,2,FALSE))) -> 3 | N51: =IF('Tidal Device Database'!R30="",0,(VLOOKUP('Tidal Device Database'!R30,'Tidal Device Database'!$A$115:$B$119,2,FALSE))) -> 3 | O51: =IF('Tidal Device Database'!S30="",0,(VLOOKUP('Tidal Device Database'!S30,'Tidal Device Database'!$A$105:$B$109,2,FALSE))) -> 4 | P51: 92
A52: ='Tidal Device Database'!A31 -> 30 | B52: 46 | C52: ='Tidal Device Database'!B31 -> SeaPower GEM | D52: ='Tidal Device Database'!C31 -> Horizontal Axis | E52: =IF('Tidal Device Database'!I31="",0,(VLOOKUP('Tidal Device Database'!I31,'Tidal Device Database'!$A$131:$B$135,2,FALSE))) -> 0 | F52: =IF('Tidal Device Database'!J31="",0,(VLOOKUP('Tidal Device Database'!J31,'Tidal Device Database'!$A$137:$B$141,2,FALSE))) -> 0 | G52: =IF('Tidal Device Database'!K31="",0,(VLOOKUP('Tidal Device Database'!K31,'Tidal Device Database'!$A$143:$B$147,2,FALSE))) -> 5 | H52: =IF('Tidal Device Database'!L31="",0,(VLOOKUP('Tidal Device Database'!L31,'Tidal Device Database'!$A$69:$B$73,2,FALSE))) -> 0 | I52: =IF('Tidal Device Database'!M31="",0,(VLOOKUP('Tidal Device Database'!M31,'Tidal Device Database'!$A$75:$B$79,2,FALSE))) -> 4 | J52: =IF('Tidal Device Database'!N31="",0,(VLOOKUP('Tidal Device Database'!N31,'Tidal Device Database'!$A$81:$B$85,2,FALSE))) -> 5 | K52: =IF('Tidal Device Database'!O31="",0,(VLOOKUP('Tidal Device Database'!O31,'Tidal Device Database'!$A$87:$B$91,2,FALSE))) -> 0 | L52: =IF('Tidal Device Database'!P31="",0,(VLOOKUP('Tidal Device Database'!P31,'Tidal Device Database'!$A$93:$B$97,2,FALSE))) -> 0 | M52: =IF('Tidal Device Database'!Q31="",0,(VLOOKUP('Tidal Device Database'!Q31,'Tidal Device Database'!$A$99:$B$103,2,FALSE))) -> 0 | N52: =IF('Tidal Device Database'!R31="",0,(VLOOKUP('Tidal Device Database'!R31,'Tidal Device Database'!$A$115:$B$119,2,FALSE))) -> 0 | O52: =IF('Tidal Device Database'!S31="",0,(VLOOKUP('Tidal Device Database'!S31,'Tidal Device Database'!$A$105:$B$109,2,FALSE))) -> 0 | P52: 46
A53: ='Tidal Device Database'!A32 -> 31 | B53: 41 | C53: ='Tidal Device Database'!B32 -> Tydal Energy Pty (1.5) | D53: ='Tidal Device Database'!C32 -> Venturi Rotor | E53: =IF('Tidal Device Database'!I32="",0,(VLOOKUP('Tidal Device Database'!I32,'Tidal Device Database'!$A$131:$B$135,2,FALSE))) -> 1 | F53: =IF('Tidal Device Database'!J32="",0,(VLOOKUP('Tidal Device Database'!J32,'Tidal Device Database'!$A$137:$B$141,2,FALSE))) -> 4 | G53: =IF('Tidal Device Database'!K32="",0,(VLOOKUP('Tidal Device Database'!K32,'Tidal Device Database'!$A$143:$B$147,2,FALSE))) -> 5 | H53: =IF('Tidal Device Database'!L32="",0,(VLOOKUP('Tidal Device Database'!L32,'Tidal Device Database'!$A$69:$B$73,2,FALSE))) -> 0 | I53: =IF('Tidal Device Database'!M32="",0,(VLOOKUP('Tidal Device Database'!M32,'Tidal Device Database'!$A$75:$B$79,2,FALSE))) -> 0 | J53: =IF('Tidal Device Database'!N32="",0,(VLOOKUP('Tidal Device Database'!N32,'Tidal Device Database'!$A$81:$B$85,2,FALSE))) -> 4 | K53: =IF('Tidal Device Database'!O32="",0,(VLOOKUP('Tidal Device Database'!O32,'Tidal Device Database'!$A$87:$B$91,2,FALSE))) -> 0 | L53: =IF('Tidal Device Database'!P32="",0,(VLOOKUP('Tidal Device Database'!P32,'Tidal Device Database'!$A$93:$B$97,2,FALSE))) -> 0 | M53: =IF('Tidal Device Database'!Q32="",0,(VLOOKUP('Tidal Device Database'!Q32,'Tidal Device Database'!$A$99:$B$103,2,FALSE))) -> 0 | N53: =IF('Tidal Device Database'!R32="",0,(VLOOKUP('Tidal Device Database'!R32,'Tidal Device Database'!$A$115:$B$119,2,FALSE))) -> 0 | O53: =IF('Tidal Device Database'!S32="",0,(VLOOKUP('Tidal Device Database'!S32,'Tidal Device Database'!$A$105:$B$109,2,FALSE))) -> 0 | P53: 41
A54: ='Tidal Device Database'!A33 -> 32 | B54: 41 | C54: ='Tidal Device Database'!B33 -> Tydal Energy Pty (2.4) | D54: ='Tidal Device Database'!C33 -> Venturi Rotor | E54: =IF('Tidal Device Database'!I33="",0,(VLOOKUP('Tidal Device Database'!I33,'Tidal Device Database'!$A$131:$B$135,2,FALSE))) -> 1 | F54: =IF('Tidal Device Database'!J33="",0,(VLOOKUP('Tidal Device Database'!J33,'Tidal Device Database'!$A$137:$B$141,2,FALSE))) -> 4 | G54: =IF('Tidal Device Database'!K33="",0,(VLOOKUP('Tidal Device Database'!K33,'Tidal Device Database'!$A$143:$B$147,2,FALSE))) -> 5 | H54: =IF('Tidal Device Database'!L33="",0,(VLOOKUP('Tidal Device Database'!L33,'Tidal Device Database'!$A$69:$B$73,2,FALSE))) -> 0 | I54: =IF('Tidal Device Database'!M33="",0,(VLOOKUP('Tidal Device Database'!M33,'Tidal Device Database'!$A$75:$B$79,2,FALSE))) -> 0 | J54: =IF('Tidal Device Database'!N33="",0,(VLOOKUP('Tidal Device Database'!N33,'Tidal Device Database'!$A$81:$B$85,2,FALSE))) -> 4 | K54: =IF('Tidal Device Database'!O33="",0,(VLOOKUP('Tidal Device Database'!O33,'Tidal Device Database'!$A$87:$B$91,2,FALSE))) -> 0 | L54: =IF('Tidal Device Database'!P33="",0,(VLOOKUP('Tidal Device Database'!P33,'Tidal Device Database'!$A$93:$B$97,2,FALSE))) -> 0 | M54: =IF('Tidal Device Database'!Q33="",0,(VLOOKUP('Tidal Device Database'!Q33,'Tidal Device Database'!$A$99:$B$103,2,FALSE))) -> 0 | N54: =IF('Tidal Device Database'!R33="",0,(VLOOKUP('Tidal Device Database'!R33,'Tidal Device Database'!$A$115:$B$119,2,FALSE))) -> 0 | O54: =IF('Tidal Device Database'!S33="",0,(VLOOKUP('Tidal Device Database'!S33,'Tidal Device Database'!$A$105:$B$109,2,FALSE))) -> 0 | P54: 41
A55: ='Tidal Device Database'!A34 -> 33 | B55: 41 | C55: ='Tidal Device Database'!B34 -> Tydal Energy Pty (5) | D55: ='Tidal Device Database'!C34 -> Venturi Rotor | E55: =IF('Tidal Device Database'!I34="",0,(VLOOKUP('Tidal Device Database'!I34,'Tidal Device Database'!$A$131:$B$135,2,FALSE))) -> 1 | F55: =IF('Tidal Device Database'!J34="",0,(VLOOKUP('Tidal Device Database'!J34,'Tidal Device Database'!$A$137:$B$141,2,FALSE))) -> 4 | G55: =IF('Tidal Device Database'!K34="",0,(VLOOKUP('Tidal Device Database'!K34,'Tidal Device Database'!$A$143:$B$147,2,FALSE))) -> 5 | H55: =IF('Tidal Device Database'!L34="",0,(VLOOKUP('Tidal Device Database'!L34,'Tidal Device Database'!$A$69:$B$73,2,FALSE))) -> 0 | I55: =IF('Tidal Device Database'!M34="",0,(VLOOKUP('Tidal Device Database'!M34,'Tidal Device Database'!$A$75:$B$79,2,FALSE))) -> 0 | J55: =IF('Tidal Device Database'!N34="",0,(VLOOKUP('Tidal Device Database'!N34,'Tidal Device Database'!$A$81:$B$85,2,FALSE))) -> 4 | K55: =IF('Tidal Device Database'!O34="",0,(VLOOKUP('Tidal Device Database'!O34,'Tidal Device Database'!$A$87:$B$91,2,FALSE))) -> 0 | L55: =IF('Tidal Device Database'!P34="",0,(VLOOKUP('Tidal Device Database'!P34,'Tidal Device Database'!$A$93:$B$97,2,FALSE))) -> 0 | M55: =IF('Tidal Device Database'!Q34="",0,(VLOOKUP('Tidal Device Database'!Q34,'Tidal Device Database'!$A$99:$B$103,2,FALSE))) -> 0 | N55: =IF('Tidal Device Database'!R34="",0,(VLOOKUP('Tidal Device Database'!R34,'Tidal Device Database'!$A$115:$B$119,2,FALSE))) -> 0 | O55: =IF('Tidal Device Database'!S34="",0,(VLOOKUP('Tidal Device Database'!S34,'Tidal Device Database'!$A$105:$B$109,2,FALSE))) -> 0 | P55: 41
A56: ='Tidal Device Database'!A35 -> 34 | B56: 98 | C56: ='Tidal Device Database'!B35 -> EVG-005H | D56: ='Tidal Device Database'!C35 -> Vertical Axis | E56: =IF('Tidal Device Database'!I35="",0,(VLOOKUP('Tidal Device Database'!I35,'Tidal Device Database'!$A$131:$B$135,2,FALSE))) -> 1 | F56: =IF('Tidal Device Database'!J35="",0,(VLOOKUP('Tidal Device Database'!J35,'Tidal Device Database'!$A$137:$B$141,2,FALSE))) -> 2 | G56: =IF('Tidal Device Database'!K35="",0,(VLOOKUP('Tidal Device Database'!K35,'Tidal Device Database'!$A$143:$B$147,2,FALSE))) -> 5 | H56: =IF('Tidal Device Database'!L35="",0,(VLOOKUP('Tidal Device Database'!L35,'Tidal Device Database'!$A$69:$B$73,2,FALSE))) -> 5 | I56: =IF('Tidal Device Database'!M35="",0,(VLOOKUP('Tidal Device Database'!M35,'Tidal Device Database'!$A$75:$B$79,2,FALSE))) -> 4 | J56: =IF('Tidal Device Database'!N35="",0,(VLOOKUP('Tidal Device Database'!N35,'Tidal Device Database'!$A$81:$B$85,2,FALSE))) -> 5 | K56: =IF('Tidal Device Database'!O35="",0,(VLOOKUP('Tidal Device Database'!O35,'Tidal Device Database'!$A$87:$B$91,2,FALSE))) -> 0 | L56: =IF('Tidal Device Database'!P35="",0,(VLOOKUP('Tidal Device Database'!P35,'Tidal Device Database'!$A$93:$B$97,2,FALSE))) -> 0 | M56: =IF('Tidal Device Database'!Q35="",0,(VLOOKUP('Tidal Device Database'!Q35,'Tidal Device Database'!$A$99:$B$103,2,FALSE))) -> 3 | N56: =IF('Tidal Device Database'!R35="",0,(VLOOKUP('Tidal Device Database'!R35,'Tidal Device Database'!$A$115:$B$119,2,FALSE))) -> 3 | O56: =IF('Tidal Device Database'!S35="",0,(VLOOKUP('Tidal Device Database'!S35,'Tidal Device Database'!$A$105:$B$109,2,FALSE))) -> 4 | P56: 98
A57: ='Tidal Device Database'!A36 -> 35 | B57: 98 | C57: ='Tidal Device Database'!B36 -> EVG-010H | D57: ='Tidal Device Database'!C36 -> Vertical Axis | E57: =IF('Tidal Device Database'!I36="",0,(VLOOKUP('Tidal Device Database'!I36,'Tidal Device Database'!$A$131:$B$135,2,FALSE))) -> 1 | F57: =IF('Tidal Device Database'!J36="",0,(VLOOKUP('Tidal Device Database'!J36,'Tidal Device Database'!$A$137:$B$141,2,FALSE))) -> 2 | G57: =IF('Tidal Device Database'!K36="",0,(VLOOKUP('Tidal Device Database'!K36,'Tidal Device Database'!$A$143:$B$147,2,FALSE))) -> 5 | H57: =IF('Tidal Device Database'!L36="",0,(VLOOKUP('Tidal Device Database'!L36,'Tidal Device Database'!$A$69:$B$73,2,FALSE))) -> 5 | I57: =IF('Tidal Device Database'!M36="",0,(VLOOKUP('Tidal Device Database'!M36,'Tidal Device Database'!$A$75:$B$79,2,FALSE))) -> 4 | J57: =IF('Tidal Device Database'!N36="",0,(VLOOKUP('Tidal Device Database'!N36,'Tidal Device Database'!$A$81:$B$85,2,FALSE))) -> 5 | K57: =IF('Tidal Device Database'!O36="",0,(VLOOKUP('Tidal Device Database'!O36,'Tidal Device Database'!$A$87:$B$91,2,FALSE))) -> 0 | L57: =IF('Tidal Device Database'!P36="",0,(VLOOKUP('Tidal Device Database'!P36,'Tidal Device Database'!$A$93:$B$97,2,FALSE))) -> 0 | M57: =IF('Tidal Device Database'!Q36="",0,(VLOOKUP('Tidal Device Database'!Q36,'Tidal Device Database'!$A$99:$B$103,2,FALSE))) -> 3 | N57: =IF('Tidal Device Database'!R36="",0,(VLOOKUP('Tidal Device Database'!R36,'Tidal Device Database'!$A$115:$B$119,2,FALSE))) -> 3 | O57: =IF('Tidal Device Database'!S36="",0,(VLOOKUP('Tidal Device Database'!S36,'Tidal Device Database'!$A$105:$B$109,2,FALSE))) -> 4 | P57: 98
A58: ='Tidal Device Database'!A37 -> 36 | B58: 98 | C58: ='Tidal Device Database'!B37 -> EVG-025H | D58: ='Tidal Device Database'!C37 -> Vertical Axis | E58: =IF('Tidal Device Database'!I37="",0,(VLOOKUP('Tidal Device Database'!I37,'Tidal Device Database'!$A$131:$B$135,2,FALSE))) -> 1 | F58: =IF('Tidal Device Database'!J37="",0,(VLOOKUP('Tidal Device Database'!J37,'Tidal Device Database'!$A$137:$B$141,2,FALSE))) -> 2 | G58: =IF('Tidal Device Database'!K37="",0,(VLOOKUP('Tidal Device Database'!K37,'Tidal Device Database'!$A$143:$B$147,2,FALSE))) -> 5 | H58: =IF('Tidal Device Database'!L37="",0,(VLOOKUP('Tidal Device Database'!L37,'Tidal Device Database'!$A$69:$B$73,2,FALSE))) -> 5 | I58: =IF('Tidal Device Database'!M37="",0,(VLOOKUP('Tidal Device Database'!M37,'Tidal Device Database'!$A$75:$B$79,2,FALSE))) -> 4 | J58: =IF('Tidal Device Database'!N37="",0,(VLOOKUP('Tidal Device Database'!N37,'Tidal Device Database'!$A$81:$B$85,2,FALSE))) -> 5 | K58: =IF('Tidal Device Database'!O37="",0,(VLOOKUP('Tidal Device Database'!O37,'Tidal Device Database'!$A$87:$B$91,2,FALSE))) -> 0 | L58: =IF('Tidal Device Database'!P37="",0,(VLOOKUP('Tidal Device Database'!P37,'Tidal Device Database'!$A$93:$B$97,2,FALSE))) -> 0 | M58: =IF('Tidal Device Database'!Q37="",0,(VLOOKUP('Tidal Device Database'!Q37,'Tidal Device Database'!$A$99:$B$103,2,FALSE))) -> 3 | N58: =IF('Tidal Device Database'!R37="",0,(VLOOKUP('Tidal Device Database'!R37,'Tidal Device Database'!$A$115:$B$119,2,FALSE))) -> 3 | O58: =IF('Tidal Device Database'!S37="",0,(VLOOKUP('Tidal Device Database'!S37,'Tidal Device Database'!$A$105:$B$109,2,FALSE))) -> 4 | P58: 98
A59: ='Tidal Device Database'!A38 -> 37 | B59: 98 | C59: ='Tidal Device Database'!B38 -> EVG-050H | D59: ='Tidal Device Database'!C38 -> Vertical Axis | E59: =IF('Tidal Device Database'!I38="",0,(VLOOKUP('Tidal Device Database'!I38,'Tidal Device Database'!$A$131:$B$135,2,FALSE))) -> 1 | F59: =IF('Tidal Device Database'!J38="",0,(VLOOKUP('Tidal Device Database'!J38,'Tidal Device Database'!$A$137:$B$141,2,FALSE))) -> 2 | G59: =IF('Tidal Device Database'!K38="",0,(VLOOKUP('Tidal Device Database'!K38,'Tidal Device Database'!$A$143:$B$147,2,FALSE))) -> 5 | H59: =IF('Tidal Device Database'!L38="",0,(VLOOKUP('Tidal Device Database'!L38,'Tidal Device Database'!$A$69:$B$73,2,FALSE))) -> 5 | I59: =IF('Tidal Device Database'!M38="",0,(VLOOKUP('Tidal Device Database'!M38,'Tidal Device Database'!$A$75:$B$79,2,FALSE))) -> 4 | J59: =IF('Tidal Device Database'!N38="",0,(VLOOKUP('Tidal Device Database'!N38,'Tidal Device Database'!$A$81:$B$85,2,FALSE))) -> 5 | K59: =IF('Tidal Device Database'!O38="",0,(VLOOKUP('Tidal Device Database'!O38,'Tidal Device Database'!$A$87:$B$91,2,FALSE))) -> 0 | L59: =IF('Tidal Device Database'!P38="",0,(VLOOKUP('Tidal Device Database'!P38,'Tidal Device Database'!$A$93:$B$97,2,FALSE))) -> 0 | M59: =IF('Tidal Device Database'!Q38="",0,(VLOOKUP('Tidal Device Database'!Q38,'Tidal Device Database'!$A$99:$B$103,2,FALSE))) -> 3 | N59: =IF('Tidal Device Database'!R38="",0,(VLOOKUP('Tidal Device Database'!R38,'Tidal Device Database'!$A$115:$B$119,2,FALSE))) -> 3 | O59: =IF('Tidal Device Database'!S38="",0,(VLOOKUP('Tidal Device Database'!S38,'Tidal Device Database'!$A$105:$B$109,2,FALSE))) -> 4 | P59: 98
A60: ='Tidal Device Database'!A39 -> 38 | B60: 101 | C60: ='Tidal Device Database'!B39 -> ENC-025L | D60: ='Tidal Device Database'!C39 -> Vertical Axis | E60: =IF('Tidal Device Database'!I39="",0,(VLOOKUP('Tidal Device Database'!I39,'Tidal Device Database'!$A$131:$B$135,2,FALSE))) -> 1 | F60: =IF('Tidal Device Database'!J39="",0,(VLOOKUP('Tidal Device Database'!J39,'Tidal Device Database'!$A$137:$B$141,2,FALSE))) -> 3 | G60: =IF('Tidal Device Database'!K39="",0,(VLOOKUP('Tidal Device Database'!K39,'Tidal Device Database'!$A$143:$B$147,2,FALSE))) -> 5 | H60: =IF('Tidal Device Database'!L39="",0,(VLOOKUP('Tidal Device Database'!L39,'Tidal Device Database'!$A$69:$B$73,2,FALSE))) -> 5 | I60: =IF('Tidal Device Database'!M39="",0,(VLOOKUP('Tidal Device Database'!M39,'Tidal Device Database'!$A$75:$B$79,2,FALSE))) -> 4 | J60: =IF('Tidal Device Database'!N39="",0,(VLOOKUP('Tidal Device Database'!N39,'Tidal Device Database'!$A$81:$B$85,2,FALSE))) -> 5 | K60: =IF('Tidal Device Database'!O39="",0,(VLOOKUP('Tidal Device Database'!O39,'Tidal Device Database'!$A$87:$B$91,2,FALSE))) -> 0 | L60: =IF('Tidal Device Database'!P39="",0,(VLOOKUP('Tidal Device Database'!P39,'Tidal Device Database'!$A$93:$B$97,2,FALSE))) -> 0 | M60: =IF('Tidal Device Database'!Q39="",0,(VLOOKUP('Tidal Device Database'!Q39,'Tidal Device Database'!$A$99:$B$103,2,FALSE))) -> 3 | N60: =IF('Tidal Device Database'!R39="",0,(VLOOKUP('Tidal Device Database'!R39,'Tidal Device Database'!$A$115:$B$119,2,FALSE))) -> 3 | O60: =IF('Tidal Device Database'!S39="",0,(VLOOKUP('Tidal Device Database'!S39,'Tidal Device Database'!$A$105:$B$109,2,FALSE))) -> 4 | P60: 101
A61: ='Tidal Device Database'!A40 -> 39 | B61: 98 | C61: ='Tidal Device Database'!B40 -> ENC-025H | D61: ='Tidal Device Database'!C40 -> Vertical Axis | E61: =IF('Tidal Device Database'!I40="",0,(VLOOKUP('Tidal Device Database'!I40,'Tidal Device Database'!$A$131:$B$135,2,FALSE))) -> 1 | F61: =IF('Tidal Device Database'!J40="",0,(VLOOKUP('Tidal Device Database'!J40,'Tidal Device Database'!$A$137:$B$141,2,FALSE))) -> 2 | G61: =IF('Tidal Device Database'!K40="",0,(VLOOKUP('Tidal Device Database'!K40,'Tidal Device Database'!$A$143:$B$147,2,FALSE))) -> 5 | H61: =IF('Tidal Device Database'!L40="",0,(VLOOKUP('Tidal Device Database'!L40,'Tidal Device Database'!$A$69:$B$73,2,FALSE))) -> 5 | I61: =IF('Tidal Device Database'!M40="",0,(VLOOKUP('Tidal Device Database'!M40,'Tidal Device Database'!$A$75:$B$79,2,FALSE))) -> 4 | J61: =IF('Tidal Device Database'!N40="",0,(VLOOKUP('Tidal Device Database'!N40,'Tidal Device Database'!$A$81:$B$85,2,FALSE))) -> 5 | K61: =IF('Tidal Device Database'!O40="",0,(VLOOKUP('Tidal Device Database'!O40,'Tidal Device Database'!$A$87:$B$91,2,FALSE))) -> 0 | L61: =IF('Tidal Device Database'!P40="",0,(VLOOKUP('Tidal Device Database'!P40,'Tidal Device Database'!$A$93:$B$97,2,FALSE))) -> 0 | M61: =IF('Tidal Device Database'!Q40="",0,(VLOOKUP('Tidal Device Database'!Q40,'Tidal Device Database'!$A$99:$B$103,2,FALSE))) -> 3 | N61: =IF('Tidal Device Database'!R40="",0,(VLOOKUP('Tidal Device Database'!R40,'Tidal Device Database'!$A$115:$B$119,2,FALSE))) -> 3 | O61: =IF('Tidal Device Database'!S40="",0,(VLOOKUP('Tidal Device Database'!S40,'Tidal Device Database'!$A$105:$B$109,2,FALSE))) -> 4 | P61: 98
A62: ='Tidal Device Database'!A41 -> 40 | B62: 96 | C62: ='Tidal Device Database'!B41 -> ENC-125H | D62: ='Tidal Device Database'!C41 -> Vertical Axis | E62: =IF('Tidal Device Database'!I41="",0,(VLOOKUP('Tidal Device Database'!I41,'Tidal Device Database'!$A$131:$B$135,2,FALSE))) -> 2 | F62: =IF('Tidal Device Database'!J41="",0,(VLOOKUP('Tidal Device Database'!J41,'Tidal Device Database'!$A$137:$B$141,2,FALSE))) -> 2 | G62: =IF('Tidal Device Database'!K41="",0,(VLOOKUP('Tidal Device Database'!K41,'Tidal Device Database'!$A$143:$B$147,2,FALSE))) -> 5 | H62: =IF('Tidal Device Database'!L41="",0,(VLOOKUP('Tidal Device Database'!L41,'Tidal Device Database'!$A$69:$B$73,2,FALSE))) -> 5 | I62: =IF('Tidal Device Database'!M41="",0,(VLOOKUP('Tidal Device Database'!M41,'Tidal Device Database'!$A$75:$B$79,2,FALSE))) -> 4 | J62: =IF('Tidal Device Database'!N41="",0,(VLOOKUP('Tidal Device Database'!N41,'Tidal Device Database'!$A$81:$B$85,2,FALSE))) -> 5 | K62: =IF('Tidal Device Database'!O41="",0,(VLOOKUP('Tidal Device Database'!O41,'Tidal Device Database'!$A$87:$B$91,2,FALSE))) -> 0 | L62: =IF('Tidal Device Database'!P41="",0,(VLOOKUP('Tidal Device Database'!P41,'Tidal Device Database'!$A$93:$B$97,2,FALSE))) -> 0 | M62: =IF('Tidal Device Database'!Q41="",0,(VLOOKUP('Tidal Device Database'!Q41,'Tidal Device Database'!$A$99:$B$103,2,FALSE))) -> 3 | N62: =IF('Tidal Device Database'!R41="",0,(VLOOKUP('Tidal Device Database'!R41,'Tidal Device Database'!$A$115:$B$119,2,FALSE))) -> 3 | O62: =IF('Tidal Device Database'!S41="",0,(VLOOKUP('Tidal Device Database'!S41,'Tidal Device Database'!$A$105:$B$109,2,FALSE))) -> 3 | P62: 96
A63: ='Tidal Device Database'!A42 -> 41 | B63: 92 | C63: ='Tidal Device Database'!B42 -> ENC-250H | D63: ='Tidal Device Database'!C42 -> Vertical Axis | E63: =IF('Tidal Device Database'!I42="",0,(VLOOKUP('Tidal Device Database'!I42,'Tidal Device Database'!$A$131:$B$135,2,FALSE))) -> 2 | F63: =IF('Tidal Device Database'!J42="",0,(VLOOKUP('Tidal Device Database'!J42,'Tidal Device Database'!$A$137:$B$141,2,FALSE))) -> 2 | G63: =IF('Tidal Device Database'!K42="",0,(VLOOKUP('Tidal Device Database'!K42,'Tidal Device Database'!$A$143:$B$147,2,FALSE))) -> 4 | H63: =IF('Tidal Device Database'!L42="",0,(VLOOKUP('Tidal Device Database'!L42,'Tidal Device Database'!$A$69:$B$73,2,FALSE))) -> 5 | I63: =IF('Tidal Device Database'!M42="",0,(VLOOKUP('Tidal Device Database'!M42,'Tidal Device Database'!$A$75:$B$79,2,FALSE))) -> 4 | J63: =IF('Tidal Device Database'!N42="",0,(VLOOKUP('Tidal Device Database'!N42,'Tidal Device Database'!$A$81:$B$85,2,FALSE))) -> 5 | K63: =IF('Tidal Device Database'!O42="",0,(VLOOKUP('Tidal Device Database'!O42,'Tidal Device Database'!$A$87:$B$91,2,FALSE))) -> 0 | L63: =IF('Tidal Device Database'!P42="",0,(VLOOKUP('Tidal Device Database'!P42,'Tidal Device Database'!$A$93:$B$97,2,FALSE))) -> 0 | M63: =IF('Tidal Device Database'!Q42="",0,(VLOOKUP('Tidal Device Database'!Q42,'Tidal Device Database'!$A$99:$B$103,2,FALSE))) -> 3 | N63: =IF('Tidal Device Database'!R42="",0,(VLOOKUP('Tidal Device Database'!R42,'Tidal Device Database'!$A$115:$B$119,2,FALSE))) -> 2 | O63: =IF('Tidal Device Database'!S42="",0,(VLOOKUP('Tidal Device Database'!S42,'Tidal Device Database'!$A$105:$B$109,2,FALSE))) -> 3 | P63: 92
A64: ='Tidal Device Database'!A43 -> 42 | B64: 104 | C64: ='Tidal Device Database'!B43 -> EC-OG | D64: ='Tidal Device Database'!C43 -> Vertical Axis | E64: =IF('Tidal Device Database'!I43="",0,(VLOOKUP('Tidal Device Database'!I43,'Tidal Device Database'!$A$131:$B$135,2,FALSE))) -> 0 | F64: =IF('Tidal Device Database'!J43="",0,(VLOOKUP('Tidal Device Database'!J43,'Tidal Device Database'!$A$137:$B$141,2,FALSE))) -> 5 | G64: =IF('Tidal Device Database'!K43="",0,(VLOOKUP('Tidal Device Database'!K43,'Tidal Device Database'!$A$143:$B$147,2,FALSE))) -> 2 | H64: =IF('Tidal Device Database'!L43="",0,(VLOOKUP('Tidal Device Database'!L43,'Tidal Device Database'!$A$69:$B$73,2,FALSE))) -> 4 | I64: =IF('Tidal Device Database'!M43="",0,(VLOOKUP('Tidal Device Database'!M43,'Tidal Device Database'!$A$75:$B$79,2,FALSE))) -> 4 | J64: =IF('Tidal Device Database'!N43="",0,(VLOOKUP('Tidal Device Database'!N43,'Tidal Device Database'!$A$81:$B$85,2,FALSE))) -> 4 | K64: =IF('Tidal Device Database'!O43="",0,(VLOOKUP('Tidal Device Database'!O43,'Tidal Device Database'!$A$87:$B$91,2,FALSE))) -> 5 | L64: =IF('Tidal Device Database'!P43="",0,(VLOOKUP('Tidal Device Database'!P43,'Tidal Device Database'!$A$93:$B$97,2,FALSE))) -> 2 | M64: =IF('Tidal Device Database'!Q43="",0,(VLOOKUP('Tidal Device Database'!Q43,'Tidal Device Database'!$A$99:$B$103,2,FALSE))) -> 3 | N64: =IF('Tidal Device Database'!R43="",0,(VLOOKUP('Tidal Device Database'!R43,'Tidal Device Database'!$A$115:$B$119,2,FALSE))) -> 3 | O64: =IF('Tidal Device Database'!S43="",0,(VLOOKUP('Tidal Device Database'!S43,'Tidal Device Database'!$A$105:$B$109,2,FALSE))) -> 3 | P64: 104
A67: No. | B67: Score | D67: Criteria | E67: Captial Energy Cost | F67: Capital Power Cost | G67: Lifetime Energy Cost | H67: Specific Energy | I67: Specific Power | J67: Energy Density | K67: Power Density | L67: Environmental Impact | M67: Cycle Life | N67: Lifetime | O67: Scalability | P67: Power Regulation | Q67: Technical Maturity | R67: Self Discharge Rate | S67: Efficiency | T67: Score
C68: Name | D68: Type | E68: 2 | F68: 2 | G68: 3 | H68: 1 | I68: 1 | J68: 3 | K68: 3 | L68: 3 | M68: 4 | N68: 4 | O68: 3 | P68: 5 | Q68: 4 | R68: 4 | S68: 3
A69: 1 | B69: =T69 -> 171 | C69: Pumped Hydro | D69: Mechanical Storage | E69: 5 | F69: 3 | G69: 5 | H69: 1 | I69: 1 | J69: 1 | K69: 1 | L69: 2 | M69: 5 | N69: 5 | O69: 3 | P69: 5 | Q69: 5 | R69: 5 | S69: 4 | T69: =SUMPRODUCT($E$68:$S$68,E69:S69) -> 171
A70: 2 | B70: 167 | C70: Compressed Air | D70: Mechanical Storage | E70: 5 | F70: 4 | G70: 5 | H70: 1 | I70: 1 | J70: 1 | K70: 1 | L70: 4 | M70: 5 | N70: 5 | O70: 4 | P70: 5 | Q70: 2 | R70: 5 | S70: 3 | T70: 167
A71: 3 | B71: 135 | C71: Lead Acid Battery | D71: Battery Storage | E71: 4 | F71: 5 | G71: 4 | H71: 1 | I71: 3 | J71: 2 | K71: 4 | L71: 1 | M71: 2 | N71: 3 | O71: 5 | P71: 1 | Q71: 5 | R71: 2 | S71: 4 | T71: 135
A72: 4 | B72: 131 | C72: Nickel Iron | D72: Battery Storage | E72: 3 | F72: 1 | G72: 4 | H72: 2 | I72: 2 | J72: 2 | K72: 2 | L72: 5 | M72: 3 | N72: 5 | O72: 5 | P72: 1 | Q72: 3 | R72: 1 | S72: 4 | T72: 131
A73: 5 | B73: 138 | C73: Nickel Zinc | D73: Battery Storage | E73: 4 | F73: 5 | G73: 4 | H73: 2 | I73: 4 | J73: 3 | K73: 5 | L73: 5 | M73: 1 | N73: 2 | O73: 5 | P73: 1 | Q73: 3 | R73: 1 | S73: 5 | T73: 138
A74: 6 | B74: 127 | C74: Nickel Cadmium | D74: Battery Storage | E74: 2 | F74: 4 | G74: 2 | H74: 2 | I74: 4 | J74: 2 | K74: 3 | L74: 1 | M74: 3 | N74: 4 | O74: 5 | P74: 1 | Q74: 5 | R74: 2 | S74: 3 | T74: 127
A75: 7 | B75: 141 | C75: Lithium Ion | D75: Battery Storage | E75: 2 | F75: 3 | G75: 2 | H75: 3 | I75: 5 | J75: 3 | K75: 5 | L75: 2 | M75: 2 | N75: 4 | O75: 5 | P75: 1 | Q75: 4 | R75: 3 | S75: 5 | T75: 141
A76: 8 | B76: 133 | C76: Zinc Manganese | D76: Battery Storage | E76: 4 | F76: 2 | G76: 2 | H76: 3 | I76: 1 | J76: 4 | K76: 2 | L76: 3 | M76: 1 | N76: 2 | O76: 5 | P76: 1 | Q76: 5 | R76: 5 | S76: 4 | T76: 133
A77: 9 | B77: 128 | C77: Zinc Silver | D77: Battery Storage | E77: 1 | F77: 1 | G77: 1 | H77: 3 | I77: 2 | J77: 4 | K77: 4 | L77: 5 | M77: 1 | N77: 2 | O77: 5 | P77: 1 | Q77: 5 | R77: 4 | S77: 3 | T77: 128
A78: 10 | B78: 147 | C78: Zinc Air | D78: Battery Storage | E78: 4 | F78: 3 | G78: 4 | H78: 4 | I78: 3 | J78: 5 | K78: 3 | L78: 5 | M78: 1 | N78: 3 | O78: 5 | P78: 1 | Q78: 4 | R78: 5 | S78: 1 | T78: 147
A79: 11 | B79: 137 | C79: Vanadium Redox | D79: Flow Battery | E79: 4 | F79: 3 | G79: 3 | H79: 1 | I79: 3 | J79: 1 | K79: 2 | L79: 4 | M79: 4 | N79: 4 | O79: 4 | P79: 1 | Q79: 2 | R79: 5 | S79: 4 | T79: 137
A80: 12 | B80: 112 | C80: Solid Oxide | D80: Fuel Cell | E80: 5 | F80: 2 | G80: 3 | H80: 5 | I80: 2 | J80: 3 | K80: 1 | L80: 4 | M80: 0 | N80: 1 | O80: 5 | P80: 1 | Q80: 2 | R80: 5 | S80: 2 | T80: 112
A84: No. | B84: Score | D84: Criteria | E84: ='Wave Device Database'!H2 -> Distance from Shore | F84: ='Wave Device Database'!I2 -> Visual Impact | G84: ='Wave Device Database'!J2 -> Access Complexity | H84: ='Wave Device Database'!K2 -> Capital Cost | I84: ='Wave Device Database'!L2 -> Technology Readiness Level | J84: ='Wave Device Database'!M2 -> Lifespan | K84: ='Wave Device Database'!N2 -> Efficiency | L84: ='Wave Device Database'!O2 -> Scale (kW) | M84: ='Wave Device Database'!P2 -> Shore Connection | N84: ='Wave Device Database'!Q2 -> Planned Inspection/Maintenance Period | O84: ='Wave Device Database'!R2 -> Primary Attachment | P84: ='Wave Device Database'!S2 -> Installation Complexity | Q84: ='Wave Device Database'!T2 -> Maintenanc Complexity | R84: Score
C85: Name | D85: Type | E85: 1 | F85: 2 | G85: 4 | H85: 3 | I85: 5 | J85: 3 | K85: 3 | L85: 3 | M85: 4 | N85: 3 | O85: 4 | P85: 3 | Q85: 3
A86: 1 | B86: =R86 -> 169 | C86: ='Wave Device Database'!B3 -> Yam Pro Energy | D86: ='Wave Device Database'!C3 -> Shore based | E86: =IF('Wave Device Database'!H3="",0,VLOOKUP('Wave Device Database'!H3,'Wave Device Database'!$B$24:$C$28,2,FALSE)) -> 5 | F86: =IF('Wave Device Database'!I3="",0,VLOOKUP('Wave Device Database'!I3,'Wave Device Database'!$B$30:$C$34,2,FALSE)) -> 2 | G86: =IF('Wave Device Database'!J3="",0,VLOOKUP('Wave Device Database'!J3,'Wave Device Database'!$B$36:$C$40,2,FALSE)) -> 5 | H86: =IF('Wave Device Database'!K3="",0,VLOOKUP('Wave Device Database'!K3,'Wave Device Database'!$B$42:$C$46,2,FALSE)) -> 5 | I86: =IF('Wave Device Database'!L3="",0,VLOOKUP('Wave Device Database'!L3,'Wave Device Database'!$B$48:$C$52,2,FALSE)) -> 5 | J86: =IF('Wave Device Database'!M3="",0,VLOOKUP('Wave Device Database'!M3,'Wave Device Database'!$B$54:$C$58,2,FALSE)) -> 5 | K86: =IF('Wave Device Database'!N3="",0,VLOOKUP('Wave Device Database'!N3,'Wave Device Database'!$B$60:$C$64,2,FALSE)) -> 5 | L86: =IF('Wave Device Database'!O3="",0,VLOOKUP('Wave Device Database'!O3,'Wave Device Database'!$B$66:$C$70,2,FALSE)) -> 1 | M86: =IF('Wave Device Database'!P3="",0,VLOOKUP('Wave Device Database'!P3,'Wave Device Database'!$B$72:$C$76,2,FALSE)) -> 5 | N86: =IF('Wave Device Database'!Q3="",0,VLOOKUP('Wave Device Database'!Q3,'Wave Device Database'!$B$78:$C$82,2,FALSE)) -> 1 | O86: =IF('Wave Device Database'!R3="",0,VLOOKUP('Wave Device Database'!R3,'Wave Device Database'!$B$84:$C$88,2,FALSE)) -> 5 | P86: =IF('Wave Device Database'!S3="",0,VLOOKUP('Wave Device Database'!S3,'Wave Device Database'!$B$90:$C$94,2,FALSE)) -> 5 | Q86: =IF('Wave Device Database'!T3="",0,VLOOKUP('Wave Device Database'!T3,'Wave Device Database'!$B$96:$C$100,2,FALSE)) -> 3 | R86: =SUMPRODUCT($E$85:$Q$85,E86:Q86) -> 169
A87: 2 | B87: =R87 -> 130 | C87: ='Wave Device Database'!B4 -> Wave El Buoy | D87: ='Wave Device Database'!C4 -> Point Absorber | E87: =IF('Wave Device Database'!H4="",0,VLOOKUP('Wave Device Database'!H4,'Wave Device Database'!$B$24:$C$28,2,FALSE)) -> 1 | F87: =IF('Wave Device Database'!I4="",0,VLOOKUP('Wave Device Database'!I4,'Wave Device Database'!$B$30:$C$34,2,FALSE)) -> 3 | G87: =IF('Wave Device Database'!J4="",0,VLOOKUP('Wave Device Database'!J4,'Wave Device Database'!$B$36:$C$40,2,FALSE)) -> 3 | H87: =IF('Wave Device Database'!K4="",0,VLOOKUP('Wave Device Database'!K4,'Wave Device Database'!$B$42:$C$46,2,FALSE)) -> 3 | I87: =IF('Wave Device Database'!L4="",0,VLOOKUP('Wave Device Database'!L4,'Wave Device Database'!$B$48:$C$52,2,FALSE)) -> 5 | J87: =IF('Wave Device Database'!M4="",0,VLOOKUP('Wave Device Database'!M4,'Wave Device Database'!$B$54:$C$58,2,FALSE)) -> 5 | K87: =IF('Wave Device Database'!N4="",0,VLOOKUP('Wave Device Database'!N4,'Wave Device Database'!$B$60:$C$64,2,FALSE)) -> 3 | L87: =IF('Wave Device Database'!O4="",0,VLOOKUP('Wave Device Database'!O4,'Wave Device Database'!$B$66:$C$70,2,FALSE)) -> 3 | M87: =IF('Wave Device Database'!P4="",0,VLOOKUP('Wave Device Database'!P4,'Wave Device Database'!$B$72:$C$76,2,FALSE)) -> 1 | N87: =IF('Wave Device Database'!Q4="",0,VLOOKUP('Wave Device Database'!Q4,'Wave Device Database'!$B$78:$C$82,2,FALSE)) -> 3 | O87: =IF('Wave Device Database'!R4="",0,VLOOKUP('Wave Device Database'!R4,'Wave Device Database'!$B$84:$C$88,2,FALSE)) -> 4 | P87: =IF('Wave Device Database'!S4="",0,VLOOKUP('Wave Device Database'!S4,'Wave Device Database'!$B$90:$C$94,2,FALSE)) -> 2 | Q87: =IF('Wave Device Database'!T4="",0,VLOOKUP('Wave Device Database'!T4,'Wave Device Database'!$B$96:$C$100,2,FALSE)) -> 3 | R87: =SUMPRODUCT($E$85:$Q$85,E87:Q87) -> 130
A88: 3 | B88: =R88 -> 134 | C88: ='Wave Device Database'!B5 -> Rotary Wave | D88: ='Wave Device Database'!C5 -> Attenuator | E88: =IF('Wave Device Database'!H5="",0,VLOOKUP('Wave Device Database'!H5,'Wave Device Database'!$B$24:$C$28,2,FALSE)) -> 2 | F88: =IF('Wave Device Database'!I5="",0,VLOOKUP('Wave Device Database'!I5,'Wave Device Database'!$B$30:$C$34,2,FALSE)) -> 3 | G88: =IF('Wave Device Database'!J5="",0,VLOOKUP('Wave Device Database'!J5,'Wave Device Database'!$B$36:$C$40,2,FALSE)) -> 3 | H88: =IF('Wave Device Database'!K5="",0,VLOOKUP('Wave Device Database'!K5,'Wave Device Database'!$B$42:$C$46,2,FALSE)) -> 2 | I88: =IF('Wave Device Database'!L5="",0,VLOOKUP('Wave Device Database'!L5,'Wave Device Database'!$B$48:$C$52,2,FALSE)) -> 4 | J88: =IF('Wave Device Database'!M5="",0,VLOOKUP('Wave Device Database'!M5,'Wave Device Database'!$B$54:$C$58,2,FALSE)) -> 5 | K88: =IF('Wave Device Database'!N5="",0,VLOOKUP('Wave Device Database'!N5,'Wave Device Database'!$B$60:$C$64,2,FALSE)) -> 5 | L88: =IF('Wave Device Database'!O5="",0,VLOOKUP('Wave Device Database'!O5,'Wave Device Database'!$B$66:$C$70,2,FALSE)) -> 2 | M88: =IF('Wave Device Database'!P5="",0,VLOOKUP('Wave Device Database'!P5,'Wave Device Database'!$B$72:$C$76,2,FALSE)) -> 3 | N88: =IF('Wave Device Database'!Q5="",0,VLOOKUP('Wave Device Database'!Q5,'Wave Device Database'!$B$78:$C$82,2,FALSE)) -> 1 | O88: =IF('Wave Device Database'!R5="",0,VLOOKUP('Wave Device Database'!R5,'Wave Device Database'!$B$84:$C$88,2,FALSE)) -> 4 | P88: =IF('Wave Device Database'!S5="",0,VLOOKUP('Wave Device Database'!S5,'Wave Device Database'!$B$90:$C$94,2,FALSE)) -> 4 | Q88: =IF('Wave Device Database'!T5="",0,VLOOKUP('Wave Device Database'!T5,'Wave Device Database'!$B$96:$C$100,2,FALSE)) -> 3 | R88: 134
A89: 4 | B89: =R89 -> 105 | C89: ='Wave Device Database'!B6 -> Electric Buoy | D89: ='Wave Device Database'!C6 -> Point Absorber | E89: =IF('Wave Device Database'!H6="",0,VLOOKUP('Wave Device Database'!H6,'Wave Device Database'!$B$24:$C$28,2,FALSE)) -> 1 | F89: =IF('Wave Device Database'!I6="",0,VLOOKUP('Wave Device Database'!I6,'Wave Device Database'!$B$30:$C$34,2,FALSE)) -> 2 | G89: =IF('Wave Device Database'!J6="",0,VLOOKUP('Wave Device Database'!J6,'Wave Device Database'!$B$36:$C$40,2,FALSE)) -> 3 | H89: =IF('Wave Device Database'!K6="",0,VLOOKUP('Wave Device Database'!K6,'Wave Device Database'!$B$42:$C$46,2,FALSE)) -> 4 | I89: =IF('Wave Device Database'!L6="",0,VLOOKUP('Wave Device Database'!L6,'Wave Device Database'!$B$48:$C$52,2,FALSE)) -> 1 | J89: =IF('Wave Device Database'!M6="",0,VLOOKUP('Wave Device Database'!M6,'Wave Device Database'!$B$54:$C$58,2,FALSE)) -> 5 | K89: =IF('Wave Device Database'!N6="",0,VLOOKUP('Wave Device Database'!N6,'Wave Device Database'!$B$60:$C$64,2,FALSE)) -> 3 | L89: =IF('Wave Device Database'!O6="",0,VLOOKUP('Wave Device Database'!O6,'Wave Device Database'!$B$66:$C$70,2,FALSE)) -> 5 | M89: =IF('Wave Device Database'!P6="",0,VLOOKUP('Wave Device Database'!P6,'Wave Device Database'!$B$72:$C$76,2,FALSE)) -> 1 | N89: =IF('Wave Device Database'!Q6="",0,VLOOKUP('Wave Device Database'!Q6,'Wave Device Database'!$B$78:$C$82,2,FALSE)) -> 1 | O89: =IF('Wave Device Database'!R6="",0,VLOOKUP('Wave Device Database'!R6,'Wave Device Database'!$B$84:$C$88,2,FALSE)) -> 4 | P89: =IF('Wave Device Database'!S6="",0,VLOOKUP('Wave Device Database'!S6,'Wave Device Database'!$B$90:$C$94,2,FALSE)) -> 2 | Q89: =IF('Wave Device Database'!T6="",0,VLOOKUP('Wave Device Database'!T6,'Wave Device Database'!$B$96:$C$100,2,FALSE)) -> 1 | R89: 105
A90: 5 | B90: =U90 -> 0 | C90: ='Wave Device Database'!B7 -> Wave Dragon | D90: ='Wave Device Database'!C7 -> Overtopping/Terminator Device | E90: =IF('Wave Device Database'!H7="",0,VLOOKUP('Wave Device Database'!H7,'Wave Device Database'!$B$24:$C$28,2,FALSE)) -> 3 | F90: =IF('Wave Device Database'!I7="",0,VLOOKUP('Wave Device Database'!I7,'Wave Device Database'!$B$30:$C$34,2,FALSE)) -> 3 | G90: =IF('Wave Device Database'!J7="",0,VLOOKUP('Wave Device Database'!J7,'Wave Device Database'!$B$36:$C$40,2,FALSE)) -> 3 | H90: =IF('Wave Device Database'!K7="",0,VLOOKUP('Wave Device Database'!K7,'Wave Device Database'!$B$42:$C$46,2,FALSE)) -> 0 | I90: =IF('Wave Device Database'!L7="",0,VLOOKUP('Wave Device Database'!L7,'Wave Device Database'!$B$48:$C$52,2,FALSE)) -> 5 | J90: =IF('Wave Device Database'!M7="",0,VLOOKUP('Wave Device Database'!M7,'Wave Device Database'!$B$54:$C$58,2,FALSE)) -> 4 | K90: =IF('Wave Device Database'!N7="",0,VLOOKUP('Wave Device Database'!N7,'Wave Device Database'!$B$60:$C$64,2,FALSE)) -> 5 | L90: =IF('Wave Device Database'!O7="",0,VLOOKUP('Wave Device Database'!O7,'Wave Device Database'!$B$66:$C$70,2,FALSE)) -> 4 | M90: =IF('Wave Device Database'!P7="",0,VLOOKUP('Wave Device Database'!P7,'Wave Device Database'!$B$72:$C$76,2,FALSE)) -> 2 | N90: =IF('Wave Device Database'!Q7="",0,VLOOKUP('Wave Device Database'!Q7,'Wave Device Database'!$B$78:$C$82,2,FALSE)) -> 0 | O90: =IF('Wave Device Database'!R7="",0,VLOOKUP('Wave Device Database'!R7,'Wave Device Database'!$B$84:$C$88,2,FALSE)) -> 4 | P90: =IF('Wave Device Database'!S7="",0,VLOOKUP('Wave Device Database'!S7,'Wave Device Database'!$B$90:$C$94,2,FALSE)) -> 4 | Q90: =IF('Wave Device Database'!T7="",0,VLOOKUP('Wave Device Database'!T7,'Wave Device Database'!$B$96:$C$100,2,FALSE)) -> 0 | R90: 121
A91: 6 | B91: 0 | C91: ='Wave Device Database'!B8 -> Limpet | D91: ='Wave Device Database'!C8 -> Oscillating Water Column | E91: =IF('Wave Device Database'!H8="",0,VLOOKUP('Wave Device Database'!H8,'Wave Device Database'!$B$24:$C$28,2,FALSE)) -> 5 | F91: =IF('Wave Device Database'!I8="",0,VLOOKUP('Wave Device Database'!I8,'Wave Device Database'!$B$30:$C$34,2,FALSE)) -> 1 | G91: =IF('Wave Device Database'!J8="",0,VLOOKUP('Wave Device Database'!J8,'Wave Device Database'!$B$36:$C$40,2,FALSE)) -> 5 | H91: =IF('Wave Device Database'!K8="",0,VLOOKUP('Wave Device Database'!K8,'Wave Device Database'!$B$42:$C$46,2,FALSE)) -> 0 | I91: =IF('Wave Device Database'!L8="",0,VLOOKUP('Wave Device Database'!L8,'Wave Device Database'!$B$48:$C$52,2,FALSE)) -> 5 | J91: =IF('Wave Device Database'!M8="",0,VLOOKUP('Wave Device Database'!M8,'Wave Device Database'!$B$54:$C$58,2,FALSE)) -> 0 | K91: =IF('Wave Device Database'!N8="",0,VLOOKUP('Wave Device Database'!N8,'Wave Device Database'!$B$60:$C$64,2,FALSE)) -> 1 | L91: =IF('Wave Device Database'!O8="",0,VLOOKUP('Wave Device Database'!O8,'Wave Device Database'!$B$66:$C$70,2,FALSE)) -> 2 | M91: =IF('Wave Device Database'!P8="",0,VLOOKUP('Wave Device Database'!P8,'Wave Device Database'!$B$72:$C$76,2,FALSE)) -> 5 | N91: =IF('Wave Device Database'!Q8="",0,VLOOKUP('Wave Device Database'!Q8,'Wave Device Database'!$B$78:$C$82,2,FALSE)) -> 0 | O91: =IF('Wave Device Database'!R8="",0,VLOOKUP('Wave Device Database'!R8,'Wave Device Database'!$B$84:$C$88,2,FALSE)) -> 5 | P91: =IF('Wave Device Database'!S8="",0,VLOOKUP('Wave Device Database'!S8,'Wave Device Database'!$B$90:$C$94,2,FALSE)) -> 5 | Q91: =IF('Wave Device Database'!T8="",0,VLOOKUP('Wave Device Database'!T8,'Wave Device Database'!$B$96:$C$100,2,FALSE)) -> 0 | R91: 116

Sheet Tidal Stream 1
A1: Tidal Stream Resource
A3: =Input!A45 -> Site Name | B3: =IF(Input!B45<>"",Input!B45,"-") -> Portnahaven | C3: =Input!C45 -> 0 | I3: Plots:
A4: =Input!A46 -> Peak Flow (Springs) | B4: =IF((AND(Input!B46<>"",Input!B46<>"[Enter Value]")),Input!B46,"0") -> 3 | C4: =Input!C46 -> m/s
A5: =Input!A47 -> Peak Flow (Neaps) | B5: =IF((AND(Input!B47<>"",Input!B47<>"[Enter Value]")),Input!B47,"0") -> 2.5 | C5: =Input!C47 -> m/s
A6: =Input!A48 -> Lunar Cycle Period | B6: =IF((AND(Input!B48<>"",Input!B48<>"[Enter Value]")),Input!B48,"0") -> 28.74 | C6: =Input!C48 -> days
A7: =Input!A49 -> Tidal Period | B7: =IF((AND(Input!B49<>"",Input!B49<>"[Enter Value]")),Input!B49,"0") -> 12.4 | C7: =Input!C49 -> hours
A8: =Input!A50 -> Proximity to Grid Connection | B8: =IF(Input!B50<>"",Input!B50,"-") -> 2-3 km
A9: =Input!A51 -> Average Water Depth | B9: =IF(Input!B51<>"",Input!B51,"-") -> > 20m
A10: =Input!A52 -> Seabed Topography | B10: =IF(Input!B52<>"",Input!B52,"-") -> Moderate (Rocky, Gentle Gradient)
A11: =Input!A53 -> Accessibility | B11: =IF(Input!B53<>"",Input!B53,"-") -> Fully Accessible (Exisiting Infrastructure for Transport)
A13: Time Step | B13: 0.25 | C13: hours
A14: Period | B14: =B6/2 -> 14.37 | C14: days
B15: =B14*24 -> 344.88 | C15: hours
A16: Number of Steps | B16: =B15/B13*2 -> 2759.04 | C16: -
A18: No. | B18: Time | E18: Amplitude | F18: Current | G18: Power | H18: Energy
B19: Hours | C19: Day | D19: Time | E19: m/s | F19: m/s | G19: kW/(m^2) | H19: kWh/(m^2)
A20: 0 | B20: =A20*$B$13 -> 0 | C20: =ROUNDDOWN(A20*$B$1/24,0) -> 0 | D20: =MOD(B20,24)/24 -> 0 | E20: =IF(A20<>"",($B$4+$B$5)/2+($B$5-$B$4)/2*COS(2*PI()/$B$15*B20),"") -> 2.5 | F20: =IF(A20<>"",E20*COS(2*PI()/$B$7*B20),"") -> 2.5 | G20: =ABS(0.5*1.025*1*(F20^3)) -> 8.0078125 | H20: =G20*$B$13 -> 2.001953125
A21: =IF(IF(A20<>"",A20+1<=$B$16,0),A20+1,"") -> 1 | B21: =IF(A21<>"",A21*$B$13,"") -> 0.25 | C21: =IF(A21<>"",ROUNDDOWN(A21*$B$13/24,0),"") -> 0 | D21: =IF(A21<>"",MOD(B21,24)/24,"") -> 0.01041666667 | E21: =IF(A21<>"",($B$4+$B$5)/2+($B$5-$B$4)/2*COS(2*PI()/$B$15*B21),"") -> 2.500002593 | F21: =IF(A21<>"",E21*COS(2*PI()/$B$7*B21),"") -> 2.479970515 | G21: =ABS(0.5*1.025*1*(F21^3)) -> 7.816879585 | H21: =G21*$B$13 -> 1.954219896
A22: =IF(IF(A21<>"",A21+1<=$B$16,0),A21+1,"") -> 2 | B22: =IF(A22<>"",A22*$B$13,"") -> 0.5 | C22: =IF(A22<>"",ROUNDDOWN(A22*$B$13/24,0),"") -> 0 | D22: =IF(A22<>"",MOD(B22,24)/24,"") -> 0.02083333333 | E22: =IF(A22<>"",($B$4+$B$5)/2+($B$5-$B$4)/2*COS(2*PI()/$B$15*B22),"") -> 2.500010372 | F22: =IF(A22<>"",E22*COS(2*PI()/$B$7*B22),"") -> 2.420202838 | G22: =ABS(0.5*1.025*1*(F22^3)) -> 7.265226652 | H22: 1.816306663
A23: 3 | B23: 0.75 | C23: 0 | D23: 0.03125 | E23: 2.500023337 | F23: 2.321654171 | G23: 6.413372357 | H23: 1.603343089
A24: 4 | B24: 1 | C24: 0 | D24: 0.04166666667 | E24: 2.500041488 | F24: 2.185902815 | G24: 5.35286657 | H24: 1.338216642
A25: 5 | B25: 1.25 | C25: 0 | D25: 0.05208333333 | E25: 2.500064824 | F25: 2.015122909 | G25: 4.19371092 | H25: 1.04842773
A26: 6 | B26: 1.5 | C26: 0 | D26: 0.0625 | E26: 2.500093345 | F26: 1.812049624 | G26: 3.049327919 | H26: 0.7623319798
A27: 7 | B27: 1.75 | C27: 0 | D27: 0.07291666667 | E27: 2.50012705 | F27: 1.579935384 | G27: 2.0212119 | H27: 0.5053029751
A28: 8 | B28: 2 | C28: 0 | D28: 0.08333333333 | E28: 2.500165938 | F28: 1.322497801 | G28: 1.185437729 | H28: 0.2963594323
A29: 9 | B29: 2.25 | C29: 0 | D29: 0.09375 | E29: 2.500210009 | F29: 1.043860161 | G29: 0.5829359499 | H29: 0.1457339875
A30: 10 | B30: 2.5 | C30: 0 | D30: 0.1041666667 | E30: 2.500259262 | F30: 0.7484854209 | G30: 0.2149037066 | H30: 0.05372592666
A31: 11 | B31: 2.75 | C31: 0 | D31: 0.1145833333 | E31: 2.500313695 | F31: 0.4411047577 | G31: 0.04398646854 | H31: 0.01099661713
A32: 12 | B32: 3 | C32: 0 | D32: 0.125 | E32: 2.500373309 | F32: 0.1266418299 | G32: 0.00104093929 | H32: 0.0002602348224
A33: 13 | B33: 3.25 | C33: 0 | D33: 0.1354166667 | E33: 2.5004381 | F33: -0.1898660519 | G33: 0.003507808117 | H33: 0.0008769520293
A34: 14 | B34: 3.5 | C34: 0 | D34: 0.1458333333 | E34: 2.500508069 | F34: -0.5033485738 | G34: 0.06535824723 | H34: 0.01633956181
A35: 15 | B35: 3.75 | C35: 0 | D35: 0.15625 | E35: 2.500583213 | F35: -0.8087836012 | G35: 0.2711383074 | H35: 0.06778457685
A36: 16 | B36: 4 | C36: 0 | D36: 0.1666666667 | E36: 2.500663531 | F36: -1.101277594 | G36: 0.684517066 | H36: 0.1711292665
A37: 17 | B37: 4.25 | C37: 0 | D37: 0.1770833333 | E37: 2.500749022 | F37: -1.376143969 | G37: 1.335627904 | H37: 0.3339069759
A38: 18 | B38: 4.5 | C38: 0 | D38: 0.1875 | E38: 2.500839683 | F38: -1.628978153 | G38: 2.215336227 | H38: 0.5538340567
A39: 19 | B39: 4.75 | C39: 0 | D39: 0.1979166667 | E39: 2.500935513 | F39: -1.855728127 | G39: 3.275193179 | H39: 0.8187982947
A40: 20 | B40: 5 | C40: 0 | D40: 0.2083333333 | E40: 2.50103651 | F40: -2.052759332 | G40: 4.433104566 | H40: 1.108276142
A41: 21 | B41: 5.25 | C41: 0 | D41: 0.21875 | E41: 2.501142671 | F41: -2.2169129 | G41: 5.583927373 | H41: 1.395981843
A42: 22 | B42: 5.5 | C42: 0 | D42: 0.2291666667 | E42: 2.501253995 | F42: -2.345556267 | G42: 6.613501194 | H42: 1.653375298
A43: 23 | B43: 5.75 | C43: 0 | D43: 0.2395833333 | E43: 2.501370478 | F43: -2.436625375 | G43: 7.414129335 | H43: 1.853532334
A44: 24 | B44: 6 | C44: 0 | D44: 0.25 | E44: 2.50149212 | F44: -2.488657773 | G44: 7.899314522 | H44: 1.97482863
A45: 25 | B45: 6.25 | C45: 0 | D45: 0.2604166667 | E45: 2.501618917 | F45: -2.500816085 | G45: 8.01565713 | H45: 2.003914283
A46: 26 | B46: 6.5 | C46: 0 | D46: 0.2708333333 | E46: 2.501750866 | F46: -2.472901486 | G46: 7.7502251 | H46: 1.937556275
A47: 27 | B47: 6.75 | C47: 0 | D47: 0.28125 | E47: 2.501887965 | F47: -2.405356946 | G47: 7.132347084 | H47: 1.783086771
A48: 28 | B48: 7 | C48: 0 | D48: 0.2916666667 | E48: 2.502030211 | F48: -2.299260207 | G48: 6.229572422 | H48: 1.557393106
A49: 29 | B49: 7.25 | C49: 0 | D49: 0.3020833333 | E49: 2.502177601 | F49: -2.156306597 | G49: 5.138370369 | H49: 1.284592592
A50: 30 | B50: 7.5 | C50: 0 | D50: 0.3125 | E50: 2.502330132 | F50: -1.978781954 | G50: 3.970888503 | H50: 0.9927221257
A51: 31 | B51: 7.75 | C51: 0 | D51: 0.3229166667 | E51: 2.5024878 | F51: -1.769526093 | G51: 2.839649795 | H51: 0.7099124487
A52: 32 | B52: 8 | C52: 0 | D52: 0.3333333333 | E52: 2.502650604 | F52: -1.531887407 | G52: 1.842359625 | H52: 0.4605899062
A53: 33 | B53: 8.25 | C53: 0 | D53: 0.34375 | E53: 2.502818538 | F53: -1.269669308 | G53: 1.04897644 | H53: 0.2622441099
A54: 34 | B54: 8.5 | C54: 0 | D54: 0.3541666667 | E54: 2.5029916 | F54: -0.9870693927 | G54: 0.4928751542 | H54: 0.1232187886
A55: 35 | B55: 8.75 | C55: 0 | D55: 0.3645833333 | E55: 2.503169786 | F55: -0.6886122777 | G55: 0.1673470862 | H55: 0.04183677155
A56: 36 | B56: 9 | C56: 0 | D56: 0.375 | E56: 2.503353092 | F56: -0.3790771951 | G56: 0.0279175206 | H56: 0.006979380149
A57: 37 | B57: 9.25 | C57: 0 | D57: 0.3854166667 | E57: 2.503541516 | F57: -0.06342150198 | G57: 0.0001307384822 | H57: 3.268462055e-05
A58: 38 | B58: 9.5 | C58: 0 | D58: 0.3958333333 | E58: 2.503735051 | F58: 0.2532986738 | G58: 0.008328995314 | H58: 0.002082248828
A59: 39 | B59: 9.75 | C59: 0 | D59: 0.40625 | E59: 2.503933696 | F59: 0.5660093807 | G59: 0.09293188724 | H59: 0.02323297181
A60: 40 | B60: 10 | C60: 0 | D60: 0.4166666667 | E60: 2.504137444 | F60: 0.8697000883 | G60: 0.3371338904 | H60: 0.0842834726
A61: 41 | B61: 10.25 | C61: 0 | D61: 0.4270833333 | E61: 2.504346293 | F61: 1.15950393 | G61: 0.7989333386 | H61: 0.1997333346
A62: 42 | B62: 10.5 | C62: 0 | D62: 0.4375 | E62: 2.504560239 | F62: 1.430775657 | G62: 1.501096103 | H62: 0.3752740257
A63: 43 | B63: 10.75 | C63: 0 | D63: 0.4479166667 | E63: 2.504779275 | F63: 1.679166064 | G63: 2.426469379 | H63: 0.6066173447
A64: 44 | B64: 11 | C64: 0 | D64: 0.4583333333 | E64: 2.505003399 | F64: 1.900691676 | G64: 3.51907796 | H64: 0.8797694901
A65: 45 | B65: 11.25 | C65: 0 | D65: 0.46875 | E65: 2.505232605 | F65: 2.091798609 | G65: 4.690870883 | H65: 1.172717721
A66: 46 | B66: 11.5 | C66: 0 | D66: 0.4791666667 | E66: 2.505466888 | F66: 2.249419546 | G66: 5.83317846 | H66: 1.458294615
A67: 47 | B67: 11.75 | C67: 0 | D67: 0.4895833333 | E67: 2.505706245 | F67: 2.371022953 | G67: 6.831265181 | H67: 1.707816295
A68: 48 | B68: 12 | C68: 0 | D68: 0.5 | E68: 2.505950669 | F68: 2.454653711 | G68: 7.579919066 | H68: 1.894979767
A69: 49 | B69: 12.25 | C69: 0 | D69: 0.5104166667 | E69: 2.506200155 | F69: 2.498964538 | G69: 7.997866482 | H69: 1.999466621
A70: 50 | B70: 12.5 | C70: 0 | D70: 0.5208333333 | E70: 2.506454699 | F70: 2.503237683 | G70: 8.038964917 | H70: 2.009741229
A71: 51 | B71: 12.75 | C71: 0 | D71: 0.53125 | E71: 2.506714296 | F71: 2.467396542 | G71: 7.698581732 | H71: 1.924645433
A72: 52 | B72: 13 | C72: 0 | D72: 0.5416666667 | E72: 2.506978939 | F72: 2.392007021 | G72: 7.014249659 | H72: 1.753562415
A73: 53 | B73: 13.25 | C73: 0 | D73: 0.5520833333 | E73: 2.507248624 | F73: 2.278268605 | G73: 6.060502661 | H73: 1.515125665
A74: 54 | B74: 13.5 | C74: 0 | D74: 0.5625 | E74: 2.507523344 | F74: 2.127995286 | G74: 4.938622772 | H74: 1.234655693
A75: 55 | B75: 13.75 | C75: 0 | D75: 0.5729166667 | E75: 2.507803094 | F75: 1.943586649 | G75: 3.762751964 | H75: 0.9406879909
A76: 56 | B76: 14 | C76: 0 | D76: 0.5833333333 | E76: 2.508087869 | F76: 1.727989572 | G76: 2.644339556 | H76: 0.6610848889
A77: 57 | B77: 14.25 | C77: 0 | D77: 0.59375 | E77: 2.508377662 | F77: 1.484651163 | G77: 1.677131585 | H77: 0.4192828963
A78: 58 | B78: 14.5 | C78: 0 | D78: 0.6041666667 | E78: 2.508672467 | F78: 1.217463672 | G78: 0.9248299867 | H78: 0.2312074967
A79: 59 | B79: 14.75 | C79: 0 | D79: 0.6145833333 | E79: 2.508972279 | F79: 0.9307022655 | G79: 0.4131675291 | H79: 0.1032918823
A80: 60 | B80: 15 | C80: 0 | D80: 0.625 | E80: 2.50927709 | F80: 0.6289566569 | G80: 0.1275134581 | H80: 0.03187836453
A81: 61 | B81: 15.25 | C81: 0 | D81: 0.6354166667 | E81: 2.509586896 | F81: 0.3170576822 | G81: 0.0163346078 | H81: 0.004083651949
A82: 62 | B82: 15.5 | C82: 0 | D82: 0.6458333333 | E82: 2.509901688 | F82: -1.460489971e-15 | G82: 1.596576039e-45 | H82: 3.991440097e-46
A83: 63 | B83: 15.75 | C83: 0 | D83: 0.65625 | E83: 2.510221461 | F83: -0.3171378524 | G83: 0.01634700187 | H83: 0.004086750468
A84: 64 | B84: 16 | C84: 0 | D84: 0.6666666667 | E84: 2.510546209 | F84: -0.6292747646 | G84: 0.1277070336 | H84: 0.03192675841
A85: 65 | B85: 16.25 | C85: 0 | D85: 0.6770833333 | E85: 2.510875923 | F85: -0.9314084216 | G85: 0.4141086965 | H85: =G85*$B$13 -> 0.1035271741
A86: =IF(IF(A85<>"",A85+1<=$B$16,0),A85+1,"") -> 66 | B86: =IF(A86<>"",A86*$B$13,"") -> 16.5 | C86: =IF(A86<>"",ROUNDDOWN(A86*$B$13/24,0),"") -> 0 | D86: =IF(A86<>"",MOD(B86,24)/24,"") -> 0.6875 | E86: =IF(A86<>"",($B$4+$B$5)/2+($B$5-$B$4)/2*COS(2*PI()/$B$15*B86),"") -> 2.511210599 | F86: =IF(A86<>"",E86*COS(2*PI()/$B$7*B86),"") -> -1.218695432 | G86: =ABS(0.5*1.025*1*(F86^3)) -> 0.9276398977 | H86: 0.2319099744
A87: 67 | B87: 16.75 | C87: 0 | D87: 0.6979166667 | E87: 2.511550227 | F87: -1.486528931 | G87: 1.683503283 | H87: 0.4208758209
A88: 68 | B88: 17 | C88: 0 | D88: 0.7083333333 | E88: 2.511894802 | F88: -1.730612423 | G88: 2.656399076 | H88: 0.6640997691
A89: 69 | B89: 17.25 | C89: 0 | D89: 0.71875 | E89: 2.512244317 | F89: -1.947028666 | G89: 3.782778454 | H89: 0.9456946136
A90: 70 | B90: 17.5 | C90: 0 | D90: 0.7291666667 | E90: 2.512598764 | F90: -2.132302512 | G90: 4.968671968 | H90: 1.242167992
A91: 71 | B91: 17.75 | C91: 0 | D91: 0.7395833333 | E91: 2.512958135 | F91: -2.283456683 | G91: 6.101999983 | H91: 1.525499996
A92: 72 | B92: 18 | C92: 0 | D92: 0.75 | E92: 2.513322424 | F92: -2.398059589 | G92: 7.067629609 | H92: 1.766907402
A93: 73 | B93: 18.25 | C93: 0 | D93: 0.7604166667 | E93: 2.513691623 | F93: -2.474264429 | G93: 7.763046807 | H93: 1.940761702
A94: 74 | B94: 18.5 | C94: 0 | D94: 0.7708333333 | E94: 2.514065723 | F94: -2.510838938 | G94: 8.112420147 | H94: 2.028105037
A95: 75 | B95: 18.75 | C95: 0 | D95: 0.78125 | E95: 2.514444718 | F95: -2.507185299 | G95: 8.077057369 | H95: 2.019264342
A96: 76 | B96: 19 | C96: 0 | D96: 0.7916666667 | E96: 2.5148286 | F96: -2.463349911 | G96: 7.660765855 | H96: 1.915191464
A97: 77 | B97: 19.25 | C97: 0 | D97: 0.8020833333 | E97: 2.51521736 | F97: -2.38002284 | G97: 6.909350815 | H97: 1.727337704
A98: 78 | B98: 19.5 | C98: 0 | D98: 0.8125 | E98: 2.51561099 | F98: -2.258526967 | G98: 5.904317605 | H98: 1.476079401
A99: 79 | B99: 19.75 | C99: 0 | D99: 0.8229166667 | E99: 2.516009483 | F99: -2.100796998 | G99: 4.751668498 | H99: 1.187917124
A100: 80 | B100: 20 | C100: 0 | D100: 0.8333333333 | E100: 2.51641283 | F100: -1.909348675 | G100: 3.56738188 | H100: 0.8918454699
A101: 81 | B101: 20.25 | C101: 0 | D101: 0.84375 | E101: 2.516821022 | F101: -1.687238668 | G101: 2.461633706 | H101: 0.6154084265
A102: 82 | B102: 20.5 | C102: 0 | D102: 0.8541666667 | E102: 2.517234052 | F102: -1.438015804 | G102: 1.523999578 | H102: 0.3809998944
A103: 83 | B103: 20.75 | C103: 0 | D103: 0.8645833333 | E103: 2.51765191 | F103: -1.165664385 | G103: 0.8117353375 | H103: 0.2029338344
A104: 84 | B104: 21 | C104: 0 | D104: 0.875 | E104: 2.518074588 | F104: -0.8745405315 | G104: 0.3427943823 | H104: 0.08569859558
A105: 85 | B105: 21.25 | C105: 0 | D105: 0.8854166667 | E105: 2.518502078 | F105: -0.5693025354 | G105: 0.09456343153 | H105: 0.02364085788
A106: 86 | B106: 21.5 | C106: 0 | D106: 0.8958333333 | E106: 2.518934369 | F106: -0.2548363633 | G106: 0.008481605453 | H106: 0.002120401363
A107: 87 | B107: 21.75 | C107: 0 | D107: 0.90625 | E107: 2.519371454 | F107: 0.0638225173 | G107: 0.0001332341817 | H107: 3.330854542e-05
A108: 88 | B108: 22 | C108: 0 | D108: 0.9166666667 | E108: 2.519813323 | F108: 0.3815697313 | G108: 0.0284718455 | H108: 0.007117961374
A109: 89 | B109: 22.25 | C109: 0 | D109: 0.9270833333 | E109: 2.520259968 | F109: 0.6933137202 | G109: 0.170798186 | H109: 0.0426995465
A110: 90 | B110: 22.5 | C110: 0 | D110: 0.9375 | E110: 2.520711378 | F110: 0.9940572909 | G110: 0.5034172753 | H110: 0.1258543188
A111: 91 | B111: 22.75 | C111: 0 | D111: 0.9479166667 | E111: 2.521167545 | F111: 1.278977682 | G111: 1.072217196 | H111: 0.2680542989
A112: 92 | B112: 23 | C112: 0 | D112: 0.9583333333 | E112: 2.521628458 | F112: 1.543503865 | G112: 1.884590657 | H112: 0.4711476642
A113: 93 | B113: 23.25 | C113: 0 | D113: 0.96875 | E113: 2.522094109 | F113: 1.783389848 | G113: 2.906917722 | H113: 0.7267294306
A114: 94 | B114: 23.5 | C114: 0 | D114: 0.9791666667 | E114: 2.522564488 | F114: 1.994782792 | G114: 4.067997799 | H114: 1.01699945
A115: 95 | B115: 23.75 | C115: 0 | D115: 0.9895833333 | E115: 2.523039585 | F115: 2.174284871 | G115: 5.267968894 | H115: 1.316992223
A116: 96 | B116: 24 | C116: 1 | D116: 0 | E116: 2.52351939 | F116: 2.319007857 | G116: 6.391466688 | H116: 1.597866672
A117: 97 | B117: 24.25 | C117: 1 | D117: 0.01041666667 | E117: 2.524003894 | F117: 2.42661957 | G117: 7.32316732 | H117: 1.83079183
A118: 98 | B118: 24.5 | C118: 1 | D118: 0.02083333333 | E118: 2.524493085 | F118: 2.49538145 | G118: 7.963513061 | H118: 1.990878265
A119: 99 | B119: 24.75 | C119: 1 | D119: 0.03125 | E119: 2.524986955 | F119: 2.524176624 | G119: 8.242388698 | H119: 2.060597175
A120: 100 | B120: 25 | C120: 1 | D120: 0.04166666667 | E120: 2.525485492 | F120: 2.512528043 | G120: 8.128803455 | H120: 2.032200864
A121: 101 | B121: 25.25 | C121: 1 | D121: 0.05208333333 | E121: 2.525988687 | F121: 2.46060637 | G121: 7.635197958 | H121: 1.90879949
A122: 102 | B122: 25.5 | C122: 1 | D122: 0.0625 | E122: 2.526496529 | F122: 2.369227507 | G122: 6.815758099 | H122: 1.703939525
A123: 103 | B123: 25.75 | C123: 1 | D123: 0.07291666667 | E123: 2.527009007 | F123: 2.239839786 | G123: 5.75896891 | H123: 1.439742227
A124: 104 | B124: 26 | C124: 1 | D124: 0.08333333333 | E124: 2.527526111 | F124: 2.074501029 | G124: 4.575460742 | H124: 1.143865186
A125: 105 | B125: 26.25 | C125: 1 | D125: 0.09375 | E125: 2.528047831 | F125: 1.875845835 | G125: 3.38286993 | H125: 0.8457174826
A126: 106 | B126: 26.5 | C126: 1 | D126: 0.1041666667 | E126: 2.528574154 | F126: 1.647043624 | G126: 2.289861296 | H126: 0.572465324
A127: 107 | B127: 26.75 | C127: 1 | D127: 0.1145833333 | E127: 2.529105071 | F127: 1.391748097 | G127: 1.381579173 | H127: 0.3453947933
A128: 108 | B128: 27 | C128: 1 | D128: 0.125 | E128: 2.52964057 | F128: 1.114038913 | G128: 0.7085898905 | H128: 0.1771474726
A129: 109 | B129: 27.25 | C129: 1 | D129: 0.1354166667 | E129: 2.530180641 | F129: 0.8183565335 | G129: 0.2808804627 | H129: 0.07022011568
A130: 110 | B130: 27.5 | C130: 1 | D130: 0.1458333333 | E130: 2.530725271 | F130: 0.5094312518 | G130: 0.06775644653 | H130: 0.01693911163
A131: 111 | B131: 27.75 | C131: 1 | D131: 0.15625 | E131: 2.53127445 | F131: 0.192207552 | G131: 0.003639194035 | H131: 0.0009097985089
A132: 112 | B132: 28 | C132: 1 | D132: 0.1666666667 | E132: 2.531828167 | F132: -0.1282349923 | G132: 0.001080720824 | H132: 0.0002701802061
A133: 113 | B133: 28.25 | C133: 1 | D133: 0.1770833333 | E133: 2.53238641 | F133: -0.4467630185 | G133: 0.04570098064 | H133: 0.01142524516
A134: 114 | B134: 28.5 | C134: 1 | D134: 0.1875 | E134: 2.532949166 | F134: -0.7582715728 | G134: 0.2234437411 | H134: 0.05586093528
A135: 115 | B135: 28.75 | C135: 1 | D135: 0.1979166667 | E135: 2.533516426 | F135: -1.05776589 | G135: 0.6065443253 | H135: 0.1516360813
A136: 116 | B136: 29 | C136: 1 | D136: 0.2083333333 | E136: 2.534088176 | F136: -1.340441444 | G136: 1.234347412 | H136: 0.3085868529
A137: 117 | B137: 29.25 | C137: 1 | D137: 0.21875 | E137: 2.534664405 | F137: -1.601760991 | G137: 2.106138892 | H137: 0.526534723
A138: 118 | B138: 29.5 | C138: 1 | D138: 0.2291666667 | E138: 2.535245101 | F138: -1.837527363 | G138: 3.179767125 | H138: 0.7949417812
A139: 119 | B139: 29.75 | C139: 1 | D139: 0.2395833333 | E139: 2.535830253 | F139: -2.043950855 | G139: 4.376281177 | H139: 1.094070294
A140: 120 | B140: 30 | C140: 1 | D140: 0.25 | E140: 2.536419847 | F140: -2.21771011 | G140: 5.589953545 | H140: 1.397488386
A141: 121 | B141: 30.25 | C141: 1 | D141: 0.2604166667 | E141: 2.537013871 | F141: -2.356005542 | G141: 6.702283477 | H141: 1.675570869
A142: 122 | B142: 30.5 | C142: 1 | D142: 0.2708333333 | E142: 2.537612314 | F142: -2.456604418 | G142: 7.598004657 | H142: 1.899501164
A143: 123 | B143: 30.75 | C143: 1 | D143: 0.28125 | E143: 2.538215163 | F143: -2.517876894 | G143: 8.180829609 | H143: 2.045207402
A144: 124 | B144: 31 | C144: 1 | D144: 0.2916666667 | E144: 2.538822405 | F144: -2.538822405 | G144: 8.38669476 | H144: 2.09667369
A145: 125 | B145: 31.25 | C145: 1 | D145: 0.3020833333 | E145: 2.539434028 | F145: -2.519085993 | G145: 8.192620711 | H145: 2.048155178
A146: 126 | B146: 31.5 | C146: 1 | D146: 0.3125 | E146: 2.540050019 | F146: -2.458964305 | G146: 7.6199223 | H146: 1.904980575
A147: 127 | B147: 31.75 | C147: 1 | D147: 0.3229166667 | E147: 2.540670366 | F147: -2.359401156 | G147: 6.731304446 | H147: 1.682826111
A148: 128 | B148: 32 | C148: 1 | D148: 0.3333333333 | E148: 2.541295055 | F148: -2.221972732 | G148: 5.622248594 | H148: 1.405562148
A149: 129 | B149: 32.25 | C149: 1 | D149: 0.34375 | E149: 2.541924073 | F149: -2.048862646 | G149: 4.407906806 | H149: =G149*$B$13 -> 1.101976702
A150: =IF(IF(A149<>"",A149+1<=$B$16,0),A149+1,"") -> 130 | B150: =IF(A150<>"",A150*$B$13,"") -> 32.5 | C150: =IF(A150<>"",ROUNDDOWN(A150*$B$13/24,0),"") -> 1 | D150: =IF(A150<>"",MOD(B150,24)/24,"") -> 0.3541666667 | E150: =IF(A150<>"",($B$4+$B$5)/2+($B$5-$B$4)/2*COS(2*PI()/$B$15*B150),"") -> 2.542557408 | F150: =IF(A150<>"",E150*COS(2*PI()/$B$7*B150),"") -> -1.84282727 | G150: =ABS(0.5*1.025*1*(F150^3)) -> 3.207360385 | H150: 0.8018400961
A151: 131 | B151: 32.75 | C151: 1 | D151: 0.3645833333 | E151: 2.543195046 | F151: -1.607151861 | G151: 2.127475741 | H151: 0.5318689352
A152: 132 | B152: 33 | C152: 1 | D152: 0.375 | E152: 2.543836974 | F152: -1.345598207 | G152: 1.248648125 | H152: 0.3121620312
A153: 133 | B153: 33.25 | C153: 1 | D153: 0.3854166667 | E153: 2.544483179 | F153: -1.062344608 | G153: 0.6144550577 | H153: 0.1536137644
A154: 134 | B154: 33.5 | C154: 1 | D154: 0.3958333333 | E154: 2.545133647 | F154: -0.7619191569 | G154: 0.2266838339 | H154: 0.05667095847
A155: 135 | B155: 33.75 | C155: 1 | D155: 0.40625 | E155: 2.545788365 | F155: -0.4491273883 | G155: 0.04643040678 | H155: 0.0116076017
A156: 136 | B156: 34 | C156: 1 | D156: 0.4166666667 | E156: 2.546447319 | F156: -0.1289754402 | G156: 0.001099549857 | H156: 0.0002748874642
A157: 137 | B157: 34.25 | C157: 1 | D157: 0.4270833333 | E157: 2.547110496 | F157: 0.1934100322 | G157: 0.003707924322 | H157: 0.0009269810806
A158: 138 | B158: 34.5 | C158: 1 | D158: 0.4375 | E158: 2.547777882 | F158: 0.5128639171 | G158: 0.06913537215 | H158: 0.01728384304
A159: 139 | B159: 34.75 | C159: 1 | D159: 0.4479166667 | E159: 2.548449463 | F159: 0.8242653645 | G159: 0.2870086749 | H159: 0.07175216872
A160: 140 | B160: 35 | C160: 1 | D160: 0.4583333333 | E160: 2.549125224 | F160: 1.12261984 | G160: 0.7250901573 | H160: 0.1812725393
A161: 141 | B161: 35.25 | C161: 1 | D161: 0.46875 | E161: 2.549805153 | F161: 1.403139201 | G161: 1.41578121 | H161: 0.3539453026
A162: 142 | B162: 35.5 | C162: 1 | D162: 0.4791666667 | E162: 2.550489235 | F162: 1.661318505 | G162: 2.349917295 | H162: 0.5874793238
A163: 143 | B163: 35.75 | C163: 1 | D163: 0.4895833333 | E163: 2.551177456 | F163: 1.893008331 | G163: 3.476573741 | H163: 0.8691434351
A164: 144 | B164: 36 | C164: 1 | D164: 0.5 | E164: 2.551869801 | F164: 2.094481439 | G164: 4.708942831 | H164: 1.177235708
A165: 145 | B165: 36.25 | C165: 1 | D165: 0.5104166667 | E165: 2.552566256 | F165: 2.26249271 | G165: 5.935474388 | H165: 1.483868597
A166: 146 | B166: 36.5 | C166: 1 | D166: 0.5208333333 | E166: 2.553266807 | F166: 2.394331392 | G166: 7.034717284 | H166: 1.758679321
A167: 147 | B167: 36.75 | C167: 1 | D167: 0.53125 | E167: 2.553971439 | F167: 2.48786482 | G167: 7.891766127 | H167: 1.972941532
A168: 148 | B168: 37 | C168: 1 | D168: 0.5416666667 | E168: 2.554680137 | F168: 2.541572899 | G168: 8.413982079 | H168: 2.10349552
A169: 149 | B169: 37.25 | C169: 1 | D169: 0.5520833333 | E169: 2.555392887 | F169: 2.554572799 | G169: 8.543753701 | H169: 2.135938425
A170: 150 | B170: 37.5 | C170: 1 | D170: 0.5625 | E170: 2.556109675 | F170: 2.526633447 | G170: 8.266479487 | H170: 2.066619872
A171: 151 | B171: 37.75 | C171: 1 | D171: 0.5729166667 | E171: 2.556830484 | F171: 2.458179603 | G171: 7.612629648 | H171: 1.903157412
A172: 152 | B172: 38 | C172: 1 | D172: 0.5833333333 | E172: 2.557555301 | F172: 2.350285422 | G172: 6.653584707 | H172: 1.663396177
A173: 153 | B173: 38.25 | C173: 1 | D173: 0.59375 | E173: 2.558284109 | F173: 2.204657615 | G173: 5.491833075 | H173: 1.372958269
A174: 154 | B174: 38.5 | C174: 1 | D174: 0.6041666667 | E174: 2.559016895 | F174: 2.023608471 | G174: 4.246912723 | H174: 1.061728181
A175: 155 | B175: 38.75 | C175: 1 | D175: 0.6145833333 | E175: 2.559753643 | F175: 1.810019159 | G175: 3.039088768 | H175: 0.759772192
A176: 156 | B176: 39 | C176: 1 | D176: 0.625 | E176: 2.560494337 | F176: 1.567293902 | G176: 1.973082303 | H176: 0.4932705758
A177: 157 | B177: 39.25 | C177: 1 | D177: 0.6354166667 | E177: 2.561238963 | F177: 1.299305743 | G177: 1.124159524 | H177: 0.2810398811
A178: 158 | B178: 39.5 | C178: 1 | D178: 0.6458333333 | E178: 2.561987504 | F178: 1.010334773 | G178: 0.5285544957 | H178: 0.1321386239
A179: 159 | B179: 39.75 | C179: 1 | D179: 0.65625 | E179: 2.562739945 | F179: 0.704999797 | G179: 0.1795811902 | H179: 0.04489529755
A180: 160 | B180: 40 | C180: 1 | D180: 0.6666666667 | E180: 2.563496272 | F180: 0.388184543 | G180: 0.02997840931 | H180: 0.007494602327
A181: 161 | B181: 40.25 | C181: 1 | D181: 0.6770833333 | E181: 2.564256467 | F181: 0.06495957649 | G181: 0.0001404828872 | H181: 3.51207218e-05
A182: 162 | B182: 40.5 | C182: 1 | D182: 0.6875 | E182: 2.565020515 | F182: -0.2594988213 | G182: 0.00895571034 | H182: 0.002238927585
A183: 163 | B183: 40.75 | C183: 1 | D183: 0.6979166667 | E183: 2.5657884 | F183: -0.5799915174 | G183: 0.09999051273 | H183: 0.02499762818
A184: 164 | B184: 41 | C184: 1 | D184: 0.7083333333 | E184: 2.566560107 | F184: -0.8913798069 | G184: 0.3629796221 | H184: 0.09074490552
A185: 165 | B185: 41.25 | C185: 1 | D185: 0.71875 | E185: 2.567335619 | F185: -1.188667776 | G185: 0.8607466438 | H185: 0.215186661
A186: 166 | B186: 41.5 | C186: 1 | D186: 0.7291666667 | E186: 2.568114921 | F186: -1.467082427 | G186: 1.618293966 | H186: 0.4045734915
A187: 167 | B187: 41.75 | C187: 1 | D187: 0.7395833333 | E187: 2.568897995 | F187: -1.722150282 | G187: 2.617622475 | H187: 0.6544056188
A188: 168 | B188: 42 | C188: 1 | D188: 0.75 | E188: 2.569684827 | F188: -1.949769235 | G188: 3.798774466 | H188: 0.9496936166
A189: 169 | B189: 42.25 | C189: 1 | D189: 0.7604166667 | E189: 2.570475399 | F189: -2.146274503 | G189: 5.066985582 | H189: 1.266746395
A190: 170 | B190: 42.5 | C190: 1 | D190: 0.7708333333 | E190: 2.571269695 | F190: -2.308497605 | G190: 6.30495737 | H190: 1.576239342
A191: 171 | B191: 42.75 | C191: 1 | D191: 0.78125 | E191: 2.572067699 | F191: -2.433817437 | G191: 7.388526999 | H191: 1.84713175
A192: 172 | B192: 43 | C192: 1 | D192: 0.7916666667 | E192: 2.572869394 | F192: -2.520202606 | G192: 8.203519953 | H192: 2.050879988
A193: 173 | B193: 43.25 | C193: 1 | D193: 0.8020833333 | E193: 2.573674763 | F193: -2.566244342 | G193: 8.661395781 | H193: 2.165348945
A194: 174 | B194: 43.5 | C194: 1 | D194: 0.8125 | E194: 2.574483791 | F194: -2.571179459 | G194: 8.711461857 | H194: 2.177865464
A195: 175 | B195: 43.75 | C195: 1 | D195: 0.8229166667 | E195: 2.575296459 | F195: -2.534902995 | G195: 8.347912789 | H195: 2.086978197
A196: 176 | B196: 44 | C196: 1 | D196: 0.8333333333 | E196: 2.576112751 | F196: -2.457970305 | G196: 7.610685313 | H196: 1.902671328
A197: 177 | B197: 44.25 | C197: 1 | D197: 0.84375 | E197: 2.576932651 | F197: -2.341588584 | G197: 6.579996252 | H197: 1.644999063
A198: 178 | B198: 44.5 | C198: 1 | D198: 0.8541666667 | E198: 2.57775614 | F198: -2.187597946 | G198: 5.365329402 | H198: 1.34133235
A199: 179 | B199: 44.75 | C199: 1 | D199: 0.8645833333 | E199: 2.578583203 | F199: -1.998442341 | G199: 4.090427858 | H199: 1.022606964
A200: 180 | B200: 45 | C200: 1 | D200: 0.875 | E200: 2.579413822 | F200: -1.777130794 | G200: 2.876418325 | H200: 0.7191045813
A201: 181 | B201: 45.25 | C201: 1 | D201: 0.8854166667 | E201: 2.58024798 | F201: -1.527189554 | G201: 1.825461611 | H201: 0.4563654028
A202: 182 | B202: 45.5 | C202: 1 | D202: 0.8958333333 | E202: 2.581085659 | F202: -1.252605936 | G202: 1.007249976 | H202: 0.251812494
A203: 183 | B203: 45.75 | C203: 1 | D203: 0.90625 | E203: 2.581926842 | F203: -0.9577647314 | G203: 0.4502672828 | H203: 0.1125668207
... 2579 more rows

Sheet Tidal Stream 2
A1: Tidal Stream Resource
A3: =Input!A45 -> Site Name | B3: =IF(Input!B55<>"",Input!B55,"-") -> Inerval | C3: =Input!C45 -> 0 | I3: Plots:
A4: =Input!A46 -> Peak Flow (Springs) | B4: =IF((AND(Input!B56<>"",Input!B56<>"[Enter Value]")),Input!B56,"0") -> 2.5 | C4: =Input!C46 -> m/s
A5: =Input!A47 -> Peak Flow (Neaps) | B5: =IF((AND(Input!B57<>"",Input!B57<>"[Enter Value]")),Input!B57,"0") -> 2 | C5: =Input!C47 -> m/s
A6: =Input!A48 -> Lunar Cycle Period | B6: =IF((AND(Input!B58<>"",Input!B58<>"[Enter Value]")),Input!B58,"0") -> 28.74 | C6: =Input!C48 -> days
A7: =Input!A49 -> Tidal Period | B7: =IF((AND(Input!B59<>"",Input!B59<>"[Enter Value]")),Input!B59,"0") -> 12.4 | C7: =Input!C49 -> hours
A8: =Input!A50 -> Proximity to Grid Connection | B8: =IF(Input!B60<>"",Input!B60,"-") -> 2-3 km
A9: =Input!A51 -> Average Water Depth | B9: =IF(Input!B61<>"",Input!B61,"-") -> > 20m
A10: =Input!A52 -> Seabed Topography | B10: =IF(Input!B62<>"",Input!B62,"-") -> Moderate (Sandy, Moderate Gradient)
A11: =Input!A53 -> Accessibility | B11: =IF(Input!B63<>"",Input!B63,"-") -> Partially Accessible (Complex Temporary Works, Obstacles)
A13: Time Step | B13: 0.25 | C13: hours
A14: Period | B14: =B6/2 -> 14.37 | C14: days
B15: =B14*24 -> 344.88 | C15: hours
A16: Number of Steps | B16: =B15/B13*2 -> 2759.04 | C16: -
A18: No. | B18: Time | E18: Amplitude | F18: Current | G18: Power | H18: Energy
B19: Hours | C19: Day | D19: Time | E19: m/s | F19: m/s | G19: kW/(m^2) | H19: kWh/(m^2)
A20: 0 | B20: =A20*$B$13 -> 0 | C20: =ROUNDDOWN(A20*$B$1/24,0) -> 0 | D20: =MOD(B20,24)/24 -> 0 | E20: =IF(A20<>"",($B$4+$B$5)/2+($B$5-$B$4)/2*COS(2*PI()/$B$15*B20),"") -> 2 | F20: =IF(A20<>"",E20*COS(2*PI()/$B$7*B20),"") -> 2 | G20: =ABS(0.5*1.025*1*(F20^3)) -> 4.1 | H20: =G20*$B$13 -> 1.025
A21: =IF(IF(A20<>"",A20+1<=$B$16,0),A20+1,"") -> 1 | B21: =IF(A21<>"",A21*$B$13,"") -> 0.25 | C21: =IF(A21<>"",ROUNDDOWN(A21*$B$13/24,0),"") -> 0 | D21: =IF(A21<>"",MOD(B21,24)/24,"") -> 0.01041666667 | E21: =IF(A21<>"",($B$4+$B$5)/2+($B$5-$B$4)/2*COS(2*PI()/$B$15*B21),"") -> 2.000002593 | F21: =IF(A21<>"",E21*COS(2*PI()/$B$7*B21),"") -> 1.983976926 | G21: =ABS(0.5*1.025*1*(F21^3)) -> 4.002245461 | H21: =G21*$B$13 -> 1.000561365
A22: =IF(IF(A21<>"",A21+1<=$B$16,0),A21+1,"") -> 2 | B22: =IF(A22<>"",A22*$B$13,"") -> 0.5 | C22: =IF(A22<>"",ROUNDDOWN(A22*$B$13/24,0),"") -> 0 | D22: 0.02083333333 | E22: =IF(A22<>"",($B$4+$B$5)/2+($B$5-$B$4)/2*COS(2*PI()/$B$15*B22),"") -> 2.000010372 | F22: =IF(A22<>"",E22*COS(2*PI()/$B$7*B22),"") -> 1.936164279 | G22: =ABS(0.5*1.025*1*(F22^3)) -> 3.719807621 | H22: 0.9299519052
A23: 3 | B23: 0.75 | C23: 0 | D23: 0.03125 | E23: 2.000023337 | F23: 1.857327671 | G23: 3.283669636 | H23: 0.8209174089
A24: 4 | B24: 1 | C24: 0 | D24: 0.04166666667 | E24: 2.000041488 | F24: 1.748729507 | G24: 2.740701795 | H24: 0.6851754487
A25: 5 | B25: 1.25 | C25: 0 | D25: 0.05208333333 | E25: 2.000064824 | F25: 1.612108777 | G25: 2.147221747 | H25: 0.5368054367
A26: 6 | B26: 1.5 | C26: 0 | D26: 0.0625 | E26: 2.000093345 | F26: 1.44965323 | G26: 1.561299614 | H26: 0.3903249035
A27: 7 | B27: 1.75 | C27: 0 | D27: 0.07291666667 | E27: 2.00012705 | F27: 1.263964365 | G27: 1.034899935 | H27: 0.2587249837
A28: 8 | B28: 2 | C28: 0 | D28: 0.08333333333 | E28: 2.000165938 | F28: 1.058015796 | G28: 0.6069743303 | H28: 0.1517435826
A29: 9 | B29: 2.25 | C29: 0 | D29: 0.09375 | E29: 2.000210009 | F29: 0.8351056652 | G29: 0.2984820091 | H29: 0.07462050229
A30: 10 | B30: 2.5 | C30: 0 | D30: 0.1041666667 | E30: 2.000259262 | F30: 0.5988038594 | G30: 0.1100392552 | H30: 0.02750981379
A31: 11 | B31: 2.75 | C31: 0 | D31: 0.1145833333 | E31: 2.000313695 | F31: 0.3528948746 | G31: 0.02252319112 | H31: 0.00563079778
A32: 12 | B32: 3 | C32: 0 | D32: 0.125 | E32: 2.000373309 | F32: 0.1013172455 | G32: 0.0005330205973 | H32: 0.0001332551493
A33: 13 | B33: 3.25 | C33: 0 | D33: 0.1354166667 | E33: 2.0004381 | F33: -0.1518994948 | G33: 0.001796233773 | H33: 0.0004490584433
A34: 14 | B34: 3.5 | C34: 0 | D34: 0.1458333333 | E34: 2.000508069 | F34: -0.4026993137 | G34: 0.03346852232 | H34: 0.008367130581
A35: 15 | B35: 3.75 | C35: 0 | D35: 0.15625 | E35: 2.000583213 | F35: -0.6470646076 | G35: 0.1388470981 | H35: 0.03471177453
A36: 16 | B36: 4 | C36: 0 | D36: 0.1666666667 | E36: 2.000663531 | F36: -0.8810805185 | G36: 0.3505424888 | H36: 0.08763562221
A37: 17 | B37: 4.25 | C37: 0 | D37: 0.1770833333 | E37: 2.000749022 | F37: -1.100997612 | G37: 0.6839951158 | H37: 0.170998779
A38: 18 | B38: 4.5 | C38: 0 | D38: 0.1875 | E38: 2.000839683 | F38: -1.303291912 | G38: 1.1345378 | H38: 0.28363445
A39: 19 | B39: 4.75 | C39: 0 | D39: 0.1979166667 | E39: 2.000935513 | F39: -1.484721334 | G39: 1.677369404 | H39: 0.4193423509
A40: 20 | B40: 5 | C40: 0 | D40: 0.2083333333 | E40: 2.00103651 | F40: -1.642377612 | G40: 2.270455104 | H40: 0.567613776
A41: 21 | B41: 5.25 | C41: 0 | D41: 0.21875 | E41: 2.001142671 | F41: -1.773732883 | G41: 2.859950538 | H41: 0.7149876346
A42: 22 | B42: 5.5 | C42: 0 | D42: 0.2291666667 | E42: 2.001253995 | F42: -1.876680201 | G42: 3.387385982 | H42: 0.8468464956
A43: 23 | B43: 5.75 | C43: 0 | D43: 0.2395833333 | E43: 2.001370478 | F43: -1.949567301 | G43: 3.797594293 | H43: 0.9493985733
A44: 24 | B44: 6 | C44: 0 | D44: 0.25 | E44: 2.00149212 | F44: -1.991223111 | G44: 4.046258666 | H44: 1.011564667
A45: 25 | B45: 6.25 | C45: 0 | D45: 0.2604166667 | E45: 2.001618917 | F45: -2.000976548 | G45: 4.106008701 | H45: 1.026502175
A46: 26 | B46: 6.5 | C46: 0 | D46: 0.2708333333 | E46: 2.001750866 | F46: -1.978667324 | G46: 3.970198448 | H46: 0.992549612
A47: 27 | B47: 6.75 | C47: 0 | D47: 0.28125 | E47: 2.001887965 | F47: -1.924648581 | G47: 3.653828855 | H47: 0.9134572138
A48: 28 | B48: 7 | C48: 0 | D48: 0.2916666667 | E48: 2.002030211 | F48: -1.839781301 | G48: 3.19148253 | H48: 0.7978706324
A49: 29 | B49: 7.25 | C49: 0 | D49: 0.3020833333 | E49: 2.002177601 | F49: -1.725420597 | G49: 2.632563186 | H49: 0.6581407965
A50: 30 | B50: 7.5 | C50: 0 | D50: 0.3125 | E50: 2.002330132 | F50: -1.583394085 | G50: 2.034515134 | H50: 0.5086287836
A51: 31 | B51: 7.75 | C51: 0 | D51: 0.3229166667 | E51: 2.0024878 | F51: -1.415972703 | G51: 1.45498499 | H51: 0.3637462475
A52: 32 | B52: 8 | C52: 0 | D52: 0.3333333333 | E52: 2.002650604 | F52: -1.225834415 | G52: 0.9440376168 | H52: 0.2360094042
A53: 33 | B53: 8.25 | C53: 0 | D53: 0.34375 | E53: 2.002818538 | F53: -1.016021413 | G53: 0.537529684 | H53: 0.134382421
A54: 34 | B54: 8.5 | C54: 0 | D54: 0.3541666667 | E54: 2.0029916 | F54: -0.7898914652 | G54: 0.2525783568 | H54: 0.0631445892
A55: 35 | B55: 8.75 | C55: 0 | D55: 0.3645833333 | E55: 2.003169786 | F55: -0.5510642213 | G55: 0.08576310853 | H55: 0.02144077713
A56: 36 | B56: 9 | C56: 0 | D56: 0.375 | E56: 2.003353092 | F56: -0.3033633064 | G56: 0.0143081346 | H56: 0.003577033649
A57: 37 | B57: 9.25 | C57: 0 | D57: 0.3854166667 | E57: 2.003541516 | F57: -0.05075514483 | G57: 6.700914611e-05 | H57: 1.675228653e-05
A58: 38 | B58: 9.5 | C58: 0 | D58: 0.3958333333 | E58: 2.003735051 | F58: 0.2027145128 | G58: 0.004269218629 | H58: 0.001067304657
A59: 39 | B59: 9.75 | C59: 0 | D59: 0.40625 | E59: 2.003933696 | F59: 0.4529853454 | G59: 0.04763721097 | H59: 0.01190930274
A60: 40 | B60: 10 | C60: 0 | D60: 0.4166666667 | E60: 2.004137444 | F60: 0.6960474618 | G60: 0.1728265387 | H60: 0.04320663468
A61: 41 | B61: 10.25 | C61: 0 | D61: 0.4270833333 | E61: 2.004346293 | F61: 0.9280056075 | G61: 0.4095865352 | H61: 0.1023966338
A62: 42 | B62: 10.5 | C62: 0 | D62: 0.4375 | E62: 2.004560239 | F62: 1.14514155 | G62: 0.7696112147 | H62: 0.1924028037
A63: 43 | B63: 10.75 | C63: 0 | D63: 0.4479166667 | E63: 2.004779275 | F63: 1.343973642 | G63: 1.244131035 | H63: 0.3110327586
A64: 44 | B64: 11 | C64: 0 | D64: 0.4583333333 | E64: 2.005003399 | F64: 1.521312615 | G64: 1.804468351 | H64: 0.4511170877
A65: 45 | B65: 11.25 | C65: 0 | D65: 0.46875 | E65: 2.005232605 | F65: 1.674312702 | G65: 2.405490167 | H65: 0.6013725417
A66: 46 | B66: 11.5 | C66: 0 | D66: 0.4791666667 | E66: 2.005466888 | F66: 1.800517276 | G66: 2.991477552 | H66: 0.7478693881
A67: 47 | B67: 11.75 | C67: 0 | D67: 0.4895833333 | E67: 2.005706245 | F67: 1.897898268 | G67: 3.503585001 | H67: 0.8758962502
A68: 48 | B68: 12 | C68: 0 | D68: 0.5 | E68: 2.005950669 | F68: 1.96488874 | G68: 3.887834432 | H68: 0.971958608
A69: 49 | B69: 12.25 | C69: 0 | D69: 0.5104166667 | E69: 2.006200155 | F69: 2.000408082 | G69: 4.102510215 | H69: 1.025627554
A70: 50 | B70: 12.5 | C70: 0 | D70: 0.5208333333 | E70: 2.006454699 | F70: 2.003879429 | G70: 4.123904798 | H70: 1.030976199
A71: 51 | B71: 12.75 | C71: 0 | D71: 0.53125 | E71: 2.006714296 | F71: 1.97523903 | G71: 3.949597553 | H71: 0.9873993882
A72: 52 | B72: 13 | C72: 0 | D72: 0.5416666667 | E72: 2.006978939 | F72: 1.914937392 | G72: 3.598799144 | H72: 0.899699786
A73: 53 | B73: 13.25 | C73: 0 | D73: 0.5520833333 | E73: 2.007248624 | F73: 1.823932209 | G73: 3.109710413 | H73: 0.7774276033
A74: 54 | B74: 13.5 | C74: 0 | D74: 0.5625 | E74: 2.007523344 | F74: 1.703673158 | G74: 2.534269007 | H74: 0.6335672518
A75: 55 | B75: 13.75 | C75: 0 | D75: 0.5729166667 | E75: 2.007803094 | F75: 1.556078823 | G75: 1.931028337 | H75: 0.4827570843
A76: 56 | B76: 14 | C76: 0 | D76: 0.5833333333 | E76: 2.008087869 | F76: 1.383506112 | G76: 1.357178954 | H76: 0.3392947385
A77: 57 | B77: 14.25 | C77: 0 | D77: 0.59375 | E77: 2.008377662 | F77: 1.188712639 | G77: 0.860844108 | H77: 0.215211027
A78: 58 | B78: 14.5 | C78: 0 | D78: 0.6041666667 | E78: 2.008672467 | F78: 0.9748126905 | G78: 0.4747417133 | H78: 0.1186854283
A79: 59 | B79: 14.75 | C79: 0 | D79: 0.6145833333 | E79: 2.008972279 | F79: 0.745227465 | G79: 0.2121096496 | H79: 0.05302741239
A80: 60 | B80: 15 | C80: 0 | D80: 0.625 | E80: 2.00927709 | F80: 0.5036303907 | G80: 0.06546808789 | H80: 0.01636702197
A81: 61 | B81: 15.25 | C81: 0 | D81: 0.6354166667 | E81: 2.009586896 | F81: 0.2538883848 | G81: 0.008387303677 | H81: 0.002096825919
A82: 62 | B82: 15.5 | C82: 0 | D82: 0.6458333333 | E82: 2.009901688 | F82: -1.169544318e-15 | G82: 8.1986797e-46 | H82: 2.049669925e-46
A83: 63 | B83: 15.75 | C83: 0 | D83: 0.65625 | E83: 2.010221461 | F83: -0.2539685549 | G83: 0.008395251543 | H83: 0.002098812886
A84: 64 | B84: 16 | C84: 0 | D84: 0.6666666667 | E84: 2.010546209 | F84: -0.5039484984 | G84: 0.06559222094 | H84: 0.01639805524
A85: 65 | B85: 16.25 | C85: 0 | D85: =IF(A85<>"",MOD(B85,24)/24,"") -> 0.6770833333 | E85: 2.010875923 | F85: -0.7459336212 | G85: =ABS(0.5*1.025*1*(F85^3)) -> 0.2127131881 | H85: =G85*$B$13 -> 0.05317829704
A86: =IF(IF(A85<>"",A85+1<=$B$16,0),A85+1,"") -> 66 | B86: =IF(A86<>"",A86*$B$13,"") -> 16.5 | C86: =IF(A86<>"",ROUNDDOWN(A86*$B$13/24,0),"") -> 0 | D86: 0.6875 | E86: =IF(A86<>"",($B$4+$B$5)/2+($B$5-$B$4)/2*COS(2*PI()/$B$15*B86),"") -> 2.011210599 | F86: =IF(A86<>"",E86*COS(2*PI()/$B$7*B86),"") -> -0.9760444505 | G86: 0.4765436198 | H86: 0.1191359049
A87: 67 | B87: 16.75 | C87: 0 | D87: 0.6979166667 | E87: 2.011550227 | F87: -1.190590408 | G87: 0.8649300933 | H87: 0.2162325233
A88: 68 | B88: 17 | C88: 0 | D88: 0.7083333333 | E88: 2.011894802 | F88: -1.386128964 | G88: 1.364912417 | H88: 0.3412281043
A89: 69 | B89: 17.25 | C89: 0 | D89: 0.71875 | E89: 2.012244317 | F89: -1.55952084 | G89: 1.943870898 | H89: 0.4859677245
A90: 70 | B90: 17.5 | C90: 0 | D90: 0.7291666667 | E90: 2.012598764 | F90: -1.707980384 | G90: 2.553539058 | H90: 0.6383847645
A91: 71 | B91: 17.75 | C91: 0 | D91: 0.7395833333 | E91: 2.012958135 | F91: -1.829120287 | G91: 3.136322182 | H91: 0.7840805455
A92: 72 | B92: 18 | C92: 0 | D92: 0.75 | E92: 2.013322424 | F92: -1.920989961 | G92: 3.633031432 | H92: 0.908257858
A93: 73 | B93: 18.25 | C93: 0 | D93: 0.7604166667 | E93: 2.013691623 | F93: -1.982106918 | G93: 3.990939106 | H93: 0.9977347766
A94: 74 | B94: 18.5 | C94: 0 | D94: 0.7708333333 | E94: 2.014065723 | F94: -2.011480684 | G94: 4.171012289 | H94: 1.042753072
A95: 75 | B95: 18.75 | C95: 0 | D95: 0.78125 | E95: 2.014444718 | F95: -2.008628842 | G95: 4.153296663 | H95: 1.038324166
A96: 76 | B96: 19 | C96: 0 | D96: 0.7916666667 | E96: 2.0148286 | F96: -1.97358494 | G96: 3.939683533 | H96: 0.9849208833
A97: 77 | B97: 19.25 | C97: 0 | D97: 0.8020833333 | E97: 2.01521736 | F97: -1.906898155 | G97: 3.553664024 | H97: 0.8884160059
A98: 78 | B98: 19.5 | C98: 0 | D98: 0.8125 | E98: 2.01561099 | F98: -1.809624697 | G98: 3.037102253 | H98: 0.7592755632
A99: 79 | B99: 19.75 | C99: 0 | D99: 0.8229166667 | E99: 2.016009483 | F99: -1.683311092 | G99: 2.444483022 | H99: 0.6111207555
A100: 80 | B100: 20 | C100: 0 | D100: 0.8333333333 | E100: 2.01641283 | F100: -1.529969613 | G100: 1.835448849 | H100: 0.4588622123
A101: 81 | B101: 20.25 | C101: 0 | D101: 0.84375 | E101: 2.016821022 | F101: -1.352046246 | G101: 1.266684657 | H101: 0.3166711642
A102: 82 | B102: 20.5 | C102: 0 | D102: 0.8541666667 | E102: 2.017234052 | F102: -1.152381696 | G102: 0.7843012812 | H102: 0.1960753203
A103: 83 | B103: 20.75 | C103: 0 | D103: 0.8645833333 | E103: 2.01765191 | F103: -0.9341660633 | G103: 0.4177977799 | H103: 0.104449445
A104: 84 | B104: 21 | C104: 0 | D104: 0.875 | E104: 2.018074588 | F104: -0.7008879051 | G104: 0.1764572744 | H104: 0.04411431859
A105: 85 | B105: 21.25 | C105: 0 | D105: 0.8854166667 | E105: 2.018502078 | F105: -0.4562785001 | G105: 0.04868373451 | H105: 0.01217093363
A106: 86 | B106: 21.5 | C106: 0 | D106: 0.8958333333 | E106: 2.018934369 | F106: -0.2042522023 | G106: 0.004367109823 | H106: 0.001091777456
A107: 87 | B107: 21.75 | C107: 0 | D107: 0.90625 | E107: 2.019371454 | F107: 0.05115616014 | G107: 6.861004187e-05 | H107: 1.715251047e-05
A108: 88 | B108: 22 | C108: 0 | D108: 0.9166666667 | E108: 2.019813323 | F108: 0.3058558425 | G108: 0.01466372179 | H108: 0.003665930449
A109: 89 | B109: 22.25 | C109: 0 | D109: 0.9270833333 | E109: 2.020259968 | F109: 0.5557656639 | G109: 0.08797697097 | H109: 0.02199424274
A110: 90 | B110: 22.5 | C110: 0 | D110: 0.9375 | E110: 2.020711378 | F110: 0.7968793634 | G110: 0.2593412562 | H110: 0.06483531404
A111: 91 | B111: 22.75 | C111: 0 | D111: 0.9479166667 | E111: 2.021167545 | F111: 1.025329787 | G111: 0.5524393329 | H111: 0.1381098332
A112: 92 | B112: 23 | C112: 0 | D112: 0.9583333333 | E112: 2.021628458 | F112: 1.237450874 | G112: 0.9711308927 | H112: 0.2427827232
A113: 93 | B113: 23.25 | C113: 0 | D113: 0.96875 | E113: 2.022094109 | F113: 1.429836457 | G113: 1.498141961 | H113: 0.3745354904
A114: 94 | B114: 23.5 | C114: 0 | D114: 0.9791666667 | E114: 2.022564488 | F114: 1.599394924 | G114: 2.09681932 | H114: 0.5242048301
A115: 95 | B115: 23.75 | C115: 0 | D115: 0.9895833333 | E115: 2.023039585 | F115: 1.743398871 | G115: 2.715714749 | H115: 0.6789286873
A116: 96 | B116: 24 | C116: 1 | D116: 0 | E116: 2.02351939 | F116: 1.859528951 | G116: 3.29535876 | H116: 0.8238396901
A117: 97 | B117: 24.25 | C117: 1 | D117: 0.01041666667 | E117: 2.024003894 | F117: 1.945911205 | G117: 3.776269026 | H117: 0.9440672564
A118: 98 | B118: 24.5 | C118: 1 | D118: 0.02083333333 | E118: 2.024493085 | F118: 2.001147288 | G118: 4.107059868 | H118: 1.026764967
A119: 99 | B119: 24.75 | C119: 1 | D119: 0.03125 | E119: 2.024986955 | F119: 2.024337087 | G119: 4.251501774 | H119: 1.062875443
A120: 100 | B120: 25 | C120: 1 | D120: 0.04166666667 | E120: 2.025485492 | F120: 2.015093381 | G120: 4.193526573 | H120: 1.048381643
A121: 101 | B121: 25.25 | C121: 1 | D121: 0.05208333333 | E121: 2.025988687 | F121: 1.973548296 | G121: 3.939464089 | H121: 0.9848660222
A122: 102 | B122: 25.5 | C122: 1 | D122: 0.0625 | E122: 2.026496529 | F122: 1.900351441 | G122: 3.517188489 | H122: 0.8792971223
A123: 103 | B123: 25.75 | C123: 1 | D123: 0.07291666667 | E123: 2.027009007 | F123: 1.79665977 | G123: 2.972291502 | H123: 0.7430728755
A124: 104 | B124: 26 | C124: 1 | D124: 0.08333333333 | E124: 2.027526111 | F124: 1.664119308 | G124: 2.361822462 | H124: 0.5904556154
A125: 105 | B125: 26.25 | C125: 1 | D125: 0.09375 | E125: 2.028047831 | F125: 1.504839042 | G125: 1.746481624 | H125: 0.4366204059
A126: 106 | B126: 26.5 | C126: 1 | D126: 0.1041666667 | E126: 2.028574154 | F126: 1.321357383 | G126: 1.182373689 | H126: 0.2955934221
A127: 107 | B127: 26.75 | C127: 1 | D127: 0.1145833333 | E127: 2.029105071 | F127: 1.116601739 | G127: 0.7134914438 | H127: 0.1783728609
A128: 108 | B128: 27 | C128: 1 | D128: 0.125 | E128: 2.02964057 | F128: 0.8938418369 | G128: 0.3659956338 | H128: 0.09149890846
A129: 109 | B129: 27.25 | C129: 1 | D129: 0.1354166667 | E129: 2.030180641 | F129: 0.65663754 | G129: 0.1451011963 | H129: 0.03627529906
A130: 110 | B130: 27.5 | C130: 1 | D130: 0.1458333333 | E130: 2.030725271 | F130: 0.4087819918 | G130: 0.03500814798 | H130: 0.008752036994
A131: 111 | B131: 27.75 | C131: 1 | D131: 0.15625 | E131: 2.03127445 | F131: 0.1542409949 | G131: 0.001880586539 | H131: 0.0004701466348
A132: 112 | B132: 28 | C132: 1 | D132: 0.1666666667 | E132: 2.031828167 | F132: -0.1029104079 | G132: 0.0005585624911 | H132: 0.0001396406228
A133: 113 | B133: 28.25 | C133: 1 | D133: 0.1770833333 | E133: 2.03238641 | F133: -0.3585531353 | G133: 0.0236240549 | H133: 0.005906013725
A134: 114 | B134: 28.5 | C134: 1 | D134: 0.1875 | E134: 2.032949166 | F134: -0.6085900113 | G134: 0.1155229658 | H134: 0.02888074145
A135: 115 | B135: 28.75 | C135: 1 | D135: 0.1979166667 | E135: 2.033516426 | F135: -0.8490113937 | G135: 0.3136421521 | H135: 0.07841053804
A136: 116 | B136: 29 | C136: 1 | D136: 0.2083333333 | E136: 2.034088176 | F136: -1.075959439 | G136: 0.6383833759 | H136: 0.159595844
A137: 117 | B137: 29.25 | C137: 1 | D137: 0.21875 | E137: 2.034664405 | F137: -1.285789972 | G137: 1.089441645 | H137: 0.2723604112
A138: 118 | B138: 29.5 | C138: 1 | D138: 0.2291666667 | E138: 2.035245101 | F138: -1.47513097 | G138: 1.645074659 | H138: 0.4112686648
A139: 119 | B139: 29.75 | C139: 1 | D139: 0.2395833333 | E139: 2.035830253 | F139: -1.640936723 | G139: 2.264484607 | H139: 0.5661211517
A140: 120 | B140: 30 | C140: 1 | D140: 0.25 | E140: 2.036419847 | F140: -1.780536802 | G140: 2.892988674 | H140: 0.7232471685
A141: 121 | B141: 30.25 | C141: 1 | D141: 0.2604166667 | E141: 2.037013871 | F141: -1.891679042 | G141: 3.469255029 | H141: 0.8673137573
A142: 122 | B142: 30.5 | C142: 1 | D142: 0.2708333333 | E142: 2.037612314 | F142: -1.972565859 | G142: 3.933583792 | H142: 0.9833959481
A143: 123 | B143: 30.75 | C143: 1 | D143: 0.28125 | E143: 2.038215163 | F143: -2.021883306 | G143: 4.236060256 | H143: 1.059015064
A144: 124 | B144: 31 | C144: 1 | D144: 0.2916666667 | E144: 2.038822405 | F144: -2.038822405 | G144: 4.343422357 | H144: 1.085855589
A145: 125 | B145: 31.25 | C145: 1 | D145: 0.3020833333 | E145: 2.039434028 | F145: -2.023092405 | G145: 4.243664371 | H145: 1.060916093
A146: 126 | B146: 31.5 | C146: 1 | D146: 0.3125 | E146: 2.040050019 | F146: -1.974925745 | G146: 3.947718562 | H146: 0.9869296406
A147: 127 | B147: 31.75 | C147: 1 | D147: 0.3229166667 | E147: 2.040670366 | F147: -1.895074656 | G147: 3.487970801 | H147: 0.8719927004
A148: 128 | B148: 32 | C148: 1 | D148: 0.3333333333 | E148: 2.041295055 | F148: -1.784799424 | G148: 2.91381598 | H148: 0.7284539951
A149: 129 | B149: 32.25 | C149: 1 | D149: =IF(A149<>"",MOD(B149,24)/24,"") -> 0.34375 | E149: 2.041924073 | F149: -1.645848515 | G149: =ABS(0.5*1.025*1*(F149^3)) -> 2.28488028 | H149: =G149*$B$13 -> 0.5712200699
A150: =IF(IF(A149<>"",A149+1<=$B$16,0),A149+1,"") -> 130 | B150: =IF(A150<>"",A150*$B$13,"") -> 32.5 | C150: =IF(A150<>"",ROUNDDOWN(A150*$B$13/24,0),"") -> 1 | D150: 0.3541666667 | E150: =IF(A150<>"",($B$4+$B$5)/2+($B$5-$B$4)/2*COS(2*PI()/$B$15*B150),"") -> 2.042557408 | F150: =IF(A150<>"",E150*COS(2*PI()/$B$7*B150),"") -> -1.480430877 | G150: 1.662869903 | H150: 0.4157174757
A151: 131 | B151: 32.75 | C151: 1 | D151: 0.3645833333 | E151: 2.043195046 | F151: -1.291180842 | G151: 1.103202127 | H151: 0.2758005318
A152: 132 | B152: 33 | C152: 1 | D152: 0.375 | E152: 2.043836974 | F152: -1.081116202 | G152: 0.6476061995 | H152: 0.1619015499
A153: 133 | B153: 33.25 | C153: 1 | D153: 0.3854166667 | E153: 2.044483179 | F153: -0.8535901117 | G153: 0.3187439835 | H153: 0.07968599588
A154: 134 | B154: 33.5 | C154: 1 | D154: 0.3958333333 | E154: 2.045133647 | F154: -0.6122375954 | G154: 0.1176126008 | H154: 0.02940315019
A155: 135 | B155: 33.75 | C155: 1 | D155: 0.40625 | E155: 2.045788365 | F155: -0.3609175052 | G155: 0.02409448842 | H155: 0.006023622104
A156: 136 | B156: 34 | C156: 1 | D156: 0.4166666667 | E156: 2.046447319 | F156: -0.1036508558 | G156: 0.0005707061417 | H156: 0.0001426765354
A157: 137 | B157: 34.25 | C157: 1 | D157: 0.4270833333 | E157: 2.047110496 | F157: 0.1554434751 | G157: 0.00192491413 | H157: 0.0004812285324
A158: 138 | B158: 34.5 | C158: 1 | D158: 0.4375 | E158: 2.047777882 | F158: 0.4122146571 | G158: 0.0358974963 | H158: 0.008974374075
A159: 139 | B159: 34.75 | C159: 1 | D159: 0.4479166667 | E159: 2.048449463 | F159: 0.662546371 | G159: 0.1490536819 | H159: 0.03726342047
A160: 140 | B160: 35 | C160: 1 | D160: 0.4583333333 | E160: 2.049125224 | F160: 0.9024227646 | G160: 0.3766378801 | H160: 0.09415947003
A161: 141 | B161: 35.25 | C161: 1 | D161: 0.46875 | E161: 2.049805153 | F161: 1.127992844 | G161: 0.7355511903 | H161: 0.1838877976
A162: 142 | B162: 35.5 | C162: 1 | D162: 0.4791666667 | E162: 2.050489235 | F162: 1.335632264 | G162: 1.221109399 | H162: 0.3052773497
A163: 143 | B163: 35.75 | C163: 1 | D163: 0.4895833333 | E163: 2.051177456 | F163: 1.522001538 | G163: 1.806920911 | H163: 0.4517302277
A164: 144 | B164: 36 | C164: 1 | D164: 0.5 | E164: 2.051869801 | F164: 1.684099718 | G164: 2.447920332 | H164: 0.611980083
A165: 145 | B165: 36.25 | C165: 1 | D165: 0.5104166667 | E165: 2.052566256 | F165: 1.819312694 | G165: 3.086142097 | H165: 0.7715355243
A166: 146 | B166: 36.5 | C166: 1 | D166: 0.5208333333 | E166: 2.053266807 | F166: 1.925455326 | G166: 3.65842545 | H166: 0.9146063625
A167: 147 | B167: 36.75 | C167: 1 | D167: 0.53125 | E167: 2.053971439 | F167: 2.000806746 | G167: 4.104963488 | H167: 1.026240872
A168: 148 | B168: 37 | C168: 1 | D168: 0.5416666667 | E168: 2.054680137 | F168: 2.044138238 | G168: 4.377484897 | H168: 1.094371224
A169: 149 | B169: 37.25 | C169: 1 | D169: 0.5520833333 | E169: 2.055392887 | F169: 2.054733261 | G169: 4.445905456 | H169: 1.111476364
A170: 150 | B170: 37.5 | C170: 1 | D170: 0.5625 | E170: 2.056109675 | F170: 2.032399285 | G170: 4.3025009 | H170: 1.075625225
A171: 151 | B171: 37.75 | C171: 1 | D171: 0.5729166667 | E171: 2.056830484 | F171: 1.977471238 | G171: 3.963002955 | H171: 0.9907507388
A172: 152 | B172: 38 | C172: 1 | D172: 0.5833333333 | E172: 2.057555301 | F172: 1.890806516 | G172: 3.464456724 | H172: 0.8661141811
A173: 153 | B173: 38.25 | C173: 1 | D173: 0.59375 | E173: 2.058284109 | F173: 1.773771615 | G173: 2.860137895 | H173: 0.7150344736
A174: 154 | B174: 38.5 | C174: 1 | D174: 0.6041666667 | E174: 2.059016895 | F174: 1.628220603 | G174: 2.212246961 | H174: 0.5530617402
A175: 155 | B175: 38.75 | C175: 1 | D175: 0.6145833333 | E175: 2.059753643 | F175: 1.456465769 | G175: 1.583414856 | H175: 0.3958537139
A176: 156 | B176: 39 | C176: 1 | D176: 0.625 | E176: 2.060494337 | F176: 1.261240911 | G176: 1.028224667 | H176: 0.2570561667
A177: 157 | B177: 39.25 | C177: 1 | D177: 0.6354166667 | E177: 2.061238963 | F177: 1.045657848 | G177: 0.5859528543 | H177: 0.1464882136
A178: 158 | B178: 39.5 | C178: 1 | D178: 0.6458333333 | E178: 2.061987504 | F178: 0.8131568454 | G178: 0.2755604192 | H178: 0.06889010481
A179: 159 | B179: 39.75 | C179: 1 | D179: 0.65625 | E179: 2.062739945 | F179: 0.5674517406 | G179: 0.09364415331 | H179: 0.02341103833
A180: 160 | B180: 40 | C180: 1 | D180: 0.6666666667 | E180: 2.063496272 | F180: 0.3124706543 | G180: 0.01563585305 | H180: 0.003908963262
A181: 161 | B181: 40.25 | C181: 1 | D181: 0.6770833333 | E181: 2.064256467 | F181: 0.05229321934 | G181: 7.32875169e-05 | H181: 1.832187922e-05
A182: 162 | B182: 40.5 | C182: 1 | D182: 0.6875 | E182: 2.065020515 | F182: -0.2089146603 | G182: 0.004673052081 | H182: 0.00116826302
A183: 163 | B183: 40.75 | C183: 1 | D183: 0.6979166667 | E183: 2.0657884 | F183: -0.4669674821 | G183: 0.05218597316 | H183: 0.01304649329
A184: 164 | B184: 41 | C184: 1 | D184: 0.7083333333 | E184: 2.066560107 | F184: -0.7177271805 | G184: 0.1894837844 | H184: 0.04737094609
A185: 165 | B185: 41.25 | C185: 1 | D185: 0.71875 | E185: 2.067335619 | F185: -0.9571694539 | G185: 0.4494282435 | H185: 0.1123570609
A186: 166 | B186: 41.5 | C186: 1 | D186: 0.7291666667 | E186: 2.068114921 | F186: -1.181448319 | G186: 0.845158291 | H186: 0.2112895728
A187: 167 | B187: 41.75 | C187: 1 | D187: 0.7395833333 | E187: 2.068897995 | F187: -1.38695786 | G187: 1.367362508 | H187: 0.341840627
A188: 168 | B188: 42 | C188: 1 | D188: 0.75 | E188: 2.069684827 | F188: -1.570390174 | G188: 1.984799204 | H188: 0.4961998011
A189: 169 | B189: 42.25 | C189: 1 | D189: 0.7604166667 | E189: 2.070475399 | F189: -1.728788596 | G189: 2.64800949 | H189: 0.6620023724
A190: 170 | B190: 42.5 | C190: 1 | D190: 0.7708333333 | E190: 2.071269695 | F190: -1.859595335 | G190: 3.2957117 | H190: 0.823927925
A191: 171 | B191: 42.75 | C191: 1 | D191: 0.78125 | E191: 2.072067699 | F191: -1.960692753 | G191: 3.862980363 | H191: 0.9657450907
A192: 172 | B192: 43 | C192: 1 | D192: 0.7916666667 | E192: 2.072869394 | F192: -2.030437636 | G192: 4.290054744 | H192: 1.072513686
A193: 173 | B193: 43.25 | C193: 1 | D193: 0.8020833333 | E193: 2.073674763 | F193: -2.067687885 | G193: 4.530528002 | H193: 1.132632001
A194: 174 | B194: 43.5 | C194: 1 | D194: 0.8125 | E194: 2.074483791 | F194: -2.071821205 | G194: 4.55775201 | H194: 1.139438002
A195: 175 | B195: 43.75 | C195: 1 | D195: 0.8229166667 | E195: 2.075296459 | F195: -2.042745483 | G195: 4.368543317 | H195: 1.092135829
A196: 176 | B196: 44 | C196: 1 | D196: 0.8333333333 | E196: 2.076112751 | F196: -1.980900677 | G196: 3.983657302 | H196: 0.9959143254
A197: 177 | B197: 44.25 | C197: 1 | D197: 0.84375 | E197: 2.076932651 | F197: -1.887252189 | G197: 3.444956028 | H197: 0.861239007
A198: 178 | B198: 44.5 | C198: 1 | D198: 0.8541666667 | E198: 2.07775614 | F198: -1.763275817 | G198: 2.809665531 | H198: 0.7024163829
A199: 179 | B199: 44.75 | C199: 1 | D199: 0.8645833333 | E199: 2.078583203 | F199: -1.610934516 | G199: 2.14253305 | H199: 0.5356332624
A200: 180 | B200: 45 | C200: 1 | D200: 0.875 | E200: 2.079413822 | F200: -1.432647335 | G200: 1.506994815 | H200: 0.3767487037
A201: 181 | B201: 45.25 | C201: 1 | D201: 0.8854166667 | E201: 2.08024798 | F201: -1.231251031 | G201: 0.9566073008 | H201: 0.2391518252
A202: 182 | B202: 45.5 | C202: 1 | D202: 0.8958333333 | E202: 2.081085659 | F202: -1.009954954 | G202: 0.5279586159 | H202: 0.131989654
A203: 183 | B203: 45.75 | C203: 1 | D203: 0.90625 | E203: 2.081926842 | F203: -0.772289931 | G203: 0.2360668405 | H203: 0.05901671013
... 2579 more rows

Sheet Tidal Stream 3
A1: Tidal Stream Resource
A3: =Input!A45 -> Site Name | B3: =IF(Input!B65<>"",Input!B65,"-") -> Sound of Islay | C3: =Input!C45 -> 0 | I3: Plots:
A4: =Input!A46 -> Peak Flow (Springs) | B4: =IF((AND(Input!B66<>"",Input!B66<>"[Enter Value]")),Input!B66,"0") -> 4 | C4: =Input!C46 -> m/s
A5: =Input!A47 -> Peak Flow (Neaps) | B5: =IF((AND(Input!B67<>"",Input!B67<>"[Enter Value]")),Input!B67,"0") -> 3.5 | C5: =Input!C47 -> m/s
A6: =Input!A48 -> Lunar Cycle Period | B6: =IF((AND(Input!B68<>"",Input!B68<>"[Enter Value]")),Input!B68,"0") -> 28.74 | C6: =Input!C48 -> days
A7: =Input!A49 -> Tidal Period | B7: =IF((AND(Input!B69<>"",Input!B69<>"[Enter Value]")),Input!B69,"0") -> 12.4 | C7: =Input!C49 -> hours
A8: =Input!A50 -> Proximity to Grid Connection | B8: =IF(Input!B70<>"",Input!B70,"-") -> 1-2 km
A9: =Input!A51 -> Average Water Depth | B9: =IF(Input!B71<>"",Input!B71,"-") -> > 20m
A10: =Input!A52 -> Seabed Topography | B10: =IF(Input!B72<>"",Input!B72,"-") -> Moderate (Rocky, Gentle Gradient)
A11: =Input!A53 -> Accessibility | B11: =IF(Input!B73<>"",Input!B73,"-") -> Partially Accessible (Complex Temporary Works, Obstacles)
A13: Time Step | B13: 0.25 | C13: hours
A14: Period | B14: =B6/2 -> 14.37 | C14: days
B15: =B14*24 -> 344.88 | C15: hours
A16: Number of Steps | B16: =B15/B13*2 -> 2759.04 | C16: -
A18: No. | B18: Time | E18: Amplitude | F18: Current | G18: Power | H18: Energy
B19: Hours | C19: Day | D19: Time | E19: m/s | F19: m/s | G19: kW/(m^2) | H19: kWh/(m^2)
A20: 0 | B20: =A20*$B$13 -> 0 | C20: =ROUNDDOWN(A20*$B$1/24,0) -> 0 | D20: =MOD(B20,24)/24 -> 0 | E20: =IF(A20<>"",($B$4+$B$5)/2+($B$5-$B$4)/2*COS(2*PI()/$B$15*B20),"") -> 3.5 | F20: =IF(A20<>"",E20*COS(2*PI()/$B$7*B20),"") -> 3.5 | G20: =ABS(0.5*1.025*1*(F20^3)) -> 21.9734375 | H20: =G20*$B$13 -> 5.493359375
A21: =IF(IF(A20<>"",A20+1<=$B$16,0),A20+1,"") -> 1 | B21: =IF(A21<>"",A21*$B$13,"") -> 0.25 | C21: =IF(A21<>"",ROUNDDOWN(A21*$B$13/24,0),"") -> 0 | D21: =IF(A21<>"",MOD(B21,24)/24,"") -> 0.01041666667 | E21: =IF(A21<>"",($B$4+$B$5)/2+($B$5-$B$4)/2*COS(2*PI()/$B$15*B21),"") -> 3.500002593 | F21: =IF(A21<>"",E21*COS(2*PI()/$B$7*B21),"") -> 3.471957692 | G21: =ABS(0.5*1.025*1*(F21^3)) -> 21.44949851 | H21: =G21*$B$13 -> 5.362374628
A22: =IF(IF(A21<>"",A21+1<=$B$16,0),A21+1,"") -> 2 | B22: =IF(A22<>"",A22*$B$13,"") -> 0.5 | C22: =IF(A22<>"",ROUNDDOWN(A22*$B$13/24,0),"") -> 0 | D22: 0.02083333333 | E22: =IF(A22<>"",($B$4+$B$5)/2+($B$5-$B$4)/2*COS(2*PI()/$B$15*B22),"") -> 3.500010372 | F22: =IF(A22<>"",E22*COS(2*PI()/$B$7*B22),"") -> 3.388279957 | G22: 19.93571104 | H22: 4.98392776
A23: 3 | B23: 0.75 | C23: 0 | D23: 0.03125 | E23: 3.500023337 | F23: 3.250307171 | G23: 17.59815294 | H23: 4.399538235
A24: 4 | B24: 1 | C24: 0 | D24: 0.04166666667 | E24: 3.500041488 | F24: 3.060249431 | G24: 14.68805694 | H24: 3.672014235
A25: 5 | B25: 1.25 | C25: 0 | D25: 0.05208333333 | E25: 3.500064824 | F25: 2.821151172 | G25: 11.50728701 | H25: 2.876821753
A26: 6 | B26: 1.5 | C26: 0 | D26: 0.0625 | E26: 3.500093345 | F26: 2.536842411 | G26: 8.367088036 | H26: 2.091772009
A27: 7 | B27: 1.75 | C27: 0 | D27: 0.07291666667 | E27: 3.50012705 | F27: 2.211877422 | G27: 5.545963878 | H27: 1.38649097
A28: 8 | B28: 2 | C28: 0 | D28: 0.08333333333 | E28: 3.500165938 | F28: 1.851461811 | G28: 3.252656081 | H28: 0.8131640201
A29: 9 | B29: 2.25 | C29: 0 | D29: 0.09375 | E29: 3.500210009 | F29: 1.461369154 | G29: 1.599461084 | H29: 0.3998652711
A30: 10 | B30: 2.5 | C30: 0 | D30: 0.1041666667 | E30: 3.500259262 | F30: 1.047848544 | G30: 0.5896433601 | H30: 0.14741084
A31: 11 | B31: 2.75 | C31: 0 | D31: 0.1145833333 | E31: 3.500313695 | F31: 0.617524524 | G31: 0.1206858903 | H31: 0.03017147257
A32: 12 | B32: 3 | C32: 0 | D32: 0.125 | E32: 3.500373309 | F32: 0.1772909987 | G32: 0.002855971894 | H32: 0.0007139929735
A33: 13 | B33: 3.25 | C33: 0 | D33: 0.1354166667 | E33: 3.5004381 | F33: -0.2657991661 | G33: 0.009623980005 | H33: 0.002405995001
A34: 14 | B34: 3.5 | C34: 0 | D34: 0.1458333333 | E34: 3.500508069 | F34: -0.7046470938 | G34: 0.1793117979 | H34: 0.04482794947
A35: 15 | B35: 3.75 | C35: 0 | D35: 0.15625 | E35: 3.500583213 | F35: -1.132221588 | G35: 0.74385479 | H35: 0.1859636975
A36: 16 | B36: 4 | C36: 0 | D36: 0.1666666667 | E36: 3.500663531 | F36: -1.541671746 | G36: 1.877887665 | H36: 0.4694719162
A37: 17 | B37: 4.25 | C37: 0 | D37: 0.1770833333 | E37: 3.500749022 | F37: -1.926436685 | G37: 3.66402214 | H37: 0.9160055349
A38: 18 | B38: 4.5 | C38: 0 | D38: 0.1875 | E38: 3.500839683 | F38: -2.280350636 | G38: 6.077133304 | H38: 1.519283326
A39: 19 | B39: 4.75 | C39: 0 | D39: 0.1979166667 | E39: 3.500935513 | F39: -2.597741713 | G39: 8.98424887 | H39: 2.246062218
A40: 20 | B40: 5 | C40: 0 | D40: 0.2083333333 | E40: 3.50103651 | F40: -2.873522774 | G40: 12.1601183 | H40: 3.040029575
A41: 21 | B41: 5.25 | C41: 0 | D41: 0.21875 | E41: 3.501142671 | F41: -3.103272932 | G41: 15.31629738 | H41: 3.829074344
A42: 22 | B42: 5.5 | C42: 0 | D42: 0.2291666667 | E42: 3.501253995 | F42: -3.283308399 | G42: 18.13964997 | H42: 4.534912493
A43: 23 | B43: 5.75 | C43: 0 | D43: 0.2395833333 | E43: 3.501370478 | F43: -3.410741523 | G43: 20.33481825 | H43: 5.083704562
A44: 24 | B44: 6 | C44: 0 | D44: 0.25 | E44: 3.50149212 | F44: -3.483527096 | G44: 21.6646386 | H44: 5.41615965
A45: 25 | B45: 6.25 | C45: 0 | D45: 0.2604166667 | E45: 3.501618917 | F45: -3.500495161 | G45: 21.98276486 | H45: 5.495691215
A46: 26 | B46: 6.5 | C46: 0 | D46: 0.2708333333 | E46: 3.501750866 | F46: -3.461369811 | G46: 21.25386288 | H46: 5.313465719
A47: 27 | B47: 6.75 | C47: 0 | D47: 0.28125 | E47: 3.501887965 | F47: -3.366773676 | G47: 19.55850423 | H47: 4.889626058
A48: 28 | B48: 7 | C48: 0 | D48: 0.2916666667 | E48: 3.502030211 | F48: -3.218218019 | G48: 17.08206051 | H48: 4.270515129
A49: 29 | B49: 7.25 | C49: 0 | D49: 0.3020833333 | E49: 3.502177601 | F49: -3.018078598 | G49: 14.08917316 | H49: 3.522293289
A50: 30 | B50: 7.5 | C50: 0 | D50: 0.3125 | E50: 3.502330132 | F50: -2.769557691 | G50: 10.88742354 | H50: 2.721855884
A51: 31 | B51: 7.75 | C51: 0 | D51: 0.3229166667 | E51: 3.5024878 | F51: -2.476632875 | G51: 7.785361265 | H51: 1.946340316
A52: 32 | B52: 8 | C52: 0 | D52: 0.3333333333 | E52: 3.502650604 | F52: -2.143993389 | G52: 5.050846795 | H52: 1.262711699
A53: 33 | B53: 8.25 | C53: 0 | D53: 0.34375 | E53: 3.502818538 | F53: -1.776965098 | G53: 2.875613826 | H53: 0.7189034565
A54: 34 | B54: 8.5 | C54: 0 | D54: 0.3541666667 | E54: 3.5029916 | F54: -1.381425248 | G54: 1.351064359 | H54: 0.3377660896
A55: 35 | B55: 8.75 | C55: 0 | D55: 0.3645833333 | E55: 3.503169786 | F55: -0.9637083905 | G55: 0.4587021653 | H55: 0.1146755413
A56: 36 | B56: 9 | C56: 0 | D56: 0.375 | E56: 3.503353092 | F56: -0.5305049726 | G56: 0.07651775982 | H56: 0.01912943996
A57: 37 | B57: 9.25 | C57: 0 | D57: 0.3854166667 | E57: 3.503541516 | F57: -0.0887542163 | G57: 0.0003583115851 | H57: 8.957789629e-05
A58: 38 | B58: 9.5 | C58: 0 | D58: 0.3958333333 | E58: 3.503735051 | F58: 0.3544669958 | G58: 0.0228255517 | H58: 0.005706387925
A59: 39 | B59: 9.75 | C59: 0 | D59: 0.40625 | E59: 3.503933696 | F59: 0.7920574513 | G59: 0.2546618687 | H59: 0.06366546718
A60: 40 | B60: 10 | C60: 0 | D60: 0.4166666667 | E60: 3.504137444 | F60: 1.217005341 | G60: 0.9237858856 | H60: 0.2309464714
A61: 41 | B61: 10.25 | C61: 0 | D61: 0.4270833333 | E61: 3.504346293 | F61: 1.622500574 | G61: 2.189013535 | H61: 0.5472533837
A62: 42 | B62: 10.5 | C62: 0 | D62: 0.4375 | E62: 3.504560239 | F62: 2.002043872 | G62: 4.112582664 | H62: 1.028145666
A63: 43 | B63: 10.75 | C63: 0 | D63: 0.4479166667 | E63: 3.504779275 | F63: 2.349550908 | G63: 6.647348492 | H63: 1.661837123
A64: 44 | B64: 11 | C64: 0 | D64: 0.4583333333 | E64: 3.505003399 | F64: 2.659449799 | G64: 9.639827446 | H64: 2.409956862
A65: 45 | B65: 11.25 | C65: 0 | D65: 0.46875 | E65: 3.505232605 | F65: 2.926770421 | G65: 12.8487193 | H65: 3.212179826
A66: 46 | B66: 11.5 | C66: 0 | D66: 0.4791666667 | E66: 3.505466888 | F66: 3.147224086 | G66: 15.97632433 | H66: 3.994081083
A67: 47 | B67: 11.75 | C67: 0 | D67: 0.4895833333 | E67: 3.505706245 | F67: 3.317272322 | G67: 18.70842577 | H67: 4.677106443
A68: 48 | B68: 12 | C68: 0 | D68: 0.5 | E68: 3.505950669 | F68: 3.434183652 | G68: 20.75699207 | H68: 5.189248017
A69: 49 | B69: 12.25 | C69: 0 | D69: 0.5104166667 | E69: 3.506200155 | F69: 3.496077452 | G69: 21.89964152 | H69: 5.474910381
A70: 50 | B70: 12.5 | C70: 0 | D70: 0.5208333333 | E70: 3.506454699 | F70: 3.50195419 | G70: 22.010264 | H70: 5.502566
A71: 51 | B71: 12.75 | C71: 0 | D71: 0.53125 | E71: 3.506714296 | F71: 3.451711565 | G71: 21.07644516 | H71: 5.269111291
A72: 52 | B72: 13 | C72: 0 | D72: 0.5416666667 | E72: 3.506978939 | F72: 3.346146277 | G72: 19.20121173 | H72: 4.800302932
A73: 53 | B73: 13.25 | C73: 0 | D73: 0.5520833333 | E73: 3.507248624 | F73: 3.186941396 | G73: 16.58884319 | H73: 4.147210798
A74: 54 | B74: 13.5 | C74: 0 | D74: 0.5625 | E74: 3.507523344 | F74: 2.976639544 | G74: 13.51676025 | H74: 3.379190062
A75: 55 | B75: 13.75 | C75: 0 | D75: 0.5729166667 | E75: 3.507803094 | F75: 2.7186023 | G75: 10.29747888 | H75: 2.57436972
A76: 56 | B76: 14 | C76: 0 | D76: 0.5833333333 | E76: 3.508087869 | F76: 2.416956491 | G76: 7.236030141 | H76: 1.809007535
A77: 57 | B77: 14.25 | C77: 0 | D77: 0.59375 | E77: 3.508377662 | F77: 2.07652821 | G77: 4.588887131 | H77: 1.147221783
A78: 58 | B78: 14.5 | C78: 0 | D78: 0.6041666667 | E78: 3.508672467 | F78: 1.702765634 | G78: 2.530221253 | H78: 0.6325553132
A79: 59 | B79: 14.75 | C79: 0 | D79: 0.6145833333 | E79: 3.508972279 | F79: 1.301651866 | G79: 1.130260124 | H79: 0.2825650311
A80: 60 | B80: 15 | C80: 0 | D80: 0.625 | E80: 3.50927709 | F80: 0.8796091891 | G80: 0.3487892916 | H80: 0.08719732289
A81: 61 | B81: 15.25 | C81: 0 | D81: 0.6354166667 | E81: 3.509586896 | F81: 0.4433962772 | G81: 0.04467555916 | H81: 0.01116888979
A82: 62 | B82: 15.5 | C82: 0 | D82: 0.6458333333 | E82: 3.509901688 | F82: -2.042381277e-15 | G82: 4.366207099e-45 | H82: 1.091551775e-45
A83: 63 | B83: 15.75 | C83: 0 | D83: 0.65625 | E83: 3.510221461 | F83: -0.4434764473 | G83: 0.0446997968 | H83: 0.0111749492
A84: 64 | B84: 16 | C84: 0 | D84: 0.6666666667 | E84: 3.510546209 | F84: -0.8799272968 | G84: 0.3491678438 | H84: 0.08729196096
A85: 65 | B85: 16.25 | C85: 0 | D85: =IF(A85<>"",MOD(B85,24)/24,"") -> 0.6770833333 | E85: 3.510875923 | F85: -1.302358022 | G85: =ABS(0.5*1.025*1*(F85^3)) -> 1.132100647 | H85: =G85*$B$13 -> 0.2830251617
A86: =IF(IF(A85<>"",A85+1<=$B$16,0),A85+1,"") -> 66 | B86: =IF(A86<>"",A86*$B$13,"") -> 16.5 | C86: =IF(A86<>"",ROUNDDOWN(A86*$B$13/24,0),"") -> 0 | D86: 0.6875 | E86: =IF(A86<>"",($B$4+$B$5)/2+($B$5-$B$4)/2*COS(2*PI()/$B$15*B86),"") -> 3.511210599 | F86: =IF(A86<>"",E86*COS(2*PI()/$B$7*B86),"") -> -1.703997394 | G86: 2.53571622 | H86: 0.6339290551
A87: 67 | B87: 16.75 | C87: 0 | D87: 0.6979166667 | E87: 3.511550227 | F87: -2.078405978 | G87: 4.601347345 | H87: 1.150336836
A88: 68 | B88: 17 | C88: 0 | D88: 0.7083333333 | E88: 3.511894802 | F88: -2.419579342 | G88: 7.259613065 | H88: 1.814903266
A89: 69 | B89: 17.25 | C89: 0 | D89: 0.71875 | E89: 3.512244317 | F89: -2.722044318 | G89: 10.33664128 | H89: 2.584160319
A90: 70 | B90: 17.5 | C90: 0 | D90: 0.7291666667 | E90: 3.512598764 | F90: -2.98094677 | G90: 13.57552184 | H90: 3.393880459
A91: 71 | B91: 17.75 | C91: 0 | D91: 0.7395833333 | E91: 3.512958135 | F91: -3.192129474 | G91: 16.66999096 | H91: 4.16749774
A92: 72 | B92: 18 | C92: 0 | D92: 0.75 | E92: 3.513322424 | F92: -3.352198845 | G92: 19.30559478 | H92: 4.826398694
A93: 73 | B93: 18.25 | C93: 0 | D93: 0.7604166667 | E93: 3.513691623 | F93: -3.458579453 | G93: 21.20250337 | H93: 5.300625843
A94: 74 | B94: 18.5 | C94: 0 | D94: 0.7708333333 | E94: 3.514065723 | F94: -3.509555445 | G94: 22.15390013 | H94: 5.538475032
A95: 75 | B95: 18.75 | C95: 0 | D95: 0.78125 | E95: 3.514444718 | F95: -3.504298212 | G95: 22.0544911 | H95: 5.513622775
A96: 76 | B96: 19 | C96: 0 | D96: 0.7916666667 | E96: 3.5148286 | F96: -3.442879852 | G96: 20.91507716 | H96: 5.228769291
A97: 77 | B97: 19.25 | C97: 0 | D97: 0.8020833333 | E97: 3.51521736 | F97: -3.326272209 | G97: 18.86110929 | H97: 4.715277322
A98: 78 | B98: 19.5 | C98: 0 | D98: 0.8125 | E98: 3.51561099 | F98: -3.156331507 | G98: 16.11542269 | H98: 4.028855673
A99: 79 | B99: 19.75 | C99: 0 | D99: 0.8229166667 | E99: 3.516009483 | F99: -2.935768811 | G99: 12.96759465 | H99: 3.241898662
A100: 80 | B100: 20 | C100: 0 | D100: 0.8333333333 | E100: 3.51641283 | F100: -2.668106797 | G100: 9.734272453 | H100: 2.433568113
A101: 81 | B101: 20.25 | C101: 0 | D101: 0.84375 | E101: 3.516821022 | F101: -2.357623512 | G101: 6.716101203 | H101: 1.679025301
A102: 82 | B102: 20.5 | C102: 0 | D102: 0.8541666667 | E102: 3.517234052 | F102: -2.009284019 | G102: 4.15736217 | H102: 1.039340542
A103: 83 | B103: 20.75 | C103: 0 | D103: 0.8645833333 | E103: 3.51765191 | F103: -1.628661029 | G103: 2.214042657 | H103: 0.5535106641
A104: 84 | B104: 21 | C104: 0 | D104: 0.875 | E104: 3.518074588 | F104: -1.221845784 | G104: 0.9348524144 | H104: 0.2337131036
A105: 85 | B105: 21.25 | C105: 0 | D105: 0.8854166667 | E105: 3.518502078 | F105: -0.795350606 | G105: 0.2578515335 | H105: 0.06446288338
A106: 86 | B106: 21.5 | C106: 0 | D106: 0.8958333333 | E106: 3.518934369 | F106: -0.3560046853 | G106: 0.02312389618 | H106: 0.005780974044
A107: 87 | B107: 21.75 | C107: 0 | D107: 0.90625 | E107: 3.519371454 | F107: 0.08915523161 | G107: 0.0003631904057 | H107: 9.079760143e-05
A108: 88 | B108: 22 | C108: 0 | D108: 0.9166666667 | E108: 3.519813323 | F108: 0.5329975088 | G108: 0.07760137334 | H108: 0.01940034333
A109: 89 | B109: 22.25 | C109: 0 | D109: 0.9270833333 | E109: 3.520259968 | F109: 0.968409833 | G109: 0.4654482923 | H109: 0.1163620731
A110: 90 | B110: 22.5 | C110: 0 | D110: 0.9375 | E110: 3.520711378 | F110: 1.388413146 | G110: 1.371671203 | H110: 0.3429178007
A111: 91 | B111: 22.75 | C111: 0 | D111: 0.9479166667 | E111: 3.521167545 | F111: 1.786273472 | G111: 2.92104142 | H111: 0.7302603551
A112: 92 | B112: 23 | C112: 0 | D112: 0.9583333333 | E112: 3.521628458 | F112: 2.155609848 | G112: 5.13339102 | H112: 1.283347755
A113: 93 | B113: 23.25 | C113: 0 | D113: 0.96875 | E113: 3.522094109 | F113: 2.490496629 | G113: 7.916837747 | H113: 1.979209437
A114: 94 | B114: 23.5 | C114: 0 | D114: 0.9791666667 | E114: 3.522564488 | F114: 2.785558529 | G114: 11.0772188 | H114: 2.7693047
A115: 95 | B115: 23.75 | C115: 0 | D115: 0.9895833333 | E115: 3.523039585 | F115: 3.036056872 | G115: 14.34245769 | H115: 3.585614424
A116: 96 | B116: 24 | C116: 1 | D116: 0 | E116: 3.52351939 | F116: 3.237965668 | G116: 17.39845118 | H116: 4.349612794
A117: 97 | B117: 24.25 | C117: 1 | D117: 0.01041666667 | E117: 3.524003894 | F117: 3.3880363 | G117: 19.93141052 | H117: 4.982852629
A118: 98 | B118: 24.5 | C118: 1 | D118: 0.02083333333 | E118: 3.524493085 | F118: 3.483849774 | G118: 21.67065952 | H118: 5.417664881
A119: 99 | B119: 24.75 | C119: 1 | D119: 0.03125 | E119: 3.524986955 | F119: 3.5238557 | G119: 22.42581409 | H119: 5.606453522
A120: 100 | B120: 25 | C120: 1 | D120: 0.04166666667 | E120: 3.525485492 | F120: 3.507397366 | G120: 22.11305695 | H120: 5.528264237
A121: 101 | B121: 25.25 | C121: 1 | D121: 0.05208333333 | E121: 3.525988687 | F121: 3.434722518 | G121: 20.76676468 | H121: 5.191691169
A122: 102 | B122: 25.5 | C122: 1 | D122: 0.0625 | E122: 3.526496529 | F122: 3.306979639 | G122: 18.53482256 | H122: 4.633705639
A123: 103 | B123: 25.75 | C123: 1 | D123: 0.07291666667 | E123: 3.527009007 | F123: 3.126199819 | G123: 15.65828057 | H123: 3.914570142
A124: 104 | B124: 26 | C124: 1 | D124: 0.08333333333 | E124: 3.527526111 | F124: 2.89526447 | G124: 12.43823026 | H124: 3.109557564
A125: 105 | B125: 26.25 | C125: 1 | D125: 0.09375 | E125: 3.528047831 | F125: 2.61785942 | G125: 9.194599844 | H125: 2.298649961
A126: 106 | B126: 26.5 | C126: 1 | D126: 0.1041666667 | E126: 3.528574154 | F126: 2.298416107 | G126: 6.222713975 | H126: 1.555678494
A127: 107 | B127: 26.75 | C127: 1 | D127: 0.1145833333 | E127: 3.529105071 | F127: 1.942040812 | G127: 3.753780956 | H127: 0.9384452391
A128: 108 | B128: 27 | C128: 1 | D128: 0.125 | E128: 3.52964057 | F128: 1.554433064 | G128: 1.924907862 | H128: 0.4812269655
A129: 109 | B129: 27.25 | C129: 1 | D129: 0.1354166667 | E129: 3.530180641 | F129: 1.141794521 | G129: 0.762882642 | H129: 0.1907206605
A130: 110 | B130: 27.5 | C130: 1 | D130: 0.1458333333 | E130: 3.530725271 | F130: 0.7107297719 | G130: 0.1839955815 | H130: 0.04599889538
A131: 111 | B131: 27.75 | C131: 1 | D131: 0.15625 | E131: 3.53127445 | F131: 0.2681406662 | G131: 0.00988056824 | H131: 0.00247014206
A132: 112 | B132: 28 | C132: 1 | D132: 0.1666666667 | E132: 3.531828167 | F132: -0.1788841611 | G132: 0.002933658356 | H132: 0.0007334145889
A133: 113 | B133: 28.25 | C133: 1 | D133: 0.1770833333 | E133: 3.53238641 | F133: -0.6231827847 | G133: 0.1240338466 | H133: 0.03100846164
A134: 114 | B134: 28.5 | C134: 1 | D134: 0.1875 | E134: 3.532949166 | F134: -1.057634696 | G134: 0.6063186652 | H134: 0.1515796663
A135: 115 | B135: 28.75 | C135: 1 | D135: 0.1979166667 | E135: 3.533516426 | F135: -1.475274882 | G135: 1.645556182 | H135: 0.4113890455
A136: 116 | B136: 29 | C136: 1 | D136: 0.2083333333 | E136: 3.534088176 | F136: -1.869405454 | G136: 3.348145989 | H136: 0.8370364972
A137: 117 | B137: 29.25 | C137: 1 | D137: 0.21875 | E137: 3.534664405 | F137: -2.233703029 | G137: 5.711762876 | H137: 1.427940719
A138: 118 | B138: 29.5 | C138: 1 | D138: 0.2291666667 | E138: 3.535245101 | F138: -2.562320151 | G138: 8.621722603 | H138: 2.155430651
A139: 119 | B139: 29.75 | C139: 1 | D139: 0.2395833333 | E139: 3.535830253 | F139: -2.849979118 | G139: 11.86366579 | H139: 2.965916447
A140: 120 | B140: 30 | C140: 1 | D140: 0.25 | E140: 3.536419847 | F140: -3.092056726 | G140: 15.15082312 | H140: 3.787705781
A141: 121 | B141: 30.25 | C141: 1 | D141: 0.2604166667 | E141: 3.537013871 | F141: -3.284658541 | G141: 18.16203701 | H141: 4.540509253
A142: 122 | B142: 30.5 | C142: 1 | D142: 0.2708333333 | E142: 3.537612314 | F142: -3.424681537 | G142: 20.58516948 | H142: 5.14629237
A143: 123 | B143: 30.75 | C143: 1 | D143: 0.28125 | E143: 3.538215163 | F143: -3.509864072 | G143: 22.15974521 | H143: 5.539936302
A144: 124 | B144: 31 | C144: 1 | D144: 0.2916666667 | E144: 3.538822405 | F144: -3.538822405 | G144: 22.71277374 | H144: 5.678193434
A145: 125 | B145: 31.25 | C145: 1 | D145: 0.3020833333 | E145: 3.539434028 | F145: -3.51107317 | G145: 22.18265426 | H145: 5.545663565
A146: 126 | B146: 31.5 | C146: 1 | D146: 0.3125 | E146: 3.540050019 | F146: -3.427041424 | G146: 20.62775342 | H146: 5.156938356
A147: 127 | B147: 31.75 | C147: 1 | D147: 0.3229166667 | E147: 3.540670366 | F147: -3.288054156 | G147: 18.21842192 | H147: 4.554605479
A148: 128 | B148: 32 | C148: 1 | D148: 0.3333333333 | E148: 3.541295055 | F148: -3.096319348 | G148: 15.21356903 | H148: 3.803392257
A149: 129 | B149: 32.25 | C149: 1 | D149: =IF(A149<>"",MOD(B149,24)/24,"") -> 0.34375 | E149: 3.541924073 | F149: -2.85489091 | G149: =ABS(0.5*1.025*1*(F149^3)) -> 11.9251108 | H149: =G149*$B$13 -> 2.981277701
A150: =IF(IF(A149<>"",A149+1<=$B$16,0),A149+1,"") -> 130 | B150: =IF(A150<>"",A150*$B$13,"") -> 32.5 | C150: =IF(A150<>"",ROUNDDOWN(A150*$B$13/24,0),"") -> 1 | D150: 0.3541666667 | E150: =IF(A150<>"",($B$4+$B$5)/2+($B$5-$B$4)/2*COS(2*PI()/$B$15*B150),"") -> 3.542557408 | F150: =IF(A150<>"",E150*COS(2*PI()/$B$7*B150),"") -> -2.567620057 | G150: 8.67533289 | H150: 2.168833222
A151: 131 | B151: 32.75 | C151: 1 | D151: 0.3645833333 | E151: 3.543195046 | F151: -2.2390939 | G151: 5.753217463 | H151: 1.438304366
A152: 132 | B152: 33 | C152: 1 | D152: 0.375 | E152: 3.543836974 | F152: -1.874562218 | G152: 3.375930118 | H152: 0.8439825294
A153: 133 | B153: 33.25 | C153: 1 | D153: 0.3854166667 | E153: 3.544483179 | F153: -1.4798536 | G153: 1.660925412 | H153: 0.415231353
A154: 134 | B154: 33.5 | C154: 1 | D154: 0.3958333333 | E154: 3.545133647 | F154: -1.06128228 | G154: 0.6126135642 | H154: 0.153153391
A155: 135 | B155: 33.75 | C155: 1 | D155: 0.40625 | E155: 3.545788365 | F155: -0.6255471545 | G155: 0.1254509714 | H155: 0.03136274285
A156: 136 | B156: 34 | C156: 1 | D156: 0.4166666667 | E156: 3.546447319 | F156: -0.179624609 | G156: 0.002970238872 | H156: 0.000742559718
A157: 137 | B157: 34.25 | C157: 1 | D157: 0.4270833333 | E157: 3.547110496 | F157: 0.2693431465 | G157: 0.01001409386 | H157: 0.002503523464
A158: 138 | B158: 34.5 | C158: 1 | D158: 0.4375 | E158: 3.547777882 | F158: 0.7141624372 | G158: 0.1866744504 | H158: 0.0466686126
A159: 139 | B159: 34.75 | C159: 1 | D159: 0.4479166667 | E159: 3.548449463 | F159: 1.147703352 | G159: 0.7747878819 | H159: 0.1936969705
A160: 140 | B160: 35 | C160: 1 | D160: 0.4583333333 | E160: 3.549125224 | F160: 1.563013992 | G160: 1.956962336 | H160: 0.4892405839
A161: 141 | B161: 35.25 | C161: 1 | D161: 0.46875 | E161: 3.549805153 | F161: 1.953431916 | G161: 3.820222933 | H161: 0.9550557333
A162: 142 | B162: 35.5 | C162: 1 | D162: 0.4791666667 | E162: 3.550489235 | F162: 2.312690988 | G162: 6.339378664 | H162: 1.584844666
A163: 143 | B163: 35.75 | C163: 1 | D163: 0.4895833333 | E163: 3.551177456 | F163: 2.635021916 | G163: 9.376625375 | H163: 2.344156344
A164: 144 | B164: 36 | C164: 1 | D164: 0.5 | E164: 3.551869801 | F164: 2.91524488 | G164: 12.69752258 | H164: 3.174380644
A165: 145 | B165: 36.25 | C165: 1 | D165: 0.5104166667 | E165: 3.552566256 | F165: 3.148852743 | G165: 16.00113993 | H165: 4.000284983
A166: 146 | B166: 36.5 | C166: 1 | D166: 0.5208333333 | E166: 3.553266807 | F166: 3.332083524 | G166: 18.96013858 | H166: 4.740034644
A167: 147 | B167: 36.75 | C167: 1 | D167: 0.53125 | E167: 3.553971439 | F167: 3.461980968 | G167: 21.26512294 | H167: 5.316280734
A168: 148 | B168: 37 | C168: 1 | D168: 0.5416666667 | E168: 3.554680137 | F168: 3.536442223 | G168: 22.66697528 | H168: 5.666743821
A169: 149 | B169: 37.25 | C169: 1 | D169: 0.5520833333 | E169: 3.555392887 | F169: 3.554251874 | G169: 23.01115792 | H169: 5.75278948
A170: 150 | B170: 37.5 | C170: 1 | D170: 0.5625 | E170: 3.556109675 | F170: 3.515101771 | G170: 22.25909895 | H170: 5.564774738
A171: 151 | B171: 37.75 | C171: 1 | D171: 0.5729166667 | E171: 3.556830484 | F171: 3.419596333 | G171: 20.49360673 | H171: 5.123401682
A172: 152 | B172: 38 | C172: 1 | D172: 0.5833333333 | E172: 3.557555301 | F172: 3.269243234 | G172: 17.90752518 | H172: 4.476881294
A173: 153 | B173: 38.25 | C173: 1 | D173: 0.59375 | E173: 3.558284109 | F173: 3.066429616 | G173: 14.77722452 | H173: 3.694306131
A174: 154 | B174: 38.5 | C174: 1 | D174: 0.6041666667 | E174: 3.559016895 | F174: 2.814384208 | G174: 11.4246795 | H174: 2.856169875
A175: 155 | B175: 38.75 | C175: 1 | D175: 0.6145833333 | E175: 3.559753643 | F175: 2.51712594 | G175: 8.173512021 | H175: 2.043378005
A176: 156 | B176: 39 | C176: 1 | D176: 0.625 | E176: 3.560494337 | F176: 2.179399885 | G176: 5.305235175 | H176: 1.326308794
A177: 157 | B177: 39.25 | C177: 1 | D177: 0.6354166667 | E177: 3.561238963 | F177: 1.806601534 | G177: 3.021906296 | H177: 0.7554765739
A178: 158 | B178: 39.5 | C178: 1 | D178: 0.6458333333 | E178: 3.561987504 | F178: 1.404690628 | G178: 1.42048262 | H178: 0.3551206549
A179: 159 | B179: 39.75 | C179: 1 | D179: 0.65625 | E179: 3.562739945 | F179: 0.9800959098 | G179: 0.4825025356 | H179: 0.1206256339
A180: 160 | B180: 40 | C180: 1 | D180: 0.6666666667 | E180: 3.563496272 | F180: 0.5396123205 | G180: 0.08052661448 | H180: 0.02013165362
A181: 161 | B181: 40.25 | C181: 1 | D181: 0.6770833333 | E181: 3.564256467 | F181: 0.09029229081 | G181: 0.0003772644513 | H181: 9.431611283e-05
A182: 162 | B182: 40.5 | C182: 1 | D182: 0.6875 | E182: 3.565020515 | F182: -0.3606671433 | G182: 0.02404438148 | H182: 0.006011095371
A183: 163 | B183: 40.75 | C183: 1 | D183: 0.6979166667 | E183: 3.5657884 | F183: -0.806039588 | G183: 0.2683879337 | H183: 0.06709698343
A184: 164 | B184: 41 | C184: 1 | D184: 0.7083333333 | E184: 3.566560107 | F184: -1.23868506 | G184: 0.9740394977 | H184: 0.2435098744
A185: 165 | B185: 41.25 | C185: 1 | D185: 0.71875 | E185: 3.567335619 | F185: -1.65166442 | G185: 2.309188095 | H185: 0.5772970238
A186: 166 | B186: 41.5 | C186: 1 | D186: 0.7291666667 | E186: 3.568114921 | F186: -2.038350642 | G186: 4.340407979 | H186: 1.085101995
A187: 167 | B187: 41.75 | C187: 1 | D187: 0.7395833333 | E187: 3.568897995 | F187: -2.392535126 | G187: 7.018896483 | H187: 1.754724121
A188: 168 | B188: 42 | C188: 1 | D188: 0.75 | E188: 3.569684827 | F188: -2.708527358 | G188: 10.1834175 | H188: 2.545854376
A189: 169 | B189: 42.25 | C189: 1 | D189: 0.7604166667 | E189: 3.570475399 | F189: -2.981246315 | G189: 13.57961472 | H189: 3.394903681
A190: 170 | B190: 42.5 | C190: 1 | D190: 0.7708333333 | E190: 3.571269695 | F190: -3.206302144 | G190: 16.89301649 | H190: 4.223254124
A191: 171 | B191: 42.75 | C191: 1 | D191: 0.78125 | E191: 3.572067699 | F191: -3.380066806 | G191: 19.79109038 | H191: 4.947772594
A192: 172 | B192: 43 | C192: 1 | D192: 0.7916666667 | E192: 3.572869394 | F192: -3.499732547 | G192: 21.96840058 | H192: 5.492100146
A193: 173 | B193: 43.25 | C193: 1 | D193: 0.8020833333 | E193: 3.573674763 | F193: -3.563357255 | G193: 23.18846324 | H193: 5.79711581
A194: 174 | B194: 43.5 | C194: 1 | D194: 0.8125 | E194: 3.574483791 | F194: -3.569895966 | G194: 23.31634915 | H194: 5.829087288
A195: 175 | B195: 43.75 | C195: 1 | D195: 0.8229166667 | E195: 3.575296459 | F195: -3.519218019 | G195: 22.33738798 | H195: 5.584346995
A196: 176 | B196: 44 | C196: 1 | D196: 0.8333333333 | E196: 3.576112751 | F196: -3.412109561 | G196: 20.35929676 | H196: 5.089824191
A197: 177 | B197: 44.25 | C197: 1 | D197: 0.84375 | E197: 3.576932651 | F197: -3.250261375 | G197: 17.5974091 | H197: 4.399352275
A198: 178 | B198: 44.5 | C198: 1 | D198: 0.8541666667 | E198: 3.57775614 | F198: -3.036242203 | G198: 14.34508439 | H198: 3.586271098
A199: 179 | B199: 44.75 | C199: 1 | D199: 0.8645833333 | E199: 3.578583203 | F199: -2.773457993 | G199: 10.93348584 | H199: 2.73337146
A200: 180 | B200: 45 | C200: 1 | D200: 0.875 | E200: 3.579413822 | F200: -2.466097713 | G200: 7.686430614 | H200: 1.921607654
A201: 181 | B201: 45.25 | C201: 1 | D201: 0.8854166667 | E201: 3.58024798 | F201: -2.119066601 | G201: 4.876718522 | H201: 1.21917963
A202: 182 | B202: 45.5 | C202: 1 | D202: 0.8958333333 | E202: 3.581085659 | F202: -1.737907898 | G202: 2.690135407 | H202: 0.6725338516
A203: 183 | B203: 45.75 | C203: 1 | D203: 0.90625 | E203: 3.581926842 | F203: -1.328714332 | G203: 1.202233232 | H203: 0.300558308
... 2579 more rows

Sheet Tidal Stream 4
A1: Tidal Stream Resource
A3: =Input!A45 -> Site Name | B3: =IF(Input!B75<>"",Input!B75,"-") -> [Enter Name] | C3: =Input!C45 -> 0 | I3: Plots:
A4: =Input!A46 -> Peak Flow (Springs) | B4: =IF((AND(Input!B76<>"",Input!B76<>"[Enter Value]")),Input!B76,"0") -> 0 | C4: =Input!C46 -> m/s
A5: =Input!A47 -> Peak Flow (Neaps) | B5: =IF((AND(Input!B77<>"",Input!B77<>"[Enter Value]")),Input!B77,"0") -> 0 | C5: =Input!C47 -> m/s
A6: =Input!A48 -> Lunar Cycle Period | B6: =IF((AND(Input!B78<>"",Input!B78<>"[Enter Value]")),Input!B78,"0") -> 0 | C6: =Input!C48 -> days
A7: =Input!A49 -> Tidal Period | B7: =IF((AND(Input!B79<>"",Input!B79<>"[Enter Value]")),Input!B79,"0") -> 0 | C7: =Input!C49 -> hours
A8: =Input!A50 -> Proximity to Grid Connection | B8: =IF(Input!B80<>"",Input!B80,"-") -> [Select Value]
A9: =Input!A51 -> Average Water Depth | B9: =IF(Input!B81<>"",Input!B81,"-") -> [Select Value]
A10: =Input!A52 -> Seabed Topography | B10: =IF(Input!B82<>"",Input!B82,"-") -> [Select Value]
A11: =Input!A53 -> Accessibility | B11: =IF(Input!B83<>"",Input!B83,"-") -> [Select Value]
A13: Time Step | B13: 0.25 | C13: hours
A14: Period | B14: =B6/2 -> 0 | C14: days
B15: =B14*24 -> 0 | C15: hours
A16: Number of Steps | B16: =B15/B13*2 -> 0 | C16: -
A18: No. | B18: Time | E18: Amplitude | F18: Current | G18: Power | H18: Energy
B19: Hours | C19: Day | D19: Time | E19: m/s | F19: m/s | G19: kW/(m^2) | H19: kWh/(m^2)
A20: 0 | B20: =A20*$B$13 -> 0 | C20: =ROUNDDOWN(A20*$B$1/24,0) -> 0 | D20: =MOD(B20,24)/24 -> 0 | E20: =IF(A20<>"",($B$4+$B$5)/2+($B$5-$B$4)/2*COS(2*PI()/$B$15*B20),"") ->  | F20: =IF(A20<>"",E20*COS(2*PI()/$B$7*B20),"") ->  | G20: =ABS(0.5*1.025*1*(F20^3)) ->  | H20: =G20*$B$13 -> 
A21: =IF(IF(A20<>"",A20+1<=$B$16,0),A20+1,"") ->  | B21: =IF(A21<>"",A21*$B$13,"") ->  | C21: =IF(A21<>"",ROUNDDOWN(A21*$B$13/24,0),"") ->  | D21: =IF(A21<>"",MOD(B21,24)/24,"") ->  | E21: =IF(A21<>"",($B$4+$B$5)/2+($B$5-$B$4)/2*COS(2*PI()/$B$15*B21),"") ->  | F21: =IF(A21<>"",E21*COS(2*PI()/$B$7*B21),"") ->  | G21: =ABS(0.5*1.025*1*(F21^3)) ->  | H21: =G21*$B$13 -> 
A22: =IF(IF(A21<>"",A21+1<=$B$16,0),A21+1,"") ->  | B22: =IF(A22<>"",A22*$B$13,"") ->  | C22: =IF(A22<>"",ROUNDDOWN(A22*$B$13/24,0),"") ->  | E22: =IF(A22<>"",($B$4+$B$5)/2+($B$5-$B$4)/2*COS(2*PI()/$B$15*B22),"") ->  | F22: =IF(A22<>"",E22*COS(2*PI()/$B$7*B22),"") -> 
D85: =IF(A85<>"",MOD(B85,24)/24,"") ->  | G85: =ABS(0.5*1.025*1*(F85^3)) ->  | H85: =G85*$B$13 -> 
A86: =IF(IF(A85<>"",A85+1<=$B$16,0),A85+1,"") ->  | B86: =IF(A86<>"",A86*$B$13,"") ->  | C86: =IF(A86<>"",ROUNDDOWN(A86*$B$13/24,0),"") ->  | E86: =IF(A86<>"",($B$4+$B$5)/2+($B$5-$B$4)/2*COS(2*PI()/$B$15*B86),"") ->  | F86: =IF(A86<>"",E86*COS(2*PI()/$B$7*B86),"") -> 
D149: =IF(A149<>"",MOD(B149,24)/24,"") ->  | G149: =ABS(0.5*1.025*1*(F149^3)) ->  | H149: =G149*$B$13 -> 
A150: =IF(IF(A149<>"",A149+1<=$B$16,0),A149+1,"") ->  | B150: =IF(A150<>"",A150*$B$13,"") ->  | C150: =IF(A150<>"",ROUNDDOWN(A150*$B$13/24,0),"") ->  | E150: =IF(A150<>"",($B$4+$B$5)/2+($B$5-$B$4)/2*COS(2*PI()/$B$15*B150),"") ->  | F150: =IF(A150<>"",E150*COS(2*PI()/$B$7*B150),"") -> 
D213: =IF(A213<>"",MOD(B213,24)/24,"") ->  | G213: =ABS(0.5*1.025*1*(F213^3)) ->  | H213: =G213*$B$13 -> 
A214: =IF(IF(A213<>"",A213+1<=$B$16,0),A213+1,"") ->  | B214: =IF(A214<>"",A214*$B$13,"") ->  | C214: =IF(A214<>"",ROUNDDOWN(A214*$B$13/24,0),"") ->  | E214: =IF(A214<>"",($B$4+$B$5)/2+($B$5-$B$4)/2*COS(2*PI()/$B$15*B214),"") ->  | F214: =IF(A214<>"",E214*COS(2*PI()/$B$7*B214),"") -> 
D277: =IF(A277<>"",MOD(B277,24)/24,"") ->  | G277: =ABS(0.5*1.025*1*(F277^3)) ->  | H277: =G277*$B$13 -> 
A278: =IF(IF(A277<>"",A277+1<=$B$16,0),A277+1,"") ->  | B278: =IF(A278<>"",A278*$B$13,"") ->  | C278: =IF(A278<>"",ROUNDDOWN(A278*$B$13/24,0),"") ->  | E278: =IF(A278<>"",($B$4+$B$5)/2+($B$5-$B$4)/2*COS(2*PI()/$B$15*B278),"") ->  | F278: =IF(A278<>"",E278*COS(2*PI()/$B$7*B278),"") -> 
D341: =IF(A341<>"",MOD(B341,24)/24,"") ->  | G341: =ABS(0.5*1.025*1*(F341^3)) ->  | H341: =G341*$B$13 -> 
A342: =IF(IF(A341<>"",A341+1<=$B$16,0),A341+1,"") ->  | B342: =IF(A342<>"",A342*$B$13,"") ->  | C342: =IF(A342<>"",ROUNDDOWN(A342*$B$13/24,0),"") ->  | E342: =IF(A342<>"",($B$4+$B$5)/2+($B$5-$B$4)/2*COS(2*PI()/$B$15*B342),"") ->  | F342: =IF(A342<>"",E342*COS(2*PI()/$B$7*B342),"") -> 
D405: =IF(A405<>"",MOD(B405,24)/24,"") ->  | G405: =ABS(0.5*1.025*1*(F405^3)) ->  | H405: =G405*$B$13 -> 
A406: =IF(IF(A405<>"",A405+1<=$B$16,0),A405+1,"") ->  | B406: =IF(A406<>"",A406*$B$13,"") ->  | C406: =IF(A406<>"",ROUNDDOWN(A406*$B$13/24,0),"") ->  | E406: =IF(A406<>"",($B$4+$B$5)/2+($B$5-$B$4)/2*COS(2*PI()/$B$15*B406),"") ->  | F406: =IF(A406<>"",E406*COS(2*PI()/$B$7*B406),"") -> 
D469: =IF(A469<>"",MOD(B469,24)/24,"") ->  | G469: =ABS(0.5*1.025*1*(F469^3)) ->  | H469: =G469*$B$13 -> 
A470: =IF(IF(A469<>"",A469+1<=$B$16,0),A469+1,"") ->  | B470: =IF(A470<>"",A470*$B$13,"") ->  | C470: =IF(A470<>"",ROUNDDOWN(A470*$B$13/24,0),"") ->  | E470: =IF(A470<>"",($B$4+$B$5)/2+($B$5-$B$4)/2*COS(2*PI()/$B$15*B470),"") ->  | F470: =IF(A470<>"",E470*COS(2*PI()/$B$7*B470),"") -> 
D533: =IF(A533<>"",MOD(B533,24)/24,"") ->  | G533: =ABS(0.5*1.025*1*(F533^3)) ->  | H533: =G533*$B$13 -> 
A534: =IF(IF(A533<>"",A533+1<=$B$16,0),A533+1,"") ->  | B534: =IF(A534<>"",A534*$B$13,"") ->  | C534: =IF(A534<>"",ROUNDDOWN(A534*$B$13/24,0),"") ->  | E534: =IF(A534<>"",($B$4+$B$5)/2+($B$5-$B$4)/2*COS(2*PI()/$B$15*B534),"") ->  | F534: =IF(A534<>"",E534*COS(2*PI()/$B$7*B534),"") -> 
D597: =IF(A597<>"",MOD(B597,24)/24,"") ->  | G597: =ABS(0.5*1.025*1*(F597^3)) ->  | H597: =G597*$B$13 -> 
A598: =IF(IF(A597<>"",A597+1<=$B$16,0),A597+1,"") ->  | B598: =IF(A598<>"",A598*$B$13,"") ->  | C598: =IF(A598<>"",ROUNDDOWN(A598*$B$13/24,0),"") ->  | E598: =IF(A598<>"",($B$4+$B$5)/2+($B$5-$B$4)/2*COS(2*PI()/$B$15*B598),"") ->  | F598: =IF(A598<>"",E598*COS(2*PI()/$B$7*B598),"") -> 
D661: =IF(A661<>"",MOD(B661,24)/24,"") ->  | G661: =ABS(0.5*1.025*1*(F661^3)) ->  | H661: =G661*$B$13 -> 
A662: =IF(IF(A661<>"",A661+1<=$B$16,0),A661+1,"") ->  | B662: =IF(A662<>"",A662*$B$13,"") ->  | C662: =IF(A662<>"",ROUNDDOWN(A662*$B$13/24,0),"") ->  | E662: =IF(A662<>"",($B$4+$B$5)/2+($B$5-$B$4)/2*COS(2*PI()/$B$15*B662),"") ->  | F662: =IF(A662<>"",E662*COS(2*PI()/$B$7*B662),"") -> 
D725: =IF(A725<>"",MOD(B725,24)/24,"") ->  | G725: =ABS(0.5*1.025*1*(F725^3)) ->  | H725: =G725*$B$13 -> 
A726: =IF(IF(A725<>"",A725+1<=$B$16,0),A725+1,"") ->  | B726: =IF(A726<>"",A726*$B$13,"") ->  | C726: =IF(A726<>"",ROUNDDOWN(A726*$B$13/24,0),"") ->  | E726: =IF(A726<>"",($B$4+$B$5)/2+($B$5-$B$4)/2*COS(2*PI()/$B$15*B726),"") ->  | F726: =IF(A726<>"",E726*COS(2*PI()/$B$7*B726),"") -> 
D789: =IF(A789<>"",MOD(B789,24)/24,"") ->  | G789: =ABS(0.5*1.025*1*(F789^3)) ->  | H789: =G789*$B$13 -> 
A790: =IF(IF(A789<>"",A789+1<=$B$16,0),A789+1,"") ->  | B790: =IF(A790<>"",A790*$B$13,"") ->  | C790: =IF(A790<>"",ROUNDDOWN(A790*$B$13/24,0),"") ->  | E790: =IF(A790<>"",($B$4+$B$5)/2+($B$5-$B$4)/2*COS(2*PI()/$B$15*B790),"") ->  | F790: =IF(A790<>"",E790*COS(2*PI()/$B$7*B790),"") -> 
D853: =IF(A853<>"",MOD(B853,24)/24,"") ->  | G853: =ABS(0.5*1.025*1*(F853^3)) ->  | H853: =G853*$B$13 -> 
A854: =IF(IF(A853<>"",A853+1<=$B$16,0),A853+1,"") ->  | B854: =IF(A854<>"",A854*$B$13,"") ->  | C854: =IF(A854<>"",ROUNDDOWN(A854*$B$13/24,0),"") ->  | E854: =IF(A854<>"",($B$4+$B$5)/2+($B$5-$B$4)/2*COS(2*PI()/$B$15*B854),"") ->  | F854: =IF(A854<>"",E854*COS(2*PI()/$B$7*B854),"") -> 
D917: =IF(A917<>"",MOD(B917,24)/24,"") ->  | G917: =ABS(0.5*1.025*1*(F917^3)) ->  | H917: =G917*$B$13 -> 
A918: =IF(IF(A917<>"",A917+1<=$B$16,0),A917+1,"") ->  | B918: =IF(A918<>"",A918*$B$13,"") ->  | C918: =IF(A918<>"",ROUNDDOWN(A918*$B$13/24,0),"") ->  | E918: =IF(A918<>"",($B$4+$B$5)/2+($B$5-$B$4)/2*COS(2*PI()/$B$15*B918),"") ->  | F918: =IF(A918<>"",E918*COS(2*PI()/$B$7*B918),"") -> 
D981: =IF(A981<>"",MOD(B981,24)/24,"") ->  | G981: =ABS(0.5*1.025*1*(F981^3)) ->  | H981: =G981*$B$13 -> 
A982: =IF(IF(A981<>"",A981+1<=$B$16,0),A981+1,"") ->  | B982: =IF(A982<>"",A982*$B$13,"") ->  | C982: =IF(A982<>"",ROUNDDOWN(A982*$B$13/24,0),"") ->  | E982: =IF(A982<>"",($B$4+$B$5)/2+($B$5-$B$4)/2*COS(2*PI()/$B$15*B982),"") ->  | F982: =IF(A982<>"",E982*COS(2*PI()/$B$7*B982),"") -> 
D1045: =IF(A1045<>"",MOD(B1045,24)/24,"") ->  | G1045: =ABS(0.5*1.025*1*(F1045^3)) ->  | H1045: =G1045*$B$13 -> 
A1046: =IF(IF(A1045<>"",A1045+1<=$B$16,0),A1045+1,"") ->  | B1046: =IF(A1046<>"",A1046*$B$13,"") ->  | C1046: =IF(A1046<>"",ROUNDDOWN(A1046*$B$13/24,0),"") ->  | E1046: =IF(A1046<>"",($B$4+$B$5)/2+($B$5-$B$4)/2*COS(2*PI()/$B$15*B1046),"") ->  | F1046: =IF(A1046<>"",E1046*COS(2*PI()/$B$7*B1046),"") -> 
D1109: =IF(A1109<>"",MOD(B1109,24)/24,"") ->  | G1109: =ABS(0.5*1.025*1*(F1109^3)) ->  | H1109: =G1109*$B$13 -> 
A1110: =IF(IF(A1109<>"",A1109+1<=$B$16,0),A1109+1,"") ->  | B1110: =IF(A1110<>"",A1110*$B$13,"") ->  | C1110: =IF(A1110<>"",ROUNDDOWN(A1110*$B$13/24,0),"") ->  | E1110: =IF(A1110<>"",($B$4+$B$5)/2+($B$5-$B$4)/2*COS(2*PI()/$B$15*B1110),"") ->  | F1110: =IF(A1110<>"",E1110*COS(2*PI()/$B$7*B1110),"") -> 
D1173: =IF(A1173<>"",MOD(B1173,24)/24,"") ->  | G1173: =ABS(0.5*1.025*1*(F1173^3)) ->  | H1173: =G1173*$B$13 -> 
A1174: =IF(IF(A1173<>"",A1173+1<=$B$16,0),A1173+1,"") ->  | B1174: =IF(A1174<>"",A1174*$B$13,"") ->  | C1174: =IF(A1174<>"",ROUNDDOWN(A1174*$B$13/24,0),"") ->  | E1174: =IF(A1174<>"",($B$4+$B$5)/2+($B$5-$B$4)/2*COS(2*PI()/$B$15*B1174),"") ->  | F1174: =IF(A1174<>"",E1174*COS(2*PI()/$B$7*B1174),"") -> 
D1237: =IF(A1237<>"",MOD(B1237,24)/24,"") ->  | G1237: =ABS(0.5*1.025*1*(F1237^3)) ->  | H1237: =G1237*$B$13 -> 
A1238: =IF(IF(A1237<>"",A1237+1<=$B$16,0),A1237+1,"") ->  | B1238: =IF(A1238<>"",A1238*$B$13,"") ->  | C1238: =IF(A1238<>"",ROUNDDOWN(A1238*$B$13/24,0),"") ->  | E1238: =IF(A1238<>"",($B$4+$B$5)/2+($B$5-$B$4)/2*COS(2*PI()/$B$15*B1238),"") ->  | F1238: =IF(A1238<>"",E1238*COS(2*PI()/$B$7*B1238),"") -> 
D1301: =IF(A1301<>"",MOD(B1301,24)/24,"") ->  | G1301: =ABS(0.5*1.025*1*(F1301^3)) ->  | H1301: =G1301*$B$13 -> 
A1302: =IF(IF(A1301<>"",A1301+1<=$B$16,0),A1301+1,"") ->  | B1302: =IF(A1302<>"",A1302*$B$13,"") ->  | C1302: =IF(A1302<>"",ROUNDDOWN(A1302*$B$13/24,0),"") ->  | E1302: =IF(A1302<>"",($B$4+$B$5)/2+($B$5-$B$4)/2*COS(2*PI()/$B$15*B1302),"") ->  | F1302: =IF(A1302<>"",E1302*COS(2*PI()/$B$7*B1302),"") -> 
D1365: =IF(A1365<>"",MOD(B1365,24)/24,"") ->  | G1365: =ABS(0.5*1.025*1*(F1365^3)) ->  | H1365: =G1365*$B$13 -> 
A1366: =IF(IF(A1365<>"",A1365+1<=$B$16,0),A1365+1,"") ->  | B1366: =IF(A1366<>"",A1366*$B$13,"") ->  | C1366: =IF(A1366<>"",ROUNDDOWN(A1366*$B$13/24,0),"") ->  | E1366: =IF(A1366<>"",($B$4+$B$5)/2+($B$5-$B$4)/2*COS(2*PI()/$B$15*B1366),"") ->  | F1366: =IF(A1366<>"",E1366*COS(2*PI()/$B$7*B1366),"") -> 
D1429: =IF(A1429<>"",MOD(B1429,24)/24,"") ->  | G1429: =ABS(0.5*1.025*1*(F1429^3)) ->  | H1429: =G1429*$B$13 -> 
A1430: =IF(IF(A1429<>"",A1429+1<=$B$16,0),A1429+1,"") ->  | B1430: =IF(A1430<>"",A1430*$B$13,"") ->  | C1430: =IF(A1430<>"",ROUNDDOWN(A1430*$B$13/24,0),"") ->  | E1430: =IF(A1430<>"",($B$4+$B$5)/2+($B$5-$B$4)/2*COS(2*PI()/$B$15*B1430),"") ->  | F1430: =IF(A1430<>"",E1430*COS(2*PI()/$B$7*B1430),"") -> 
D1493: =IF(A1493<>"",MOD(B1493,24)/24,"") ->  | G1493: =ABS(0.5*1.025*1*(F1493^3)) ->  | H1493: =G1493*$B$13 -> 
A1494: =IF(IF(A1493<>"",A1493+1<=$B$16,0),A1493+1,"") ->  | B1494: =IF(A1494<>"",A1494*$B$13,"") ->  | C1494: =IF(A1494<>"",ROUNDDOWN(A1494*$B$13/24,0),"") ->  | E1494: =IF(A1494<>"",($B$4+$B$5)/2+($B$5-$B$4)/2*COS(2*PI()/$B$15*B1494),"") ->  | F1494: =IF(A1494<>"",E1494*COS(2*PI()/$B$7*B1494),"") -> 
D1557: =IF(A1557<>"",MOD(B1557,24)/24,"") ->  | G1557: =ABS(0.5*1.025*1*(F1557^3)) ->  | H1557: =G1557*$B$13 -> 
A1558: =IF(IF(A1557<>"",A1557+1<=$B$16,0),A1557+1,"") ->  | B1558: =IF(A1558<>"",A1558*$B$13,"") ->  | C1558: =IF(A1558<>"",ROUNDDOWN(A1558*$B$13/24,0),"") ->  | E1558: =IF(A1558<>"",($B$4+$B$5)/2+($B$5-$B$4)/2*COS(2*PI()/$B$15*B1558),"") ->  | F1558: =IF(A1558<>"",E1558*COS(2*PI()/$B$7*B1558),"") -> 
D1621: =IF(A1621<>"",MOD(B1621,24)/24,"") ->  | G1621: =ABS(0.5*1.025*1*(F1621^3)) ->  | H1621: =G1621*$B$13 -> 
A1622: =IF(IF(A1621<>"",A1621+1<=$B$16,0),A1621+1,"") ->  | B1622: =IF(A1622<>"",A1622*$B$13,"") ->  | C1622: =IF(A1622<>"",ROUNDDOWN(A1622*$B$13/24,0),"") ->  | E1622: =IF(A1622<>"",($B$4+$B$5)/2+($B$5-$B$4)/2*COS(2*PI()/$B$15*B1622),"") ->  | F1622: =IF(A1622<>"",E1622*COS(2*PI()/$B$7*B1622),"") -> 
D1685: =IF(A1685<>"",MOD(B1685,24)/24,"") ->  | G1685: =ABS(0.5*1.025*1*(F1685^3)) ->  | H1685: =G1685*$B$13 -> 
A1686: =IF(IF(A1685<>"",A1685+1<=$B$16,0),A1685+1,"") ->  | B1686: =IF(A1686<>"",A1686*$B$13,"") ->  | C1686: =IF(A1686<>"",ROUNDDOWN(A1686*$B$13/24,0),"") ->  | E1686: =IF(A1686<>"",($B$4+$B$5)/2+($B$5-$B$4)/2*COS(2*PI()/$B$15*B1686),"") ->  | F1686: =IF(A1686<>"",E1686*COS(2*PI()/$B$7*B1686),"") -> 
D1749: =IF(A1749<>"",MOD(B1749,24)/24,"") ->  | G1749: =ABS(0.5*1.025*1*(F1749^3)) ->  | H1749: =G1749*$B$13 -> 
A1750: =IF(IF(A1749<>"",A1749+1<=$B$16,0),A1749+1,"") ->  | B1750: =IF(A1750<>"",A1750*$B$13,"") ->  | C1750: =IF(A1750<>"",ROUNDDOWN(A1750*$B$13/24,0),"") ->  | E1750: =IF(A1750<>"",($B$4+$B$5)/2+($B$5-$B$4)/2*COS(2*PI()/$B$15*B1750),"") ->  | F1750: =IF(A1750<>"",E1750*COS(2*PI()/$B$7*B1750),"") -> 
D1813: =IF(A1813<>"",MOD(B1813,24)/24,"") ->  | G1813: =ABS(0.5*1.025*1*(F1813^3)) ->  | H1813: =G1813*$B$13 -> 
A1814: =IF(IF(A1813<>"",A1813+1<=$B$16,0),A1813+1,"") ->  | B1814: =IF(A1814<>"",A1814*$B$13,"") ->  | C1814: =IF(A1814<>"",ROUNDDOWN(A1814*$B$13/24,0),"") ->  | E1814: =IF(A1814<>"",($B$4+$B$5)/2+($B$5-$B$4)/2*COS(2*PI()/$B$15*B1814),"") ->  | F1814: =IF(A1814<>"",E1814*COS(2*PI()/$B$7*B1814),"") -> 
D1877: =IF(A1877<>"",MOD(B1877,24)/24,"") ->  | G1877: =ABS(0.5*1.025*1*(F1877^3)) ->  | H1877: =G1877*$B$13 -> 
A1878: =IF(IF(A1877<>"",A1877+1<=$B$16,0),A1877+1,"") ->  | B1878: =IF(A1878<>"",A1878*$B$13,"") ->  | C1878: =IF(A1878<>"",ROUNDDOWN(A1878*$B$13/24,0),"") ->  | E1878: =IF(A1878<>"",($B$4+$B$5)/2+($B$5-$B$4)/2*COS(2*PI()/$B$15*B1878),"") ->  | F1878: =IF(A1878<>"",E1878*COS(2*PI()/$B$7*B1878),"") -> 
D1941: =IF(A1941<>"",MOD(B1941,24)/24,"") ->  | G1941: =ABS(0.5*1.025*1*(F1941^3)) ->  | H1941: =G1941*$B$13 -> 
A1942: =IF(IF(A1941<>"",A1941+1<=$B$16,0),A1941+1,"") ->  | B1942: =IF(A1942<>"",A1942*$B$13,"") ->  | C1942: =IF(A1942<>"",ROUNDDOWN(A1942*$B$13/24,0),"") ->  | E1942: =IF(A1942<>"",($B$4+$B$5)/2+($B$5-$B$4)/2*COS(2*PI()/$B$15*B1942),"") ->  | F1942: =IF(A1942<>"",E1942*COS(2*PI()/$B$7*B1942),"") -> 
D2005: =IF(A2005<>"",MOD(B2005,24)/24,"") ->  | G2005: =ABS(0.5*1.025*1*(F2005^3)) ->  | H2005: =G2005*$B$13 -> 
A2006: =IF(IF(A2005<>"",A2005+1<=$B$16,0),A2005+1,"") ->  | B2006: =IF(A2006<>"",A2006*$B$13,"") ->  | C2006: =IF(A2006<>"",ROUNDDOWN(A2006*$B$13/24,0),"") ->  | E2006: =IF(A2006<>"",($B$4+$B$5)/2+($B$5-$B$4)/2*COS(2*PI()/$B$15*B2006),"") ->  | F2006: =IF(A2006<>"",E2006*COS(2*PI()/$B$7*B2006),"") -> 
D2069: =IF(A2069<>"",MOD(B2069,24)/24,"") ->  | G2069: =ABS(0.5*1.025*1*(F2069^3)) ->  | H2069: =G2069*$B$13 -> 
A2070: =IF(IF(A2069<>"",A2069+1<=$B$16,0),A2069+1,"") ->  | B2070: =IF(A2070<>"",A2070*$B$13,"") ->  | C2070: =IF(A2070<>"",ROUNDDOWN(A2070*$B$13/24,0),"") ->  | E2070: =IF(A2070<>"",($B$4+$B$5)/2+($B$5-$B$4)/2*COS(2*PI()/$B$15*B2070),"") ->  | F2070: =IF(A2070<>"",E2070*COS(2*PI()/$B$7*B2070),"") -> 
D2133: =IF(A2133<>"",MOD(B2133,24)/24,"") ->  | G2133: =ABS(0.5*1.025*1*(F2133^3)) ->  | H2133: =G2133*$B$13 -> 
A2134: =IF(IF(A2133<>"",A2133+1<=$B$16,0),A2133+1,"") ->  | B2134: =IF(A2134<>"",A2134*$B$13,"") ->  | C2134: =IF(A2134<>"",ROUNDDOWN(A2134*$B$13/24,0),"") ->  | E2134: =IF(A2134<>"",($B$4+$B$5)/2+($B$5-$B$4)/2*COS(2*PI()/$B$15*B2134),"") ->  | F2134: =IF(A2134<>"",E2134*COS(2*PI()/$B$7*B2134),"") -> 
D2197: =IF(A2197<>"",MOD(B2197,24)/24,"") ->  | G2197: =ABS(0.5*1.025*1*(F2197^3)) ->  | H2197: =G2197*$B$13 -> 
A2198: =IF(IF(A2197<>"",A2197+1<=$B$16,0),A2197+1,"") ->  | B2198: =IF(A2198<>"",A2198*$B$13,"") ->  | C2198: =IF(A2198<>"",ROUNDDOWN(A2198*$B$13/24,0),"") ->  | E2198: =IF(A2198<>"",($B$4+$B$5)/2+($B$5-$B$4)/2*COS(2*PI()/$B$15*B2198),"") ->  | F2198: =IF(A2198<>"",E2198*COS(2*PI()/$B$7*B2198),"") -> 
D2261: =IF(A2261<>"",MOD(B2261,24)/24,"") ->  | G2261: =ABS(0.5*1.025*1*(F2261^3)) ->  | H2261: =G2261*$B$13 -> 
A2262: =IF(IF(A2261<>"",A2261+1<=$B$16,0),A2261+1,"") ->  | B2262: =IF(A2262<>"",A2262*$B$13,"") ->  | C2262: =IF(A2262<>"",ROUNDDOWN(A2262*$B$13/24,0),"") ->  | E2262: =IF(A2262<>"",($B$4+$B$5)/2+($B$5-$B$4)/2*COS(2*PI()/$B$15*B2262),"") ->  | F2262: =IF(A2262<>"",E2262*COS(2*PI()/$B$7*B2262),"") -> 
D2325: =IF(A2325<>"",MOD(B2325,24)/24,"") ->  | G2325: =ABS(0.5*1.025*1*(F2325^3)) ->  | H2325: =G2325*$B$13 -> 
A2326: =IF(IF(A2325<>"",A2325+1<=$B$16,0),A2325+1,"") ->  | B2326: =IF(A2326<>"",A2326*$B$13,"") ->  | C2326: =IF(A2326<>"",ROUNDDOWN(A2326*$B$13/24,0),"") ->  | E2326: =IF(A2326<>"",($B$4+$B$5)/2+($B$5-$B$4)/2*COS(2*PI()/$B$15*B2326),"") ->  | F2326: =IF(A2326<>"",E2326*COS(2*PI()/$B$7*B2326),"") -> 
D2389: =IF(A2389<>"",MOD(B2389,24)/24,"") ->  | G2389: =ABS(0.5*1.025*1*(F2389^3)) ->  | H2389: =G2389*$B$13 -> 
A2390: =IF(IF(A2389<>"",A2389+1<=$B$16,0),A2389+1,"") ->  | B2390: =IF(A2390<>"",A2390*$B$13,"") ->  | C2390: =IF(A2390<>"",ROUNDDOWN(A2390*$B$13/24,0),"") ->  | E2390: =IF(A2390<>"",($B$4+$B$5)/2+($B$5-$B$4)/2*COS(2*PI()/$B$15*B2390),"") ->  | F2390: =IF(A2390<>"",E2390*COS(2*PI()/$B$7*B2390),"") -> 
D2453: =IF(A2453<>"",MOD(B2453,24)/24,"") ->  | G2453: =ABS(0.5*1.025*1*(F2453^3)) ->  | H2453: =G2453*$B$13 -> 
A2454: =IF(IF(A2453<>"",A2453+1<=$B$16,0),A2453+1,"") ->  | B2454: =IF(A2454<>"",A2454*$B$13,"") ->  | C2454: =IF(A2454<>"",ROUNDDOWN(A2454*$B$13/24,0),"") ->  | E2454: =IF(A2454<>"",($B$4+$B$5)/2+($B$5-$B$4)/2*COS(2*PI()/$B$15*B2454),"") ->  | F2454: =IF(A2454<>"",E2454*COS(2*PI()/$B$7*B2454),"") -> 
D2517: =IF(A2517<>"",MOD(B2517,24)/24,"") ->  | G2517: =ABS(0.5*1.025*1*(F2517^3)) ->  | H2517: =G2517*$B$13 -> 
A2518: =IF(IF(A2517<>"",A2517+1<=$B$16,0),A2517+1,"") ->  | B2518: =IF(A2518<>"",A2518*$B$13,"") ->  | C2518: =IF(A2518<>"",ROUNDDOWN(A2518*$B$13/24,0),"") ->  | E2518: =IF(A2518<>"",($B$4+$B$5)/2+($B$5-$B$4)/2*COS(2*PI()/$B$15*B2518),"") ->  | F2518: =IF(A2518<>"",E2518*COS(2*PI()/$B$7*B2518),"") -> 
D2581: =IF(A2581<>"",MOD(B2581,24)/24,"") ->  | G2581: =ABS(0.5*1.025*1*(F2581^3)) ->  | H2581: =G2581*$B$13 -> 
A2582: =IF(IF(A2581<>"",A2581+1<=$B$16,0),A2581+1,"") ->  | B2582: =IF(A2582<>"",A2582*$B$13,"") ->  | C2582: =IF(A2582<>"",ROUNDDOWN(A2582*$B$13/24,0),"") ->  | E2582: =IF(A2582<>"",($B$4+$B$5)/2+($B$5-$B$4)/2*COS(2*PI()/$B$15*B2582),"") ->  | F2582: =IF(A2582<>"",E2582*COS(2*PI()/$B$7*B2582),"") -> 
D2645: =IF(A2645<>"",MOD(B2645,24)/24,"") ->  | G2645: =ABS(0.5*1.025*1*(F2645^3)) ->  | H2645: =G2645*$B$13 -> 
A2646: =IF(IF(A2645<>"",A2645+1<=$B$16,0),A2645+1,"") ->  | B2646: =IF(A2646<>"",A2646*$B$13,"") ->  | C2646: =IF(A2646<>"",ROUNDDOWN(A2646*$B$13/24,0),"") ->  | E2646: =IF(A2646<>"",($B$4+$B$5)/2+($B$5-$B$4)/2*COS(2*PI()/$B$15*B2646),"") ->  | F2646: =IF(A2646<>"",E2646*COS(2*PI()/$B$7*B2646),"") -> 
D2709: =IF(A2709<>"",MOD(B2709,24)/24,"") ->  | G2709: =ABS(0.5*1.025*1*(F2709^3)) ->  | H2709: =G2709*$B$13 -> 
A2710: =IF(IF(A2709<>"",A2709+1<=$B$16,0),A2709+1,"") ->  | B2710: =IF(A2710<>"",A2710*$B$13,"") ->  | C2710: =IF(A2710<>"",ROUNDDOWN(A2710*$B$13/24,0),"") ->  | E2710: =IF(A2710<>"",($B$4+$B$5)/2+($B$5-$B$4)/2*COS(2*PI()/$B$15*B2710),"") ->  | F2710: =IF(A2710<>"",E2710*COS(2*PI()/$B$7*B2710),"") -> 
A2770: =IF(IF(A2769<>"",A2769+1<=$B$16,0),A2769+1,"") ->  | B2770: =IF(A2770<>"",A2770*$B$13,"") ->  | C2770: =IF(A2770<>"",ROUNDDOWN(A2770*$B$13/24,0),"") ->  | E2770: =IF(A2770<>"",($B$4+$B$5)/2+($B$5-$B$4)/2*COS(2*PI()/$B$15*B2770),"") ->  | F2770: =IF(A2770<>"",E2770*COS(2*PI()/$B$7*B2770),"") -> 
A2771: =IF(IF(A2770<>"",A2770+1<=$B$16,0),A2770+1,"") ->  | B2771: =IF(A2771<>"",A2771*$B$13,"") ->  | C2771: =IF(A2771<>"",ROUNDDOWN(A2771*$B$13/24,0),"") ->  | E2771: =IF(A2771<>"",($B$4+$B$5)/2+($B$5-$B$4)/2*COS(2*PI()/$B$15*B2771),"") ->  | F2771: =IF(A2771<>"",E2771*COS(2*PI()/$B$7*B2771),"") -> 
D2773: =IF(A2773<>"",MOD(B2773,24)/24,"") ->  | G2773: =ABS(0.5*1.025*1*(F2773^3)) ->  | H2773: =G2773*$B$13 -> 
E2780: Total Energy (kWh/m^2) | G2780: - | H2780: =IF(ISERROR(SUM(H20:H2779)),"",SUM(H20:H2779)) ->  | I2780: per lunar cycle
G2781: - | H2781: =IF(ISERROR(H2780*(365/$B$6)),"",(H2780*(365/$B$6))) ->  | I2781: per year
E2782: Average Power (kW/m^2) | G2782: =IF(ISERROR(AVERAGE(G20:G2779)),"",(AVERAGE(G20:G2779))) ->  | H2782: -

Sheet Tidal Stream 5
A1: Tidal Stream Resource
A3: =Input!A45 -> Site Name | B3: =IF(Input!B85<>"",Input!B85,"-") -> [Enter Name] | C3: =Input!C45 -> 0 | I3: Plots:
A4: =Input!A46 -> Peak Flow (Springs) | B4: =IF((AND(Input!B86<>"",Input!B86<>"[Enter Value]")),Input!B86,"0") -> 0 | C4: =Input!C46 -> m/s
A5: =Input!A47 -> Peak Flow (Neaps) | B5: =IF((AND(Input!B87<>"",Input!B87<>"[Enter Value]")),Input!B87,"0") -> 0 | C5: =Input!C47 -> m/s
A6: =Input!A48 -> Lunar Cycle Period | B6: =IF((AND(Input!B88<>"",Input!B88<>"[Enter Value]")),Input!B88,"0") -> 0 | C6: =Input!C48 -> days
A7: =Input!A49 -> Tidal Period | B7: =IF((AND(Input!B89<>"",Input!B89<>"[Enter Value]")),Input!B89,"0") -> 0 | C7: =Input!C49 -> hours
A8: =Input!A50 -> Proximity to Grid Connection | B8: =IF(Input!B90<>"",Input!B90,"-") -> [Select Value]
A9: =Input!A51 -> Average Water Depth | B9: =IF(Input!B91<>"",Input!B91,"-") -> [Select Value]
A10: =Input!A52 -> Seabed Topography | B10: =IF(Input!B92<>"",Input!B92,"-") -> [Select Value]
A11: =Input!A53 -> Accessibility | B11: =IF(Input!B93<>"",Input!B93,"-") -> [Select Value]
A13: Time Step | B13: 0.25 | C13: hours
A14: Period | B14: =B6/2 -> 0 | C14: days
B15: =B14*24 -> 0 | C15: hours
A16: Number of Steps | B16: =B15/B13*2 -> 0 | C16: -
A18: No. | B18: Time | E18: Amplitude | F18: Current | G18: Power | H18: Energy
B19: Hours | C19: Day | D19: Time | E19: m/s | F19: m/s | G19: kW/(m^2) | H19: kWh/(m^2)
A20: 0 | B20: =A20*$B$13 -> 0 | C20: =ROUNDDOWN(A20*$B$1/24,0) -> 0 | D20: =MOD(B20,24)/24 -> 0 | E20: =IF(A20<>"",($B$4+$B$5)/2+($B$5-$B$4)/2*COS(2*PI()/$B$15*B20),"") ->  | F20: =IF(A20<>"",E20*COS(2*PI()/$B$7*B20),"") ->  | G20: =ABS(0.5*1.025*1*(F20^3)) ->  | H20: =G20*$B$13 -> 
A21: =IF(IF(A20<>"",A20+1<=$B$16,0),A20+1,"") ->  | B21: =IF(A21<>"",A21*$B$13,"") ->  | C21: =IF(A21<>"",ROUNDDOWN(A21*$B$13/24,0),"") ->  | D21: =IF(A21<>"",MOD(B21,24)/24,"") ->  | E21: =IF(A21<>"",($B$4+$B$5)/2+($B$5-$B$4)/2*COS(2*PI()/$B$15*B21),"") ->  | F21: =IF(A21<>"",E21*COS(2*PI()/$B$7*B21),"") ->  | G21: =ABS(0.5*1.025*1*(F21^3)) ->  | H21: =G21*$B$13 -> 
A22: =IF(IF(A21<>"",A21+1<=$B$16,0),A21+1,"") ->  | B22: =IF(A22<>"",A22*$B$13,"") ->  | C22: =IF(A22<>"",ROUNDDOWN(A22*$B$13/24,0),"") ->  | E22: =IF(A22<>"",($B$4+$B$5)/2+($B$5-$B$4)/2*COS(2*PI()/$B$15*B22),"") ->  | F22: =IF(A22<>"",E22*COS(2*PI()/$B$7*B22),"") -> 
D85: =IF(A85<>"",MOD(B85,24)/24,"") ->  | G85: =ABS(0.5*1.025*1*(F85^3)) ->  | H85: =G85*$B$13 -> 
A86: =IF(IF(A85<>"",A85+1<=$B$16,0),A85+1,"") ->  | B86: =IF(A86<>"",A86*$B$13,"") ->  | C86: =IF(A86<>"",ROUNDDOWN(A86*$B$13/24,0),"") ->  | E86: =IF(A86<>"",($B$4+$B$5)/2+($B$5-$B$4)/2*COS(2*PI()/$B$15*B86),"") ->  | F86: =IF(A86<>"",E86*COS(2*PI()/$B$7*B86),"") -> 
D149: =IF(A149<>"",MOD(B149,24)/24,"") ->  | G149: =ABS(0.5*1.025*1*(F149^3)) ->  | H149: =G149*$B$13 -> 
A150: =IF(IF(A149<>"",A149+1<=$B$16,0),A149+1,"") ->  | B150: =IF(A150<>"",A150*$B$13,"") ->  | C150: =IF(A150<>"",ROUNDDOWN(A150*$B$13/24,0),"") ->  | E150: =IF(A150<>"",($B$4+$B$5)/2+($B$5-$B$4)/2*COS(2*PI()/$B$15*B150),"") ->  | F150: =IF(A150<>"",E150*COS(2*PI()/$B$7*B150),"") -> 
D213: =IF(A213<>"",MOD(B213,24)/24,"") ->  | G213: =ABS(0.5*1.025*1*(F213^3)) ->  | H213: =G213*$B$13 -> 
A214: =IF(IF(A213<>"",A213+1<=$B$16,0),A213+1,"") ->  | B214: =IF(A214<>"",A214*$B$13,"") ->  | C214: =IF(A214<>"",ROUNDDOWN(A214*$B$13/24,0),"") ->  | E214: =IF(A214<>"",($B$4+$B$5)/2+($B$5-$B$4)/2*COS(2*PI()/$B$15*B214),"") ->  | F214: =IF(A214<>"",E214*COS(2*PI()/$B$7*B214),"") -> 
D277: =IF(A277<>"",MOD(B277,24)/24,"") ->  | G277: =ABS(0.5*1.025*1*(F277^3)) ->  | H277: =G277*$B$13 -> 
A278: =IF(IF(A277<>"",A277+1<=$B$16,0),A277+1,"") ->  | B278: =IF(A278<>"",A278*$B$13,"") ->  | C278: =IF(A278<>"",ROUNDDOWN(A278*$B$13/24,0),"") ->  | E278: =IF(A278<>"",($B$4+$B$5)/2+($B$5-$B$4)/2*COS(2*PI()/$B$15*B278),"") ->  | F278: =IF(A278<>"",E278*COS(2*PI()/$B$7*B278),"") -> 
D341: =IF(A341<>"",MOD(B341,24)/24,"") ->  | G341: =ABS(0.5*1.025*1*(F341^3)) ->  | H341: =G341*$B$13 -> 
A342: =IF(IF(A341<>"",A341+1<=$B$16,0),A341+1,"") ->  | B342: =IF(A342<>"",A342*$B$13,"") ->  | C342: =IF(A342<>"",ROUNDDOWN(A342*$B$13/24,0),"") ->  | E342: =IF(A342<>"",($B$4+$B$5)/2+($B$5-$B$4)/2*COS(2*PI()/$B$15*B342),"") ->  | F342: =IF(A342<>"",E342*COS(2*PI()/$B$7*B342),"") -> 
D405: =IF(A405<>"",MOD(B405,24)/24,"") ->  | G405: =ABS(0.5*1.025*1*(F405^3)) ->  | H405: =G405*$B$13 -> 
A406: =IF(IF(A405<>"",A405+1<=$B$16,0),A405+1,"") ->  | B406: =IF(A406<>"",A406*$B$13,"") ->  | C406: =IF(A406<>"",ROUNDDOWN(A406*$B$13/24,0),"") ->  | E406: =IF(A406<>"",($B$4+$B$5)/2+($B$5-$B$4)/2*COS(2*PI()/$B$15*B406),"") ->  | F406: =IF(A406<>"",E406*COS(2*PI()/$B$7*B406),"") -> 
D469: =IF(A469<>"",MOD(B469,24)/24,"") ->  | G469: =ABS(0.5*1.025*1*(F469^3)) ->  | H469: =G469*$B$13 -> 
A470: =IF(IF(A469<>"",A469+1<=$B$16,0),A469+1,"") ->  | B470: =IF(A470<>"",A470*$B$13,"") ->  | C470: =IF(A470<>"",ROUNDDOWN(A470*$B$13/24,0),"") ->  | E470: =IF(A470<>"",($B$4+$B$5)/2+($B$5-$B$4)/2*COS(2*PI()/$B$15*B470),"") ->  | F470: =IF(A470<>"",E470*COS(2*PI()/$B$7*B470),"") -> 
D533: =IF(A533<>"",MOD(B533,24)/24,"") ->  | G533: =ABS(0.5*1.025*1*(F533^3)) ->  | H533: =G533*$B$13 -> 
A534: =IF(IF(A533<>"",A533+1<=$B$16,0),A533+1,"") ->  | B534: =IF(A534<>"",A534*$B$13,"") ->  | C534: =IF(A534<>"",ROUNDDOWN(A534*$B$13/24,0),"") ->  | E534: =IF(A534<>"",($B$4+$B$5)/2+($B$5-$B$4)/2*COS(2*PI()/$B$15*B534),"") ->  | F534: =IF(A534<>"",E534*COS(2*PI()/$B$7*B534),"") -> 
D597: =IF(A597<>"",MOD(B597,24)/24,"") ->  | G597: =ABS(0.5*1.025*1*(F597^3)) ->  | H597: =G597*$B$13 -> 
A598: =IF(IF(A597<>"",A597+1<=$B$16,0),A597+1,"") ->  | B598: =IF(A598<>"",A598*$B$13,"") ->  | C598: =IF(A598<>"",ROUNDDOWN(A598*$B$13/24,0),"") ->  | E598: =IF(A598<>"",($B$4+$B$5)/2+($B$5-$B$4)/2*COS(2*PI()/$B$15*B598),"") ->  | F598: =IF(A598<>"",E598*COS(2*PI()/$B$7*B598),"") -> 
D661: =IF(A661<>"",MOD(B661,24)/24,"") ->  | G661: =ABS(0.5*1.025*1*(F661^3)) ->  | H661: =G661*$B$13 -> 
A662: =IF(IF(A661<>"",A661+1<=$B$16,0),A661+1,"") ->  | B662: =IF(A662<>"",A662*$B$13,"") ->  | C662: =IF(A662<>"",ROUNDDOWN(A662*$B$13/24,0),"") ->  | E662: =IF(A662<>"",($B$4+$B$5)/2+($B$5-$B$4)/2*COS(2*PI()/$B$15*B662),"") ->  | F662: =IF(A662<>"",E662*COS(2*PI()/$B$7*B662),"") -> 
D725: =IF(A725<>"",MOD(B725,24)/24,"") ->  | G725: =ABS(0.5*1.025*1*(F725^3)) ->  | H725: =G725*$B$13 -> 
A726: =IF(IF(A725<>"",A725+1<=$B$16,0),A725+1,"") ->  | B726: =IF(A726<>"",A726*$B$13,"") ->  | C726: =IF(A726<>"",ROUNDDOWN(A726*$B$13/24,0),"") ->  | E726: =IF(A726<>"",($B$4+$B$5)/2+($B$5-$B$4)/2*COS(2*PI()/$B$15*B726),"") ->  | F726: =IF(A726<>"",E726*COS(2*PI()/$B$7*B726),"") -> 
D789: =IF(A789<>"",MOD(B789,24)/24,"") ->  | G789: =ABS(0.5*1.025*1*(F789^3)) ->  | H789: =G789*$B$13 -> 
A790: =IF(IF(A789<>"",A789+1<=$B$16,0),A789+1,"") ->  | B790: =IF(A790<>"",A790*$B$13,"") ->  | C790: =IF(A790<>"",ROUNDDOWN(A790*$B$13/24,0),"") ->  | E790: =IF(A790<>"",($B$4+$B$5)/2+($B$5-$B$4)/2*COS(2*PI()/$B$15*B790),"") ->  | F790: =IF(A790<>"",E790*COS(2*PI()/$B$7*B790),"") -> 
D853: =IF(A853<>"",MOD(B853,24)/24,"") ->  | G853: =ABS(0.5*1.025*1*(F853^3)) ->  | H853: =G853*$B$13 -> 
A854: =IF(IF(A853<>"",A853+1<=$B$16,0),A853+1,"") ->  | B854: =IF(A854<>"",A854*$B$13,"") ->  | C854: =IF(A854<>"",ROUNDDOWN(A854*$B$13/24,0),"") ->  | E854: =IF(A854<>"",($B$4+$B$5)/2+($B$5-$B$4)/2*COS(2*PI()/$B$15*B854),"") ->  | F854: =IF(A854<>"",E854*COS(2*PI()/$B$7*B854),"") -> 
D917: =IF(A917<>"",MOD(B917,24)/24,"") ->  | G917: =ABS(0.5*1.025*1*(F917^3)) ->  | H917: =G917*$B$13 -> 
A918: =IF(IF(A917<>"",A917+1<=$B$16,0),A917+1,"") ->  | B918: =IF(A918<>"",A918*$B$13,"") ->  | C918: =IF(A918<>"",ROUNDDOWN(A918*$B$13/24,0),"") ->  | E918: =IF(A918<>"",($B$4+$B$5)/2+($B$5-$B$4)/2*COS(2*PI()/$B$15*B918),"") ->  | F918: =IF(A918<>"",E918*COS(2*PI()/$B$7*B918),"") -> 
D981: =IF(A981<>"",MOD(B981,24)/24,"") ->  | G981: =ABS(0.5*1.025*1*(F981^3)) ->  | H981: =G981*$B$13 -> 
A982: =IF(IF(A981<>"",A981+1<=$B$16,0),A981+1,"") ->  | B982: =IF(A982<>"",A982*$B$13,"") ->  | C982: =IF(A982<>"",ROUNDDOWN(A982*$B$13/24,0),"") ->  | E982: =IF(A982<>"",($B$4+$B$5)/2+($B$5-$B$4)/2*COS(2*PI()/$B$15*B982),"") ->  | F982: =IF(A982<>"",E982*COS(2*PI()/$B$7*B982),"") -> 
D1045: =IF(A1045<>"",MOD(B1045,24)/24,"") ->  | G1045: =ABS(0.5*1.025*1*(F1045^3)) ->  | H1045: =G1045*$B$13 -> 
A1046: =IF(IF(A1045<>"",A1045+1<=$B$16,0),A1045+1,"") ->  | B1046: =IF(A1046<>"",A1046*$B$13,"") ->  | C1046: =IF(A1046<>"",ROUNDDOWN(A1046*$B$13/24,0),"") ->  | E1046: =IF(A1046<>"",($B$4+$B$5)/2+($B$5-$B$4)/2*COS(2*PI()/$B$15*B1046),"") ->  | F1046: =IF(A1046<>"",E1046*COS(2*PI()/$B$7*B1046),"") -> 
D1109: =IF(A1109<>"",MOD(B1109,24)/24,"") ->  | G1109: =ABS(0.5*1.025*1*(F1109^3)) ->  | H1109: =G1109*$B$13 -> 
A1110: =IF(IF(A1109<>"",A1109+1<=$B$16,0),A1109+1,"") ->  | B1110: =IF(A1110<>"",A1110*$B$13,"") ->  | C1110: =IF(A1110<>"",ROUNDDOWN(A1110*$B$13/24,0),"") ->  | E1110: =IF(A1110<>"",($B$4+$B$5)/2+($B$5-$B$4)/2*COS(2*PI()/$B$15*B1110),"") ->  | F1110: =IF(A1110<>"",E1110*COS(2*PI()/$B$7*B1110),"") -> 
D1173: =IF(A1173<>"",MOD(B1173,24)/24,"") ->  | G1173: =ABS(0.5*1.025*1*(F1173^3)) ->  | H1173: =G1173*$B$13 -> 
A1174: =IF(IF(A1173<>"",A1173+1<=$B$16,0),A1173+1,"") ->  | B1174: =IF(A1174<>"",A1174*$B$13,"") ->  | C1174: =IF(A1174<>"",ROUNDDOWN(A1174*$B$13/24,0),"") ->  | E1174: =IF(A1174<>"",($B$4+$B$5)/2+($B$5-$B$4)/2*COS(2*PI()/$B$15*B1174),"") ->  | F1174: =IF(A1174<>"",E1174*COS(2*PI()/$B$7*B1174),"") -> 
D1237: =IF(A1237<>"",MOD(B1237,24)/24,"") ->  | G1237: =ABS(0.5*1.025*1*(F1237^3)) ->  | H1237: =G1237*$B$13 -> 
A1238: =IF(IF(A1237<>"",A1237+1<=$B$16,0),A1237+1,"") ->  | B1238: =IF(A1238<>"",A1238*$B$13,"") ->  | C1238: =IF(A1238<>"",ROUNDDOWN(A1238*$B$13/24,0),"") ->  | E1238: =IF(A1238<>"",($B$4+$B$5)/2+($B$5-$B$4)/2*COS(2*PI()/$B$15*B1238),"") ->  | F1238: =IF(A1238<>"",E1238*COS(2*PI()/$B$7*B1238),"") -> 
D1301: =IF(A1301<>"",MOD(B1301,24)/24,"") ->  | G1301: =ABS(0.5*1.025*1*(F1301^3)) ->  | H1301: =G1301*$B$13 -> 
A1302: =IF(IF(A1301<>"",A1301+1<=$B$16,0),A1301+1,"") ->  | B1302: =IF(A1302<>"",A1302*$B$13,"") ->  | C1302: =IF(A1302<>"",ROUNDDOWN(A1302*$B$13/24,0),"") ->  | E1302: =IF(A1302<>"",($B$4+$B$5)/2+($B$5-$B$4)/2*COS(2*PI()/$B$15*B1302),"") ->  | F1302: =IF(A1302<>"",E1302*COS(2*PI()/$B$7*B1302),"") -> 
D1365: =IF(A1365<>"",MOD(B1365,24)/24,"") ->  | G1365: =ABS(0.5*1.025*1*(F1365^3)) ->  | H1365: =G1365*$B$13 -> 
A1366: =IF(IF(A1365<>"",A1365+1<=$B$16,0),A1365+1,"") ->  | B1366: =IF(A1366<>"",A1366*$B$13,"") ->  | C1366: =IF(A1366<>"",ROUNDDOWN(A1366*$B$13/24,0),"") ->  | E1366: =IF(A1366<>"",($B$4+$B$5)/2+($B$5-$B$4)/2*COS(2*PI()/$B$15*B1366),"") ->  | F1366: =IF(A1366<>"",E1366*COS(2*PI()/$B$7*B1366),"") -> 
D1429: =IF(A1429<>"",MOD(B1429,24)/24,"") ->  | G1429: =ABS(0.5*1.025*1*(F1429^3)) ->  | H1429: =G1429*$B$13 -> 
A1430: =IF(IF(A1429<>"",A1429+1<=$B$16,0),A1429+1,"") ->  | B1430: =IF(A1430<>"",A1430*$B$13,"") ->  | C1430: =IF(A1430<>"",ROUNDDOWN(A1430*$B$13/24,0),"") ->  | E1430: =IF(A1430<>"",($B$4+$B$5)/2+($B$5-$B$4)/2*COS(2*PI()/$B$15*B1430),"") ->  | F1430: =IF(A1430<>"",E1430*COS(2*PI()/$B$7*B1430),"") -> 
D1493: =IF(A1493<>"",MOD(B1493,24)/24,"") ->  | G1493: =ABS(0.5*1.025*1*(F1493^3)) ->  | H1493: =G1493*$B$13 -> 
A1494: =IF(IF(A1493<>"",A1493+1<=$B$16,0),A1493+1,"") ->  | B1494: =IF(A1494<>"",A1494*$B$13,"") ->  | C1494: =IF(A1494<>"",ROUNDDOWN(A1494*$B$13/24,0),"") ->  | E1494: =IF(A1494<>"",($B$4+$B$5)/2+($B$5-$B$4)/2*COS(2*PI()/$B$15*B1494),"") ->  | F1494: =IF(A1494<>"",E1494*COS(2*PI()/$B$7*B1494),"") -> 
D1557: =IF(A1557<>"",MOD(B1557,24)/24,"") ->  | G1557: =ABS(0.5*1.025*1*(F1557^3)) ->  | H1557: =G1557*$B$13 -> 
A1558: =IF(IF(A1557<>"",A1557+1<=$B$16,0),A1557+1,"") ->  | B1558: =IF(A1558<>"",A1558*$B$13,"") ->  | C1558: =IF(A1558<>"",ROUNDDOWN(A1558*$B$13/24,0),"") ->  | E1558: =IF(A1558<>"",($B$4+$B$5)/2+($B$5-$B$4)/2*COS(2*PI()/$B$15*B1558),"") ->  | F1558: =IF(A1558<>"",E1558*COS(2*PI()/$B$7*B1558),"") -> 
D1621: =IF(A1621<>"",MOD(B1621,24)/24,"") ->  | G1621: =ABS(0.5*1.025*1*(F1621^3)) ->  | H1621: =G1621*$B$13 -> 
A1622: =IF(IF(A1621<>"",A1621+1<=$B$16,0),A1621+1,"") ->  | B1622: =IF(A1622<>"",A1622*$B$13,"") ->  | C1622: =IF(A1622<>"",ROUNDDOWN(A1622*$B$13/24,0),"") ->  | E1622: =IF(A1622<>"",($B$4+$B$5)/2+($B$5-$B$4)/2*COS(2*PI()/$B$15*B1622),"") ->  | F1622: =IF(A1622<>"",E1622*COS(2*PI()/$B$7*B1622),"") -> 
D1685: =IF(A1685<>"",MOD(B1685,24)/24,"") ->  | G1685: =ABS(0.5*1.025*1*(F1685^3)) ->  | H1685: =G1685*$B$13 -> 
A1686: =IF(IF(A1685<>"",A1685+1<=$B$16,0),A1685+1,"") ->  | B1686: =IF(A1686<>"",A1686*$B$13,"") ->  | C1686: =IF(A1686<>"",ROUNDDOWN(A1686*$B$13/24,0),"") ->  | E1686: =IF(A1686<>"",($B$4+$B$5)/2+($B$5-$B$4)/2*COS(2*PI()/$B$15*B1686),"") ->  | F1686: =IF(A1686<>"",E1686*COS(2*PI()/$B$7*B1686),"") -> 
D1749: =IF(A1749<>"",MOD(B1749,24)/24,"") ->  | G1749: =ABS(0.5*1.025*1*(F1749^3)) ->  | H1749: =G1749*$B$13 -> 
A1750: =IF(IF(A1749<>"",A1749+1<=$B$16,0),A1749+1,"") ->  | B1750: =IF(A1750<>"",A1750*$B$13,"") ->  | C1750: =IF(A1750<>"",ROUNDDOWN(A1750*$B$13/24,0),"") ->  | E1750: =IF(A1750<>"",($B$4+$B$5)/2+($B$5-$B$4)/2*COS(2*PI()/$B$15*B1750),"") ->  | F1750: =IF(A1750<>"",E1750*COS(2*PI()/$B$7*B1750),"") -> 
D1813: =IF(A1813<>"",MOD(B1813,24)/24,"") ->  | G1813: =ABS(0.5*1.025*1*(F1813^3)) ->  | H1813: =G1813*$B$13 -> 
A1814: =IF(IF(A1813<>"",A1813+1<=$B$16,0),A1813+1,"") ->  | B1814: =IF(A1814<>"",A1814*$B$13,"") ->  | C1814: =IF(A1814<>"",ROUNDDOWN(A1814*$B$13/24,0),"") ->  | E1814: =IF(A1814<>"",($B$4+$B$5)/2+($B$5-$B$4)/2*COS(2*PI()/$B$15*B1814),"") ->  | F1814: =IF(A1814<>"",E1814*COS(2*PI()/$B$7*B1814),"") -> 
D1877: =IF(A1877<>"",MOD(B1877,24)/24,"") ->  | G1877: =ABS(0.5*1.025*1*(F1877^3)) ->  | H1877: =G1877*$B$13 -> 
A1878: =IF(IF(A1877<>"",A1877+1<=$B$16,0),A1877+1,"") ->  | B1878: =IF(A1878<>"",A1878*$B$13,"") ->  | C1878: =IF(A1878<>"",ROUNDDOWN(A1878*$B$13/24,0),"") ->  | E1878: =IF(A1878<>"",($B$4+$B$5)/2+($B$5-$B$4)/2*COS(2*PI()/$B$15*B1878),"") ->  | F1878: =IF(A1878<>"",E1878*COS(2*PI()/$B$7*B1878),"") -> 
D1941: =IF(A1941<>"",MOD(B1941,24)/24,"") ->  | G1941: =ABS(0.5*1.025*1*(F1941^3)) ->  | H1941: =G1941*$B$13 -> 
A1942: =IF(IF(A1941<>"",A1941+1<=$B$16,0),A1941+1,"") ->  | B1942: =IF(A1942<>"",A1942*$B$13,"") ->  | C1942: =IF(A1942<>"",ROUNDDOWN(A1942*$B$13/24,0),"") ->  | E1942: =IF(A1942<>"",($B$4+$B$5)/2+($B$5-$B$4)/2*COS(2*PI()/$B$15*B1942),"") ->  | F1942: =IF(A1942<>"",E1942*COS(2*PI()/$B$7*B1942),"") -> 
D2005: =IF(A2005<>"",MOD(B2005,24)/24,"") ->  | G2005: =ABS(0.5*1.025*1*(F2005^3)) ->  | H2005: =G2005*$B$13 -> 
A2006: =IF(IF(A2005<>"",A2005+1<=$B$16,0),A2005+1,"") ->  | B2006: =IF(A2006<>"",A2006*$B$13,"") ->  | C2006: =IF(A2006<>"",ROUNDDOWN(A2006*$B$13/24,0),"") ->  | E2006: =IF(A2006<>"",($B$4+$B$5)/2+($B$5-$B$4)/2*COS(2*PI()/$B$15*B2006),"") ->  | F2006: =IF(A2006<>"",E2006*COS(2*PI()/$B$7*B2006),"") -> 
D2069: =IF(A2069<>"",MOD(B2069,24)/24,"") ->  | G2069: =ABS(0.5*1.025*1*(F2069^3)) ->  | H2069: =G2069*$B$13 -> 
A2070: =IF(IF(A2069<>"",A2069+1<=$B$16,0),A2069+1,"") ->  | B2070: =IF(A2070<>"",A2070*$B$13,"") ->  | C2070: =IF(A2070<>"",ROUNDDOWN(A2070*$B$13/24,0),"") ->  | E2070: =IF(A2070<>"",($B$4+$B$5)/2+($B$5-$B$4)/2*COS(2*PI()/$B$15*B2070),"") ->  | F2070: =IF(A2070<>"",E2070*COS(2*PI()/$B$7*B2070),"") -> 
D2133: =IF(A2133<>"",MOD(B2133,24)/24,"") ->  | G2133: =ABS(0.5*1.025*1*(F2133^3)) ->  | H2133: =G2133*$B$13 -> 
A2134: =IF(IF(A2133<>"",A2133+1<=$B$16,0),A2133+1,"") ->  | B2134: =IF(A2134<>"",A2134*$B$13,"") ->  | C2134: =IF(A2134<>"",ROUNDDOWN(A2134*$B$13/24,0),"") ->  | E2134: =IF(A2134<>"",($B$4+$B$5)/2+($B$5-$B$4)/2*COS(2*PI()/$B$15*B2134),"") ->  | F2134: =IF(A2134<>"",E2134*COS(2*PI()/$B$7*B2134),"") -> 
D2197: =IF(A2197<>"",MOD(B2197,24)/24,"") ->  | G2197: =ABS(0.5*1.025*1*(F2197^3)) ->  | H2197: =G2197*$B$13 -> 
A2198: =IF(IF(A2197<>"",A2197+1<=$B$16,0),A2197+1,"") ->  | B2198: =IF(A2198<>"",A2198*$B$13,"") ->  | C2198: =IF(A2198<>"",ROUNDDOWN(A2198*$B$13/24,0),"") ->  | E2198: =IF(A2198<>"",($B$4+$B$5)/2+($B$5-$B$4)/2*COS(2*PI()/$B$15*B2198),"") ->  | F2198: =IF(A2198<>"",E2198*COS(2*PI()/$B$7*B2198),"") -> 
D2261: =IF(A2261<>"",MOD(B2261,24)/24,"") ->  | G2261: =ABS(0.5*1.025*1*(F2261^3)) ->  | H2261: =G2261*$B$13 -> 
A2262: =IF(IF(A2261<>"",A2261+1<=$B$16,0),A2261+1,"") ->  | B2262: =IF(A2262<>"",A2262*$B$13,"") ->  | C2262: =IF(A2262<>"",ROUNDDOWN(A2262*$B$13/24,0),"") ->  | E2262: =IF(A2262<>"",($B$4+$B$5)/2+($B$5-$B$4)/2*COS(2*PI()/$B$15*B2262),"") ->  | F2262: =IF(A2262<>"",E2262*COS(2*PI()/$B$7*B2262),"") -> 
D2325: =IF(A2325<>"",MOD(B2325,24)/24,"") ->  | G2325: =ABS(0.5*1.025*1*(F2325^3)) ->  | H2325: =G2325*$B$13 -> 
A2326: =IF(IF(A2325<>"",A2325+1<=$B$16,0),A2325+1,"") ->  | B2326: =IF(A2326<>"",A2326*$B$13,"") ->  | C2326: =IF(A2326<>"",ROUNDDOWN(A2326*$B$13/24,0),"") ->  | E2326: =IF(A2326<>"",($B$4+$B$5)/2+($B$5-$B$4)/2*COS(2*PI()/$B$15*B2326),"") ->  | F2326: =IF(A2326<>"",E2326*COS(2*PI()/$B$7*B2326),"") -> 
D2389: =IF(A2389<>"",MOD(B2389,24)/24,"") ->  | G2389: =ABS(0.5*1.025*1*(F2389^3)) ->  | H2389: =G2389*$B$13 -> 
A2390: =IF(IF(A2389<>"",A2389+1<=$B$16,0),A2389+1,"") ->  | B2390: =IF(A2390<>"",A2390*$B$13,"") ->  | C2390: =IF(A2390<>"",ROUNDDOWN(A2390*$B$13/24,0),"") ->  | E2390: =IF(A2390<>"",($B$4+$B$5)/2+($B$5-$B$4)/2*COS(2*PI()/$B$15*B2390),"") ->  | F2390: =IF(A2390<>"",E2390*COS(2*PI()/$B$7*B2390),"") -> 
D2453: =IF(A2453<>"",MOD(B2453,24)/24,"") ->  | G2453: =ABS(0.5*1.025*1*(F2453^3)) ->  | H2453: =G2453*$B$13 -> 
A2454: =IF(IF(A2453<>"",A2453+1<=$B$16,0),A2453+1,"") ->  | B2454: =IF(A2454<>"",A2454*$B$13,"") ->  | C2454: =IF(A2454<>"",ROUNDDOWN(A2454*$B$13/24,0),"") ->  | E2454: =IF(A2454<>"",($B$4+$B$5)/2+($B$5-$B$4)/2*COS(2*PI()/$B$15*B2454),"") ->  | F2454: =IF(A2454<>"",E2454*COS(2*PI()/$B$7*B2454),"") -> 
D2517: =IF(A2517<>"",MOD(B2517,24)/24,"") ->  | G2517: =ABS(0.5*1.025*1*(F2517^3)) ->  | H2517: =G2517*$B$13 -> 
A2518: =IF(IF(A2517<>"",A2517+1<=$B$16,0),A2517+1,"") ->  | B2518: =IF(A2518<>"",A2518*$B$13,"") ->  | C2518: =IF(A2518<>"",ROUNDDOWN(A2518*$B$13/24,0),"") ->  | E2518: =IF(A2518<>"",($B$4+$B$5)/2+($B$5-$B$4)/2*COS(2*PI()/$B$15*B2518),"") ->  | F2518: =IF(A2518<>"",E2518*COS(2*PI()/$B$7*B2518),"") -> 
D2581: =IF(A2581<>"",MOD(B2581,24)/24,"") ->  | G2581: =ABS(0.5*1.025*1*(F2581^3)) ->  | H2581: =G2581*$B$13 -> 
A2582: =IF(IF(A2581<>"",A2581+1<=$B$16,0),A2581+1,"") ->  | B2582: =IF(A2582<>"",A2582*$B$13,"") ->  | C2582: =IF(A2582<>"",ROUNDDOWN(A2582*$B$13/24,0),"") ->  | E2582: =IF(A2582<>"",($B$4+$B$5)/2+($B$5-$B$4)/2*COS(2*PI()/$B$15*B2582),"") ->  | F2582: =IF(A2582<>"",E2582*COS(2*PI()/$B$7*B2582),"") -> 
D2645: =IF(A2645<>"",MOD(B2645,24)/24,"") ->  | G2645: =ABS(0.5*1.025*1*(F2645^3)) ->  | H2645: =G2645*$B$13 -> 
A2646: =IF(IF(A2645<>"",A2645+1<=$B$16,0),A2645+1,"") ->  | B2646: =IF(A2646<>"",A2646*$B$13,"") ->  | C2646: =IF(A2646<>"",ROUNDDOWN(A2646*$B$13/24,0),"") ->  | E2646: =IF(A2646<>"",($B$4+$B$5)/2+($B$5-$B$4)/2*COS(2*PI()/$B$15*B2646),"") ->  | F2646: =IF(A2646<>"",E2646*COS(2*PI()/$B$7*B2646),"") -> 
D2709: =IF(A2709<>"",MOD(B2709,24)/24,"") ->  | G2709: =ABS(0.5*1.025*1*(F2709^3)) ->  | H2709: =G2709*$B$13 -> 
A2710: =IF(IF(A2709<>"",A2709+1<=$B$16,0),A2709+1,"") ->  | B2710: =IF(A2710<>"",A2710*$B$13,"") ->  | C2710: =IF(A2710<>"",ROUNDDOWN(A2710*$B$13/24,0),"") ->  | E2710: =IF(A2710<>"",($B$4+$B$5)/2+($B$5-$B$4)/2*COS(2*PI()/$B$15*B2710),"") ->  | F2710: =IF(A2710<>"",E2710*COS(2*PI()/$B$7*B2710),"") -> 
A2770: =IF(IF(A2769<>"",A2769+1<=$B$16,0),A2769+1,"") ->  | B2770: =IF(A2770<>"",A2770*$B$13,"") ->  | C2770: =IF(A2770<>"",ROUNDDOWN(A2770*$B$13/24,0),"") ->  | E2770: =IF(A2770<>"",($B$4+$B$5)/2+($B$5-$B$4)/2*COS(2*PI()/$B$15*B2770),"") ->  | F2770: =IF(A2770<>"",E2770*COS(2*PI()/$B$7*B2770),"") -> 
A2771: =IF(IF(A2770<>"",A2770+1<=$B$16,0),A2770+1,"") ->  | B2771: =IF(A2771<>"",A2771*$B$13,"") ->  | C2771: =IF(A2771<>"",ROUNDDOWN(A2771*$B$13/24,0),"") ->  | E2771: =IF(A2771<>"",($B$4+$B$5)/2+($B$5-$B$4)/2*COS(2*PI()/$B$15*B2771),"") ->  | F2771: =IF(A2771<>"",E2771*COS(2*PI()/$B$7*B2771),"") -> 
D2773: =IF(A2773<>"",MOD(B2773,24)/24,"") ->  | G2773: =ABS(0.5*1.025*1*(F2773^3)) ->  | H2773: =G2773*$B$13 -> 
E2780: Total Energy (kWh/m^2) | G2780: - | H2780: =IF(ISERROR(SUM(H20:H2779)),"",SUM(H20:H2779)) ->  | I2780: per lunar cycle
G2781: - | H2781: =IF(ISERROR(H2780*(365/$B$6)),"",(H2780*(365/$B$6))) ->  | I2781: per year
E2782: Average Power (kW/m^2) | G2782: =IF(ISERROR(AVERAGE(G20:G2779)),"",(AVERAGE(G20:G2779))) ->  | H2782: -

Sheet Tidal Barrage 1
A1: Tidal Barrage Resource
A3: =Input!E45 -> Site Name | B3: =Input!F45 -> Port Ellen | C3: =Input!G45 -> 0
A4: =Input!E46 -> Max Tidal Range | B4: =Input!F46 -> 1.08 | C4: =Input!G46 -> m
A5: =Input!E47 -> Mean Tidal Range | B5: =Input!F47 -> 0.66 | C5: =Input!G47 -> m
A6: =Input!E48 -> Lunar Cycle Period | B6: =Input!F48 -> 28.74 | C6: =Input!G48 -> days
A7: =Input!E49 -> Proposed Lagoon Surface Area | B7: =Input!F49 -> 26546.5 | C7: =Input!G49 -> m^2
A8: =Input!E50 -> Proximity to Grid Connection | B8: =Input!F50 -> < 1 km
A9: =Input!E51 -> Average Water Depth | B9: =Input!F51 -> < 5 m | C9: =Input!G51 -> 0
A10: =Input!E52 -> Seabed Topography | B10: =Input!F52 -> Moderate (Rocky, Gentle Gradient) | C10: =Input!G52 -> 0
A11: =Input!E53 -> Accessibility | B11: =Input!F53 -> Partially Accessible (Temporary Works, No Obstacles) | C11: =Input!G53 -> 0
A13: Gravitational Acceleration | B13: 9.81 | C13: m/s^2
A14: Specific Denisty of SeaWater | B14: 1025 | C14: kg/m^3
A15: Tidal Volume | B15: =B5*B7 -> 17520.69 | C15: m^3
A16: Tidal Mass | B16: =B15*B14 -> 17958707.25 | C16: kg/m^3
A18: Potential Energy at High Tide | B18: =0.5*B7*B14*B13*(B5^2) -> 58137722.98 | C18: J
A19: Total Potential per day | B19: =2*B18 -> 116275446 | C19: J
A21: Daily Power Generation Potential | B21: =(B19/(60*60*24))/1000 -> 1.345780625 | C21: kW
A22: Assumed Efficiency | B22: 0.3
A23: Actual Power Generation | B23: =B21*B22 -> 0.4037341874 | C23: kW
A24: Daily Energy | B24: =B23*24 -> 9.689620497 | C24: kWh
A26: Available Energy (MWh) | B26: =IF(ISERROR(B24*B6/1000),"",(B24*B6/1000)) -> 0.2784796931 | C26: per lunar cycle
B27: =IF(ISERROR(365*B24/1000),"",(365*B24/1000)) -> 3.536711481 | C27: per year
B31: =24*B21 -> 32.29873499
H151: =MIN(H41:H144) -> 0

Sheet Tidal Barrage 2
A1: Tidal Barrage Resource
A3: =Input!E45 -> Site Name | B3: =Input!F55 -> Bowmore | C3: =Input!G45 -> 0
A4: =Input!E46 -> Max Tidal Range | B4: =Input!F56 -> 0.8 | C4: =Input!G46 -> m
A5: =Input!E47 -> Mean Tidal Range | B5: =Input!F57 -> 0.4 | C5: =Input!G47 -> m
A6: =Input!E48 -> Lunar Cycle Period | B6: =Input!F58 -> 28.74 | C6: =Input!G48 -> days
A7: =Input!E49 -> Proposed Lagoon Surface Area | B7: =Input!F59 -> 49500 | C7: =Input!G49 -> m^2
A8: =Input!E50 -> Proximity to Grid Connection | B8: =Input!F60 -> < 1 km
A9: =Input!E51 -> Average Water Depth | B9: =Input!F61 -> < 5 m | C9: =Input!G51 -> 0
A10: =Input!E52 -> Seabed Topography | B10: =Input!F62 -> Benign (Sandy, Flat/Gentle Gradient) | C10: =Input!G52 -> 0
A11: =Input!E53 -> Accessibility | B11: =Input!F63 -> Partially Accessible (Temporary Works, No Obstacles) | C11: =Input!G53 -> 0
A13: Gravitational Acceleration | B13: 9.81 | C13: m/s^2
A14: Specific Denisty of SeaWater | B14: 1025 | C14: kg/m^3
A15: Tidal Volume | B15: =B5*B7 -> 19800 | C15: m^3
A16: Tidal Mass | B16: =B15*B14 -> 20295000 | C16: kg/m^3
A18: Potential Energy at High Tide | B18: =0.5*B7*B14*B13*(B5^2) -> 39818790 | C18: J
A19: Total Potential per day | B19: =2*B18 -> 79637580 | C19: J
A21: Daily Power Generation Potential | B21: =(B19/(60*60*24))/1000 -> 0.92173125 | C21: kW
A22: Assumed Efficiency | B22: 0.3
A23: Actual Power Generation | B23: =B21*B22 -> 0.276519375 | C23: kW
A24: Daily Energy | B24: =B23*24 -> 6.636465 | C24: kWh
A26: Output (kWh) | B26: =IF(ISERROR(B24*B6/1000),"",(B24*B6/1000)) -> 0.1907320041 | C26: per lunar cycle
B27: =IF(ISERROR(365*B24/1000),"",(365*B24/1000)) -> 2.422309725 | C27: per year
H151: =MIN(H41:H144) -> 0

Sheet Tidal Barrage 3
A1: Tidal Barrage Resource
A3: =Input!E45 -> Site Name | B3: =Input!F65 -> [Enter Name] | C3: =Input!G45 -> 0
A4: =Input!E46 -> Max Tidal Range | B4: =Input!F66 -> [Enter Value] | C4: =Input!G46 -> m
A5: =Input!E47 -> Mean Tidal Range | B5: =Input!F67 -> [Enter Value] | C5: =Input!G47 -> m
A6: =Input!E48 -> Lunar Cycle Period | B6: =Input!F68 -> [Enter Value] | C6: =Input!G48 -> days
A7: =Input!E49 -> Proposed Lagoon Surface Area | B7: =Input!F69 -> [Enter Value] | C7: =Input!G49 -> m^2
A8: =Input!E50 -> Proximity to Grid Connection | B8: =Input!F70 -> [Select Value]
A9: =Input!E51 -> Average Water Depth | B9: =Input!F71 -> [Select Value] | C9: =Input!G51 -> 0
A10: =Input!E52 -> Seabed Topography | B10: =Input!F72 -> [Select Value] | C10: =Input!G52 -> 0
A11: =Input!E53 -> Accessibility | B11: =Input!F73 -> [Select Value] | C11: =Input!G53 -> 0
A13: Gravitational Acceleration | B13: 9.81 | C13: m/s^2
A14: Specific Denisty of SeaWater | B14: 1025 | C14: kg/m^3
A15: Tidal Volume | B15: =B5*B7 ->  | C15: m^3
A16: Tidal Mass | B16: =B15*B14 ->  | C16: kg/m^3
A18: Potential Energy at High Tide | B18: =0.5*B7*B14*B13*(B5^2) ->  | C18: J
A19: Total Potential per day | B19: =2*B18 ->  | C19: J
A21: Daily Power Generation Potential | B21: =(B19/(60*60*24))/1000 ->  | C21: kW | D21: =24*B21 -> 
A22: Assumed Efficiency | B22: 0.3
A23: Actual Power Generation | B23: =B21*B22 ->  | C23: kW
A24: Daily Energy | B24: =B23*24 ->  | C24: kWh
A26: Output (kWh) | B26: =IF(ISERROR(B24*B6/1000),"",(B24*B6/1000)) ->  | C26: per lunar cycle
B27: =IF(ISERROR(365*B24/1000),"",(365*B24/1000)) ->  | C27: per year
H151: =MIN(H41:H144) -> 0

Sheet Tidal Barrage 4
A1: Tidal Barrage Resource
A3: =Input!E45 -> Site Name | B3: =Input!F75 -> [Enter Name] | C3: =Input!G45 -> 0
A4: =Input!E46 -> Max Tidal Range | B4: =Input!F76 -> [Enter Value] | C4: =Input!G46 -> m
A5: =Input!E47 -> Mean Tidal Range | B5: =Input!F77 -> [Enter Value] | C5: =Input!G47 -> m
A6: =Input!E48 -> Lunar Cycle Period | B6: =Input!F78 -> [Enter Value] | C6: =Input!G48 -> days
A7: =Input!E49 -> Proposed Lagoon Surface Area | B7: =Input!F79 -> [Enter Value] | C7: =Input!G49 -> m^2
A8: =Input!E50 -> Proximity to Grid Connection | B8: =Input!F80 -> [Select Value]
A9: =Input!E51 -> Average Water Depth | B9: =Input!F81 -> [Select Value] | C9: =Input!G51 -> 0
A10: =Input!E52 -> Seabed Topography | B10: =Input!F82 -> [Select Value] | C10: =Input!G52 -> 0
A11: =Input!E53 -> Accessibility | B11: =Input!F83 -> [Select Value] | C11: =Input!G53 -> 0
A13: Gravitational Acceleration | B13: 9.81 | C13: m/s^2
A14: Specific Denisty of SeaWater | B14: 1025 | C14: kg/m^3
A15: Tidal Volume | B15: =B5*B7 ->  | C15: m^3
A16: Tidal Mass | B16: =B15*B14 ->  | C16: kg/m^3
A18: Potential Energy at High Tide | B18: =0.5*B7*B14*B13*(B5^2) ->  | C18: J
A19: Total Potential per day | B19: =2*B18 ->  | C19: J
A21: Daily Power Generation Potential | B21: =(B19/(60*60*24))/1000 ->  | C21: kW
A22: Assumed Efficiency | B22: 0.3
A23: Actual Power Generation | B23: =B21*B22 ->  | C23: kW
A24: Daily Energy | B24: =B23*24 ->  | C24: kWh
A26: Output (kWh) | B26: =IF(ISERROR(B24*B6/1000),"",(B24*B6/1000)) ->  | C26: per lunar cycle
B27: =IF(ISERROR(365*B24/1000),"",(365*B24/1000)) ->  | C27: per year
H151: =MIN(H41:H144) -> 0

Sheet Tidal Barrage 5
A1: Tidal Barrage Resource
A3: =Input!E45 -> Site Name | B3: =Input!F85 -> [Enter Name] | C3: =Input!G45 -> 0
A4: =Input!E46 -> Max Tidal Range | B4: =Input!F86 -> [Enter Value] | C4: =Input!G46 -> m
A5: =Input!E47 -> Mean Tidal Range | B5: =Input!F87 -> [Enter Value] | C5: =Input!G47 -> m
A6: =Input!E48 -> Lunar Cycle Period | B6: =Input!F88 -> [Enter Value] | C6: =Input!G48 -> days
A7: =Input!E49 -> Proposed Lagoon Surface Area | B7: =Input!F89 -> [Enter Value] | C7: =Input!G49 -> m^2
A8: =Input!E50 -> Proximity to Grid Connection | B8: =Input!F90 -> [Select Value]
A9: =Input!E51 -> Average Water Depth | B9: =Input!F91 -> [Select Value] | C9: =Input!G51 -> 0
A10: =Input!E52 -> Seabed Topography | B10: =Input!F92 -> [Select Value] | C10: =Input!G52 -> 0
A11: =Input!E53 -> Accessibility | B11: =Input!F93 -> [Select Value] | C11: =Input!G53 -> 0
A13: Gravitational Acceleration | B13: 9.81 | C13: m/s^2
A14: Specific Denisty of SeaWater | B14: 1025 | C14: kg/m^3
A15: Tidal Volume | B15: =B5*B7 ->  | C15: m^3
A16: Tidal Mass | B16: =B15*B14 ->  | C16: kg/m^3
A18: Potential Energy at High Tide | B18: =0.5*B7*B14*B13*(B5^2) ->  | C18: J
A19: Total Potential per day | B19: =2*B18 ->  | C19: J
A21: Daily Power Generation Potential | B21: =(B19/(60*60*24))/1000 ->  | C21: kW
A22: Assumed Efficiency | B22: 0.3
A23: Actual Power Generation | B23: =B21*B22 ->  | C23: kW
A24: Daily Energy | B24: =B23*24 ->  | C24: kWh
A26: Output (kWh) | B26: =IF(ISERROR(B24*B6/1000),"",(B24*B6/1000)) ->  | C26: per lunar cycle
B27: =IF(ISERROR(365*B24/1000),"",(365*B24/1000)) ->  | C27: per year
H151: =MIN(H41:H144) -> 0

Sheet Wave 1
A1: Wave Resource
A3: =Input!I45 -> Site Name | B3: =Input!J45 -> Portnahaven - Far
A4: =Input!I46 -> Position Relevant to Island | B4: =Input!J46 -> SW
A5: =Input!I47 -> Relevant Ocean Wave Area | B5: =Input!J47 -> North Sea (AREA 10)
A6: =Input!I48 -> Average Wave Height | B6: =Input!J48 -> 2.1
A7: =Input!I49 -> Proximity to Grid Connection | B7: =Input!J49 -> 5 km +
A8: =Input!I50 -> Average Water Depth | B8: =Input!J50 -> > 20m
A9: =Input!I51 -> Seabed Topography | B9: =Input!J51 -> Moderate (Sandy, Moderate Gradient)
A10: =Input!I52 -> Accessibility | B10: =Input!J52 -> Partially Accessible (Temporary Works, Obstacles)
A12: Relavant Wave Power (kW/m) | B12: =IF(B8<>"[Select Value]",(IF(B8="> 20m", BE63,BE37)),0) -> 7.687264793
A14: Transitional Waters Calculation ( | B14: >20m
A16: Wave Velocity C | B16: (m/s) | C16: =(C17/C18) -> 5.462857143 | D16: 6.988888889 | E16: 8.310909091 | F16: 9.289230769 | G16: 9.965333333 | H16: 10.43647059 | I16: 10.77157895 | J16: 11.01619048 | K16: 11.20173913 | L16: 11.3448 | M16: 11.45555556
A17: Wave Length (λ) | B17: (m) | C17: 19.12 | D17: 31.45 | E17: 45.71 | F17: 60.38 | G17: 74.74 | H17: 88.71 | I17: 102.33 | J17: 115.67 | K17: 128.82 | L17: 141.81 | M17: 154.65
A18: Wave Period (T) | B18: (s) | C18: 3.5 | D18: 4.5 | E18: 5.5 | F18: 6.5 | G18: 7.5 | H18: 8.5 | I18: 9.5 | J18: 10.5 | K18: 11.5 | L18: 12.5 | M18: 13.5
R19: North Sea Area 10 | AE19: North Sea Area 10 | AS19: North Sea Area 10
A20: Energy | B20: Wave Height (Hs) | C20: Power | N20: Total Power | R20: Number of Occurences | AE20: Percentage of Occurences | AS20: Annual Power (W/m) | BE20: Total Power
A21: (J) | B21: (m) | C21: (W/m) | N21: (W/m) | R21: Hs T | S21: 3.5 | T21: 4.5 | U21: 5.5 | V21: 6.5 | W21: 7.5 | X21: 8.5 | Y21: 9.5 | Z21: 10.5 | AA21: 11.5 | AB21: 12.5 | AC21: 13.5 | AE21: Hs T | AF21: 3.5 | AG21: 4.5 | AH21: 5.5 | AI21: 6.5 | AJ21: 7.5 | AK21: 8.5 | AL21: 9.5 | AM21: 10.5 | AN21: 11.5 | AO21: 12.5 | AP21: 13.5 | AQ21: Availability | AS21: Hs T | AT21: 3.5 | AU21: 4.5 | AV21: 5.5 | AW21: 6.5 | AX21: 7.5 | AY21: 8.5 | AZ21: 9.5 | BA21: 10.5 | BB21: 11.5 | BC21: 12.5 | BD21: 13.5 | BE21: (W/m)
A22: =(1025*9.81*B22^2)/8 -> 314.2265625 | B22: 0.5 | C22: =$A22*($C$16) -> 1716.574821 | D22: =$A22*(D16) -> 2196.094531 | E22: =A22*($E$16) -> 2611.508395 | F22: =$A22*($F$16) -> 2918.923053 | G22: =$A22*($G$16) -> 3131.372437 | H22: =$A22*($H$16) -> 3279.416278 | I22: 0 | J22: 0 | K22: 0 | L22: 0 | M22: 0 | N22: =SUM(C22:M22) -> 15853.88952 | R22: 0.5 | S22: =IF($B$4="SW",'Wave Areas'!P115,(IF($B$4="N",'Wave Areas'!B78,(IF($B$4="NE",'Wave Areas'!P79,(IF($B$4="E",'Wave Areas'!B96,(IF($B$4="SE",'Wave Areas'!P97,(IF($B$4="S",'Wave Areas'!B114,(IF($B$4="W",'Wave Areas'!B132,(IF($B$4="NW",'Wave Areas'!P133,0))))))))))))))) -> 1 | T22: =IF($B$4="SW",'Wave Areas'!Q115,(IF($B$4="N",'Wave Areas'!C78,(IF($B$4="NE",'Wave Areas'!Q79,(IF($B$4="E",'Wave Areas'!C96,(IF($B$4="SE",'Wave Areas'!Q97,(IF($B$4="S",'Wave Areas'!C114,(IF($B$4="W",'Wave Areas'!C132,(IF($B$4="NW",'Wave Areas'!Q133,0))))))))))))))) -> 28 | U22: =IF($B$4="SW",'Wave Areas'!R115,(IF($B$4="N",'Wave Areas'!D78,(IF($B$4="NE",'Wave Areas'!R79,(IF($B$4="E",'Wave Areas'!D96,(IF($B$4="SE",'Wave Areas'!R97,(IF($B$4="S",'Wave Areas'!D114,(IF($B$4="W",'Wave Areas'!D132,(IF($B$4="NW",'Wave Areas'!R133,0))))))))))))))) -> 97 | V22: =IF($B$4="SW",'Wave Areas'!S115,(IF($B$4="N",'Wave Areas'!E78,(IF($B$4="NE",'Wave Areas'!S79,(IF($B$4="E",'Wave Areas'!E96,(IF($B$4="SE",'Wave Areas'!S97,(IF($B$4="S",'Wave Areas'!E114,(IF($B$4="W",'Wave Areas'!E132,(IF($B$4="NW",'Wave Areas'!S133,0))))))))))))))) -> 117 | W22: =IF($B$4="SW",'Wave Areas'!T115,(IF($B$4="N",'Wave Areas'!F78,(IF($B$4="NE",'Wave Areas'!T79,(IF($B$4="E",'Wave Areas'!F96,(IF($B$4="SE",'Wave Areas'!T97,(IF($B$4="S",'Wave Areas'!F114,(IF($B$4="W",'Wave Areas'!F132,(IF($B$4="NW",'Wave Areas'!T133,0))))))))))))))) -> 65 | X22: =IF($B$4="SW",'Wave Areas'!U115,(IF($B$4="N",'Wave Areas'!G78,(IF($B$4="NE",'Wave Areas'!U79,(IF($B$4="E",'Wave Areas'!G96,(IF($B$4="SE",'Wave Areas'!U97,(IF($B$4="S",'Wave Areas'!G114,(IF($B$4="W",'Wave Areas'!G132,(IF($B$4="NW",'Wave Areas'!U133,0))))))))))))))) -> 20 | Y22: =IF($B$4="SW",'Wave Areas'!V115,(IF($B$4="N",'Wave Areas'!H78,(IF($B$4="NE",'Wave Areas'!V79,(IF($B$4="E",'Wave Areas'!H96,(IF($B$4="SE",'Wave Areas'!V97,(IF($B$4="S",'Wave Areas'!H114,(IF($B$4="W",'Wave Areas'!H132,(IF($B$4="NW",'Wave Areas'!V133,0))))))))))))))) -> 4 | Z22: =IF($B$4="SW",'Wave Areas'!W115,(IF($B$4="N",'Wave Areas'!I78,(IF($B$4="NE",'Wave Areas'!W79,(IF($B$4="E",'Wave Areas'!I96,(IF($B$4="SE",'Wave Areas'!W97,(IF($B$4="S",'Wave Areas'!I114,(IF($B$4="W",'Wave Areas'!I132,(IF($B$4="NW",'Wave Areas'!W133,0))))))))))))))) -> 0 | AA22: =IF($B$4="SW",'Wave Areas'!X115,(IF($B$4="N",'Wave Areas'!J78,(IF($B$4="NE",'Wave Areas'!X79,(IF($B$4="E",'Wave Areas'!J96,(IF($B$4="SE",'Wave Areas'!X97,(IF($B$4="S",'Wave Areas'!J114,(IF($B$4="W",'Wave Areas'!J132,(IF($B$4="NW",'Wave Areas'!X133,0))))))))))))))) -> 0 | AB22: =IF($B$4="SW",'Wave Areas'!Y115,(IF($B$4="N",'Wave Areas'!K78,(IF($B$4="NE",'Wave Areas'!Y79,(IF($B$4="E",'Wave Areas'!K96,(IF($B$4="SE",'Wave Areas'!Y97,(IF($B$4="S",'Wave Areas'!K114,(IF($B$4="W",'Wave Areas'!K132,(IF($B$4="NW",'Wave Areas'!Y133,0))))))))))))))) -> 0 | AC22: =IF($B$4="SW",'Wave Areas'!Z115,(IF($B$4="N",'Wave Areas'!L78,(IF($B$4="NE",'Wave Areas'!Z79,(IF($B$4="E",'Wave Areas'!L96,(IF($B$4="SE",'Wave Areas'!Z97,(IF($B$4="S",'Wave Areas'!L114,(IF($B$4="W",'Wave Areas'!L132,(IF($B$4="NW",'Wave Areas'!Z133,0))))))))))))))) -> 0 | AE22: 0.5 | AF22: =S22/($AC$33) -> 0.0003333333333 | AG22: =T22/($AC$33) -> 0.009333333333 | AH22: 0.03233333333 | AI22: 0.039 | AJ22: 0.02166666667 | AK22: 0.006666666667 | AL22: 0.001333333333 | AM22: 0 | AN22: 0 | AO22: 0 | AP22: 0 | AQ22: =SUM(AF22:AP22) -> 0.1106666667 | AS22: 0.5 | AT22: =C22*AF22 -> 0.5721916071 | AU22: 20.49688229 | AV22: 84.43877143 | AW22: 113.8379991 | AX22: 67.84640281 | AY22: 21.86277518 | AZ22: =AM22/1004 -> 0 | BA22: =AN22/1004 -> 0 | BB22: =AO22/1004 -> 0 | BC22: =AP22/1004 -> 0 | BD22: =AQ20/1004 -> 0 | BE22: =SUM(AT22:BD22) -> 309.0550224
A23: 2828.039062 | B23: 1.5 | C23: =$A23*($C$16) -> 15449.17339 | D23: =A23*($D$16) -> 19764.85078 | E23: 23503.57555 | F23: =$A23*($F$16) -> 26270.30748 | G23: 28182.35194 | H23: 29514.7465 | I23: =$A23*($I$16) -> 30462.44603 | J23: =$A23*($J$16) -> 31154.21699 | K23: 0 | L23: 0 | M23: 0 | N23: 204301.6687 | R23: 1.5 | S23: =IF($B$4="SW",'Wave Areas'!P116,(IF($B$4="N",'Wave Areas'!B79,(IF($B$4="NE",'Wave Areas'!P80,(IF($B$4="E",'Wave Areas'!B97,(IF($B$4="SE",'Wave Areas'!P98,(IF($B$4="S",'Wave Areas'!B115,(IF($B$4="W",'Wave Areas'!B133,(IF($B$4="NW",'Wave Areas'!P134,0))))))))))))))) -> 0 | T23: =IF($B$4="SW",'Wave Areas'!Q116,(IF($B$4="N",'Wave Areas'!C79,(IF($B$4="NE",'Wave Areas'!Q80,(IF($B$4="E",'Wave Areas'!C97,(IF($B$4="SE",'Wave Areas'!Q98,(IF($B$4="S",'Wave Areas'!C115,(IF($B$4="W",'Wave Areas'!C133,(IF($B$4="NW",'Wave Areas'!Q134,0))))))))))))))) -> 8 | U23: =IF($B$4="SW",'Wave Areas'!R116,(IF($B$4="N",'Wave Areas'!D79,(IF($B$4="NE",'Wave Areas'!R80,(IF($B$4="E",'Wave Areas'!D97,(IF($B$4="SE",'Wave Areas'!R98,(IF($B$4="S",'Wave Areas'!D115,(IF($B$4="W",'Wave Areas'!D133,(IF($B$4="NW",'Wave Areas'!R134,0))))))))))))))) -> 81 | V23: =IF($B$4="SW",'Wave Areas'!S116,(IF($B$4="N",'Wave Areas'!E79,(IF($B$4="NE",'Wave Areas'!S80,(IF($B$4="E",'Wave Areas'!E97,(IF($B$4="SE",'Wave Areas'!S98,(IF($B$4="S",'Wave Areas'!E115,(IF($B$4="W",'Wave Areas'!E133,(IF($B$4="NW",'Wave Areas'!S134,0))))))))))))))) -> 225 | W23: =IF($B$4="SW",'Wave Areas'!T116,(IF($B$4="N",'Wave Areas'!F79,(IF($B$4="NE",'Wave Areas'!T80,(IF($B$4="E",'Wave Areas'!F97,(IF($B$4="SE",'Wave Areas'!T98,(IF($B$4="S",'Wave Areas'!F115,(IF($B$4="W",'Wave Areas'!F133,(IF($B$4="NW",'Wave Areas'!T134,0))))))))))))))) -> 247 | X23: =IF($B$4="SW",'Wave Areas'!U116,(IF($B$4="N",'Wave Areas'!G79,(IF($B$4="NE",'Wave Areas'!U80,(IF($B$4="E",'Wave Areas'!G97,(IF($B$4="SE",'Wave Areas'!U98,(IF($B$4="S",'Wave Areas'!G115,(IF($B$4="W",'Wave Areas'!G133,(IF($B$4="NW",'Wave Areas'!U134,0))))))))))))))) -> 136 | Y23: =IF($B$4="SW",'Wave Areas'!V116,(IF($B$4="N",'Wave Areas'!H79,(IF($B$4="NE",'Wave Areas'!V80,(IF($B$4="E",'Wave Areas'!H97,(IF($B$4="SE",'Wave Areas'!V98,(IF($B$4="S",'Wave Areas'!H115,(IF($B$4="W",'Wave Areas'!H133,(IF($B$4="NW",'Wave Areas'!V134,0))))))))))))))) -> 46 | Z23: =IF($B$4="SW",'Wave Areas'!W116,(IF($B$4="N",'Wave Areas'!I79,(IF($B$4="NE",'Wave Areas'!W80,(IF($B$4="E",'Wave Areas'!I97,(IF($B$4="SE",'Wave Areas'!W98,(IF($B$4="S",'Wave Areas'!I115,(IF($B$4="W",'Wave Areas'!I133,(IF($B$4="NW",'Wave Areas'!W134,0))))))))))))))) -> 11 | AA23: =IF($B$4="SW",'Wave Areas'!X116,(IF($B$4="N",'Wave Areas'!J79,(IF($B$4="NE",'Wave Areas'!X80,(IF($B$4="E",'Wave Areas'!J97,(IF($B$4="SE",'Wave Areas'!X98,(IF($B$4="S",'Wave Areas'!J115,(IF($B$4="W",'Wave Areas'!J133,(IF($B$4="NW",'Wave Areas'!X134,0))))))))))))))) -> 2 | AB23: =IF($B$4="SW",'Wave Areas'!Y116,(IF($B$4="N",'Wave Areas'!K79,(IF($B$4="NE",'Wave Areas'!Y80,(IF($B$4="E",'Wave Areas'!K97,(IF($B$4="SE",'Wave Areas'!Y98,(IF($B$4="S",'Wave Areas'!K115,(IF($B$4="W",'Wave Areas'!K133,(IF($B$4="NW",'Wave Areas'!Y134,0))))))))))))))) -> 0 | AC23: =IF($B$4="SW",'Wave Areas'!Z116,(IF($B$4="N",'Wave Areas'!L79,(IF($B$4="NE",'Wave Areas'!Z80,(IF($B$4="E",'Wave Areas'!L97,(IF($B$4="SE",'Wave Areas'!Z98,(IF($B$4="S",'Wave Areas'!L115,(IF($B$4="W",'Wave Areas'!L133,(IF($B$4="NW",'Wave Areas'!Z134,0))))))))))))))) -> 0 | AE23: 1.5 | AF23: =S23/($AC$33) -> 0 | AG23: =T23/($AC$33) -> 0.002666666667 | AH23: =U23/($AC$33) -> 0.027 | AI23: =V23/($AC$33) -> 0.075 | AJ23: =W23/($AC$33) -> 0.08233333333 | AK23: =X23/($AC$33) -> 0.04533333333 | AL23: =Y23/($AC$33) -> 0.01533333333 | AM23: =Z23/($AC$33) -> 0.003666666667 | AN23: =AA23/($AC$33) -> 0.0006666666667 | AO23: =AB23/($AC$33) -> 0 | AP23: =AC23/($AC$33) -> 0 | AQ23: =SUM(AF23:AP23) -> 0.252 | AS23: 1.5 | AT23: 0 | AU23: 52.70626875 | AV23: 634.59654 | AW23: 1970.273061 | AX23: 2320.346976 | AY23: 1338.001841 | AZ23: =I23*AL23 -> 467.0908391 | BA23: 114.232129 | BB23: =AO23/1004 -> 0 | BC23: =AP23/1004 -> 0 | BD23: =AQ22/1004 -> 0.0001102257636 | BE23: 6897.247765
A24: 7855.664062 | B24: 2.5 | C24: 0 | D24: =A24*($D$16) -> 54902.36328 | E24: 65287.70987 | F24: =$A24*($F$16) -> 72973.07632 | G24: 78284.31094 | H24: 81985.40694 | I24: 84617.90563 | J24: 86539.49163 | K24: 0 | L24: 0 | M24: 0 | N24: 524590.2646 | R24: 2.5 | S24: =IF($B$4="SW",'Wave Areas'!P117,(IF($B$4="N",'Wave Areas'!B80,(IF($B$4="NE",'Wave Areas'!P81,(IF($B$4="E",'Wave Areas'!B98,(IF($B$4="SE",'Wave Areas'!P99,(IF($B$4="S",'Wave Areas'!B116,(IF($B$4="W",'Wave Areas'!B134,(IF($B$4="NW",'Wave Areas'!P135,0))))))))))))))) -> 0 | T24: =IF($B$4="SW",'Wave Areas'!Q117,(IF($B$4="N",'Wave Areas'!C80,(IF($B$4="NE",'Wave Areas'!Q81,(IF($B$4="E",'Wave Areas'!C98,(IF($B$4="SE",'Wave Areas'!Q99,(IF($B$4="S",'Wave Areas'!C116,(IF($B$4="W",'Wave Areas'!C134,(IF($B$4="NW",'Wave Areas'!Q135,0))))))))))))))) -> 2 | U24: =IF($B$4="SW",'Wave Areas'!R117,(IF($B$4="N",'Wave Areas'!D80,(IF($B$4="NE",'Wave Areas'!R81,(IF($B$4="E",'Wave Areas'!D98,(IF($B$4="SE",'Wave Areas'!R99,(IF($B$4="S",'Wave Areas'!D116,(IF($B$4="W",'Wave Areas'!D134,(IF($B$4="NW",'Wave Areas'!R135,0))))))))))))))) -> 33 | V24: =IF($B$4="SW",'Wave Areas'!S117,(IF($B$4="N",'Wave Areas'!E80,(IF($B$4="NE",'Wave Areas'!S81,(IF($B$4="E",'Wave Areas'!E98,(IF($B$4="SE",'Wave Areas'!S99,(IF($B$4="S",'Wave Areas'!E116,(IF($B$4="W",'Wave Areas'!E134,(IF($B$4="NW",'Wave Areas'!S135,0))))))))))))))) -> 140 | W24: =IF($B$4="SW",'Wave Areas'!T117,(IF($B$4="N",'Wave Areas'!F80,(IF($B$4="NE",'Wave Areas'!T81,(IF($B$4="E",'Wave Areas'!F98,(IF($B$4="SE",'Wave Areas'!T99,(IF($B$4="S",'Wave Areas'!F116,(IF($B$4="W",'Wave Areas'!F134,(IF($B$4="NW",'Wave Areas'!T135,0))))))))))))))) -> 231 | X24: =IF($B$4="SW",'Wave Areas'!U117,(IF($B$4="N",'Wave Areas'!G80,(IF($B$4="NE",'Wave Areas'!U81,(IF($B$4="E",'Wave Areas'!G98,(IF($B$4="SE",'Wave Areas'!U99,(IF($B$4="S",'Wave Areas'!G116,(IF($B$4="W",'Wave Areas'!G134,(IF($B$4="NW",'Wave Areas'!U135,0))))))))))))))) -> 186 | Y24: =IF($B$4="SW",'Wave Areas'!V117,(IF($B$4="N",'Wave Areas'!H80,(IF($B$4="NE",'Wave Areas'!V81,(IF($B$4="E",'Wave Areas'!H98,(IF($B$4="SE",'Wave Areas'!V99,(IF($B$4="S",'Wave Areas'!H116,(IF($B$4="W",'Wave Areas'!H134,(IF($B$4="NW",'Wave Areas'!V135,0))))))))))))))) -> 86 | Z24: =IF($B$4="SW",'Wave Areas'!W117,(IF($B$4="N",'Wave Areas'!I80,(IF($B$4="NE",'Wave Areas'!W81,(IF($B$4="E",'Wave Areas'!I98,(IF($B$4="SE",'Wave Areas'!W99,(IF($B$4="S",'Wave Areas'!I116,(IF($B$4="W",'Wave Areas'!I134,(IF($B$4="NW",'Wave Areas'!W135,0))))))))))))))) -> 27 | AA24: =IF($B$4="SW",'Wave Areas'!X117,(IF($B$4="N",'Wave Areas'!J80,(IF($B$4="NE",'Wave Areas'!X81,(IF($B$4="E",'Wave Areas'!J98,(IF($B$4="SE",'Wave Areas'!X99,(IF($B$4="S",'Wave Areas'!J116,(IF($B$4="W",'Wave Areas'!J134,(IF($B$4="NW",'Wave Areas'!X135,0))))))))))))))) -> 7 | AB24: =IF($B$4="SW",'Wave Areas'!Y117,(IF($B$4="N",'Wave Areas'!K80,(IF($B$4="NE",'Wave Areas'!Y81,(IF($B$4="E",'Wave Areas'!K98,(IF($B$4="SE",'Wave Areas'!Y99,(IF($B$4="S",'Wave Areas'!K116,(IF($B$4="W",'Wave Areas'!K134,(IF($B$4="NW",'Wave Areas'!Y135,0))))))))))))))) -> 2 | AC24: =IF($B$4="SW",'Wave Areas'!Z117,(IF($B$4="N",'Wave Areas'!L80,(IF($B$4="NE",'Wave Areas'!Z81,(IF($B$4="E",'Wave Areas'!L98,(IF($B$4="SE",'Wave Areas'!Z99,(IF($B$4="S",'Wave Areas'!L116,(IF($B$4="W",'Wave Areas'!L134,(IF($B$4="NW",'Wave Areas'!Z135,0))))))))))))))) -> 0 | AE24: 2.5 | AF24: 0 | AG24: =T24/($AC$33) -> 0.0006666666667 | AH24: =U24/($AC$33) -> 0.011 | AI24: 0.04666666667 | AJ24: 0.077 | AK24: 0.062 | AL24: 0.02866666667 | AM24: 0.009 | AN24: 0.002333333333 | AO24: 0.0006666666667 | AP24: 0 | AQ24: 0.238 | AS24: 2.5 | AT24: =AG24/1004 -> 6.640106242e-07 | AU24: =D24*AG24 -> 36.60157552 | AV24: =E24*AH24 -> 718.1648086 | AW24: 3405.410228 | AX24: 6027.891942 | AY24: 5083.09523 | AZ24: 2425.713295 | BA24: 778.8554247 | BB24: 6.640106242e-07 | BC24: 0 | BD24: 0.0002509960159 | BE24: 18475.73276
A25: 15397.10156 | B25: 3.5 | C25: 0 | D25: =A25*($D$16) -> 107608.632 | E25: 127963.9113 | F25: =$A25*($F$16) -> 143027.2296 | G25: 153437.2494 | H25: 160691.3976 | I25: 165851.095 | J25: 169617.4036 | K25: 0 | L25: 0 | M25: 0 | N25: 1028196.919 | R25: 3.5 | S25: =IF($B$4="SW",'Wave Areas'!P118,(IF($B$4="N",'Wave Areas'!B81,(IF($B$4="NE",'Wave Areas'!P82,(IF($B$4="E",'Wave Areas'!B99,(IF($B$4="SE",'Wave Areas'!P100,(IF($B$4="S",'Wave Areas'!B117,(IF($B$4="W",'Wave Areas'!B135,(IF($B$4="NW",'Wave Areas'!P136,0))))))))))))))) -> 0 | T25: =IF($B$4="SW",'Wave Areas'!Q118,(IF($B$4="N",'Wave Areas'!C81,(IF($B$4="NE",'Wave Areas'!Q82,(IF($B$4="E",'Wave Areas'!C99,(IF($B$4="SE",'Wave Areas'!Q100,(IF($B$4="S",'Wave Areas'!C117,(IF($B$4="W",'Wave Areas'!C135,(IF($B$4="NW",'Wave Areas'!Q136,0))))))))))))))) -> 0 | U25: =IF($B$4="SW",'Wave Areas'!R118,(IF($B$4="N",'Wave Areas'!D81,(IF($B$4="NE",'Wave Areas'!R82,(IF($B$4="E",'Wave Areas'!D99,(IF($B$4="SE",'Wave Areas'!R100,(IF($B$4="S",'Wave Areas'!D117,(IF($B$4="W",'Wave Areas'!D135,(IF($B$4="NW",'Wave Areas'!R136,0))))))))))))))) -> 12 | V25: =IF($B$4="SW",'Wave Areas'!S118,(IF($B$4="N",'Wave Areas'!E81,(IF($B$4="NE",'Wave Areas'!S82,(IF($B$4="E",'Wave Areas'!E99,(IF($B$4="SE",'Wave Areas'!S100,(IF($B$4="S",'Wave Areas'!E117,(IF($B$4="W",'Wave Areas'!E135,(IF($B$4="NW",'Wave Areas'!S136,0))))))))))))))) -> 67 | W25: =IF($B$4="SW",'Wave Areas'!T118,(IF($B$4="N",'Wave Areas'!F81,(IF($B$4="NE",'Wave Areas'!T82,(IF($B$4="E",'Wave Areas'!F99,(IF($B$4="SE",'Wave Areas'!T100,(IF($B$4="S",'Wave Areas'!F117,(IF($B$4="W",'Wave Areas'!F135,(IF($B$4="NW",'Wave Areas'!T136,0))))))))))))))) -> 143 | X25: =IF($B$4="SW",'Wave Areas'!U118,(IF($B$4="N",'Wave Areas'!G81,(IF($B$4="NE",'Wave Areas'!U82,(IF($B$4="E",'Wave Areas'!G99,(IF($B$4="SE",'Wave Areas'!U100,(IF($B$4="S",'Wave Areas'!G117,(IF($B$4="W",'Wave Areas'!G135,(IF($B$4="NW",'Wave Areas'!U136,0))))))))))))))) -> 147 | Y25: =IF($B$4="SW",'Wave Areas'!V118,(IF($B$4="N",'Wave Areas'!H81,(IF($B$4="NE",'Wave Areas'!V82,(IF($B$4="E",'Wave Areas'!H99,(IF($B$4="SE",'Wave Areas'!V100,(IF($B$4="S",'Wave Areas'!H117,(IF($B$4="W",'Wave Areas'!H135,(IF($B$4="NW",'Wave Areas'!V136,0))))))))))))))) -> 88 | Z25: =IF($B$4="SW",'Wave Areas'!W118,(IF($B$4="N",'Wave Areas'!I81,(IF($B$4="NE",'Wave Areas'!W82,(IF($B$4="E",'Wave Areas'!I99,(IF($B$4="SE",'Wave Areas'!W100,(IF($B$4="S",'Wave Areas'!I117,(IF($B$4="W",'Wave Areas'!I135,(IF($B$4="NW",'Wave Areas'!W136,0))))))))))))))) -> 34 | AA25: =IF($B$4="SW",'Wave Areas'!X118,(IF($B$4="N",'Wave Areas'!J81,(IF($B$4="NE",'Wave Areas'!X82,(IF($B$4="E",'Wave Areas'!J99,(IF($B$4="SE",'Wave Areas'!X100,(IF($B$4="S",'Wave Areas'!J117,(IF($B$4="W",'Wave Areas'!J135,(IF($B$4="NW",'Wave Areas'!X136,0))))))))))))))) -> 9 | AB25: =IF($B$4="SW",'Wave Areas'!Y118,(IF($B$4="N",'Wave Areas'!K81,(IF($B$4="NE",'Wave Areas'!Y82,(IF($B$4="E",'Wave Areas'!K99,(IF($B$4="SE",'Wave Areas'!Y100,(IF($B$4="S",'Wave Areas'!K117,(IF($B$4="W",'Wave Areas'!K135,(IF($B$4="NW",'Wave Areas'!Y136,0))))))))))))))) -> 3 | AC25: =IF($B$4="SW",'Wave Areas'!Z118,(IF($B$4="N",'Wave Areas'!L81,(IF($B$4="NE",'Wave Areas'!Z82,(IF($B$4="E",'Wave Areas'!L99,(IF($B$4="SE",'Wave Areas'!Z100,(IF($B$4="S",'Wave Areas'!L117,(IF($B$4="W",'Wave Areas'!L135,(IF($B$4="NW",'Wave Areas'!Z136,0))))))))))))))) -> 0 | AE25: 3.5 | AF25: 0 | AG25: 0 | AH25: 0.004 | AI25: 0.02233333333 | AJ25: 0.04766666667 | AK25: 0.049 | AL25: 0.02933333333 | AM25: 0.01133333333 | AN25: 0.003 | AO25: 0.001 | AP25: 0 | AQ25: 0.1676666667 | AS25: 3.5 | AT25: 0 | AU25: 0 | AV25: 511.8556454 | AW25: 3194.274794 | AX25: 7313.842223 | AY25: 7873.878482 | AZ25: 4864.965455 | BA25: 1922.330574 | BB25: 9.960159363e-07 | BC25: 0 | BD25: 0.0002370517928 | BE25: =SUM(AT25:BD25) -> 25681.14741
A26: 25452.35156 | B26: 4.5 | C26: 0 | D26: =A26*($D$16) -> 177883.657 | E26: 211532.18 | F26: =$A26*($F$16/2) -> 118216.3836 | G26: 253641.1674 | H26: 265632.7185 | I26: 274162.0143 | J26: 280387.9529 | K26: 0 | L26: 0 | M26: 0 | N26: 1581456.074 | R26: 4.5 | S26: =IF($B$4="SW",'Wave Areas'!P119,(IF($B$4="N",'Wave Areas'!B82,(IF($B$4="NE",'Wave Areas'!P83,(IF($B$4="E",'Wave Areas'!B100,(IF($B$4="SE",'Wave Areas'!P101,(IF($B$4="S",'Wave Areas'!B118,(IF($B$4="W",'Wave Areas'!B136,(IF($B$4="NW",'Wave Areas'!P137,0))))))))))))))) -> 0 | T26: =IF($B$4="SW",'Wave Areas'!Q119,(IF($B$4="N",'Wave Areas'!C82,(IF($B$4="NE",'Wave Areas'!Q83,(IF($B$4="E",'Wave Areas'!C100,(IF($B$4="SE",'Wave Areas'!Q101,(IF($B$4="S",'Wave Areas'!C118,(IF($B$4="W",'Wave Areas'!C136,(IF($B$4="NW",'Wave Areas'!Q137,0))))))))))))))) -> 0 | U26: =IF($B$4="SW",'Wave Areas'!R119,(IF($B$4="N",'Wave Areas'!D82,(IF($B$4="NE",'Wave Areas'!R83,(IF($B$4="E",'Wave Areas'!D100,(IF($B$4="SE",'Wave Areas'!R101,(IF($B$4="S",'Wave Areas'!D118,(IF($B$4="W",'Wave Areas'!D136,(IF($B$4="NW",'Wave Areas'!R137,0))))))))))))))) -> 4 | V26: =IF($B$4="SW",'Wave Areas'!S119,(IF($B$4="N",'Wave Areas'!E82,(IF($B$4="NE",'Wave Areas'!S83,(IF($B$4="E",'Wave Areas'!E100,(IF($B$4="SE",'Wave Areas'!S101,(IF($B$4="S",'Wave Areas'!E118,(IF($B$4="W",'Wave Areas'!E136,(IF($B$4="NW",'Wave Areas'!S137,0))))))))))))))) -> 29 | W26: =IF($B$4="SW",'Wave Areas'!T119,(IF($B$4="N",'Wave Areas'!F82,(IF($B$4="NE",'Wave Areas'!T83,(IF($B$4="E",'Wave Areas'!F100,(IF($B$4="SE",'Wave Areas'!T101,(IF($B$4="S",'Wave Areas'!F118,(IF($B$4="W",'Wave Areas'!F136,(IF($B$4="NW",'Wave Areas'!T137,0))))))))))))))) -> 74 | X26: =IF($B$4="SW",'Wave Areas'!U119,(IF($B$4="N",'Wave Areas'!G82,(IF($B$4="NE",'Wave Areas'!U83,(IF($B$4="E",'Wave Areas'!G100,(IF($B$4="SE",'Wave Areas'!U101,(IF($B$4="S",'Wave Areas'!G118,(IF($B$4="W",'Wave Areas'!G136,(IF($B$4="NW",'Wave Areas'!U137,0))))))))))))))) -> 93 | Y26: =IF($B$4="SW",'Wave Areas'!V119,(IF($B$4="N",'Wave Areas'!H82,(IF($B$4="NE",'Wave Areas'!V83,(IF($B$4="E",'Wave Areas'!H100,(IF($B$4="SE",'Wave Areas'!V101,(IF($B$4="S",'Wave Areas'!H118,(IF($B$4="W",'Wave Areas'!H136,(IF($B$4="NW",'Wave Areas'!V137,0))))))))))))))) -> 66 | Z26: =IF($B$4="SW",'Wave Areas'!W119,(IF($B$4="N",'Wave Areas'!I82,(IF($B$4="NE",'Wave Areas'!W83,(IF($B$4="E",'Wave Areas'!I100,(IF($B$4="SE",'Wave Areas'!W101,(IF($B$4="S",'Wave Areas'!I118,(IF($B$4="W",'Wave Areas'!I136,(IF($B$4="NW",'Wave Areas'!W137,0))))))))))))))) -> 31 | AA26: =IF($B$4="SW",'Wave Areas'!X119,(IF($B$4="N",'Wave Areas'!J82,(IF($B$4="NE",'Wave Areas'!X83,(IF($B$4="E",'Wave Areas'!J100,(IF($B$4="SE",'Wave Areas'!X101,(IF($B$4="S",'Wave Areas'!J118,(IF($B$4="W",'Wave Areas'!J136,(IF($B$4="NW",'Wave Areas'!X137,0))))))))))))))) -> 9 | AB26: =IF($B$4="SW",'Wave Areas'!Y119,(IF($B$4="N",'Wave Areas'!K82,(IF($B$4="NE",'Wave Areas'!Y83,(IF($B$4="E",'Wave Areas'!K100,(IF($B$4="SE",'Wave Areas'!Y101,(IF($B$4="S",'Wave Areas'!K118,(IF($B$4="W",'Wave Areas'!K136,(IF($B$4="NW",'Wave Areas'!Y137,0))))))))))))))) -> 3 | AC26: =IF($B$4="SW",'Wave Areas'!Z119,(IF($B$4="N",'Wave Areas'!L82,(IF($B$4="NE",'Wave Areas'!Z83,(IF($B$4="E",'Wave Areas'!L100,(IF($B$4="SE",'Wave Areas'!Z101,(IF($B$4="S",'Wave Areas'!L118,(IF($B$4="W",'Wave Areas'!L136,(IF($B$4="NW",'Wave Areas'!Z137,0))))))))))))))) -> 1 | AE26: 4.5 | AF26: 0 | AG26: 0 | AH26: 0.001333333333 | AI26: 0.009666666667 | AJ26: 0.02466666667 | AK26: 0.031 | AL26: 0.022 | AM26: 0.01033333333 | AN26: 0.003 | AO26: 0.001 | AP26: 0.0003333333333 | AQ26: 0.1033333333 | AS26: 4.5 | AT26: 0 | AU26: 0 | AV26: 282.0429066 | AW26: 1142.758375 | AX26: 6256.48213 | AY26: 8234.614273 | AZ26: 6031.564314 | BA26: 2897.34218 | BB26: 9.960159363e-07 | BC26: 3.320053121e-07 | BD26: 0.000166998672 | BE26: 24844.80435
A27: 38021.41406 | B27: 5.5 | C27: 0 | D27: 0 | E27: 315992.5158 | F27: =$A27*($F$16) -> 353189.6894 | G27: 378896.0649 | H27: 396809.3696 | I27: 409550.6633 | J27: 418851.1395 | K27: 0 | L27: 0 | M27: 0 | N27: 2273289.442 | R27: 5.5 | S27: =IF($B$4="SW",'Wave Areas'!P120,(IF($B$4="N",'Wave Areas'!B83,(IF($B$4="NE",'Wave Areas'!P84,(IF($B$4="E",'Wave Areas'!B101,(IF($B$4="SE",'Wave Areas'!P102,(IF($B$4="S",'Wave Areas'!B119,(IF($B$4="W",'Wave Areas'!B137,(IF($B$4="NW",'Wave Areas'!P138,0))))))))))))))) -> 0 | T27: =IF($B$4="SW",'Wave Areas'!Q120,(IF($B$4="N",'Wave Areas'!C83,(IF($B$4="NE",'Wave Areas'!Q84,(IF($B$4="E",'Wave Areas'!C101,(IF($B$4="SE",'Wave Areas'!Q102,(IF($B$4="S",'Wave Areas'!C119,(IF($B$4="W",'Wave Areas'!C137,(IF($B$4="NW",'Wave Areas'!Q138,0))))))))))))))) -> 0 | U27: =IF($B$4="SW",'Wave Areas'!R120,(IF($B$4="N",'Wave Areas'!D83,(IF($B$4="NE",'Wave Areas'!R84,(IF($B$4="E",'Wave Areas'!D101,(IF($B$4="SE",'Wave Areas'!R102,(IF($B$4="S",'Wave Areas'!D119,(IF($B$4="W",'Wave Areas'!D137,(IF($B$4="NW",'Wave Areas'!R138,0))))))))))))))) -> 1 | V27: =IF($B$4="SW",'Wave Areas'!S120,(IF($B$4="N",'Wave Areas'!E83,(IF($B$4="NE",'Wave Areas'!S84,(IF($B$4="E",'Wave Areas'!E101,(IF($B$4="SE",'Wave Areas'!S102,(IF($B$4="S",'Wave Areas'!E119,(IF($B$4="W",'Wave Areas'!E137,(IF($B$4="NW",'Wave Areas'!S138,0))))))))))))))) -> 11 | W27: =IF($B$4="SW",'Wave Areas'!T120,(IF($B$4="N",'Wave Areas'!F83,(IF($B$4="NE",'Wave Areas'!T84,(IF($B$4="E",'Wave Areas'!F101,(IF($B$4="SE",'Wave Areas'!T102,(IF($B$4="S",'Wave Areas'!F119,(IF($B$4="W",'Wave Areas'!F137,(IF($B$4="NW",'Wave Areas'!T138,0))))))))))))))) -> 36 | X27: =IF($B$4="SW",'Wave Areas'!U120,(IF($B$4="N",'Wave Areas'!G83,(IF($B$4="NE",'Wave Areas'!U84,(IF($B$4="E",'Wave Areas'!G101,(IF($B$4="SE",'Wave Areas'!U102,(IF($B$4="S",'Wave Areas'!G119,(IF($B$4="W",'Wave Areas'!G137,(IF($B$4="NW",'Wave Areas'!U138,0))))))))))))))) -> 51 | Y27: =IF($B$4="SW",'Wave Areas'!V120,(IF($B$4="N",'Wave Areas'!H83,(IF($B$4="NE",'Wave Areas'!V84,(IF($B$4="E",'Wave Areas'!H101,(IF($B$4="SE",'Wave Areas'!V102,(IF($B$4="S",'Wave Areas'!H119,(IF($B$4="W",'Wave Areas'!H137,(IF($B$4="NW",'Wave Areas'!V138,0))))))))))))))) -> 43 | Z27: =IF($B$4="SW",'Wave Areas'!W120,(IF($B$4="N",'Wave Areas'!I83,(IF($B$4="NE",'Wave Areas'!W84,(IF($B$4="E",'Wave Areas'!I101,(IF($B$4="SE",'Wave Areas'!W102,(IF($B$4="S",'Wave Areas'!I119,(IF($B$4="W",'Wave Areas'!I137,(IF($B$4="NW",'Wave Areas'!W138,0))))))))))))))) -> 23 | AA27: =IF($B$4="SW",'Wave Areas'!X120,(IF($B$4="N",'Wave Areas'!J83,(IF($B$4="NE",'Wave Areas'!X84,(IF($B$4="E",'Wave Areas'!J101,(IF($B$4="SE",'Wave Areas'!X102,(IF($B$4="S",'Wave Areas'!J119,(IF($B$4="W",'Wave Areas'!J137,(IF($B$4="NW",'Wave Areas'!X138,0))))))))))))))) -> 9 | AB27: =IF($B$4="SW",'Wave Areas'!Y120,(IF($B$4="N",'Wave Areas'!K83,(IF($B$4="NE",'Wave Areas'!Y84,(IF($B$4="E",'Wave Areas'!K101,(IF($B$4="SE",'Wave Areas'!Y102,(IF($B$4="S",'Wave Areas'!K119,(IF($B$4="W",'Wave Areas'!K137,(IF($B$4="NW",'Wave Areas'!Y138,0))))))))))))))) -> 2 | AC27: =IF($B$4="SW",'Wave Areas'!Z120,(IF($B$4="N",'Wave Areas'!L83,(IF($B$4="NE",'Wave Areas'!Z84,(IF($B$4="E",'Wave Areas'!L101,(IF($B$4="SE",'Wave Areas'!Z102,(IF($B$4="S",'Wave Areas'!L119,(IF($B$4="W",'Wave Areas'!L137,(IF($B$4="NW",'Wave Areas'!Z138,0))))))))))))))) -> 0 | AE27: 5.5 | AF27: 0 | AG27: 0 | AH27: 0.0003333333333 | AI27: 0.003666666667 | AJ27: 0.012 | AK27: 0.017 | AL27: 0.01433333333 | AM27: 0.007666666667 | AN27: 0.003 | AO27: 0.0006666666667 | AP27: 0 | AQ27: 0.05866666667 | AS27: 5.5 | AT27: 0 | AU27: =AH27/1004 -> 3.320053121e-07 | AV27: =E27*AH27 -> 105.3308386 | AW27: 1295.028861 | AX27: 4546.752779 | AY27: 6745.759283 | AZ27: 5870.226173 | BA27: 3211.192069 | BB27: 6.640106242e-07 | BC27: 0 | BD27: 0.0001029216467 | BE27: 21774.29011
A28: 53104.28906 | B28: 6.5 | C28: 0 | D28: 0 | E28: 441344.9187 | F28: =$A28*($F$16/2) -> 246648.998 | G28: 529201.9419 | H28: 554221.3509 | I28: 572017.0421 | J28: 585006.9634 | K28: 0 | L28: 0 | M28: 0 | N28: 2928441.215 | R28: 6.5 | S28: =IF($B$4="SW",'Wave Areas'!P121,(IF($B$4="N",'Wave Areas'!B84,(IF($B$4="NE",'Wave Areas'!P85,(IF($B$4="E",'Wave Areas'!B102,(IF($B$4="SE",'Wave Areas'!P103,(IF($B$4="S",'Wave Areas'!B120,(IF($B$4="W",'Wave Areas'!B138,(IF($B$4="NW",'Wave Areas'!P139,0))))))))))))))) -> 0 | T28: =IF($B$4="SW",'Wave Areas'!Q121,(IF($B$4="N",'Wave Areas'!C84,(IF($B$4="NE",'Wave Areas'!Q85,(IF($B$4="E",'Wave Areas'!C102,(IF($B$4="SE",'Wave Areas'!Q103,(IF($B$4="S",'Wave Areas'!C120,(IF($B$4="W",'Wave Areas'!C138,(IF($B$4="NW",'Wave Areas'!Q139,0))))))))))))))) -> 0 | U28: =IF($B$4="SW",'Wave Areas'!R121,(IF($B$4="N",'Wave Areas'!D84,(IF($B$4="NE",'Wave Areas'!R85,(IF($B$4="E",'Wave Areas'!D102,(IF($B$4="SE",'Wave Areas'!R103,(IF($B$4="S",'Wave Areas'!D120,(IF($B$4="W",'Wave Areas'!D138,(IF($B$4="NW",'Wave Areas'!R139,0))))))))))))))) -> 0 | V28: =IF($B$4="SW",'Wave Areas'!S121,(IF($B$4="N",'Wave Areas'!E84,(IF($B$4="NE",'Wave Areas'!S85,(IF($B$4="E",'Wave Areas'!E102,(IF($B$4="SE",'Wave Areas'!S103,(IF($B$4="S",'Wave Areas'!E120,(IF($B$4="W",'Wave Areas'!E138,(IF($B$4="NW",'Wave Areas'!S139,0))))))))))))))) -> 4 | W28: =IF($B$4="SW",'Wave Areas'!T121,(IF($B$4="N",'Wave Areas'!F84,(IF($B$4="NE",'Wave Areas'!T85,(IF($B$4="E",'Wave Areas'!F102,(IF($B$4="SE",'Wave Areas'!T103,(IF($B$4="S",'Wave Areas'!F120,(IF($B$4="W",'Wave Areas'!F138,(IF($B$4="NW",'Wave Areas'!T139,0))))))))))))))) -> 16 | X28: =IF($B$4="SW",'Wave Areas'!U121,(IF($B$4="N",'Wave Areas'!G84,(IF($B$4="NE",'Wave Areas'!U85,(IF($B$4="E",'Wave Areas'!G102,(IF($B$4="SE",'Wave Areas'!U103,(IF($B$4="S",'Wave Areas'!G120,(IF($B$4="W",'Wave Areas'!G138,(IF($B$4="NW",'Wave Areas'!U139,0))))))))))))))) -> 28 | Y28: =IF($B$4="SW",'Wave Areas'!V121,(IF($B$4="N",'Wave Areas'!H84,(IF($B$4="NE",'Wave Areas'!V85,(IF($B$4="E",'Wave Areas'!H102,(IF($B$4="SE",'Wave Areas'!V103,(IF($B$4="S",'Wave Areas'!H120,(IF($B$4="W",'Wave Areas'!H138,(IF($B$4="NW",'Wave Areas'!V139,0))))))))))))))) -> 26 | Z28: =IF($B$4="SW",'Wave Areas'!W121,(IF($B$4="N",'Wave Areas'!I84,(IF($B$4="NE",'Wave Areas'!W85,(IF($B$4="E",'Wave Areas'!I102,(IF($B$4="SE",'Wave Areas'!W103,(IF($B$4="S",'Wave Areas'!I120,(IF($B$4="W",'Wave Areas'!I138,(IF($B$4="NW",'Wave Areas'!W139,0))))))))))))))) -> 16 | AA28: =IF($B$4="SW",'Wave Areas'!X121,(IF($B$4="N",'Wave Areas'!J84,(IF($B$4="NE",'Wave Areas'!X85,(IF($B$4="E",'Wave Areas'!J102,(IF($B$4="SE",'Wave Areas'!X103,(IF($B$4="S",'Wave Areas'!J120,(IF($B$4="W",'Wave Areas'!J138,(IF($B$4="NW",'Wave Areas'!X139,0))))))))))))))) -> 7 | AB28: =IF($B$4="SW",'Wave Areas'!Y121,(IF($B$4="N",'Wave Areas'!K84,(IF($B$4="NE",'Wave Areas'!Y85,(IF($B$4="E",'Wave Areas'!K102,(IF($B$4="SE",'Wave Areas'!Y103,(IF($B$4="S",'Wave Areas'!K120,(IF($B$4="W",'Wave Areas'!K138,(IF($B$4="NW",'Wave Areas'!Y139,0))))))))))))))) -> 2 | AC28: =IF($B$4="SW",'Wave Areas'!Z121,(IF($B$4="N",'Wave Areas'!L84,(IF($B$4="NE",'Wave Areas'!Z85,(IF($B$4="E",'Wave Areas'!L102,(IF($B$4="SE",'Wave Areas'!Z103,(IF($B$4="S",'Wave Areas'!L120,(IF($B$4="W",'Wave Areas'!L138,(IF($B$4="NW",'Wave Areas'!Z139,0))))))))))))))) -> 0 | AE28: 6.5 | AF28: 0 | AG28: 0 | AH28: 0 | AI28: 0.001333333333 | AJ28: 0.005333333333 | AK28: 0.009333333333 | AL28: 0.008666666667 | AM28: 0.005333333333 | AN28: 0.002333333333 | AO28: 0.0006666666667 | AP28: 0 | AQ28: 0.033 | AS28: 6.5 | AT28: 0 | AU28: 0 | AV28: 0 | AW28: 328.8653306 | AX28: 2822.410357 | AY28: 5172.732608 | AZ28: 4957.481031 | BA28: 3120.037138 | BB28: 6.640106242e-07 | BC28: 0 | BD28: 5.843293493e-05 | BE28: 16401.52652
A29: 70700.97656 | B29: 7.5 | C29: 0 | D29: 0 | E29: 0 | F29: =$A29*($F$16) -> 656757.6869 | G29: 704558.7984 | H29: 737868.6625 | I29: 761561.1507 | J29: 0 | K29: 0 | L29: 0 | M29: 0 | N29: 2860746.298 | R29: 7.5 | S29: =IF($B$4="SW",'Wave Areas'!P122,(IF($B$4="N",'Wave Areas'!B85,(IF($B$4="NE",'Wave Areas'!P86,(IF($B$4="E",'Wave Areas'!B103,(IF($B$4="SE",'Wave Areas'!P104,(IF($B$4="S",'Wave Areas'!B121,(IF($B$4="W",'Wave Areas'!B139,(IF($B$4="NW",'Wave Areas'!P140,0))))))))))))))) -> 0 | T29: =IF($B$4="SW",'Wave Areas'!Q122,(IF($B$4="N",'Wave Areas'!C85,(IF($B$4="NE",'Wave Areas'!Q86,(IF($B$4="E",'Wave Areas'!C103,(IF($B$4="SE",'Wave Areas'!Q104,(IF($B$4="S",'Wave Areas'!C121,(IF($B$4="W",'Wave Areas'!C139,(IF($B$4="NW",'Wave Areas'!Q140,0))))))))))))))) -> 0 | U29: =IF($B$4="SW",'Wave Areas'!R122,(IF($B$4="N",'Wave Areas'!D85,(IF($B$4="NE",'Wave Areas'!R86,(IF($B$4="E",'Wave Areas'!D103,(IF($B$4="SE",'Wave Areas'!R104,(IF($B$4="S",'Wave Areas'!D121,(IF($B$4="W",'Wave Areas'!D139,(IF($B$4="NW",'Wave Areas'!R140,0))))))))))))))) -> 0 | V29: =IF($B$4="SW",'Wave Areas'!S122,(IF($B$4="N",'Wave Areas'!E85,(IF($B$4="NE",'Wave Areas'!S86,(IF($B$4="E",'Wave Areas'!E103,(IF($B$4="SE",'Wave Areas'!S104,(IF($B$4="S",'Wave Areas'!E121,(IF($B$4="W",'Wave Areas'!E139,(IF($B$4="NW",'Wave Areas'!S140,0))))))))))))))) -> 2 | W29: =IF($B$4="SW",'Wave Areas'!T122,(IF($B$4="N",'Wave Areas'!F85,(IF($B$4="NE",'Wave Areas'!T86,(IF($B$4="E",'Wave Areas'!F103,(IF($B$4="SE",'Wave Areas'!T104,(IF($B$4="S",'Wave Areas'!F121,(IF($B$4="W",'Wave Areas'!F139,(IF($B$4="NW",'Wave Areas'!T140,0))))))))))))))) -> 7 | X29: =IF($B$4="SW",'Wave Areas'!U122,(IF($B$4="N",'Wave Areas'!G85,(IF($B$4="NE",'Wave Areas'!U86,(IF($B$4="E",'Wave Areas'!G103,(IF($B$4="SE",'Wave Areas'!U104,(IF($B$4="S",'Wave Areas'!G121,(IF($B$4="W",'Wave Areas'!G139,(IF($B$4="NW",'Wave Areas'!U140,0))))))))))))))) -> 13 | Y29: =IF($B$4="SW",'Wave Areas'!V122,(IF($B$4="N",'Wave Areas'!H85,(IF($B$4="NE",'Wave Areas'!V86,(IF($B$4="E",'Wave Areas'!H103,(IF($B$4="SE",'Wave Areas'!V104,(IF($B$4="S",'Wave Areas'!H121,(IF($B$4="W",'Wave Areas'!H139,(IF($B$4="NW",'Wave Areas'!V140,0))))))))))))))) -> 14 | Z29: =IF($B$4="SW",'Wave Areas'!W122,(IF($B$4="N",'Wave Areas'!I85,(IF($B$4="NE",'Wave Areas'!W86,(IF($B$4="E",'Wave Areas'!I103,(IF($B$4="SE",'Wave Areas'!W104,(IF($B$4="S",'Wave Areas'!I121,(IF($B$4="W",'Wave Areas'!I139,(IF($B$4="NW",'Wave Areas'!W140,0))))))))))))))) -> 10 | AA29: =IF($B$4="SW",'Wave Areas'!X122,(IF($B$4="N",'Wave Areas'!J85,(IF($B$4="NE",'Wave Areas'!X86,(IF($B$4="E",'Wave Areas'!J103,(IF($B$4="SE",'Wave Areas'!X104,(IF($B$4="S",'Wave Areas'!J121,(IF($B$4="W",'Wave Areas'!J139,(IF($B$4="NW",'Wave Areas'!X140,0))))))))))))))) -> 4 | AB29: =IF($B$4="SW",'Wave Areas'!Y122,(IF($B$4="N",'Wave Areas'!K85,(IF($B$4="NE",'Wave Areas'!Y86,(IF($B$4="E",'Wave Areas'!K103,(IF($B$4="SE",'Wave Areas'!Y104,(IF($B$4="S",'Wave Areas'!K121,(IF($B$4="W",'Wave Areas'!K139,(IF($B$4="NW",'Wave Areas'!Y140,0))))))))))))))) -> 1 | AC29: =IF($B$4="SW",'Wave Areas'!Z122,(IF($B$4="N",'Wave Areas'!L85,(IF($B$4="NE",'Wave Areas'!Z86,(IF($B$4="E",'Wave Areas'!L103,(IF($B$4="SE",'Wave Areas'!Z104,(IF($B$4="S",'Wave Areas'!L121,(IF($B$4="W",'Wave Areas'!L139,(IF($B$4="NW",'Wave Areas'!Z140,0))))))))))))))) -> 0 | AE29: 7.5 | AF29: 0 | AG29: 0 | AH29: 0 | AI29: 0.0006666666667 | AJ29: 0.002333333333 | AK29: 0.004333333333 | AL29: 0.004666666667 | AM29: 0.003333333333 | AN29: 0.001333333333 | AO29: 0.0003333333333 | AP29: 0 | AQ29: 0.017 | AS29: 7.5 | AT29: 0 | AU29: 0 | AV29: =AI29/1004 -> 6.640106242e-07 | AW29: =F29*AI29 -> 437.8384579 | AX29: 1643.97053 | AY29: 3197.430871 | AZ29: 3553.952037 | BA29: =AN29/1004 -> 1.328021248e-06 | BB29: 3.320053121e-07 | BC29: 0 | BD29: 3.28685259e-05 | BE29: 8833.19193
A30: 90811.47656 | B30: 8.5 | C30: 0 | D30: 0 | E30: 0 | F30: =$A30*($F$16) -> 843568.7623 | G30: 904966.6344 | H30: 947751.3042 | I30: 978182.9891 | J30: 0 | K30: 0 | L30: 0 | M30: 0 | N30: 3674469.69 | R30: 8.5 | S30: =IF($B$4="SW",'Wave Areas'!P123,(IF($B$4="N",'Wave Areas'!B86,(IF($B$4="NE",'Wave Areas'!P87,(IF($B$4="E",'Wave Areas'!B104,(IF($B$4="SE",'Wave Areas'!P105,(IF($B$4="S",'Wave Areas'!B122,(IF($B$4="W",'Wave Areas'!B140,(IF($B$4="NW",'Wave Areas'!P141,0))))))))))))))) -> 0 | T30: =IF($B$4="SW",'Wave Areas'!Q123,(IF($B$4="N",'Wave Areas'!C86,(IF($B$4="NE",'Wave Areas'!Q87,(IF($B$4="E",'Wave Areas'!C104,(IF($B$4="SE",'Wave Areas'!Q105,(IF($B$4="S",'Wave Areas'!C122,(IF($B$4="W",'Wave Areas'!C140,(IF($B$4="NW",'Wave Areas'!Q141,0))))))))))))))) -> 0 | U30: =IF($B$4="SW",'Wave Areas'!R123,(IF($B$4="N",'Wave Areas'!D86,(IF($B$4="NE",'Wave Areas'!R87,(IF($B$4="E",'Wave Areas'!D104,(IF($B$4="SE",'Wave Areas'!R105,(IF($B$4="S",'Wave Areas'!D122,(IF($B$4="W",'Wave Areas'!D140,(IF($B$4="NW",'Wave Areas'!R141,0))))))))))))))) -> 0 | V30: =IF($B$4="SW",'Wave Areas'!S123,(IF($B$4="N",'Wave Areas'!E86,(IF($B$4="NE",'Wave Areas'!S87,(IF($B$4="E",'Wave Areas'!E104,(IF($B$4="SE",'Wave Areas'!S105,(IF($B$4="S",'Wave Areas'!E122,(IF($B$4="W",'Wave Areas'!E140,(IF($B$4="NW",'Wave Areas'!S141,0))))))))))))))) -> 0 | W30: =IF($B$4="SW",'Wave Areas'!T123,(IF($B$4="N",'Wave Areas'!F86,(IF($B$4="NE",'Wave Areas'!T87,(IF($B$4="E",'Wave Areas'!F104,(IF($B$4="SE",'Wave Areas'!T105,(IF($B$4="S",'Wave Areas'!F122,(IF($B$4="W",'Wave Areas'!F140,(IF($B$4="NW",'Wave Areas'!T141,0))))))))))))))) -> 3 | X30: =IF($B$4="SW",'Wave Areas'!U123,(IF($B$4="N",'Wave Areas'!G86,(IF($B$4="NE",'Wave Areas'!U87,(IF($B$4="E",'Wave Areas'!G104,(IF($B$4="SE",'Wave Areas'!U105,(IF($B$4="S",'Wave Areas'!G122,(IF($B$4="W",'Wave Areas'!G140,(IF($B$4="NW",'Wave Areas'!U141,0))))))))))))))) -> 7 | Y30: =IF($B$4="SW",'Wave Areas'!V123,(IF($B$4="N",'Wave Areas'!H86,(IF($B$4="NE",'Wave Areas'!V87,(IF($B$4="E",'Wave Areas'!H104,(IF($B$4="SE",'Wave Areas'!V105,(IF($B$4="S",'Wave Areas'!H122,(IF($B$4="W",'Wave Areas'!H140,(IF($B$4="NW",'Wave Areas'!V141,0))))))))))))))) -> 7 | Z30: =IF($B$4="SW",'Wave Areas'!W123,(IF($B$4="N",'Wave Areas'!I86,(IF($B$4="NE",'Wave Areas'!W87,(IF($B$4="E",'Wave Areas'!I104,(IF($B$4="SE",'Wave Areas'!W105,(IF($B$4="S",'Wave Areas'!I122,(IF($B$4="W",'Wave Areas'!I140,(IF($B$4="NW",'Wave Areas'!W141,0))))))))))))))) -> 7 | AA30: =IF($B$4="SW",'Wave Areas'!X123,(IF($B$4="N",'Wave Areas'!J86,(IF($B$4="NE",'Wave Areas'!X87,(IF($B$4="E",'Wave Areas'!J104,(IF($B$4="SE",'Wave Areas'!X105,(IF($B$4="S",'Wave Areas'!J122,(IF($B$4="W",'Wave Areas'!J140,(IF($B$4="NW",'Wave Areas'!X141,0))))))))))))))) -> 3 | AB30: =IF($B$4="SW",'Wave Areas'!Y123,(IF($B$4="N",'Wave Areas'!K86,(IF($B$4="NE",'Wave Areas'!Y87,(IF($B$4="E",'Wave Areas'!K104,(IF($B$4="SE",'Wave Areas'!Y105,(IF($B$4="S",'Wave Areas'!K122,(IF($B$4="W",'Wave Areas'!K140,(IF($B$4="NW",'Wave Areas'!Y141,0))))))))))))))) -> 1 | AC30: =IF($B$4="SW",'Wave Areas'!Z123,(IF($B$4="N",'Wave Areas'!L86,(IF($B$4="NE",'Wave Areas'!Z87,(IF($B$4="E",'Wave Areas'!L104,(IF($B$4="SE",'Wave Areas'!Z105,(IF($B$4="S",'Wave Areas'!L122,(IF($B$4="W",'Wave Areas'!L140,(IF($B$4="NW",'Wave Areas'!Z141,0))))))))))))))) -> 0 | AE30: 8.5 | AF30: 0 | AG30: 0 | AH30: 0 | AI30: 0 | AJ30: 0.001 | AK30: 0.002333333333 | AL30: 0.002333333333 | AM30: 0.002333333333 | AN30: 0.001 | AO30: 0.0003333333333 | AP30: 0 | AQ30: 0.009333333333 | AS30: 8.5 | AT30: 0 | AU30: 0 | AV30: =AI30/1004 -> 0 | AW30: 0 | AX30: 904.9666344 | AY30: 2211.41971 | AZ30: 2282.426975 | BA30: =AN30/1004 -> 9.960159363e-07 | BB30: 3.320053121e-07 | BC30: 0 | BD30: 1.693227092e-05 | BE30: 5398.813337
A31: 113435.7891 | B31: 9.5 | C31: 0 | D31: 0 | E31: 0 | F31: 0 | G31: 1130425.45 | H31: 1183869.276 | I31: 0 | J31: 0 | K31: 0 | L31: 0 | M31: 0 | N31: 2314294.726 | R31: 9.5 | S31: =IF($B$4="SW",'Wave Areas'!P124,(IF($B$4="N",'Wave Areas'!B87,(IF($B$4="NE",'Wave Areas'!P88,(IF($B$4="E",'Wave Areas'!B105,(IF($B$4="SE",'Wave Areas'!P106,(IF($B$4="S",'Wave Areas'!B123,(IF($B$4="W",'Wave Areas'!B141,(IF($B$4="NW",'Wave Areas'!P142,0))))))))))))))) -> 0 | T31: =IF($B$4="SW",'Wave Areas'!Q124,(IF($B$4="N",'Wave Areas'!C87,(IF($B$4="NE",'Wave Areas'!Q88,(IF($B$4="E",'Wave Areas'!C105,(IF($B$4="SE",'Wave Areas'!Q106,(IF($B$4="S",'Wave Areas'!C123,(IF($B$4="W",'Wave Areas'!C141,(IF($B$4="NW",'Wave Areas'!Q142,0))))))))))))))) -> 0 | U31: =IF($B$4="SW",'Wave Areas'!R124,(IF($B$4="N",'Wave Areas'!D87,(IF($B$4="NE",'Wave Areas'!R88,(IF($B$4="E",'Wave Areas'!D105,(IF($B$4="SE",'Wave Areas'!R106,(IF($B$4="S",'Wave Areas'!D123,(IF($B$4="W",'Wave Areas'!D141,(IF($B$4="NW",'Wave Areas'!R142,0))))))))))))))) -> 0 | V31: =IF($B$4="SW",'Wave Areas'!S124,(IF($B$4="N",'Wave Areas'!E87,(IF($B$4="NE",'Wave Areas'!S88,(IF($B$4="E",'Wave Areas'!E105,(IF($B$4="SE",'Wave Areas'!S106,(IF($B$4="S",'Wave Areas'!E123,(IF($B$4="W",'Wave Areas'!E141,(IF($B$4="NW",'Wave Areas'!S142,0))))))))))))))) -> 0 | W31: =IF($B$4="SW",'Wave Areas'!T124,(IF($B$4="N",'Wave Areas'!F87,(IF($B$4="NE",'Wave Areas'!T88,(IF($B$4="E",'Wave Areas'!F105,(IF($B$4="SE",'Wave Areas'!T106,(IF($B$4="S",'Wave Areas'!F123,(IF($B$4="W",'Wave Areas'!F141,(IF($B$4="NW",'Wave Areas'!T142,0))))))))))))))) -> 3 | X31: =IF($B$4="SW",'Wave Areas'!U124,(IF($B$4="N",'Wave Areas'!G87,(IF($B$4="NE",'Wave Areas'!U88,(IF($B$4="E",'Wave Areas'!G105,(IF($B$4="SE",'Wave Areas'!U106,(IF($B$4="S",'Wave Areas'!G123,(IF($B$4="W",'Wave Areas'!G141,(IF($B$4="NW",'Wave Areas'!U142,0))))))))))))))) -> 4 | Y31: =IF($B$4="SW",'Wave Areas'!V124,(IF($B$4="N",'Wave Areas'!H87,(IF($B$4="NE",'Wave Areas'!V88,(IF($B$4="E",'Wave Areas'!H105,(IF($B$4="SE",'Wave Areas'!V106,(IF($B$4="S",'Wave Areas'!H123,(IF($B$4="W",'Wave Areas'!H141,(IF($B$4="NW",'Wave Areas'!V142,0))))))))))))))) -> 5 | Z31: =IF($B$4="SW",'Wave Areas'!W124,(IF($B$4="N",'Wave Areas'!I87,(IF($B$4="NE",'Wave Areas'!W88,(IF($B$4="E",'Wave Areas'!I105,(IF($B$4="SE",'Wave Areas'!W106,(IF($B$4="S",'Wave Areas'!I123,(IF($B$4="W",'Wave Areas'!I141,(IF($B$4="NW",'Wave Areas'!W142,0))))))))))))))) -> 3 | AA31: =IF($B$4="SW",'Wave Areas'!X124,(IF($B$4="N",'Wave Areas'!J87,(IF($B$4="NE",'Wave Areas'!X88,(IF($B$4="E",'Wave Areas'!J105,(IF($B$4="SE",'Wave Areas'!X106,(IF($B$4="S",'Wave Areas'!J123,(IF($B$4="W",'Wave Areas'!J141,(IF($B$4="NW",'Wave Areas'!X142,0))))))))))))))) -> 2 | AB31: =IF($B$4="SW",'Wave Areas'!Y124,(IF($B$4="N",'Wave Areas'!K87,(IF($B$4="NE",'Wave Areas'!Y88,(IF($B$4="E",'Wave Areas'!K105,(IF($B$4="SE",'Wave Areas'!Y106,(IF($B$4="S",'Wave Areas'!K123,(IF($B$4="W",'Wave Areas'!K141,(IF($B$4="NW",'Wave Areas'!Y142,0))))))))))))))) -> 1 | AC31: =IF($B$4="SW",'Wave Areas'!Z124,(IF($B$4="N",'Wave Areas'!L87,(IF($B$4="NE",'Wave Areas'!Z88,(IF($B$4="E",'Wave Areas'!L105,(IF($B$4="SE",'Wave Areas'!Z106,(IF($B$4="S",'Wave Areas'!L123,(IF($B$4="W",'Wave Areas'!L141,(IF($B$4="NW",'Wave Areas'!Z142,0))))))))))))))) -> 0 | AE31: 9.5 | AF31: 0 | AG31: 0 | AH31: 0 | AI31: 0 | AJ31: 0.001 | AK31: 0.001333333333 | AL31: 0.001666666667 | AM31: 0.001 | AN31: 0.0006666666667 | AO31: 0.0003333333333 | AP31: 0 | AQ31: 0.006 | AS31: 9.5 | AT31: 0 | AU31: 0 | AV31: =AI31/1004 -> 0 | AW31: =AJ31/1004 -> 9.960159363e-07 | AX31: =G31*AJ31 -> 1130.42545 | AY31: =H31*AK31 -> 1578.492368 | AZ31: =AM31/1004 -> 9.960159363e-07 | BA31: =AN31/1004 -> 6.640106242e-07 | BB31: 3.320053121e-07 | BC31: 0 | BD31: 9.296148738e-06 | BE31: 2708.91783
